Workbook

Sheet Phuluc (HTX) (hidden)
A1: PHỤ LỤC
A2: Thống kê số lượng Phương tiện vận tải trên địa bàn
A3: (Kèm theo Công văn số /SGTVT-QLVT ngày /01/2017)
A5: TT | B5: Tên đơn vị kinh doanh vận tải | C5: Số lượng phương tiện kinh doanh vận tải (xe) | X5: Điện thoại | Y5: Đị chỉ
C6: Xe tuyến cố định | E6: Xe bus | G6: Xe Trung chuyển | I6: Xe Taxi | K6: Xe hợp đồng | M6: Xe du lịch | O6: Xe Container | Q6: Xe đầu kéo | S6: Xe tải | U6: Xe Nội bộ | AF6: Số lượng | AG6: Số lượng phương tiện kinh doanh vận tải (xe) | AQ6: Cộng
C7: Số lượng | D7: Số ghế | E7: Số lượng | F7: Số ghế | G7: Số lượng | H7: Số ghế | I7: Số lượng | J7: Số ghế | K7: Số lượng | L7: Số ghế | M7: Số lượng | N7: Số ghế | O7: Số lượng | P7: Tải trọng | Q7: Số lượng | R7: Tải trọng | S7: Số lượng | T7: Tải trọng | AG7: Xe tuyến cố định | AH7: Xe bus | AI7: Xe Trung chuyển | AJ7: Xe Taxi | AK7: Xe hợp đồng | AL7: Xe du lịch | AM7: Xe Container | AN7: Xe đầu kéo | AO7: Xe tải | AP7: Xe Nội bộ
A8: =IF($B8<>"",SUBTOTAL(103,B$8:B8),"") -> 1 | B8: Chi nhánh HTX Hòa Bình Xanh tại Quảng Bình | C8: =IFERROR(SUMPRODUCT((TBGSHT!$D$9:$D$4167=$B8)*(TBGSHT!$C$9:$C$4167=C$6)),"") -> 0 | D8: =IFERROR(SUMPRODUCT((TBGSHT!$D$9:$D$4167=$B8)*(TBGSHT!$C$9:$C$4167=C$6)*(TBGSHT!$G$9:$G$4167)),"") -> 0 | E8: =IFERROR(SUMPRODUCT((TBGSHT!$D$9:$D$4167=$B8)*(TBGSHT!$C$9:$C$4167=E$6)),"") -> 0 | F8: =IFERROR(SUMPRODUCT((TBGSHT!$D$9:$D$4167=$B8)*(TBGSHT!$C$9:$C$4167=E$6)*(TBGSHT!$G$9:$G$4167)),"") -> 0 | G8: =IFERROR(SUMPRODUCT((TBGSHT!$D$9:$D$4167=$B8)*(TBGSHT!$C$9:$C$4167=G$6)),"") -> 0 | H8: =IFERROR(SUMPRODUCT((TBGSHT!$D$9:$D$4167=$B8)*(TBGSHT!$C$9:$C$4167=G$6)*(TBGSHT!$G$9:$G$4167)),"") -> 0 | I8: =IFERROR(SUMPRODUCT((TBGSHT!$D$9:$D$4167=$B8)*(TBGSHT!$C$9:$C$4167=I$6)),"") -> 21 | J8: =IFERROR(SUMPRODUCT((TBGSHT!$D$9:$D$4167=$B8)*(TBGSHT!$C$9:$C$4167=I$6)*(TBGSHT!$G$9:$G$4167)),"") -> 122 | K8: =IFERROR(SUMPRODUCT((TBGSHT!$D$9:$D$4167=$B8)*(TBGSHT!$C$9:$C$4167=K$6)),"") -> 0 | L8: =IFERROR(SUMPRODUCT((TBGSHT!$D$9:$D$4167=$B8)*(TBGSHT!$C$9:$C$4167=K$6)*(TBGSHT!$G$9:$G$4167)),"") -> 0 | M8: =IFERROR(SUMPRODUCT((TBGSHT!$D$9:$D$4167=$B8)*(TBGSHT!$C$9:$C$4167=M$6)),"") -> 0 | N8: =IFERROR(SUMPRODUCT((TBGSHT!$D$9:$D$4167=$B8)*(TBGSHT!$C$9:$C$4167=M$6)*(TBGSHT!$G$9:$G$4167)),"") -> 0 | O8: =IFERROR(SUMPRODUCT((TBGSHT!$D$9:$D$4167=$B8)*(TBGSHT!$C$9:$C$4167=O$6)),"") -> 0 | P8: =IFERROR(SUMPRODUCT((TBGSHT!$D$9:$D$4167=$B8)*(TBGSHT!$C$9:$C$4167=O$6)*(TBGSHT!$G$9:$G$4167)),"") -> 0 | Q8: =IFERROR(SUMPRODUCT((TBGSHT!$D$9:$D$4167=$B8)*(TBGSHT!$C$9:$C$4167=Q$6)),"") -> 0 | R8: =IFERROR(SUMPRODUCT((TBGSHT!$D$9:$D$4167=$B8)*(TBGSHT!$C$9:$C$4167=Q$6)*(TBGSHT!$G$9:$G$4167)),"") -> 0 | S8: =IFERROR(SUMPRODUCT((TBGSHT!$D$9:$D$4167=$B8)*(TBGSHT!$C$9:$C$4167=S$6)),"") -> 0 | T8: =IFERROR(SUMPRODUCT((TBGSHT!$D$9:$D$4167=$B8)*(TBGSHT!$C$9:$C$4167=S$6)*(TBGSHT!$G$9:$G$4167)),"") -> 0 | U8: =IFERROR(SUMPRODUCT((TBGSHT!$D$9:$D$4167=$B8)*(TBGSHT!$C$9:$C$4167=U$6)),"") -> 0 | V8: =IFERROR(VLOOKUP($B8,Danhmuc!$D$4:$M$513,2,0),"") -> 253A Quang Trung, Phường Phú Hải, Thành Phố Đồng Hới, Tỉnh Quảng Bình | W8: =IFERROR(VLOOKUP($B8,Danhmuc!$D$4:$M$513,3,0),"") -> 02323845888 | X8: =SUM(C8:M8) -> 143 | Y8: =SUM(O8:S8) -> 0 | AB8: 5
A9: =IF($B9<>"",SUBTOTAL(103,B$8:B9),"") -> 2 | B9: HTX cơ khí & vận tải ô tô Huy Hoàng | C9: =IFERROR(SUMPRODUCT((TBGSHT!$D$9:$D$4167=$B9)*(TBGSHT!$C$9:$C$4167=C$6)),"") -> 33 | D9: =IFERROR(SUMPRODUCT((TBGSHT!$D$9:$D$4167=$B9)*(TBGSHT!$C$9:$C$4167=C$6)*(TBGSHT!$G$9:$G$4167)),"") -> 912 | E9: =IFERROR(SUMPRODUCT((TBGSHT!$D$9:$D$4167=$B9)*(TBGSHT!$C$9:$C$4167=E$6)),"") -> 0 | F9: =IFERROR(SUMPRODUCT((TBGSHT!$D$9:$D$4167=$B9)*(TBGSHT!$C$9:$C$4167=E$6)*(TBGSHT!$G$9:$G$4167)),"") -> 0 | G9: =IFERROR(SUMPRODUCT((TBGSHT!$D$9:$D$4167=$B9)*(TBGSHT!$C$9:$C$4167=G$6)),"") -> 0 | H9: =IFERROR(SUMPRODUCT((TBGSHT!$D$9:$D$4167=$B9)*(TBGSHT!$C$9:$C$4167=G$6)*(TBGSHT!$G$9:$G$4167)),"") -> 0 | I9: =IFERROR(SUMPRODUCT((TBGSHT!$D$9:$D$4167=$B9)*(TBGSHT!$C$9:$C$4167=I$6)),"") -> 0 | J9: =IFERROR(SUMPRODUCT((TBGSHT!$D$9:$D$4167=$B9)*(TBGSHT!$C$9:$C$4167=I$6)*(TBGSHT!$G$9:$G$4167)),"") -> 0 | K9: =IFERROR(SUMPRODUCT((TBGSHT!$D$9:$D$4167=$B9)*(TBGSHT!$C$9:$C$4167=K$6)),"") -> 9 | L9: =IFERROR(SUMPRODUCT((TBGSHT!$D$9:$D$4167=$B9)*(TBGSHT!$C$9:$C$4167=K$6)*(TBGSHT!$G$9:$G$4167)),"") -> 272 | M9: =IFERROR(SUMPRODUCT((TBGSHT!$D$9:$D$4167=$B9)*(TBGSHT!$C$9:$C$4167=M$6)),"") -> 0 | N9: =IFERROR(SUMPRODUCT((TBGSHT!$D$9:$D$4167=$B9)*(TBGSHT!$C$9:$C$4167=M$6)*(TBGSHT!$G$9:$G$4167)),"") -> 0 | O9: =IFERROR(SUMPRODUCT((TBGSHT!$D$9:$D$4167=$B9)*(TBGSHT!$C$9:$C$4167=O$6)),"") -> 0 | P9: =IFERROR(SUMPRODUCT((TBGSHT!$D$9:$D$4167=$B9)*(TBGSHT!$C$9:$C$4167=O$6)*(TBGSHT!$G$9:$G$4167)),"") -> 0 | Q9: =IFERROR(SUMPRODUCT((TBGSHT!$D$9:$D$4167=$B9)*(TBGSHT!$C$9:$C$4167=Q$6)),"") -> 0 | R9: =IFERROR(SUMPRODUCT((TBGSHT!$D$9:$D$4167=$B9)*(TBGSHT!$C$9:$C$4167=Q$6)*(TBGSHT!$G$9:$G$4167)),"") -> 0 | S9: =IFERROR(SUMPRODUCT((TBGSHT!$D$9:$D$4167=$B9)*(TBGSHT!$C$9:$C$4167=S$6)),"") -> 3 | T9: =IFERROR(SUMPRODUCT((TBGSHT!$D$9:$D$4167=$B9)*(TBGSHT!$C$9:$C$4167=S$6)*(TBGSHT!$G$9:$G$4167)),"") -> 0 | U9: =IFERROR(SUMPRODUCT((TBGSHT!$D$9:$D$4167=$B9)*(TBGSHT!$C$9:$C$4167=U$6)),"") -> 0 | V9: =IFERROR(VLOOKUP($B9,Danhmuc!$D$4:$M$513,2,0),"") -> Số 08 Lý Thái Tổ, Phường Bắc Nghĩa, Thành Phố Đồng Hới, Tỉnh Quảng Bình | W9: =IFERROR(VLOOKUP($B9,Danhmuc!$D$4:$M$513,3,0),"") -> 02323828939 | X9: 1226 | Y9: =SUM(O9:S9) -> 3 | AB9: 1
A10: =IF($B10<>"",SUBTOTAL(103,B$8:B10),"") -> 3 | B10: HTX Dịch vụ hỗ trợ VT&HK Hải Anh | C10: =IFERROR(SUMPRODUCT((TBGSHT!$D$9:$D$4167=$B10)*(TBGSHT!$C$9:$C$4167=C$6)),"") -> 0 | D10: =IFERROR(SUMPRODUCT((TBGSHT!$D$9:$D$4167=$B10)*(TBGSHT!$C$9:$C$4167=C$6)*(TBGSHT!$G$9:$G$4167)),"") -> 0 | E10: =IFERROR(SUMPRODUCT((TBGSHT!$D$9:$D$4167=$B10)*(TBGSHT!$C$9:$C$4167=E$6)),"") -> 0 | F10: =IFERROR(SUMPRODUCT((TBGSHT!$D$9:$D$4167=$B10)*(TBGSHT!$C$9:$C$4167=E$6)*(TBGSHT!$G$9:$G$4167)),"") -> 0 | G10: =IFERROR(SUMPRODUCT((TBGSHT!$D$9:$D$4167=$B10)*(TBGSHT!$C$9:$C$4167=G$6)),"") -> 0 | H10: =IFERROR(SUMPRODUCT((TBGSHT!$D$9:$D$4167=$B10)*(TBGSHT!$C$9:$C$4167=G$6)*(TBGSHT!$G$9:$G$4167)),"") -> 0 | I10: =IFERROR(SUMPRODUCT((TBGSHT!$D$9:$D$4167=$B10)*(TBGSHT!$C$9:$C$4167=I$6)),"") -> 0 | J10: =IFERROR(SUMPRODUCT((TBGSHT!$D$9:$D$4167=$B10)*(TBGSHT!$C$9:$C$4167=I$6)*(TBGSHT!$G$9:$G$4167)),"") -> 0 | K10: =IFERROR(SUMPRODUCT((TBGSHT!$D$9:$D$4167=$B10)*(TBGSHT!$C$9:$C$4167=K$6)),"") -> 0 | L10: =IFERROR(SUMPRODUCT((TBGSHT!$D$9:$D$4167=$B10)*(TBGSHT!$C$9:$C$4167=K$6)*(TBGSHT!$G$9:$G$4167)),"") -> 0 | M10: =IFERROR(SUMPRODUCT((TBGSHT!$D$9:$D$4167=$B10)*(TBGSHT!$C$9:$C$4167=M$6)),"") -> 0 | N10: =IFERROR(SUMPRODUCT((TBGSHT!$D$9:$D$4167=$B10)*(TBGSHT!$C$9:$C$4167=M$6)*(TBGSHT!$G$9:$G$4167)),"") -> 0 | O10: =IFERROR(SUMPRODUCT((TBGSHT!$D$9:$D$4167=$B10)*(TBGSHT!$C$9:$C$4167=O$6)),"") -> 0 | P10: =IFERROR(SUMPRODUCT((TBGSHT!$D$9:$D$4167=$B10)*(TBGSHT!$C$9:$C$4167=O$6)*(TBGSHT!$G$9:$G$4167)),"") -> 0 | Q10: =IFERROR(SUMPRODUCT((TBGSHT!$D$9:$D$4167=$B10)*(TBGSHT!$C$9:$C$4167=Q$6)),"") -> 9 | R10: =IFERROR(SUMPRODUCT((TBGSHT!$D$9:$D$4167=$B10)*(TBGSHT!$C$9:$C$4167=Q$6)*(TBGSHT!$G$9:$G$4167)),"") -> 0 | S10: =IFERROR(SUMPRODUCT((TBGSHT!$D$9:$D$4167=$B10)*(TBGSHT!$C$9:$C$4167=S$6)),"") -> 333 | T10: =IFERROR(SUMPRODUCT((TBGSHT!$D$9:$D$4167=$B10)*(TBGSHT!$C$9:$C$4167=S$6)*(TBGSHT!$G$9:$G$4167)),"") -> 15 | U10: =IFERROR(SUMPRODUCT((TBGSHT!$D$9:$D$4167=$B10)*(TBGSHT!$C$9:$C$4167=U$6)),"") -> 0 | V10: =IFERROR(VLOOKUP($B10,Danhmuc!$D$4:$M$513,2,0),"") -> 42 Nguyễn Biểu, P. Đồng Phú, Đồng Hới, Quảng Bình | W10: =IFERROR(VLOOKUP($B10,Danhmuc!$D$4:$M$513,3,0),"") -> 0523817373 | X10: 0 | Y10: 342 | AB10: 3
A11: =IF($B11<>"",SUBTOTAL(103,B$8:B11),"") -> 4 | B11: HTX DV hỗ trợ vận tải ô tô Nam Gianh | C11: =IFERROR(SUMPRODUCT((TBGSHT!$D$9:$D$4167=$B11)*(TBGSHT!$C$9:$C$4167=C$6)),"") -> 23 | D11: =IFERROR(SUMPRODUCT((TBGSHT!$D$9:$D$4167=$B11)*(TBGSHT!$C$9:$C$4167=C$6)*(TBGSHT!$G$9:$G$4167)),"") -> 612 | E11: =IFERROR(SUMPRODUCT((TBGSHT!$D$9:$D$4167=$B11)*(TBGSHT!$C$9:$C$4167=E$6)),"") -> 0 | F11: =IFERROR(SUMPRODUCT((TBGSHT!$D$9:$D$4167=$B11)*(TBGSHT!$C$9:$C$4167=E$6)*(TBGSHT!$G$9:$G$4167)),"") -> 0 | G11: =IFERROR(SUMPRODUCT((TBGSHT!$D$9:$D$4167=$B11)*(TBGSHT!$C$9:$C$4167=G$6)),"") -> 0 | H11: =IFERROR(SUMPRODUCT((TBGSHT!$D$9:$D$4167=$B11)*(TBGSHT!$C$9:$C$4167=G$6)*(TBGSHT!$G$9:$G$4167)),"") -> 0 | I11: =IFERROR(SUMPRODUCT((TBGSHT!$D$9:$D$4167=$B11)*(TBGSHT!$C$9:$C$4167=I$6)),"") -> 0 | J11: =IFERROR(SUMPRODUCT((TBGSHT!$D$9:$D$4167=$B11)*(TBGSHT!$C$9:$C$4167=I$6)*(TBGSHT!$G$9:$G$4167)),"") -> 0 | K11: =IFERROR(SUMPRODUCT((TBGSHT!$D$9:$D$4167=$B11)*(TBGSHT!$C$9:$C$4167=K$6)),"") -> 14 | L11: =IFERROR(SUMPRODUCT((TBGSHT!$D$9:$D$4167=$B11)*(TBGSHT!$C$9:$C$4167=K$6)*(TBGSHT!$G$9:$G$4167)),"") -> 367 | M11: =IFERROR(SUMPRODUCT((TBGSHT!$D$9:$D$4167=$B11)*(TBGSHT!$C$9:$C$4167=M$6)),"") -> 0 | N11: =IFERROR(SUMPRODUCT((TBGSHT!$D$9:$D$4167=$B11)*(TBGSHT!$C$9:$C$4167=M$6)*(TBGSHT!$G$9:$G$4167)),"") -> 0 | O11: =IFERROR(SUMPRODUCT((TBGSHT!$D$9:$D$4167=$B11)*(TBGSHT!$C$9:$C$4167=O$6)),"") -> 0 | P11: =IFERROR(SUMPRODUCT((TBGSHT!$D$9:$D$4167=$B11)*(TBGSHT!$C$9:$C$4167=O$6)*(TBGSHT!$G$9:$G$4167)),"") -> 0 | Q11: =IFERROR(SUMPRODUCT((TBGSHT!$D$9:$D$4167=$B11)*(TBGSHT!$C$9:$C$4167=Q$6)),"") -> 0 | R11: =IFERROR(SUMPRODUCT((TBGSHT!$D$9:$D$4167=$B11)*(TBGSHT!$C$9:$C$4167=Q$6)*(TBGSHT!$G$9:$G$4167)),"") -> 0 | S11: =IFERROR(SUMPRODUCT((TBGSHT!$D$9:$D$4167=$B11)*(TBGSHT!$C$9:$C$4167=S$6)),"") -> 0 | T11: =IFERROR(SUMPRODUCT((TBGSHT!$D$9:$D$4167=$B11)*(TBGSHT!$C$9:$C$4167=S$6)*(TBGSHT!$G$9:$G$4167)),"") -> 0 | U11: =IFERROR(SUMPRODUCT((TBGSHT!$D$9:$D$4167=$B11)*(TBGSHT!$C$9:$C$4167=U$6)),"") -> 0 | V11: =IFERROR(VLOOKUP($B11,Danhmuc!$D$4:$M$513,2,0),"") -> Thôn Thanh Khê, xã Thanh Trạch, huyện Bố Trạch, tỉnh Quảng Bình | W11: =IFERROR(VLOOKUP($B11,Danhmuc!$D$4:$M$513,3,0),"") -> 0523866006 | X11: 1016 | Y11: 0 | AB11: 1
A12: =IF($B12<>"",SUBTOTAL(103,B$8:B12),"") -> 5 | B12: HTX DV HTVT Đường bộ Đồng Hới | C12: =IFERROR(SUMPRODUCT((TBGSHT!$D$9:$D$4167=$B12)*(TBGSHT!$C$9:$C$4167=C$6)),"") -> 0 | D12: =IFERROR(SUMPRODUCT((TBGSHT!$D$9:$D$4167=$B12)*(TBGSHT!$C$9:$C$4167=C$6)*(TBGSHT!$G$9:$G$4167)),"") -> 0 | E12: =IFERROR(SUMPRODUCT((TBGSHT!$D$9:$D$4167=$B12)*(TBGSHT!$C$9:$C$4167=E$6)),"") -> 0 | F12: =IFERROR(SUMPRODUCT((TBGSHT!$D$9:$D$4167=$B12)*(TBGSHT!$C$9:$C$4167=E$6)*(TBGSHT!$G$9:$G$4167)),"") -> 0 | G12: =IFERROR(SUMPRODUCT((TBGSHT!$D$9:$D$4167=$B12)*(TBGSHT!$C$9:$C$4167=G$6)),"") -> 0 | H12: =IFERROR(SUMPRODUCT((TBGSHT!$D$9:$D$4167=$B12)*(TBGSHT!$C$9:$C$4167=G$6)*(TBGSHT!$G$9:$G$4167)),"") -> 0 | I12: =IFERROR(SUMPRODUCT((TBGSHT!$D$9:$D$4167=$B12)*(TBGSHT!$C$9:$C$4167=I$6)),"") -> 0 | J12: =IFERROR(SUMPRODUCT((TBGSHT!$D$9:$D$4167=$B12)*(TBGSHT!$C$9:$C$4167=I$6)*(TBGSHT!$G$9:$G$4167)),"") -> 0 | K12: =IFERROR(SUMPRODUCT((TBGSHT!$D$9:$D$4167=$B12)*(TBGSHT!$C$9:$C$4167=K$6)),"") -> 52 | L12: =IFERROR(SUMPRODUCT((TBGSHT!$D$9:$D$4167=$B12)*(TBGSHT!$C$9:$C$4167=K$6)*(TBGSHT!$G$9:$G$4167)),"") -> 1217 | M12: =IFERROR(SUMPRODUCT((TBGSHT!$D$9:$D$4167=$B12)*(TBGSHT!$C$9:$C$4167=M$6)),"") -> 0 | N12: =IFERROR(SUMPRODUCT((TBGSHT!$D$9:$D$4167=$B12)*(TBGSHT!$C$9:$C$4167=M$6)*(TBGSHT!$G$9:$G$4167)),"") -> 0 | O12: =IFERROR(SUMPRODUCT((TBGSHT!$D$9:$D$4167=$B12)*(TBGSHT!$C$9:$C$4167=O$6)),"") -> 17 | P12: =IFERROR(SUMPRODUCT((TBGSHT!$D$9:$D$4167=$B12)*(TBGSHT!$C$9:$C$4167=O$6)*(TBGSHT!$G$9:$G$4167)),"") -> 2 | Q12: =IFERROR(SUMPRODUCT((TBGSHT!$D$9:$D$4167=$B12)*(TBGSHT!$C$9:$C$4167=Q$6)),"") -> 41 | R12: =IFERROR(SUMPRODUCT((TBGSHT!$D$9:$D$4167=$B12)*(TBGSHT!$C$9:$C$4167=Q$6)*(TBGSHT!$G$9:$G$4167)),"") -> 6 | S12: =IFERROR(SUMPRODUCT((TBGSHT!$D$9:$D$4167=$B12)*(TBGSHT!$C$9:$C$4167=S$6)),"") -> 250 | T12: =IFERROR(SUMPRODUCT((TBGSHT!$D$9:$D$4167=$B12)*(TBGSHT!$C$9:$C$4167=S$6)*(TBGSHT!$G$9:$G$4167)),"") -> 16 | U12: =IFERROR(SUMPRODUCT((TBGSHT!$D$9:$D$4167=$B12)*(TBGSHT!$C$9:$C$4167=U$6)),"") -> 0 | V12: =IFERROR(VLOOKUP($B12,Danhmuc!$D$4:$M$513,2,0),"") -> TDP2 Mỹ Cương, Phường Bắc Nghĩa, Thành Phố Đồng Hới, Tỉnh Quảng Bình | W12: =IFERROR(VLOOKUP($B12,Danhmuc!$D$4:$M$513,3,0),"") -> 0919406306 | X12: 1269 | Y12: 316 | AB12: 1
A13: =IF($B13<>"",SUBTOTAL(103,B$8:B13),"") -> 6 | B13: HTX ô tô vận tải HK Sông Gianh | C13: =IFERROR(SUMPRODUCT((TBGSHT!$D$9:$D$4167=$B13)*(TBGSHT!$C$9:$C$4167=C$6)),"") -> 70 | D13: =IFERROR(SUMPRODUCT((TBGSHT!$D$9:$D$4167=$B13)*(TBGSHT!$C$9:$C$4167=C$6)*(TBGSHT!$G$9:$G$4167)),"") -> 2025 | E13: =IFERROR(SUMPRODUCT((TBGSHT!$D$9:$D$4167=$B13)*(TBGSHT!$C$9:$C$4167=E$6)),"") -> 0 | F13: =IFERROR(SUMPRODUCT((TBGSHT!$D$9:$D$4167=$B13)*(TBGSHT!$C$9:$C$4167=E$6)*(TBGSHT!$G$9:$G$4167)),"") -> 0 | G13: =IFERROR(SUMPRODUCT((TBGSHT!$D$9:$D$4167=$B13)*(TBGSHT!$C$9:$C$4167=G$6)),"") -> 0 | H13: =IFERROR(SUMPRODUCT((TBGSHT!$D$9:$D$4167=$B13)*(TBGSHT!$C$9:$C$4167=G$6)*(TBGSHT!$G$9:$G$4167)),"") -> 0 | I13: =IFERROR(SUMPRODUCT((TBGSHT!$D$9:$D$4167=$B13)*(TBGSHT!$C$9:$C$4167=I$6)),"") -> 0 | J13: =IFERROR(SUMPRODUCT((TBGSHT!$D$9:$D$4167=$B13)*(TBGSHT!$C$9:$C$4167=I$6)*(TBGSHT!$G$9:$G$4167)),"") -> 0 | K13: =IFERROR(SUMPRODUCT((TBGSHT!$D$9:$D$4167=$B13)*(TBGSHT!$C$9:$C$4167=K$6)),"") -> 7 | L13: =IFERROR(SUMPRODUCT((TBGSHT!$D$9:$D$4167=$B13)*(TBGSHT!$C$9:$C$4167=K$6)*(TBGSHT!$G$9:$G$4167)),"") -> 135 | M13: =IFERROR(SUMPRODUCT((TBGSHT!$D$9:$D$4167=$B13)*(TBGSHT!$C$9:$C$4167=M$6)),"") -> 0 | N13: =IFERROR(SUMPRODUCT((TBGSHT!$D$9:$D$4167=$B13)*(TBGSHT!$C$9:$C$4167=M$6)*(TBGSHT!$G$9:$G$4167)),"") -> 0 | O13: =IFERROR(SUMPRODUCT((TBGSHT!$D$9:$D$4167=$B13)*(TBGSHT!$C$9:$C$4167=O$6)),"") -> 0 | P13: =IFERROR(SUMPRODUCT((TBGSHT!$D$9:$D$4167=$B13)*(TBGSHT!$C$9:$C$4167=O$6)*(TBGSHT!$G$9:$G$4167)),"") -> 0 | Q13: =IFERROR(SUMPRODUCT((TBGSHT!$D$9:$D$4167=$B13)*(TBGSHT!$C$9:$C$4167=Q$6)),"") -> 0 | R13: =IFERROR(SUMPRODUCT((TBGSHT!$D$9:$D$4167=$B13)*(TBGSHT!$C$9:$C$4167=Q$6)*(TBGSHT!$G$9:$G$4167)),"") -> 0 | S13: =IFERROR(SUMPRODUCT((TBGSHT!$D$9:$D$4167=$B13)*(TBGSHT!$C$9:$C$4167=S$6)),"") -> 1 | T13: =IFERROR(SUMPRODUCT((TBGSHT!$D$9:$D$4167=$B13)*(TBGSHT!$C$9:$C$4167=S$6)*(TBGSHT!$G$9:$G$4167)),"") -> 16 | U13: =IFERROR(SUMPRODUCT((TBGSHT!$D$9:$D$4167=$B13)*(TBGSHT!$C$9:$C$4167=U$6)),"") -> 0 | V13: =IFERROR(VLOOKUP($B13,Danhmuc!$D$4:$M$513,2,0),"") -> Tầng 2 Bến xe Ba Đồn, Phường Quảng Thọ, thị xã Ba Đồn, tỉnh Quảng Bình | W13: =IFERROR(VLOOKUP($B13,Danhmuc!$D$4:$M$513,3,0),"") -> 0523513160 | X13: 2237 | Y13: 1 | AB13: 1
A14: =IF($B14<>"",SUBTOTAL(103,B$8:B14),"") -> 7 | B14: HTX ô tô vận tải Lý Hòa | C14: =IFERROR(SUMPRODUCT((TBGSHT!$D$9:$D$4167=$B14)*(TBGSHT!$C$9:$C$4167=C$6)),"") -> 31 | D14: =IFERROR(SUMPRODUCT((TBGSHT!$D$9:$D$4167=$B14)*(TBGSHT!$C$9:$C$4167=C$6)*(TBGSHT!$G$9:$G$4167)),"") -> 820 | E14: =IFERROR(SUMPRODUCT((TBGSHT!$D$9:$D$4167=$B14)*(TBGSHT!$C$9:$C$4167=E$6)),"") -> 0 | F14: =IFERROR(SUMPRODUCT((TBGSHT!$D$9:$D$4167=$B14)*(TBGSHT!$C$9:$C$4167=E$6)*(TBGSHT!$G$9:$G$4167)),"") -> 0 | G14: =IFERROR(SUMPRODUCT((TBGSHT!$D$9:$D$4167=$B14)*(TBGSHT!$C$9:$C$4167=G$6)),"") -> 0 | H14: =IFERROR(SUMPRODUCT((TBGSHT!$D$9:$D$4167=$B14)*(TBGSHT!$C$9:$C$4167=G$6)*(TBGSHT!$G$9:$G$4167)),"") -> 0 | I14: =IFERROR(SUMPRODUCT((TBGSHT!$D$9:$D$4167=$B14)*(TBGSHT!$C$9:$C$4167=I$6)),"") -> 0 | J14: =IFERROR(SUMPRODUCT((TBGSHT!$D$9:$D$4167=$B14)*(TBGSHT!$C$9:$C$4167=I$6)*(TBGSHT!$G$9:$G$4167)),"") -> 0 | K14: =IFERROR(SUMPRODUCT((TBGSHT!$D$9:$D$4167=$B14)*(TBGSHT!$C$9:$C$4167=K$6)),"") -> 18 | L14: =IFERROR(SUMPRODUCT((TBGSHT!$D$9:$D$4167=$B14)*(TBGSHT!$C$9:$C$4167=K$6)*(TBGSHT!$G$9:$G$4167)),"") -> 438 | M14: =IFERROR(SUMPRODUCT((TBGSHT!$D$9:$D$4167=$B14)*(TBGSHT!$C$9:$C$4167=M$6)),"") -> 2 | N14: =IFERROR(SUMPRODUCT((TBGSHT!$D$9:$D$4167=$B14)*(TBGSHT!$C$9:$C$4167=M$6)*(TBGSHT!$G$9:$G$4167)),"") -> 21 | O14: =IFERROR(SUMPRODUCT((TBGSHT!$D$9:$D$4167=$B14)*(TBGSHT!$C$9:$C$4167=O$6)),"") -> 0 | P14: =IFERROR(SUMPRODUCT((TBGSHT!$D$9:$D$4167=$B14)*(TBGSHT!$C$9:$C$4167=O$6)*(TBGSHT!$G$9:$G$4167)),"") -> 0 | Q14: =IFERROR(SUMPRODUCT((TBGSHT!$D$9:$D$4167=$B14)*(TBGSHT!$C$9:$C$4167=Q$6)),"") -> 0 | R14: =IFERROR(SUMPRODUCT((TBGSHT!$D$9:$D$4167=$B14)*(TBGSHT!$C$9:$C$4167=Q$6)*(TBGSHT!$G$9:$G$4167)),"") -> 0 | S14: =IFERROR(SUMPRODUCT((TBGSHT!$D$9:$D$4167=$B14)*(TBGSHT!$C$9:$C$4167=S$6)),"") -> 0 | T14: =IFERROR(SUMPRODUCT((TBGSHT!$D$9:$D$4167=$B14)*(TBGSHT!$C$9:$C$4167=S$6)*(TBGSHT!$G$9:$G$4167)),"") -> 0 | U14: =IFERROR(SUMPRODUCT((TBGSHT!$D$9:$D$4167=$B14)*(TBGSHT!$C$9:$C$4167=U$6)),"") -> 0 | V14: =IFERROR(VLOOKUP($B14,Danhmuc!$D$4:$M$513,2,0),"") -> Hải Trạch, Xã Hải Trạch, Huyện Bố Trạch, Tỉnh Quảng Bình | W14: =IFERROR(VLOOKUP($B14,Danhmuc!$D$4:$M$513,3,0),"") -> 0935280207 | X14: 1309 | Y14: 0 | AB14: 1
A15: =IF($B15<>"",SUBTOTAL(103,B$8:B15),"") -> 8 | B15: HTX ô tô VTHK Kiến Giang | C15: =IFERROR(SUMPRODUCT((TBGSHT!$D$9:$D$4167=$B15)*(TBGSHT!$C$9:$C$4167=C$6)),"") -> 30 | D15: =IFERROR(SUMPRODUCT((TBGSHT!$D$9:$D$4167=$B15)*(TBGSHT!$C$9:$C$4167=C$6)*(TBGSHT!$G$9:$G$4167)),"") -> 824 | E15: =IFERROR(SUMPRODUCT((TBGSHT!$D$9:$D$4167=$B15)*(TBGSHT!$C$9:$C$4167=E$6)),"") -> 0 | F15: =IFERROR(SUMPRODUCT((TBGSHT!$D$9:$D$4167=$B15)*(TBGSHT!$C$9:$C$4167=E$6)*(TBGSHT!$G$9:$G$4167)),"") -> 0 | G15: =IFERROR(SUMPRODUCT((TBGSHT!$D$9:$D$4167=$B15)*(TBGSHT!$C$9:$C$4167=G$6)),"") -> 0 | H15: =IFERROR(SUMPRODUCT((TBGSHT!$D$9:$D$4167=$B15)*(TBGSHT!$C$9:$C$4167=G$6)*(TBGSHT!$G$9:$G$4167)),"") -> 0 | I15: =IFERROR(SUMPRODUCT((TBGSHT!$D$9:$D$4167=$B15)*(TBGSHT!$C$9:$C$4167=I$6)),"") -> 0 | J15: =IFERROR(SUMPRODUCT((TBGSHT!$D$9:$D$4167=$B15)*(TBGSHT!$C$9:$C$4167=I$6)*(TBGSHT!$G$9:$G$4167)),"") -> 0 | K15: =IFERROR(SUMPRODUCT((TBGSHT!$D$9:$D$4167=$B15)*(TBGSHT!$C$9:$C$4167=K$6)),"") -> 10 | L15: =IFERROR(SUMPRODUCT((TBGSHT!$D$9:$D$4167=$B15)*(TBGSHT!$C$9:$C$4167=K$6)*(TBGSHT!$G$9:$G$4167)),"") -> 279 | M15: =IFERROR(SUMPRODUCT((TBGSHT!$D$9:$D$4167=$B15)*(TBGSHT!$C$9:$C$4167=M$6)),"") -> 0 | N15: =IFERROR(SUMPRODUCT((TBGSHT!$D$9:$D$4167=$B15)*(TBGSHT!$C$9:$C$4167=M$6)*(TBGSHT!$G$9:$G$4167)),"") -> 0 | O15: =IFERROR(SUMPRODUCT((TBGSHT!$D$9:$D$4167=$B15)*(TBGSHT!$C$9:$C$4167=O$6)),"") -> 0 | P15: =IFERROR(SUMPRODUCT((TBGSHT!$D$9:$D$4167=$B15)*(TBGSHT!$C$9:$C$4167=O$6)*(TBGSHT!$G$9:$G$4167)),"") -> 0 | Q15: =IFERROR(SUMPRODUCT((TBGSHT!$D$9:$D$4167=$B15)*(TBGSHT!$C$9:$C$4167=Q$6)),"") -> 0 | R15: =IFERROR(SUMPRODUCT((TBGSHT!$D$9:$D$4167=$B15)*(TBGSHT!$C$9:$C$4167=Q$6)*(TBGSHT!$G$9:$G$4167)),"") -> 0 | S15: =IFERROR(SUMPRODUCT((TBGSHT!$D$9:$D$4167=$B15)*(TBGSHT!$C$9:$C$4167=S$6)),"") -> 22 | T15: =IFERROR(SUMPRODUCT((TBGSHT!$D$9:$D$4167=$B15)*(TBGSHT!$C$9:$C$4167=S$6)*(TBGSHT!$G$9:$G$4167)),"") -> 2 | U15: =IFERROR(SUMPRODUCT((TBGSHT!$D$9:$D$4167=$B15)*(TBGSHT!$C$9:$C$4167=U$6)),"") -> 0 | V15: =IFERROR(VLOOKUP($B15,Danhmuc!$D$4:$M$513,2,0),"") -> Quốc Lộ 1, Xã Cam Thủy, Huyện Lệ Thủy, Tỉnh Quảng Bình | W15: =IFERROR(VLOOKUP($B15,Danhmuc!$D$4:$M$513,3,0),"") -> 02323882966 | X15: 1143 | Y15: 22 | AB15: 1
A16: =IF($B16<>"",SUBTOTAL(103,B$8:B16),"") -> 9 | B16: HTX vận tải hành khách Hiền Ninh | C16: =IFERROR(SUMPRODUCT((TBGSHT!$D$9:$D$4167=$B16)*(TBGSHT!$C$9:$C$4167=C$6)),"") -> 5 | D16: =IFERROR(SUMPRODUCT((TBGSHT!$D$9:$D$4167=$B16)*(TBGSHT!$C$9:$C$4167=C$6)*(TBGSHT!$G$9:$G$4167)),"") -> 175 | E16: =IFERROR(SUMPRODUCT((TBGSHT!$D$9:$D$4167=$B16)*(TBGSHT!$C$9:$C$4167=E$6)),"") -> 0 | F16: =IFERROR(SUMPRODUCT((TBGSHT!$D$9:$D$4167=$B16)*(TBGSHT!$C$9:$C$4167=E$6)*(TBGSHT!$G$9:$G$4167)),"") -> 0 | G16: =IFERROR(SUMPRODUCT((TBGSHT!$D$9:$D$4167=$B16)*(TBGSHT!$C$9:$C$4167=G$6)),"") -> 0 | H16: =IFERROR(SUMPRODUCT((TBGSHT!$D$9:$D$4167=$B16)*(TBGSHT!$C$9:$C$4167=G$6)*(TBGSHT!$G$9:$G$4167)),"") -> 0 | I16: =IFERROR(SUMPRODUCT((TBGSHT!$D$9:$D$4167=$B16)*(TBGSHT!$C$9:$C$4167=I$6)),"") -> 0 | J16: =IFERROR(SUMPRODUCT((TBGSHT!$D$9:$D$4167=$B16)*(TBGSHT!$C$9:$C$4167=I$6)*(TBGSHT!$G$9:$G$4167)),"") -> 0 | K16: =IFERROR(SUMPRODUCT((TBGSHT!$D$9:$D$4167=$B16)*(TBGSHT!$C$9:$C$4167=K$6)),"") -> 5 | L16: =IFERROR(SUMPRODUCT((TBGSHT!$D$9:$D$4167=$B16)*(TBGSHT!$C$9:$C$4167=K$6)*(TBGSHT!$G$9:$G$4167)),"") -> 80 | M16: =IFERROR(SUMPRODUCT((TBGSHT!$D$9:$D$4167=$B16)*(TBGSHT!$C$9:$C$4167=M$6)),"") -> 0 | N16: =IFERROR(SUMPRODUCT((TBGSHT!$D$9:$D$4167=$B16)*(TBGSHT!$C$9:$C$4167=M$6)*(TBGSHT!$G$9:$G$4167)),"") -> 0 | O16: =IFERROR(SUMPRODUCT((TBGSHT!$D$9:$D$4167=$B16)*(TBGSHT!$C$9:$C$4167=O$6)),"") -> 0 | P16: =IFERROR(SUMPRODUCT((TBGSHT!$D$9:$D$4167=$B16)*(TBGSHT!$C$9:$C$4167=O$6)*(TBGSHT!$G$9:$G$4167)),"") -> 0 | Q16: =IFERROR(SUMPRODUCT((TBGSHT!$D$9:$D$4167=$B16)*(TBGSHT!$C$9:$C$4167=Q$6)),"") -> 0 | R16: =IFERROR(SUMPRODUCT((TBGSHT!$D$9:$D$4167=$B16)*(TBGSHT!$C$9:$C$4167=Q$6)*(TBGSHT!$G$9:$G$4167)),"") -> 0 | S16: =IFERROR(SUMPRODUCT((TBGSHT!$D$9:$D$4167=$B16)*(TBGSHT!$C$9:$C$4167=S$6)),"") -> 1 | T16: =IFERROR(SUMPRODUCT((TBGSHT!$D$9:$D$4167=$B16)*(TBGSHT!$C$9:$C$4167=S$6)*(TBGSHT!$G$9:$G$4167)),"") -> 0 | U16: =IFERROR(SUMPRODUCT((TBGSHT!$D$9:$D$4167=$B16)*(TBGSHT!$C$9:$C$4167=U$6)),"") -> 0 | V16: =IFERROR(VLOOKUP($B16,Danhmuc!$D$4:$M$513,2,0),"") -> Thôn Cổ Hiền, Xã Hiền Ninh, Huyện Quảng Ninh, Tỉnh Quảng Bình | W16: =IFERROR(VLOOKUP($B16,Danhmuc!$D$4:$M$513,3,0),"") -> 02323936351 | X16: 265 | Y16: 1 | AB16: 1
A17: =IF($B17<>"",SUBTOTAL(103,B$8:B17),"") -> 10 | B17: HTX vận tải hành khách Lệ Ninh | C17: =IFERROR(SUMPRODUCT((TBGSHT!$D$9:$D$4167=$B17)*(TBGSHT!$C$9:$C$4167=C$6)),"") -> 20 | D17: =IFERROR(SUMPRODUCT((TBGSHT!$D$9:$D$4167=$B17)*(TBGSHT!$C$9:$C$4167=C$6)*(TBGSHT!$G$9:$G$4167)),"") -> 465 | E17: =IFERROR(SUMPRODUCT((TBGSHT!$D$9:$D$4167=$B17)*(TBGSHT!$C$9:$C$4167=E$6)),"") -> 0 | F17: =IFERROR(SUMPRODUCT((TBGSHT!$D$9:$D$4167=$B17)*(TBGSHT!$C$9:$C$4167=E$6)*(TBGSHT!$G$9:$G$4167)),"") -> 0 | G17: =IFERROR(SUMPRODUCT((TBGSHT!$D$9:$D$4167=$B17)*(TBGSHT!$C$9:$C$4167=G$6)),"") -> 0 | H17: =IFERROR(SUMPRODUCT((TBGSHT!$D$9:$D$4167=$B17)*(TBGSHT!$C$9:$C$4167=G$6)*(TBGSHT!$G$9:$G$4167)),"") -> 0 | I17: =IFERROR(SUMPRODUCT((TBGSHT!$D$9:$D$4167=$B17)*(TBGSHT!$C$9:$C$4167=I$6)),"") -> 0 | J17: =IFERROR(SUMPRODUCT((TBGSHT!$D$9:$D$4167=$B17)*(TBGSHT!$C$9:$C$4167=I$6)*(TBGSHT!$G$9:$G$4167)),"") -> 0 | K17: =IFERROR(SUMPRODUCT((TBGSHT!$D$9:$D$4167=$B17)*(TBGSHT!$C$9:$C$4167=K$6)),"") -> 16 | L17: =IFERROR(SUMPRODUCT((TBGSHT!$D$9:$D$4167=$B17)*(TBGSHT!$C$9:$C$4167=K$6)*(TBGSHT!$G$9:$G$4167)),"") -> 372 | M17: =IFERROR(SUMPRODUCT((TBGSHT!$D$9:$D$4167=$B17)*(TBGSHT!$C$9:$C$4167=M$6)),"") -> 0 | N17: =IFERROR(SUMPRODUCT((TBGSHT!$D$9:$D$4167=$B17)*(TBGSHT!$C$9:$C$4167=M$6)*(TBGSHT!$G$9:$G$4167)),"") -> 0 | O17: =IFERROR(SUMPRODUCT((TBGSHT!$D$9:$D$4167=$B17)*(TBGSHT!$C$9:$C$4167=O$6)),"") -> 0 | P17: =IFERROR(SUMPRODUCT((TBGSHT!$D$9:$D$4167=$B17)*(TBGSHT!$C$9:$C$4167=O$6)*(TBGSHT!$G$9:$G$4167)),"") -> 0 | Q17: =IFERROR(SUMPRODUCT((TBGSHT!$D$9:$D$4167=$B17)*(TBGSHT!$C$9:$C$4167=Q$6)),"") -> 0 | R17: =IFERROR(SUMPRODUCT((TBGSHT!$D$9:$D$4167=$B17)*(TBGSHT!$C$9:$C$4167=Q$6)*(TBGSHT!$G$9:$G$4167)),"") -> 0 | S17: =IFERROR(SUMPRODUCT((TBGSHT!$D$9:$D$4167=$B17)*(TBGSHT!$C$9:$C$4167=S$6)),"") -> 0 | T17: =IFERROR(SUMPRODUCT((TBGSHT!$D$9:$D$4167=$B17)*(TBGSHT!$C$9:$C$4167=S$6)*(TBGSHT!$G$9:$G$4167)),"") -> 0 | U17: =IFERROR(SUMPRODUCT((TBGSHT!$D$9:$D$4167=$B17)*(TBGSHT!$C$9:$C$4167=U$6)),"") -> 0 | V17: =IFERROR(VLOOKUP($B17,Danhmuc!$D$4:$M$513,2,0),"") -> TTNT Lệ Ninh, Lệ Thuỷ, Quảng Bình | W17: =IFERROR(VLOOKUP($B17,Danhmuc!$D$4:$M$513,3,0),"") -> 02323996310 | X17: 873 | Y17: 0 | AB17: 2
A18: =IF($B18<>"",SUBTOTAL(103,B$8:B18),"") -> 11 | B18: HTX Vận tải Phú Thành Tuyên Minh | C18: =IFERROR(SUMPRODUCT((TBGSHT!$D$9:$D$4167=$B18)*(TBGSHT!$C$9:$C$4167=C$6)),"") -> 48 | D18: =IFERROR(SUMPRODUCT((TBGSHT!$D$9:$D$4167=$B18)*(TBGSHT!$C$9:$C$4167=C$6)*(TBGSHT!$G$9:$G$4167)),"") -> 1336 | E18: =IFERROR(SUMPRODUCT((TBGSHT!$D$9:$D$4167=$B18)*(TBGSHT!$C$9:$C$4167=E$6)),"") -> 0 | F18: =IFERROR(SUMPRODUCT((TBGSHT!$D$9:$D$4167=$B18)*(TBGSHT!$C$9:$C$4167=E$6)*(TBGSHT!$G$9:$G$4167)),"") -> 0 | G18: =IFERROR(SUMPRODUCT((TBGSHT!$D$9:$D$4167=$B18)*(TBGSHT!$C$9:$C$4167=G$6)),"") -> 0 | H18: =IFERROR(SUMPRODUCT((TBGSHT!$D$9:$D$4167=$B18)*(TBGSHT!$C$9:$C$4167=G$6)*(TBGSHT!$G$9:$G$4167)),"") -> 0 | I18: =IFERROR(SUMPRODUCT((TBGSHT!$D$9:$D$4167=$B18)*(TBGSHT!$C$9:$C$4167=I$6)),"") -> 0 | J18: =IFERROR(SUMPRODUCT((TBGSHT!$D$9:$D$4167=$B18)*(TBGSHT!$C$9:$C$4167=I$6)*(TBGSHT!$G$9:$G$4167)),"") -> 0 | K18: =IFERROR(SUMPRODUCT((TBGSHT!$D$9:$D$4167=$B18)*(TBGSHT!$C$9:$C$4167=K$6)),"") -> 46 | L18: =IFERROR(SUMPRODUCT((TBGSHT!$D$9:$D$4167=$B18)*(TBGSHT!$C$9:$C$4167=K$6)*(TBGSHT!$G$9:$G$4167)),"") -> 1026 | M18: =IFERROR(SUMPRODUCT((TBGSHT!$D$9:$D$4167=$B18)*(TBGSHT!$C$9:$C$4167=M$6)),"") -> 29 | N18: =IFERROR(SUMPRODUCT((TBGSHT!$D$9:$D$4167=$B18)*(TBGSHT!$C$9:$C$4167=M$6)*(TBGSHT!$G$9:$G$4167)),"") -> 579 | O18: =IFERROR(SUMPRODUCT((TBGSHT!$D$9:$D$4167=$B18)*(TBGSHT!$C$9:$C$4167=O$6)),"") -> 4 | P18: =IFERROR(SUMPRODUCT((TBGSHT!$D$9:$D$4167=$B18)*(TBGSHT!$C$9:$C$4167=O$6)*(TBGSHT!$G$9:$G$4167)),"") -> 2 | Q18: =IFERROR(SUMPRODUCT((TBGSHT!$D$9:$D$4167=$B18)*(TBGSHT!$C$9:$C$4167=Q$6)),"") -> 31 | R18: =IFERROR(SUMPRODUCT((TBGSHT!$D$9:$D$4167=$B18)*(TBGSHT!$C$9:$C$4167=Q$6)*(TBGSHT!$G$9:$G$4167)),"") -> 2 | S18: =IFERROR(SUMPRODUCT((TBGSHT!$D$9:$D$4167=$B18)*(TBGSHT!$C$9:$C$4167=S$6)),"") -> 217 | T18: =IFERROR(SUMPRODUCT((TBGSHT!$D$9:$D$4167=$B18)*(TBGSHT!$C$9:$C$4167=S$6)*(TBGSHT!$G$9:$G$4167)),"") -> 5 | U18: =IFERROR(SUMPRODUCT((TBGSHT!$D$9:$D$4167=$B18)*(TBGSHT!$C$9:$C$4167=U$6)),"") -> 0 | V18: =IFERROR(VLOOKUP($B18,Danhmuc!$D$4:$M$513,2,0),"") -> Tiểu khu 3, Thị trấn Đồng Lê, huyện Tuyên Hoá | W18: =IFERROR(VLOOKUP($B18,Danhmuc!$D$4:$M$513,3,0),"") -> 02323684273 | X18: 2485 | Y18: 256 | AB18: 3
C19: =SUM(C8:C18) -> 260 | D19: =SUM(D8:D18) -> 7169 | E19: 0 | F19: 0 | G19: 0 | H19: 0 | I19: 21 | J19: 122 | K19: 177 | L19: 4186 | M19: 31 | N19: 600 | O19: 21 | P19: 4 | Q19: 81 | R19: 8 | S19: 827 | T19: 54 | U19: 0

Sheet Danhmuc (hidden)
A1: SỔ THEO DÕI CẤP GIẤY PHÉP KINH DOANH VẬN TẢI BẰNG XE Ô TÔ
A2: =COLUMN() -> 1 | D2: =COLUMN() -> 4 | E2: =COLUMN() -> 5 | F2: =COLUMN() -> 6 | G2: =COLUMN() -> 7 | H2: =COLUMN() -> 8 | I2: =COLUMN() -> 9 | J2: =COLUMN() -> 10 | K2: =COLUMN() -> 11 | L2: =COLUMN() -> 12 | M2: =COLUMN() -> 13
A3: TT | B3: Mã số thuế | C3: CẤP LẦN THỨ | D3: CẤP CHO ĐƠN VỊ | E3: ĐỊA CHỈ | F3: SỐ ĐIỆN THOẠI | G3: GCNĐK KD sô | H3: Ngày tháng năm cấp | I3: Cơ quan cấp | J3: Họ và tên người đại diện hợp pháp | K3: CÁC LOẠI HÌNH KDVT BẰNG Ô TÔ | L3: NGÀY CẤP | M3: CÓ GIÁ TRỊ ĐẾN | P3: =MAX(P4:P570) -> 1 | Q3: TBGSHT
A4: =IF($D4<>"",SUBTOTAL(103,D$4:D4),"") -> 1 | B4: 3100349061 | C4: 2 | D4: HTX vận tải hành khách Lệ Ninh | E4: TTNT Lệ Ninh, Lệ Thuỷ, Quảng Bình | F4: 02323996310 | G4: 3100349061 | J4: Nguyễn Thái Sơn | K4: Kinh doanh VTHK bằng xe ô tô theo tuyến cố định; Kinh doanh VTHK bằng xe ô tô theo Hợp đồng, | L4: 2017-12-12 | M4: 2024-12-12 | P4: =COUNTIF($G$4:$G$370,G4) -> 1 | Q4: =COUNTIF(TBGSHT!$D$9:$D$3620,D4) -> 36
A5: =IF($D5<>"",SUBTOTAL(103,D$4:D5),"") -> 2 | B5: 3100132196 | C5: 4 | D5: Công ty CP Vận tải ô tô Quảng Bình | E5: 156 Đường Trần Hưng Đạo, P.Đồng Phú - TP Đồng Hới | F5: 0912781342 | G5: 3100132196 | J5: Đặng Thị Diên | K5: KD Vận tải HK bằng xe ô tô theo tuyến cố định và HĐ | L5: 2018-06-25 | M5: 2020-06-19 | P5: 1 | Q5: =COUNTIF(TBGSHT!$D$9:$D$3620,D5) -> 33
A6: =IF($D6<>"",SUBTOTAL(103,D$4:D6),"") -> 3 | B6: 3100316323 | C6: 1 | D6: Công ty TNHH Hải Vân | E6: Đường Quang Trung, tiểu khu Diêm Hải, Phường Phú Hải, TP Đồng Hới, Quảng Bình | F6: 02323822097 | G6: 3100316323 | J6: Lê Bá Ngọc | K6: KD Vận tải HK bằng xe ô tô theo HĐ | L6: 2016-06-14 | M6: 2023-06-14 | P6: 1 | Q6: =COUNTIF(TBGSHT!$D$9:$D$3620,D6) -> 7
A7: =IF($D7<>"",SUBTOTAL(103,D$4:D7),"") -> 4 | B7: 3100373755 | C7: 3 | D7: HTX vận tải hành khách Hiền Ninh | E7: Thôn Cổ Hiền, Xã Hiền Ninh, Huyện Quảng Ninh, Tỉnh Quảng Bình | F7: 02323936351 | G7: 3100373755 | J7: Trần Quang Ninh | K7: Kinh doanh VTHK bằng xe ô tô theo tuyến cố định; Kinh doanh VTHK bằng xe ô tô theo Hợp đồng | L7: 2017-12-12 | M7: 2024-12-12 | P7: 1 | Q7: =COUNTIF(TBGSHT!$D$9:$D$3620,D7) -> 11
A8: =IF($D8<>"",SUBTOTAL(103,D$4:D8),"") -> 5 | C8: 1 | D8: Nguyễn Ngọc Trung | E8: TK10, Phường Nam Lý, Thành Phố Đồng Hới, Tỉnh Quảng Bình | F8: 02323850200 | G8: 29A9003692 | K8: KD Vận tải HK bằng xe ô tô theo HĐ | L8: 2018-01-02 | M8: 2025-01-02 | P8: 1 | Q8: =COUNTIF(TBGSHT!$D$9:$D$3620,D8) -> 1
A9: =IF($D9<>"",SUBTOTAL(103,D$4:D9),"") -> 6 | B9: 3100393381 | C9: 1 | D9: CÔNG TY TNHH VT-DL LỘC PHÁT | E9: 201 Lý Thường Kiệt, TP Đồng Hới | F9: 02323822766 | G9: 3100393381 | J9: Lê Văn Lộc | K9: KD Vận tải HK bằng xe ô tô theo HĐ | L9: 2017-12-04 | M9: 2024-12-04 | P9: 1 | Q9: =COUNTIF(TBGSHT!$D$9:$D$3620,D9) -> 5
A10: =IF($D10<>"",SUBTOTAL(103,D$4:D10),"") -> 7 | B10: 3100301006 | C10: 1 | D10: HTX ô tô VTHK Kiến Giang | E10: Quốc Lộ 1, Xã Cam Thủy, Huyện Lệ Thủy, Tỉnh Quảng Bình | F10: 02323882966 | G10: 3100301006 | J10: Bùi Văn Thanh | K10: Kinh doanh VTHK bằng xe ô tô theo tuyến cố định; Kinh doanh VTHK bằng xe ô tô theo Hợp đồng | L10: 2017-12-15 | M10: 2024-12-15 | P10: 1 | Q10: =COUNTIF(TBGSHT!$D$9:$D$3620,D10) -> 62
A11: =IF($D11<>"",SUBTOTAL(103,D$4:D11),"") -> 8 | B11: 31100351222 | C11: 1 | D11: Công ty TNHH Mai Linh Quảng Bình | E11: 253A Đường Quang Trung - Phường Phú Hải - Thành phố Đồng Hới | F11: 02323845888 | G11: 31100351222 | J11: Hồ Huy | K11: KD Vận tải HK bằng xe Ta xi | L11: 2017-12-12 | M11: 2024-12-12 | P11: 1 | Q11: =COUNTIF(TBGSHT!$D$9:$D$3620,D11) -> 149
A12: =IF($D12<>"",SUBTOTAL(103,D$4:D12),"") -> 9 | B12: 3100590012 | C12: 1 | D12: Công ty TNHH TM&DL Diệu Linh | E12: TK10, Nam Lý, TP Đồng Hới | F12: 0977211212 | G12: 3100590012 | J12: Nguyễn Xuân Huy | K12: KD Vận tải HK bằng ô tô theo HĐ | L12: 2017-08-09 | M12: 2024-08-09 | P12: 1 | Q12: =COUNTIF(TBGSHT!$D$9:$D$3620,D12) -> 8
A13: =IF($D13<>"",SUBTOTAL(103,D$4:D13),"") -> 10 | C13: 2 | D13: HTX ô tô vận tải Lý Hòa | E13: Hải Trạch, Xã Hải Trạch, Huyện Bố Trạch, Tỉnh Quảng Bình | F13: 0935280207 | G13: 290507000007 | J13: Hoàng Văn Toán | K13: KD Vận tải HK bằng xe ô tô theo HĐ | L13: 2017-10-27 | M13: 2024-10-27 | P13: 1 | Q13: =COUNTIF(TBGSHT!$D$9:$D$3620,D13) -> 51
A14: =IF($D14<>"",SUBTOTAL(103,D$4:D14),"") -> 11 | B14: 3100578079 | C14: 2 | D14: Công ty TNHH Sâm Tưởng | E14: TX.Ba Đồn, Phường Quảng Thuận, Thị xã Ba Đồn, Tỉnh Quảng Bình | F14: 02323511611 | G14: 3100578079 | J14: Nguyễn Thị Sâm | K14: KD Vận tải HK bằng xe ô tô theo HĐ | L14: 16/01/2018 | M14: 2025-01-16 | P14: 1 | Q14: =COUNTIF(TBGSHT!$D$9:$D$3620,D14) -> 2
A15: =IF($D15<>"",SUBTOTAL(103,D$4:D15),"") -> 12 | B15: 3100946251 | C15: 3 | D15: Công ty TNHH DVVT Minh Huy | E15: Tổ dân phố số 7, Thị trấn Kiến Giang, Huyện Lệ Thuỷ, Tỉnh Quảng Bình | F15: 0943444555 | G15: 3100946251 | J15: Trần Thị Phương | K15: KD Vận tải HK bằng xe ô tô theo tuyến cố đinh và HĐ | L15: 2020-01-02 | M15: 2027-01-02 | P15: 1 | Q15: =COUNTIF(TBGSHT!$D$9:$D$3620,D15) -> 14
A16: =IF($D16<>"",SUBTOTAL(103,D$4:D16),"") -> 13 | C16: 1 | D16: Công ty TNHH DVVT Tiến Đạt | E16: Tiểu khu 3, TT Nông Trường VT, Huyện Bố Trạch | F16: 0985898005 | J16: Lưu Văn Hạnh | K16: KD Vận tải HK bằng xe ô tô theo tuyến cố định, HĐ | L16: 2013-05-15 | M16: 2020-05-15 | P16: 0 | Q16: =COUNTIF(TBGSHT!$D$9:$D$3620,D16) -> 11
A17: =IF($D17<>"",SUBTOTAL(103,D$4:D17),"") -> 14 | C17: 1 | D17: Lê Xuân Quảng | E17: P.Bắc Lý TP Đồng Hới | K17: KD Vận tải HK bằng xe ô tô theo HĐ | L17: 2013-07-03 | M17: 2020-07-03 | P17: 0 | Q17: =COUNTIF(TBGSHT!$D$9:$D$3620,D17) -> 1
A18: =IF($D18<>"",SUBTOTAL(103,D$4:D18),"") -> 15 | B18: 3100962479 | C18: 1 | D18: Công ty TNHH VT&TM Tuấn Thảo Thanh | E18: TK4, P.Bắc Nghĩa, Tp Đồng Hới | F18: 0772432850 | G18: 3100962479 | J18: Lê Văn Hùng | K18: KD Vận tải HK bằng xe ô tô theo HĐ | L18: 2013-08-21 | M18: 2020-08-21 | P18: 1 | Q18: =COUNTIF(TBGSHT!$D$9:$D$3620,D18) -> 1
A19: =IF($D19<>"",SUBTOTAL(103,D$4:D19),"") -> 16 | C19: 1 | D19: Nguyễn Văn Bắc | E19: Xã Sơn Trạch, Bố Trạch | G19: 29E8004066 | H19: 2013-08-22 | I19: UBND huyện Bố Trạch Tỉnh Quảng Bình | J19: Nguyễn Văn Bắc | K19: KD Vận tải HK bằng xe ô tô theo HĐ | L19: 2013-08-26 | M19: 2020-08-26 | P19: 1 | Q19: =COUNTIF(TBGSHT!$D$9:$D$3620,D19) -> 1
A20: =IF($D20<>"",SUBTOTAL(103,D$4:D20),"") -> 17 | B20: 3100842189 | C20: 1 | D20: Công ty TNHH vận tải An Việt | E20: 75 Thành Đồng, TK 3, Phường Hải Thành, Thành phố Đồng Hới, Quảng Bình | F20: 02323825746 | G20: 3100842189 | H20: 2012-03-09 | I20: Sở Kế hoạch và Đầu tư tỉnh Quảng Bình | J20: Đặng Văn Việt | K20: KD Vận tải HK bằng xe ô tô theo HĐ | L20: 2013-08-28 | M20: 2020-08-28 | P20: 1 | Q20: =COUNTIF(TBGSHT!$D$9:$D$3620,D20) -> 2
A21: =IF($D21<>"",SUBTOTAL(103,D$4:D21),"") -> 18 | C21: 1 | D21: Công ty TNHH TMVT&DL Trần Gia | E21: Thôn 16, Xã Lộc Ninh, TP Đồng Hới | F21: 0905333650 | K21: KD Vận tải HK bằng xe ô tô theo HĐ | L21: 2013-09-19 | M21: 2020-09-19 | P21: 0 | Q21: =COUNTIF(TBGSHT!$D$9:$D$3620,D21) -> 2
A22: =IF($D22<>"",SUBTOTAL(103,D$4:D22),"") -> 19 | C22: 1 | D22: Tưởng Đức Trọng | E22: Xã Quảng Hưng, H.Quảng Trạch | K22: KD Vận tải HK bằng xe ô tô theo HĐ | L22: 2013-11-05 | M22: 2020-11-05 | P22: 0 | Q22: =COUNTIF(TBGSHT!$D$9:$D$3620,D22) -> 3
A23: =IF($D23<>"",SUBTOTAL(103,D$4:D23),"") -> 20 | C23: 1 | D23: Hoàng Ngọc Bi | E23: Lê Thành Đồng, TP. Đồng Hới | G23: 29A8004904 | H23: 2013-10-30 | I23: Phòng Tài chính Kế hoạch, UBND TP. Đồng Hới | K23: KD Vận tải HK bằng xe ô tô theo HĐ | L23: 2013-11-15 | M23: 2020-11-15 | P23: 1 | Q23: =COUNTIF(TBGSHT!$D$9:$D$3620,D23) -> 1
A24: =IF($D24<>"",SUBTOTAL(103,D$4:D24),"") -> 21 | C24: 1 | D24: Lê Văn Hưng | E24: Sen Thủy, Lệ Thủy | K24: KD Vận tải HK bằng xe ô tô theo HĐ | L24: 2014-01-08 | M24: 2021-01-08 | P24: 0 | Q24: =COUNTIF(TBGSHT!$D$9:$D$3620,D24) -> 1
A25: =IF($D25<>"",SUBTOTAL(103,D$4:D25),"") -> 22 | C25: 1 | D25: Nguyễn Bá Thanh | E25: Quảng Phong, Quảng Trạch | K25: KD Vận tải HK bằng xe ô tô theo HĐ | L25: 2014-02-12 | M25: 2021-02-12 | P25: 0 | Q25: =COUNTIF(TBGSHT!$D$9:$D$3620,D25) -> 1
A26: =IF($D26<>"",SUBTOTAL(103,D$4:D26),"") -> 23 | B26: 3100976489 | C26: 1 | D26: Công ty TNHH TMVT&DL Thanh Long | E26: Thôn 12, xã Lộc Ninh, TP. Đồng Hới, tỉnh Quảng Bình | F26: 0913356258 | G26: 3100976489 | H26: 2014-04-28 | I26: Sở Kế hoạch và Đầu tư tỉnh Quảng Bình | J26: TRẦN THANH LONG | K26: Kinh doanh vận tải hành khách bằng ô tô theo Hợp đồng | L26: 2014-05-22 | M26: =IF(L26<>"",DATE(YEAR(L26)+7,MONTH(L26),DAY(L26)),"") -> 2021-05-22 | P26: 1 | Q26: =COUNTIF(TBGSHT!$D$9:$D$3620,D26) -> 3
A27: =IF($D27<>"",SUBTOTAL(103,D$4:D27),"") -> 24 | B27: 3100488058 | C27: 1 | D27: Công ty TNHH TM&DL Việt Hùng | E27: 63 Lý Thường Kiệt, TP. Đồng Hới, tỉnh Quảng Bình | F27: 0523851660 | G27: 3100488058 | H27: 2014-05-13 | I27: Sở Kế hoạch và Đầu tư tỉnh Quảng Bình | J27: Vũ Trọng Hùng | K27: Kinh doanh vận tải hành khách bằng ô tô theo Hợp đồng | L27: 2014-06-18 | M27: 2021-06-18 | P27: 1 | Q27: =COUNTIF(TBGSHT!$D$9:$D$3620,D27) -> 0
A28: =IF($D28<>"",SUBTOTAL(103,D$4:D28),"") -> 25 | B28: 3100566556 | C28: 1 | D28: Công ty TNHH TM Ngọc Toàn | E28: Đường Nguyễn Thái Học, Tiểu khu 11, Phường Nam Lý, Thành phố Đồng Hới, Quảng Bình | F28: 0523820155 | G28: 3100566556 | H28: 2010-04-01 | I28: Sở Kế hoạch và Đầu tư tỉnh Quảng Bình | J28: Nguyễn Lương Ngọc | K28: Kinh doanh vận tải hành khách bằng ô tô theo Hợp đồng | L28: 2014-06-18 | M28: 2021-06-18 | P28: 1 | Q28: =COUNTIF(TBGSHT!$D$9:$D$3620,D28) -> 0
A29: =IF($D29<>"",SUBTOTAL(103,D$4:D29),"") -> 26 | B29: 3100978408 | C29: 1 | D29: Công ty TNHH Toàn Thắng Quảng Bình | E29: Số 15, Ngô Gia Tự, Nam Lý, TP. Đồng Hới, tỉnh Quảng Bình | F29: 0905873889 | G29: 3100978408 | H29: 2014-06-30 | I29: Sở Kế hoạch và Đầu tư tỉnh Quảng Bình | J29: Nguyễn Xuân Toàn | K29: Kinh doanh vận tải hành khách bằng ô tô theo Hợp đồng | L29: 2014-07-22 | M29: =IF(L29<>"",DATE(YEAR(L29)+7,MONTH(L29),DAY(L29)),"") -> 2021-07-22 | P29: 1 | Q29: =COUNTIF(TBGSHT!$D$9:$D$3620,D29) -> 1
A30: =IF($D30<>"",SUBTOTAL(103,D$4:D30),"") -> 27 | B30: 3100943684 | C30: 1 | D30: Công ty TNHH LE MITCHELL | E30: Thôn Hòa Sơn, Xã Cự Nẩm, Huyện Bố Trạch, Tỉnh Quảng Bình | F30: 0523675135 | G30: 3100943684 | H30: 2012-08-10 | I30: Sở Kế hoạch và Đầu tư tỉnh Quảng Bình | J30: Lê Thị Bích | K30: Kinh doanh vận tải hành khách bằng ô tô theo Hợp đồng | L30: 2018-01-08 | M30: 2025-01-08 | P30: 1 | Q30: =COUNTIF(TBGSHT!$D$9:$D$3620,D30) -> 2
A31: =IF($D31<>"",SUBTOTAL(103,D$4:D31),"") -> 28 | B31: 3100957133 | C31: 1 | D31: Công ty TNHH TM&DL Thanh Thủy | E31: Phường Đồng Mỹ, TP Đồng Hới, Tỉnh Quảng Bình | F31: 0912424858 | G31: 3100957133 | H31: 2013-03-04 | I31: Sở Kế hoạch và Đầu tư tỉnh Quảng Bình | J31: Võ Thị Thanh Thủy | K31: Kinh doanh vận tải hành khách bằng ô tô theo Hợp đồng | L31: 2014-08-18 | M31: 2021-08-18 | P31: 1 | Q31: =COUNTIF(TBGSHT!$D$9:$D$3620,D31) -> 1
A32: =IF($D32<>"",SUBTOTAL(103,D$4:D32),"") -> 29 | C32: 1 | D32: TRẦN VĂN HẢI | E32: Phường Đồng Sơn, TP. Đồng Hới, Tỉnh Quảng Bình | F32: 0989233573 | G32: 29A8005249 | H32: 2014-08-27 | I32: Phòng Tài chính Kế hoạch, UBND TP. Đồng Hới | J32: Trần Văn Hải | K32: Kinh doanh vận tải hành khách bằng ô tô theo Hợp đồng | L32: 2014-08-22 | M32: 2021-08-22 | P32: 1 | Q32: =COUNTIF(TBGSHT!$D$9:$D$3620,D32) -> 1
A33: =IF($D33<>"",SUBTOTAL(103,D$4:D33),"") -> 30 | C33: 1 | D33: LÊ XUÂN TÙNG | E33: Xã Lý Trạch, huyện Bố Trạch, tỉnh Quảng Bình | F33: 0384870871 | G33: 29E8004900 | H33: 2014-09-15 | I33: UBND huyện Bố Trạch | J33: Lê Xuân Tùng | K33: Kinh doanh vận tải hành khách bằng ô tô theo Hợp đồng | L33: 2014-09-18 | M33: 2021-09-18 | P33: 1 | Q33: =COUNTIF(TBGSHT!$D$9:$D$3620,D33) -> 2
A34: =IF($D34<>"",SUBTOTAL(103,D$4:D34),"") -> 31 | B34: 160 | C34: 1 | D34: HTX ô tô vận tải HK Sông Gianh | E34: Tầng 2 Bến xe Ba Đồn, Phường Quảng Thọ, thị xã Ba Đồn, tỉnh Quảng Bình | F34: 0523513160 | G34: 29D000003 | H34: 2014-04-23 | I34: UBND thị xã Ba Đồn | J34: Đoàn Xuân Huệ | K34: Kinh doanh VTHK bằng xe ô tô theo tuyến cố định; Kinh doanh VTHK bằng xe ô tô theo Hợp đồng | L34: 2014-09-18 | M34: 2021-09-18 | P34: 1 | Q34: =COUNTIF(TBGSHT!$D$9:$D$3620,D34) -> 78
A35: =IF($D35<>"",SUBTOTAL(103,D$4:D35),"") -> 32 | B35: 3100992554 | C35: 1 | D35: Công ty TNHH TMVT DL Thu Tâm | E35: Tổ dân phố 7, phường Hải Đình, TP. Đồng Hới, tỉnh Quảng Bình | F35: 0905166389 | G35: 3100992554 | H35: 2015-01-16 | I35: Sở Kế hoạch và Đầu tư tỉnh Quảng Bình | J35: Nguyễn Tiến Tâm | K35: Kinh doanh vận tải hành khách bằng ô tô theo Hợp đồng | L35: 2015-01-28 | M35: 2022-01-28 | P35: 1 | Q35: =COUNTIF(TBGSHT!$D$9:$D$3620,D35) -> 0
A36: =IF($D36<>"",SUBTOTAL(103,D$4:D36),"") -> 33 | B36: 3100978662 | C36: 1 | D36: Công ty TNHH Du lịch Anh Dũng | E36: Tổ dân phố 10, Phường Nam Lý, TP. Đồng Hới, Tỉnh Quảng Bình | F36: 0916901855 | G36: 3100978662 | H36: 2014-07-15 | I36: Sở Kế hoạch và Đầu tư tỉnh Quảng Bình | J36: Nguyễn Ngọc Trung | K36: Kinh doanh vận tải hành khách bằng ô tô theo Hợp đồng | L36: 2015-01-30 | M36: 2022-01-30 | P36: 1 | Q36: =COUNTIF(TBGSHT!$D$9:$D$3620,D36) -> 5
A37: =IF($D37<>"",SUBTOTAL(103,D$4:D37),"") -> 34 | B37: 3100193343 | C37: 1 | D37: Công ty TNHH Vương Thuận | E37: 33 Trần Quang Khải, TP Đồng Hới, Tỉnh Quảng Bình | F37: 0523822115 | G37: 3100193343 | H37: 2014-06-17 | I37: Sở Kế hoạch và Đầu tư tỉnh Quảng Bình | J37: Bùi Xuân Vương | K37: Kinh doanh vận tải hàng hóa thông thường; Kinh doanh vận tải hàng hóa bằng xe công te nơ; | L37: 2015-03-16 | M37: 2022-03-16 | P37: 1 | Q37: =COUNTIF(TBGSHT!$D$9:$D$3620,D37) -> 41
A38: =IF($D38<>"",SUBTOTAL(103,D$4:D38),"") -> 35 | B38: 3100972117 | C38: 2 | D38: Công ty TNHH Dịch vụ VTDL Thảo Nguyên | E38: Thôn Xuân Tiến, xã Sơn Trạch, huyện Bố Trạch, tỉnh Quảng Bình | F38: 0917026168 | G38: 3100972117 | H38: 2014-01-22 | I38: Sở Kế hoạch và Đầu tư tỉnh Quảng Bình | J38: Dương Trọng Thành | K38: Kinh doanh vận tải hành khách bằng ô tô theo Hợp đồng | L38: 2017-03-27 | M38: 2024-03-27 | P38: 1 | Q38: =COUNTIF(TBGSHT!$D$9:$D$3620,D38) -> 5
A39: =IF($D39<>"",SUBTOTAL(103,D$4:D39),"") -> 36 | B39: 3100994449 | C39: 1 | D39: Công ty TNHH AZ Quảng Bình | E39: 106 Lý Thường Kiệt, TP. Đồng Hới, Quảng Bình | F39: 0983333939 | G39: 3100994449 | H39: 2015-03-04 | I39: Sở Kế hoạch và Đầu tư tỉnh Quảng Bình | J39: Lê Thị Mỹ Lệ | K39: Kinh doanh vận tải hành khách bằng ô tô theo Hợp đồng | L39: 2015-04-16 | M39: =IF(L39<>"",DATE(YEAR(L39)+7,MONTH(L39),DAY(L39)),"") -> 2022-04-16 | P39: 1 | Q39: =COUNTIF(TBGSHT!$D$9:$D$3620,D39) -> 1
A40: =IF($D40<>"",SUBTOTAL(103,D$4:D40),"") -> 37 | B40: 3100425594 | C40: 2 | D40: Công ty TNHH XD&TM Phước Sỹ | E40: Thôn Đấu Tranh, Xã Hưng Thủy, Huyện Lệ Thủy, Tỉnh Quảng Bình | F40: 0915272379 | G40: 3100425594 | H40: 2008-09-01 | I40: Sở Kế hoạch và Đầu tư tỉnh Quảng Bình | J40: Võ Phước Sỹ | K40: Kinh doanh vận tải hàng hóa bằng Côngtennơ | L40: 2015-04-22 | M40: 2022-04-22 | P40: 1 | Q40: =COUNTIF(TBGSHT!$D$9:$D$3620,D40) -> 0
A41: =IF($D41<>"",SUBTOTAL(103,D$4:D41),"") -> 38 | B41: 3100899227 | D41: Công ty TNHH TMVT Phú Gia | E41: Thị trấn Quy Đạt, huyện Minh Hóa, tỉnh Quảng Bình | F41: 0905862888 | G41: 3100899227 | H41: 2014-12-19 | I41: Sở Kế hoạch và Đầu tư tỉnh Quảng Bình | J41: Lê Minh Tiến | K41: Kinh doanh vận tải hàng hóa thông thường | L41: 2015-04-24 | M41: 2022-04-24 | P41: 1 | Q41: =COUNTIF(TBGSHT!$D$9:$D$3620,D41) -> 4
A42: =IF($D42<>"",SUBTOTAL(103,D$4:D42),"") -> 39 | C42: 1 | D42: TRẦN HỮU CHÂU | E42: Phường Bắc Nghĩa, TP. Đồng Hới, Tỉnh Quảng Bình | F42: 0818641111 | G42: 29A8005539 | H42: 2015-05-15 | I42: Phòng Tài chính Kế hoạch, UBND TP. Đồng Hới | J42: Trần Hữu Châu | K42: Kinh doanh vận tải hành khách bằng ô tô theo Hợp đồng | L42: 2015-05-18 | M42: 2022-05-18 | P42: 1 | Q42: =COUNTIF(TBGSHT!$D$9:$D$3620,D42) -> 1
A43: =IF($D43<>"",SUBTOTAL(103,D$4:D43),"") -> 40 | B43: 3100314703 | C43: 1 | D43: Công ty TNHH TM Quy Hương | E43: 320 - Quang Trung, Phường Ba Đồn, Thị xã Ba Đồn, Tỉnh Quảng Bình | F43: 0523510333 | G43: 3100314703 | H43: 2014-04-16 | I43: Sở Kế hoạch và Đầu tư tỉnh Quảng Bình | J43: Nguyễn Văn Quy | K43: Kinh doanh vận tải hàng hóa thông thường | L43: 2015-06-05 | M43: 2022-06-05 | P43: 1 | Q43: =COUNTIF(TBGSHT!$D$9:$D$3620,D43) -> 7
A44: =IF($D44<>"",SUBTOTAL(103,D$4:D44),"") -> 41 | B44: 3100978870 | C44: 1 | D44: Công ty TNHH Nam Việt Thịnh | E44: Số 95, Phùng Hưng, Đồng Phú, Đồng Hới, Quảng Bình | F44: 0935914666 | G44: 3100978870 | H44: 2015-02-09 | I44: Sở Kế hoạch và Đầu tư tỉnh Quảng Bình | J44: Nguyễn Hồ Quyết | K44: Kinh doanh vận tải hàng hóa thông thường | L44: 2015-06-10 | M44: 2022-06-10 | P44: 1 | Q44: =COUNTIF(TBGSHT!$D$9:$D$3620,D44) -> 0
A45: =IF($D45<>"",SUBTOTAL(103,D$4:D45),"") -> 42 | B45: 3100196175 | C45: 1 | D45: Công ty TNHH Tập đoàn Sơn Hải | E45: 117 Hữu Nghị, Nam Lý, Đồng Hới, Quảng Bình | F45: 0523825755 | G45: 3100196175 | H45: 2014-07-05 | I45: Sở Kế hoạch và Đầu tư tỉnh Quảng Bình | J45: Nguyễn Viết Hải | K45: Kinh doanh vận tải hàng hóa thông thường | L45: 2015-06-12 | M45: 2022-06-12 | P45: 1 | Q45: =COUNTIF(TBGSHT!$D$9:$D$3620,D45) -> 72
A46: =IF($D46<>"",SUBTOTAL(103,D$4:D46),"") -> 43 | B46: 3100995795 | C46: 1 | D46: Công ty TNHH TMDV Phú Hùng Cường | E46: Thôn Đông Đức, Đức Trạch, Bố Trạch, Quảng Bình | F46: 0915988459 | G46: 3100995795 | H46: 2015-04-14 | I46: Sở Kế hoạch và Đầu tư tỉnh Quảng Bình | J46: Hoàng Thị Việt Trinh | K46: Kinh doanh vận tải hàng hóa thông thường | L46: 2015-06-17 | M46: 2022-06-17 | P46: 1 | Q46: =COUNTIF(TBGSHT!$D$9:$D$3620,D46) -> 1
A47: =IF($D47<>"",SUBTOTAL(103,D$4:D47),"") -> 44 | B47: 3100373924 | C47: 1 | D47: Công ty TNHH TMDV Hằng Dương | E47: QL1A Xóm Cồn, Phường Quảng Thuận, Thị xã Ba Đồn, Tỉnh Quảng Bình | F47: 0523516688 | G47: 3100373924 | H47: 2014-05-16 | I47: Sở Kế hoạch và Đầu tư tỉnh Quảng Bình | J47: Phạm Thị Thắm | K47: Kinh doanh vận tải hàng hóa thông thường | L47: 2015-06-22 | M47: 2022-06-22 | P47: 1 | Q47: =COUNTIF(TBGSHT!$D$9:$D$3620,D47) -> 34
A48: =IF($D48<>"",SUBTOTAL(103,D$4:D48),"") -> 45 | B48: 3100301253 | C48: 1 | D48: Doanh nghiệp tư nhân Thiên Phú | E48: Thôn 7 - Xã Lý Trạch - Huyện Bố Trạch - Quảng Bình | F48: 0523821751 | G48: 3100301253 | H48: 2013-06-26 | I48: Sở Kế hoạch và Đầu tư tỉnh Quảng Bình | J48: Hoàng Thị Đào | K48: Kinh doanh vận tải hàng hóa thông thường; Kinh doanh vận tải hàng hóa bằng Côngtennơ, | L48: 2015-06-24 | M48: 2022-06-24 | P48: 1 | Q48: =COUNTIF(TBGSHT!$D$9:$D$3620,D48) -> 0
A49: =IF($D49<>"",SUBTOTAL(103,D$4:D49),"") -> 46 | B49: 3100297180 | C49: 1 | D49: Công ty TNHH TM Thúy Anh | E49: 59 Lê Lợi, TP Đồng Hới, Tỉnh Quảng Bình | F49: 0523835570 | G49: 3100297180 | H49: 2003-03-27 | I49: Sở Kế hoạch và Đầu tư tỉnh Quảng Bình | J49: Trương Thị Hồng | K49: Kinh doanh vận tải hàng hóa thông thường | L49: 2015-06-26 | M49: 2022-06-26 | P49: 1 | Q49: =COUNTIF(TBGSHT!$D$9:$D$3620,D49) -> 2
A50: =IF($D50<>"",SUBTOTAL(103,D$4:D50),"") -> 47 | B50: 3100312706 | C50: 1 | D50: Công ty TNHH TMDV Linh Loan | E50: 294 Lý Thường Kiệt, TP Đồng Hới, Tỉnh Quảng Bình | F50: 0979123123 | G50: 3100312706 | H50: 2014-10-29 | I50: Sở Kế hoạch và Đầu tư tỉnh Quảng Bình | J50: Ngô Thanh Bình | K50: Kinh doanh vận tải hàng hóa thông thường | L50: 2015-06-26 | M50: 2022-06-26 | P50: 1 | Q50: =COUNTIF(TBGSHT!$D$9:$D$3620,D50) -> 2
A51: =IF($D51<>"",SUBTOTAL(103,D$4:D51),"") -> 48 | B51: 3100262477 | C51: 1 | D51: Công ty TNHH Phú Hải | E51: 299 Trần Hưng Đạo, TP Đồng Hới, Tỉnh Quảng Bình | F51: 0523851979 | G51: 3100262477 | H51: 2013-08-08 | I51: Sở Kế hoạch và Đầu tư tỉnh Quảng Bình | J51: Đinh Ngọc Sơn | K51: Kinh doanh vận tải hàng hóa thông thường | L51: 2015-06-29 | M51: 2022-06-29 | P51: 1 | Q51: =COUNTIF(TBGSHT!$D$9:$D$3620,D51) -> 7
A52: =IF($D52<>"",SUBTOTAL(103,D$4:D52),"") -> 49 | B52: 3100359422 | C52: 1 | D52: Công ty TNHH Nguyên Lợi | E52: 16 Quang Trung, Phường Ba Đồn, Thị xã Ba Đồn, Tỉnh Quảng Bình | F52: 0523512340 | G52: 3100359422 | H52: 2014-04-14 | I52: Sở Kế hoạch và Đầu tư tỉnh Quảng Bình | J52: Trương Quang Nguyên | K52: Kinh doanh vận tải hàng hóa thông thường | L52: 2015-07-01 | M52: 2022-07-01 | P52: 1 | Q52: =COUNTIF(TBGSHT!$D$9:$D$3620,D52) -> 41
A53: =IF($D53<>"",SUBTOTAL(103,D$4:D53),"") -> 50 | B53: 3100981048 | C53: 1 | D53: C.ty TNHH Hoàng Hải Quảng Bình | E53: Thôn 19/5, Xã Quảng Đông, Huyện Quảng Trạch, Tỉnh Quảng Bình | F53: 0982644508 | G53: 3100981048 | H53: 2014-10-01 | I53: Sở Kế hoạch và Đầu tư tỉnh Quảng Bình | J53: Lê Thanh Hải | K53: Kinh doanh vận tải hàng hóa thông thường | L53: 2015-07-06 | M53: 2022-07-06 | P53: 1 | Q53: =COUNTIF(TBGSHT!$D$9:$D$3620,D53) -> 0
A54: =IF($D54<>"",SUBTOTAL(103,D$4:D54),"") -> 51 | C54: 1 | D54: Hoàng Quảng Sơn | E54: Xã Mai Thủy, Huyện Lệ Thủy, Tỉnh Quảng Bình | F54: 0983799055 | G54: 29G8000327 | H54: 2015-06-18 | I54: UBND huyện Lệ Thủy, tỉnh Quảng Bình | J54: Hoàng Quảng Sơn | K54: Kinh doanh vận tải hành khách bằng xe ô tô theo Hợp đồng | L54: 2015-07-08 | M54: 2022-07-08 | P54: 1 | Q54: =COUNTIF(TBGSHT!$D$9:$D$3620,D54) -> 1
A55: =IF($D55<>"",SUBTOTAL(103,D$4:D55),"") -> 52 | C55: 1 | D55: Công ty TNHH Linfox Transport Quảng Bình | E55: KKT CKQT Cha Lo, Xã Dân Hóa, Huyện Minh Hóa, Tỉnh Quảng Bình | F55: 0965303911 | G55: 292043000001 | H55: 2014-01-15 | I55: Ban Quản lý Khu kinh tế Quảng Bình | J55: Scott Clifford Croll | K55: Kinh doanh vận tải hàng hóa bằng Côngtennơ | L55: 2015-07-15 | M55: 2022-07-15 | P55: 1 | Q55: =COUNTIF(TBGSHT!$D$9:$D$3620,D55) -> 10
A56: =IF($D56<>"",SUBTOTAL(103,D$4:D56),"") -> 53 | B56: 3100405710 | C56: 1 | D56: Công ty TNHH Cơ khí Hải Sơn | E56: Thôn 16, Xã Lộc Ninh, Thành phố Đồng Hới, Tỉnh Quảng Bình | F56: 0977919333 | G56: 3100405710 | H56: 2015-06-02 | I56: Sở Kế hoạch và Đầu tư tỉnh Quảng Bình | J56: Nguyễn Hải Sơn | K56: Kinh doanh vận tải hàng hóa thông thường | L56: 2015-07-17 | M56: 2022-07-17 | P56: 1 | Q56: =COUNTIF(TBGSHT!$D$9:$D$3620,D56) -> 41
A57: =IF($D57<>"",SUBTOTAL(103,D$4:D57),"") -> 54 | B57: 3100478638 | C57: 1 | D57: Công ty TNHH TMXD&VT Thiên Ân | E57: Thôn Đại Phúc, Vạn Ninh, Quảng Ninh, Quảng Bình | F57: 0983956933 | G57: 3100478638 | H57: 2014-03-17 | I57: Sở Kế hoạch và Đầu tư tỉnh Quảng Bình | J57: Ngô Văn Xoài | K57: Kinh doanh vận tải hàng hóa thông thường | L57: 2015-05-22 | M57: 2022-05-22 | P57: 1 | Q57: =COUNTIF(TBGSHT!$D$9:$D$3620,D57) -> 0
A58: =IF($D58<>"",SUBTOTAL(103,D$4:D58),"") -> 55 | B58: 3100378506 | C58: 1 | D58: Công ty TNHH Vận tải TM Lê Nam | E58: 233 Hùng Vương, Ba Đồn, Ba Đồn, Quảng Bình | F58: 0523516056 | G58: 3100378506 | H58: 2014-12-12 | I58: Sở Kế hoạch và Đầu tư tỉnh Quảng Bình | J58: Lê Thanh Hải | K58: Kinh doanh vận tải hàng hóa thông thường | L58: 2015-08-04 | M58: 2022-08-04 | P58: 1 | Q58: =COUNTIF(TBGSHT!$D$9:$D$3620,D58) -> 72
A59: =IF($D59<>"",SUBTOTAL(103,D$4:D59),"") -> 56 | B59: 3100273038 | C59: 1 | D59: Công ty TNHH XDTH Nam Dinh | E59: TK1, TT.Nông trường Việt Trung, huyện Bố Trạch, tỉnh Quảng Bình | F59: 0977068274 | G59: 3100273038 | H59: 2012-12-08 | I59: Sở Kế hoạch và Đầu tư tỉnh Quảng Bình | J59: Lê Quý Bình | K59: Kinh doanh vận tải hàng hóa thông thường | L59: 2015-08-05 | M59: 2022-08-05 | P59: 1 | Q59: =COUNTIF(TBGSHT!$D$9:$D$3620,D59) -> 1
A60: =IF($D60<>"",SUBTOTAL(103,D$4:D60),"") -> 57 | B60: 3100283477 | C60: 1 | D60: Công ty TNHH Thanh Phương | E60: TK2, Thị trấn Hoàn Lão, huyện Bố Trạch, tỉnh Quảng Bình | F60: 0523611777 | G60: 3100283477 | H60: 2015-11-27 | I60: Sở Kế hoạch và Đầu tư tỉnh Quảng Bình | J60: Lê Thanh Hòa | K60: Kinh doanh vận tải hàng hóa thông thường | L60: 2015-08-10 | M60: 2022-08-10 | P60: 1 | Q60: =COUNTIF(TBGSHT!$D$9:$D$3620,D60) -> 30
A61: =IF($D61<>"",SUBTOTAL(103,D$4:D61),"") -> 58 | B61: 3100996090 | C61: 1 | D61: Công ty TNHH VTTM Anh Anh | E61: Thôn Phú Ninh, Quảng Thanh, Quảng Trạch, Quảng Bình | F61: 0966986133 | G61: 3100996090 | H61: 2015-04-23 | I61: Sở Kế hoạch và Đầu tư tỉnh Quảng Bình | J61: Nguyễn Trung Hiếu | K61: Kinh doanh vận tải hàng hóa thông thường | L61: 2015-08-10 | M61: 2022-08-10 | P61: 1 | Q61: =COUNTIF(TBGSHT!$D$9:$D$3620,D61) -> 5
A62: =IF($D62<>"",SUBTOTAL(103,D$4:D62),"") -> 59 | B62: 3100184525 | C62: 1 | D62: CÔNG TY TNHH TMDV VẬN TẢI HOÀNG HUẤN | E62: Thôn 16, Xã Lộc Ninh, Thành phố Đồng Hới, Tỉnh Quảng Bình | F62: 0523852700 | G62: 3100184525 | H62: 2013-07-11 | I62: Sở Kế hoạch và Đầu tư tỉnh Quảng Bình | J62: Hoàng Tuấn Huấn | K62: Kinh doanh vận tải hàng hóa thông thường | L62: 2015-08-10 | M62: 2022-08-10 | P62: 1 | Q62: =COUNTIF(TBGSHT!$D$9:$D$3620,D62) -> 23
A63: =IF($D63<>"",SUBTOTAL(103,D$4:D63),"") -> 60 | B63: 3100997591 | C63: 1 | D63: Công ty TNHH DL&TM Chiến Nguyệt | E63: Thôn Thanh Khê, xã Thanh Trạch, huyện Bố Trạch, tỉnh Quảng Bình | F63: 0905866905 | G63: 3100997591 | H63: 2015-06-17 | I63: Sở Kế hoạch và Đầu tư tỉnh Quảng Bình | J63: Lê Đức Chiến | K63: Kinh doanh vận tải hành khách bằng xe ô tô theo hợp đồng | L63: 2015-08-12 | M63: =IF(L63<>"",DATE(YEAR(L63)+7,MONTH(L63),DAY(L63)),"") -> 2022-08-12 | P63: 1 | Q63: =COUNTIF(TBGSHT!$D$9:$D$3620,D63) -> 7
A64: =IF($D64<>"",SUBTOTAL(103,D$4:D64),"") -> 61 | B64: 2902001033 | C64: 1 | D64: Công ty TNHH Phương Hoa | E64: TK12, Hoàn Lão, Bố Trạch, Quảng Bình | F64: 0911131133 | G64: 2902001033 | H64: 2008-03-10 | I64: Sở Kế hoạch và Đầu tư tỉnh Quảng Bình | J64: Võ Bình Phương | K64: Kinh doanh vận tải hàng hóa thông thường | L64: 2015-08-18 | M64: 2022-08-18 | P64: 1 | Q64: =COUNTIF(TBGSHT!$D$9:$D$3620,D64) -> 4
A65: =IF($D65<>"",SUBTOTAL(103,D$4:D65),"") -> 62 | B65: 3100485000 | C65: 3 | D65: Công ty TNHH TMVT Bình Hường | E65: Thôn Áng Sơn, Xã Vạn Ninh, Huyện Quảng Ninh, Tỉnh Quảng Bình | F65: 0935687199 | G65: 3100485000 | H65: 2015-03-04 | I65: Sở Kế hoạch và Đầu tư tỉnh Quảng Bình | J65: Võ Thanh Bình | K65: Kinh doanh vận tải hàng hóa thông thường; | L65: 2018-06-21 | M65: 2022-07-17 | P65: 1 | Q65: =COUNTIF(TBGSHT!$D$9:$D$3620,D65) -> 19
A66: =IF($D66<>"",SUBTOTAL(103,D$4:D66),"") -> 63 | B66: 3301369318001 | C66: 1 | D66: CN Công ty TNHH TM&DV Điền Lộc | E66: 181 đường F325, Bắc Lý, Đồng Hới, Quảng Bình | F66: 0908743666 | G66: 3301369318001 | H66: 2015-02-05 | I66: Sở Kế hoạch và Đầu tư tỉnh Quảng Bình | J66: Lê Trường Giang | K66: Kinh doanh vận tải hàng hóa thông thường | L66: 2015-09-04 | M66: 2022-09-04 | P66: 1 | Q66: =COUNTIF(TBGSHT!$D$9:$D$3620,D66) -> 0
A67: =IF($D67<>"",SUBTOTAL(103,D$4:D67),"") -> 64 | B67: 3100477056 | C67: 1 | D67: Doanh nghiệp tư nhân Thắng Lợi | E67: Thôn Thọ Sơn, Quảng Đông, Quảng Trạch, Quảng Bình | F67: 0523596881 | G67: 3100477056 | H67: 2013-02-01 | I67: Sở Kế hoạch và Đầu tư tỉnh Quảng Bình | J67: Võ Văn Thắng | K67: Kinh doanh vận tải hàng hóa thông thường; Kinh doanh vận tải hàng hóa bằng Côngtennơ, | L67: 2015-09-11 | M67: 2022-09-11 | P67: 1 | Q67: =COUNTIF(TBGSHT!$D$9:$D$3620,D67) -> 6
A68: =IF($D68<>"",SUBTOTAL(103,D$4:D68),"") -> 65 | B68: 3100266224 | C68: 1 | D68: Công ty TNHH Diến Hồng | E68: TK8, Quy Đạt, Minh Hóa, Quảng Bình | F68: 0523572244 | G68: 3100266224 | H68: 2013-08-22 | I68: Sở Kế hoạch và Đầu tư tỉnh Quảng Bình | J68: Đinh Thị Hồng | K68: Kinh doanh vận tải hàng hóa thông thường; Kinh doanh vận tải hàng hóa bằng Côngtennơ, | L68: 2015-09-16 | M68: 2022-09-16 | P68: =COUNTIF($G$4:$G$370,G68) -> 1 | Q68: =COUNTIF(TBGSHT!$D$9:$D$3620,D68) -> 14
A69: =IF($D69<>"",SUBTOTAL(103,D$4:D69),"") -> 66 | B69: 3100956436 | C69: 1 | D69: Công ty TNHH Vận tải Nam Mỹ | E69: Thôn Thuận Bài, Quảng Thuận, Ba Đồn, Quảng Bình | F69: 0972534555 | G69: 3100956436 | H69: 2014-12-12 | I69: Sở Kế hoạch và Đầu tư tỉnh Quảng Bình | J69: Trần Quốc Mỹ | K69: Kinh doanh vận tải hàng hóa thông thường | L69: 2015-09-17 | M69: 2022-09-17 | P69: 1 | Q69: =COUNTIF(TBGSHT!$D$9:$D$3620,D69) -> 9
A70: =IF($D70<>"",SUBTOTAL(103,D$4:D70),"") -> 67 | B70: 3100549617 | C70: 1 | D70: Công ty TNHH TM Hùng Dũng | E70: Thôn 3, Hưng Trạch, Bố Trạch, Quảng Bình | F70: 0523863699 | G70: 3100549617 | H70: 2014-11-10 | I70: Sở Kế hoạch và Đầu tư tỉnh Quảng Bình | J70: Nguyễn Tiến Dũng | K70: Kinh doanh vận tải hàng hóa thông thường | L70: 2015-09-21 | M70: 2022-09-21 | P70: 1 | Q70: =COUNTIF(TBGSHT!$D$9:$D$3620,D70) -> 2
A71: =IF($D71<>"",SUBTOTAL(103,D$4:D71),"") -> 68 | B71: 3100996929 | C71: 1 | D71: Công ty TNHH VTDL Lê Khang | E71: 50A Linh Giang, Phường Hải Thành, Thành phố Đồng Hới, Tỉnh Quảng Bình | F71: 0962739999 | G71: 3100996929 | H71: 2015-10-20 | I71: Sở Kế hoạch và Đầu tư tỉnh Quảng Bình | J71: Nguyễn Thị Thu Hiền | K71: Kinh doanh vận tải hành khách bằng xe ô tô theo hợp đồng | L71: 2015-10-30 | M71: =IF(L71<>"",DATE(YEAR(L71)+7,MONTH(L71),DAY(L71)),"") -> 2022-10-30 | P71: 1 | Q71: =COUNTIF(TBGSHT!$D$9:$D$3620,D71) -> 0
A72: =IF($D72<>"",SUBTOTAL(103,D$4:D72),"") -> 69 | B72: 3100161567 | C72: 1 | D72: Công ty TNHH TMTH Minh Khiêm | E72: Tổ dân phố Cồn, Quảng Thuận, Ba Đồn, Quảng Bình | F72: 0523512239 | G72: 3100161567 | H72: 2003-02-18 | I72: Sở Kế hoạch và Đầu tư tỉnh Quảng Bình | J72: Nguyễn Thị Minh Khiêm | K72: Kinh doanh vận tải hàng hóa thông thường | L72: 2015-11-02 | M72: 2022-11-02 | P72: 1 | Q72: =COUNTIF(TBGSHT!$D$9:$D$3620,D72) -> 7
A73: =IF($D73<>"",SUBTOTAL(103,D$4:D73),"") -> 70 | B73: 3100303123 | C73: 1 | D73: Công ty TNHH TM Bằng Phương | E73: TK10, Hoàn Lão, Bố Trạch, Quảng Bình | F73: 0982231557 | G73: 3100303123 | H73: 2014-03-10 | I73: Sở Kế hoạch và Đầu tư tỉnh Quảng Bình | J73: Nguyễn Trọng Bằng | K73: Kinh doanh vận tải hàng hóa thông thường | L73: 2015-11-06 | M73: 2022-11-06 | P73: 1 | Q73: =COUNTIF(TBGSHT!$D$9:$D$3620,D73) -> 6
A74: =IF($D74<>"",SUBTOTAL(103,D$4:D74),"") -> 71 | B74: 3100904928 | C74: 1 | D74: Công ty TNHH XDTH Hòa Gia | E74: Xã Quảng Xuân, huyện Quảng Trạch, tỉnh Quảng Bình | F74: 0973642233 | G74: 3100904928 | H74: 2015-11-10 | I74: Sở Kế hoạch và Đầu tư tỉnh Quảng Bình | J74: Võ Đức Thuận | K74: Kinh doanh vận tải hàng hóa thông thường | L74: 2015-11-17 | M74: =IF(L74<>"",DATE(YEAR(L74)+7,MONTH(L74),DAY(L74)),"") -> 2022-11-17 | P74: 1 | Q74: =COUNTIF(TBGSHT!$D$9:$D$3620,D74) -> 0
A75: =IF($D75<>"",SUBTOTAL(103,D$4:D75),"") -> 72 | B75: 3100715078 | C75: 1 | D75: Công ty TNHH Hòa Đại Phát | E75: xã An Ninh, huyện Quảng Ninh, tỉnh Quảng Bình | F75: 0523938599 | G75: 3100715078 | H75: 2015-02-05 | I75: Sở Kế hoạch và Đầu tư tỉnh Quảng Bình | J75: Bùi Thị Nết | K75: Kinh doanh vận tải hàng hóa bằng Côngtennơ, | L75: 2015-11-19 | M75: 2022-11-19 | P75: 1 | Q75: =COUNTIF(TBGSHT!$D$9:$D$3620,D75) -> 18
A76: =IF($D76<>"",SUBTOTAL(103,D$4:D76),"") -> 73 | C76: 1 | D76: Công ty TNHH Tổng hợp Dương Hoa | E76: Thôn Hòa Bình, Xã Quảng Hưng, huyện Quảng Trạch, tỉnh Quảng Bình | F76: '0915388519 | G76: 2902000239 | H76: 2007-01-05 | I76: Sở Kế hoạch và Đầu tư tỉnh Quảng Bình | J76: Nguyễn Thị Hoa | K76: Kinh doanh vận tải hàng hóa thông thường; Kinh doanh vận tải hàng hóa bằng Côngtennơ, | L76: 2015-12-03 | M76: 2022-12-03 | P76: 1 | Q76: =COUNTIF(TBGSHT!$D$9:$D$3620,D76) -> 0
A77: =IF($D77<>"",SUBTOTAL(103,D$4:D77),"") -> 74 | B77: 3100266785 | C77: 1 | D77: Công ty TNHH TVXD Quang Trương | E77: TK1, Thị trấn Đồng Lê, huyện Tuyên Hóa, tỉnh Quảng Bình | F77: '02323844345 | G77: 3100266785 | H77: 2013-04-02 | I77: Sở Kế hoạch và Đầu tư tỉnh Quảng Bình | J77: Trương Quang Độ | K77: Kinh doanh vận tải hàng hóa thông thường | L77: 2015-12-03 | M77: 2022-12-03 | P77: 1 | Q77: =COUNTIF(TBGSHT!$D$9:$D$3620,D77) -> 0
A78: =IF($D78<>"",SUBTOTAL(103,D$4:D78),"") -> 75 | B78: 3100975125 | C78: 1 | D78: Công ty TNHH tổng hợp Thiên Nam | E78: TT.Kiến Giang, huyện Lệ Thủy, tỉnh Quảng Bình | G78: 3100975125 | H78: 2014-03-19 | I78: Sở Kế hoạch và Đầu tư tỉnh Quảng Bình | J78: Hoàng Đức Vang | K78: Kinh doanh vận tải hành khách bằng xe ô tô theo hợp đồng | L78: 2015-12-04 | M78: 2022-12-04 | P78: 1 | Q78: =COUNTIF(TBGSHT!$D$9:$D$3620,D78) -> 0
A79: =IF($D79<>"",SUBTOTAL(103,D$4:D79),"") -> 76 | B79: 3100943814 | C79: 1 | D79: Công ty TNHH VT&DV Vinafco Miền Trung | E79: Thôn Minh Lợi, phường Quảng Thọ, thị xã Ba Đồn, tỉnh Quảng Bình | F79: '0936161188 | G79: 3100943814 | H79: 2013-12-31 | I79: Sở Kế hoạch và Đầu tư tỉnh Quảng Bình | J79: Nguyễn Ngọc Trung | K79: Kinh doanh vận tải hàng hóa thông thường | L79: 2015-12-07 | M79: 2022-12-07 | P79: 1 | Q79: =COUNTIF(TBGSHT!$D$9:$D$3620,D79) -> 0
A80: =IF($D80<>"",SUBTOTAL(103,D$4:D80),"") -> 77 | B80: 3100974731 | C80: 1 | D80: Công ty TNHH VT&TM Tấn Phát | E80: TK7, Thị trấn Quy Đạt, Minh Hóa, Tuyên Hóa, Quảng Bình | F80: '0905473678 | G80: 3100974731 | H80: 2014-03-10 | I80: Sở Kế hoạch và Đầu tư tỉnh Quảng Bình | J80: Đinh Minh Hùng | K80: Kinh doanh vận tải hàng hóa thông thường; Kinh doanh vận tải hàng hóa bằng Côngtennơ, | L80: 2015-12-07 | M80: 2022-12-07 | P80: 1 | Q80: =COUNTIF(TBGSHT!$D$9:$D$3620,D80) -> 0
A81: =IF($D81<>"",SUBTOTAL(103,D$4:D81),"") -> 78 | C81: 1 | D81: HTX DV HTVT ĐƯỜNG BỘ ĐỒNG HỚI | E81: TDP2 Mỹ Cương, Phường Bắc Nghĩa, Thành Phố Đồng Hới, Tỉnh Quảng Bình | F81: 0919406306 | G81: 290112 | H81: 2015-11-12 | I81: UBND huyện Bố Trạch, tỉnh Quảng Bình | J81: Trần Viết Quốc | K81: Kinh doanh vận tải hàng hóa thông thường; Kinh doanh vận tải hành khách theo hợp đồng, | L81: 2015-12-11 | M81: 2022-12-11 | P81: 1 | Q81: =COUNTIF(TBGSHT!$D$9:$D$3620,D81) -> 360
A82: =IF($D82<>"",SUBTOTAL(103,D$4:D82),"") -> 79 | C82: 1 | D82: Nguyễn Tiến Bằng | E82: Xã Phúc Trạch, Huyện Bố Trạch, tỉnh Quảng Bình | F82: 0915133839 | G82: 29E800799 | H82: 2015-11-30 | I82: UBND TP. Đồng Hới, tỉnh Quảng Bình | J82: Nguyễn Tiến Bằng | K82: Kinh doanh vận tải hành khách bằng xe ô tô theo hợp đồng | L82: 2015-12-14 | M82: 2022-12-14 | P82: 1 | Q82: =COUNTIF(TBGSHT!$D$9:$D$3620,D82) -> 1
A83: =IF($D83<>"",SUBTOTAL(103,D$4:D83),"") -> 80 | B83: 3100828226 | C83: 1 | D83: Công ty TNHH TM Lê Dũng Linh | E83: Minh Lợi, Phường Quảng Thọ, thị xã Ba Đồn, tỉnh Quảng Bình | F83: 0523513570 | G83: 3100828226 | H83: 2012-01-13 | I83: Sở Kế hoạch và Đầu tư tỉnh Quảng Bình | J83: Nguyễn Thị Đoan Phương | K83: Kinh doanh vận tải hàng hóa thông thường | L83: 2015-12-31 | M83: 2022-12-31 | P83: 1 | Q83: =COUNTIF(TBGSHT!$D$9:$D$3620,D83) -> 15
A84: =IF($D84<>"",SUBTOTAL(103,D$4:D84),"") -> 81 | B84: 3100680851 | C84: 1 | D84: Công ty TNHH TMDV vận tải Hữu Hiền | E84: 214 Lý Thường Kiệt, Đồng Phú, Đồng Hới, Quảng Bình | F84: 0913069979 | G84: 3100680851 | H84: 2014-12-16 | I84: Sở Kế hoạch và Đầu tư tỉnh Quảng Bình | J84: Nguyễn Hữu Hiền | K84: Kinh doanh vận tải hàng hóa thông thường | L84: 2016-01-05 | M84: 2023-01-05 | P84: 1 | Q84: =COUNTIF(TBGSHT!$D$9:$D$3620,D84) -> 0
A85: =IF($D85<>"",SUBTOTAL(103,D$4:D85),"") -> 82 | B85: 3100348300 | C85: 1 | D85: Công ty TNHH Phong Thương | E85: Minh Lợi, Quảng Thọ, Ba Đồn, Ba Đồn | F85: 0523513787 | G85: 3100348300 | H85: 2006-01-11 | I85: Sở Kế hoạch và Đầu tư tỉnh Quảng Bình | J85: Dương Văn Phong | K85: Kinh doanh vận tải hàng hóa thông thường | L85: 2016-01-06 | M85: 2023-01-06 | P85: 1 | Q85: =COUNTIF(TBGSHT!$D$9:$D$3620,D85) -> 16
A86: =IF($D86<>"",SUBTOTAL(103,D$4:D86),"") -> 83 | C86: 1 | D86: LÊ CÔNG THUYẾT | E86: TDP 9, Nam Lý, Đồng Hới, Quảng Bình | F86: 0905559969 | G86: 29A8005383 | H86: 2014-12-11 | I86: Phòng Tài chính Kế hoạch, UBND TP. Đồng Hới | J86: Lê Công Thuyết | K86: Kinh doanh vận tải hàng hóa thông thường | L86: 2016-01-07 | M86: 2023-01-07 | P86: 1 | Q86: =COUNTIF(TBGSHT!$D$9:$D$3620,D86) -> 0
A87: =IF($D87<>"",SUBTOTAL(103,D$4:D87),"") -> 84 | B87: 3100294528 | C87: 1 | D87: CÔNG TY TNHH TM TÀI VẸN | E87: Thôn Tam Đa, Tiến Hoá, Tuyên Hoá, Quảng Bình | F87: 0984158249 | G87: 3100294528 | H87: 2014-11-11 | I87: Sở Kế hoạch và Đầu tư tỉnh Quảng Bình | J87: Ngô Tuấn Tài | K87: Kinh doanh vận tải hàng hóa thông thường | L87: 2016-01-07 | M87: 2023-01-07 | P87: 1 | Q87: =COUNTIF(TBGSHT!$D$9:$D$3620,D87) -> 5
A88: =IF($D88<>"",SUBTOTAL(103,D$4:D88),"") -> 85 | B88: 3100517855 | C88: 1 | D88: Công ty TNHH TMTH Phước Sang | E88: Thôn Thượng Đức, Đức Trạch, Bố Trạch, Quảng Bình | F88: 0523864458 | G88: 3100517855 | H88: 2009-12-28 | I88: Sở Kế hoạch và Đầu tư tỉnh Quảng Bình | J88: Hoàng Thị Hương | K88: Kinh doanh vận tải hàng hóa thông thường | L88: 2016-01-08 | M88: 2023-01-08 | P88: 1 | Q88: =COUNTIF(TBGSHT!$D$9:$D$3620,D88) -> 11
A89: =IF($D89<>"",SUBTOTAL(103,D$4:D89),"") -> 86 | C89: 1 | D89: HTX DỊCH VỤ HỖ TRỢ VT&HK HẢI ANH | E89: 42 Nguyễn Biểu, P. Đồng Phú, Đồng Hới, Quảng Bình | F89: 0523817373 | G89: 290113 | H89: 2015-12-30 | I89: Phòng Tài chính Kế hoạch, UBND TP. Đồng Hới | J89: Võ Khánh Toàn | K89: Kinh doanh vận tải hàng hóa thông thường | L89: 2016-01-08 | M89: 2023-01-08 | P89: 1 | Q89: =COUNTIF(TBGSHT!$D$9:$D$3620,D89) -> 342
A90: =IF($D90<>"",SUBTOTAL(103,D$4:D90),"") -> 87 | B90: 3100956965 | C90: 1 | D90: Công ty TNHH VT&TM Dũng Anh | E90: Thôn Thuận Hoà, Thuận Đức, Đồng Hới, Quảng Bình | F90: 09055998687 | G90: 3100956965 | H90: 2013-02-25 | I90: Sở Kế hoạch và Đầu tư tỉnh Quảng Bình | J90: Lê Dũng Tiến | K90: Kinh doanh vận tải hàng hóa thông thường | L90: 2016-01-08 | M90: 2023-01-08 | P90: 1 | Q90: =COUNTIF(TBGSHT!$D$9:$D$3620,D90) -> 5
A91: =IF($D91<>"",SUBTOTAL(103,D$4:D91),"") -> 88 | B91: 3100974065 | C91: 1 | D91: Công ty TNHH Vận tải Bảo Hiền | E91: TK9, Bắc Lý, Đồng Hới, Quảng Bình | F91: 0935137667 | G91: 3100974065 | H91: 2014-02-24 | I91: Sở Kế hoạch và Đầu tư tỉnh Quảng Bình | J91: Nguyễn Khánh Bảo | K91: Kinh doanh vận tải hàng hóa thông thường | L91: 2016-01-08 | M91: 2023-01-08 | P91: 1 | Q91: =COUNTIF(TBGSHT!$D$9:$D$3620,D91) -> 0
A92: =IF($D92<>"",SUBTOTAL(103,D$4:D92),"") -> 89 | C92: 1 | D92: ĐÀO QUỐC KHÁNH | E92: Thôn 5, Nghĩa Ninh, Đồng Hới, Quảng Bình | F92: 0919721116 | G92: 29A8005868 | H92: 2016-01-12 | I92: Phòng Tài chính Kế hoạch, UBND TP. Đồng Hới | J92: Đào Quốc Khánh | K92: Kinh doanh vận tải hàng hóa thông thường | L92: 2016-01-08 | M92: 2023-01-08 | P92: 1 | Q92: =COUNTIF(TBGSHT!$D$9:$D$3620,D92) -> 0
A93: =IF($D93<>"",SUBTOTAL(103,D$4:D93),"") -> 90 | C93: 1 | D93: NGUYỄN TRUNG LĨNH | E93: Hải Trạch, Bố Trạch, Quảng Bình | F93: 0971353377 | G93: 29E8005801 | H93: 2016-01-06 | I93: Phòng Tài chính Kế hoạch, UBND huyện Bố Trạch | J93: Nguyễn Trung Lĩnh | K93: Kinh doanh vận tải hàng hóa thông thường | L93: 2016-01-08 | M93: 2023-01-08 | P93: 1 | Q93: =COUNTIF(TBGSHT!$D$9:$D$3620,D93) -> 0
A94: =IF($D94<>"",SUBTOTAL(103,D$4:D94),"") -> 91 | B94: 441701957 | C94: 1 | D94: HTX DV hỗ trợ vận tải ô tô Nam Gianh | E94: Thôn Thanh Khê, xã Thanh Trạch, huyện Bố Trạch, tỉnh Quảng Bình | F94: 0523866006 | G94: 290507000008 | H94: 2015-11-30 | I94: Phòng Tài chính Kế hoạch, UBND huyện Bố Trạch | J94: Trần Văn Thân | K94: Kinh doanh VTHK bằng xe ô tô theo tuyến cố định, Hợp đồng; Kinh doanh vận tải hàng hoá thông thường, | L94: 2017-12-15 | M94: 2024-12-15 | P94: 1 | Q94: =COUNTIF(TBGSHT!$D$9:$D$3620,D94) -> 37
A95: =IF($D95<>"",SUBTOTAL(103,D$4:D95),"") -> 92 | C95: 1 | D95: ĐẶNG VĂN PHÚ | E95: Thôn Đức Thuỷ, Đức Ninh, Đồng Hới, Quảng Bình | F95: 0985039858 | G95: 29A8005869 | H95: 2016-01-02 | I95: Phòng Tài chính Kế hoạch, UBND TP. Đồng Hới | J95: Đặng Văn Phú | K95: Kinh doanh vận tải hàng hóa thông thường | L95: 2016-01-08 | M95: =IF(L95<>"",DATE(YEAR(L95)+7,MONTH(L95),DAY(L95)),"") -> 2023-01-08 | P95: 1 | Q95: =COUNTIF(TBGSHT!$D$9:$D$3620,D95) -> 1
A96: =IF($D96<>"",SUBTOTAL(103,D$4:D96),"") -> 93 | B96: 3100300940 | C96: 1 | D96: Công ty TNHH TM An Thủy | E96: 44 Thanh Niên, Đồng Hới, Quảng Bình | F96: 0523822677 | G96: 3100300940 | H96: 2015-05-27 | I96: Sở Kế hoạch và Đầu tư tỉnh Quảng Bình | J96: Trần Thị Thuỷ | K96: Kinh doanh vận tải hàng hóa thông thường | L96: 2016-01-11 | M96: 2023-01-11 | P96: 1 | Q96: =COUNTIF(TBGSHT!$D$9:$D$3620,D96) -> 0
A97: =IF($D97<>"",SUBTOTAL(103,D$4:D97),"") -> 94 | B97: 3100629848 | C97: 2 | D97: Công ty TNHH TM-XD Đông Bắc | E97: Thôn 19/5, Xã Quảng Đông, Huyện Quảng Trạch, Tỉnh Quảng Bình | F97: 0986629854 | G97: 3100629848 | H97: 2010-07-12 | I97: Sở Kế hoạch và Đầu tư tỉnh Quảng Bình | J97: Trịnh An Toàn | K97: Kinh doanh vận tải hàng hóa thông thường | L97: 2016-01-11 | M97: 2023-01-11 | P97: 1 | Q97: =COUNTIF(TBGSHT!$D$9:$D$3620,D97) -> 2
A98: =IF($D98<>"",SUBTOTAL(103,D$4:D98),"") -> 95 | B98: 3100320143 | C98: 1 | D98: Công ty CP sản xuất Lâm sản Xuất khẩu Quảng Đông | E98: KCN Hòn La, Quảng Đông, Quảng Trạch, Quảng Bình | F98: 0523599022 | G98: 3100320143 | H98: 2004-12-10 | I98: Sở Kế hoạch và Đầu tư tỉnh Quảng Bình | J98: Lê Ngọc Định | K98: Kinh doanh vận tải hàng hóa thông thường | L98: 2016-01-11 | M98: 2023-01-11 | P98: 1 | Q98: =COUNTIF(TBGSHT!$D$9:$D$3620,D98) -> 7
A99: =IF($D99<>"",SUBTOTAL(103,D$4:D99),"") -> 96 | C99: 1 | D99: PHẠM VĂN AN | E99: Thôn 7, Nghĩa Ninh, Đồng Hới, Quảng Bình | H99: 2016-01-11 | I99: Phòng Tài chính Kế hoạch, UBND TP. Đồng Hới | J99: Phạm Văn An | K99: Kinh doanh vận tải hàng hóa thông thường | L99: 2016-01-11 | M99: 2023-01-11 | P99: 0 | Q99: =COUNTIF(TBGSHT!$D$9:$D$3620,D99) -> 0
A100: =IF($D100<>"",SUBTOTAL(103,D$4:D100),"") -> 97 | C100: 1 | D100: PHẠM VĂN BÌNH | E100: Thôn 7, Nghĩa Ninh, Đồng Hới, Quảng Bình | F100: 0838741741 | G100: 29A8005867 | H100: 2016-01-12 | I100: Phòng Tài chính Kế hoạch, UBND TP. Đồng Hới | J100: Phạm Văn Bình | K100: Kinh doanh vận tải hàng hóa thông thường | L100: 2016-01-12 | M100: 2023-01-12 | P100: 1 | Q100: =COUNTIF(TBGSHT!$D$9:$D$3620,D100) -> 0
A101: =IF($D101<>"",SUBTOTAL(103,D$4:D101),"") -> 98 | B101: 3100268172 | C101: 1 | D101: Công ty TNHH TM&DV Phước Linh | E101: TDP4, Phường Ba Đồn, Thị xã Ba Đồn, Tỉnh Quảng Bình | F101: 0943384171 | G101: 3100268172 | H101: 2014-04-04 | I101: Sở Kế hoạch và Đầu tư tỉnh Quảng Bình | J101: Đinh Minh Phúc | K101: Kinh doanh vận tải hàng hóa thông thường | L101: 2016-01-12 | M101: 2023-01-12 | P101: 1 | Q101: =COUNTIF(TBGSHT!$D$9:$D$3620,D101) -> 19
A102: =IF($D102<>"",SUBTOTAL(103,D$4:D102),"") -> 99 | B102: 3100920052 | C102: 2 | D102: Công ty TNHH TM&VT Hoàng Chung | E102: Ngõ 29, Đường Lý Nam Đế, Phường Đồng Phú, Thành Phố Đồng Hới, Tỉnh Quảng Bình | F102: 0988877360 | G102: 3100920052 | H102: 2012-06-01 | I102: Sở Kế hoạch và Đầu tư tỉnh Quảng Bình | J102: Hoàng Thị Thu Chung | K102: Kinh doanh VTHK bằng xe ô tô theo tuyến cố định, hợp đồng; Kinh doanh vận tải hàng hoá thông thường, | L102: 2016-01-12 | M102: 2023-01-12 | P102: 1 | Q102: =COUNTIF(TBGSHT!$D$9:$D$3620,D102) -> 43
A103: =IF($D103<>"",SUBTOTAL(103,D$4:D103),"") -> 100 | B103: 3100975421 | C103: 1 | D103: Công ty TNHH VT-TM Quang Tuấn | E103: Xã Hạ Trạch, Huyện Bố Trạch, Tỉnh Quảng Bình | F103: 0982024832 | G103: 3100975421 | H103: 2014-03-27 | I103: Sở Kế hoạch và Đầu tư tỉnh Quảng Bình | J103: Lê Thị Gái | K103: Kinh doanh vận tải hàng hóa thông thường | L103: 2016-01-13 | M103: 2023-01-13 | P103: 1 | Q103: =COUNTIF(TBGSHT!$D$9:$D$3620,D103) -> 1
A104: =IF($D104<>"",SUBTOTAL(103,D$4:D104),"") -> 101 | B104: 3100959596 | C104: 1 | D104: Công ty TNHH TM-TH Yến Trang | E104: Tiểu khu 9, Phường Đồng Phú, TP. Đồng Hới, Tỉnh Quảng Bình | F104: 0917025657 | G104: 3100959596 | H104: 2014-09-06 | I104: Sở Kế hoạch và Đầu tư tỉnh Quảng Bình | J104: Trần Hải Yến | K104: Kinh doanh vận tải hàng hóa thông thường | L104: 2016-01-13 | M104: 2023-01-13 | P104: 1 | Q104: =COUNTIF(TBGSHT!$D$9:$D$3620,D104) -> 0
A105: =IF($D105<>"",SUBTOTAL(103,D$4:D105),"") -> 102 | B105: 3100299540 | C105: 1 | D105: Công ty TNHH SX-TM Sư Lý | E105: 70 Lý Thường Kiệt, Phường Đồng Phú, TP. Đồng Hới, Tỉnh Quảng Bình | F105: 02323825773 | G105: 3100299540 | H105: 2013-07-24 | I105: Sở Kế hoạch và Đầu tư tỉnh Quảng Bình | J105: Lê Xuân Sư | K105: Kinh doanh vận tải hàng hóa thông thường | L105: 2016-01-13 | M105: 2023-01-13 | P105: 1 | Q105: =COUNTIF(TBGSHT!$D$9:$D$3620,D105) -> 1
A106: =IF($D106<>"",SUBTOTAL(103,D$4:D106),"") -> 103 | B106: 3100384059 | C106: 1 | D106: Công ty TNHH Vũ Lâm | E106: Xã Cảnh Dương, Huyện Quảng Trạch, Tỉnh Quảng Bình | F106: 02323596232 | G106: 3100384059 | H106: 2015-08-12 | I106: Sở Kế hoạch và Đầu tư tỉnh Quảng Bình | J106: Đặng Thị Liên | K106: Kinh doanh vận tải hàng hóa thông thường | L106: 2016-06-14 | M106: 2023-06-14 | P106: 1 | Q106: =COUNTIF(TBGSHT!$D$9:$D$3620,D106) -> 6
A107: =IF($D107<>"",SUBTOTAL(103,D$4:D107),"") -> 104 | B107: 3100800100 | C107: 1 | D107: Công ty TNHH VT&TM Thuận Lợi | E107: Xã Hải Trạch, Huyện Bố Trạch, Tỉnh Quảng Bình | F107: 02323846124 | G107: 3100800100 | H107: 2013-12-26 | I107: Sở Kế hoạch và Đầu tư tỉnh Quảng Bình | J107: Nguyễn Ngọc Châu | K107: Kinh doanh vận tải hàng hóa thông thường | L107: 2016-06-14 | M107: 2023-06-14 | P107: 1 | Q107: =COUNTIF(TBGSHT!$D$9:$D$3620,D107) -> 0
A108: =IF($D108<>"",SUBTOTAL(103,D$4:D108),"") -> 105 | B108: 3100318183 | C108: 1 | D108: Công ty CPKD Dầu khí Quảng Bình | E108: Khu công nghiệp Tây Bắc Đồng Hới, P.Bắc Lý, TP. Đồng Hới, Tỉnh Quảng Bình | F108: 0912328098 | G108: 3100318183 | H108: 2015-12-02 | I108: Sở Kế hoạch và Đầu tư tỉnh Quảng Bình | J108: Đinh Xuân Quang | K108: Kinh doanh vận tải hàng hóa thông thường | L108: 2016-01-15 | M108: 2023-01-15 | P108: 1 | Q108: =COUNTIF(TBGSHT!$D$9:$D$3620,D108) -> 12
A109: =IF($D109<>"",SUBTOTAL(103,D$4:D109),"") -> 106 | C109: 1 | D109: HTX xây dựng và vận tải Miền Trung | E109: P.Ba Đồn, TX.Ba Đồn, Tỉnh Quảng Bình | F109: 0523511666 | G109: 29D000004 | H109: 2015-12-21 | I109: UBND thị xã Ba Đồn, tỉnh Quảng Bình | J109: Trương Thị Thu Hiền | K109: Kinh doanh VTHK bằng xe ô tô theo hợp đồng, du lịch; Kinh doanh vận tải hàng hoá thông thường, | L109: 2016-01-15 | M109: 2023-01-15 | P109: 1 | Q109: =COUNTIF(TBGSHT!$D$9:$D$3620,D109) -> 0
A110: =IF($D110<>"",SUBTOTAL(103,D$4:D110),"") -> 107 | B110: 3100998958 | C110: 1 | D110: Công ty TNHH Dụng Lực | E110: Xã Quảng Thuận, TX.Ba Đồn, Tỉnh Quảng Bình | F110: 0914717337 | G110: 3100998958 | H110: 2015-07-16 | I110: Sở Kế hoạch và Đầu tư tỉnh Quảng Bình | J110: Nguyễn Văn Dụng | K110: Kinh doanh vận tải hàng hóa thông thường | L110: 2016-01-15 | M110: 2023-01-15 | P110: 1 | Q110: =COUNTIF(TBGSHT!$D$9:$D$3620,D110) -> 1
A111: =IF($D111<>"",SUBTOTAL(103,D$4:D111),"") -> 108 | B111: 3100994960 | C111: 1 | D111: Công ty TNHH QNC Bình Minh | E111: Tiểu khu 3, P.Ba Đồn, TX.Ba Đồn, Tỉnh Quảng Bình | F111: 0913747378 | G111: 3100994960 | H111: 2015-03-20 | I111: Sở Kế hoạch và Đầu tư tỉnh Quảng Bình | J111: Trần Thế Quyền | K111: Kinh doanh vận tải hàng hóa thông thường | L111: 2016-01-18 | M111: =IF(L111<>"",DATE(YEAR(L111)+7,MONTH(L111),DAY(L111)),"") -> 2023-01-18 | P111: 1 | Q111: =COUNTIF(TBGSHT!$D$9:$D$3620,D111) -> 2
A112: =IF($D112<>"",SUBTOTAL(103,D$4:D112),"") -> 109 | C112: 2 | D112: TRÀ VINH 1974 | E112: P.Đồng Sơn, TP Đồng Hới, Tỉnh Quảng Bình | F112: 0968161631 | G112: 29A8005883 | H112: 2013-01-18 | I112: UBND TP. Đồng Hới, tỉnh Quảng Bình | J112: Trà Vinh | K112: Kinh doanh vận tải hàng hóa thông thường | L112: 2016-01-18 | M112: 2023-01-18 | P112: 1 | Q112: =COUNTIF(TBGSHT!$D$9:$D$3620,D112) -> 1
A113: =IF($D113<>"",SUBTOTAL(103,D$4:D113),"") -> 110 | B113: 3101009170 | C113: 1 | D113: Công ty Cổ phần vận tải Phú Hoàng | E113: Số 11 Trần Nguyên Hản, P. Đồng Phú, TP Đồng Hới, Tỉnh Quảng Bình | F113: 0523845999 | G113: 3101009170 | H113: 2015-12-18 | I113: Sở Kế hoạch và Đầu tư tỉnh Quảng Bình | J113: Trần Đình Hải | K113: Kinh doanh vận tải hành khách bằng xe Taxi | L113: 2016-01-20 | M113: 2023-01-20 | P113: 1 | Q113: =COUNTIF(TBGSHT!$D$9:$D$3620,D113) -> 120
A114: =IF($D114<>"",SUBTOTAL(103,D$4:D114),"") -> 111 | B114: 3100633925 | C114: 1 | D114: Công ty TNHH DVTM Nghĩa Cảnh | E114: TT.Đồng Lê, huyện Tuyên Hoá, tỉnh Quảng Bình | F114: 0912719006 | G114: 3100633925 | H114: 2013-06-24 | I114: Sở Kế hoạch và Đầu tư tỉnh Quảng Bình | J114: Trần Thị Cảnh | K114: Kinh doanh vận tải hàng hóa thông thường | L114: 2016-01-21 | M114: 2023-01-21 | P114: 1 | Q114: =COUNTIF(TBGSHT!$D$9:$D$3620,D114) -> 7
A115: =IF($D115<>"",SUBTOTAL(103,D$4:D115),"") -> 112 | B115: 3100984793 | C115: 1 | D115: Công ty TNHH TM&DV Vận tải Minh Đức | E115: TDP Nam, Quảng Thuận, Ba Đồn, Quảng Bình | F115: 0916131355 | G115: 3100984793 | H115: 2015-09-24 | I115: Sở Kế hoạch và Đầu tư tỉnh Quảng Bình | J115: Trần Anh Đức | K115: Kinh doanh vận tải hàng hóa thông thường | L115: 2016-01-22 | M115: 2023-01-22 | P115: 1 | Q115: =COUNTIF(TBGSHT!$D$9:$D$3620,D115) -> 12
A116: =IF($D116<>"",SUBTOTAL(103,D$4:D116),"") -> 113 | B116: 3100958401 | C116: 1 | D116: Công ty TNHH DVTH Dũng Hà | E116: Thôn Bàu 3, Tiến Hoá, Tuyên Hoá, Quảng Bình | F116: 0918167858 | G116: 3100958401 | H116: 2015-06-16 | I116: Sở Kế hoạch và Đầu tư tỉnh Quảng Bình | J116: Lê Đức Dũng | K116: Kinh doanh vận tải hàng hóa thông thường | L116: 2016-01-22 | M116: 2023-01-22 | P116: 1 | Q116: =COUNTIF(TBGSHT!$D$9:$D$3620,D116) -> 0
A117: =IF($D117<>"",SUBTOTAL(103,D$4:D117),"") -> 114 | B117: 3100975679 | C117: 1 | D117: Công ty TNHH TM&VT Trường Hưng | E117: Thôn Yên Thắng, xã Yên Hoá, huyện Minh Hoá, tỉnh Quảng Bình | F117: 0905102199 | G117: 3100975679 | H117: 2014-04-01 | I117: Sở Kế hoạch và Đầu tư tỉnh Quảng Bình | J117: Nguyễn Văn Tuyên | K117: Kinh doanh vận tải hàng hóa thông thường | L117: 2016-01-27 | M117: 2023-01-27 | P117: 1 | Q117: =COUNTIF(TBGSHT!$D$9:$D$3620,D117) -> 0
A118: =IF($D118<>"",SUBTOTAL(103,D$4:D118),"") -> 115 | B118: 29A8005897 | C118: 1 | D118: Võ Văn Nhân | E118: P.Bắc Nghĩa, TP. Đồng Hới, Tỉnh Quảng Bình | F118: 0355040472 | G118: 29A8005897 | H118: 2016-01-25 | I118: UBND TP. Đồng Hới, tỉnh Quảng Bình | J118: Võ Văn Nhân | K118: Kinh doanh vận tải hành khách bằng xe ô tô theo hợp đồng | L118: 2016-01-27 | M118: 2023-01-27 | P118: 1 | Q118: =COUNTIF(TBGSHT!$D$9:$D$3620,D118) -> 0
A119: =IF($D119<>"",SUBTOTAL(103,D$4:D119),"") -> 116 | B119: 3100997030 | C119: 1 | D119: Công ty TNHH Việt Lào Ngọc Linh | E119: Thôn 5, Xã Lộc Ninh, TP. Đồng Hới, Tỉnh Quảng Bình | F119: 0975786777 | G119: 3100997030 | H119: 2015-05-29 | I119: Sở Kế hoạch và Đầu tư tỉnh Quảng Bình | J119: Võ Thị Lan Hương | K119: Kinh doanh vận tải hàng hóa thông thường | L119: 2016-02-19 | M119: 2023-02-19 | P119: 1 | Q119: =COUNTIF(TBGSHT!$D$9:$D$3620,D119) -> 1
A120: =IF($D120<>"",SUBTOTAL(103,D$4:D120),"") -> 117 | B120: 3100186089 | C120: 1 | D120: Công ty TNHH Tổng Công ty Thế Thịnh | E120: Đường Hữu Nghị, P.Nam Lý, TP. Đồng Hới, Tỉnh Quảng Bình | F120: 02323845287 | G120: 3100186089 | H120: 2012-06-21 | I120: Sở Kế hoạch và Đầu tư tỉnh Quảng Bình | J120: Võ Văn Thế | K120: Kinh doanh vận tải hàng hóa thông thường | L120: 2016-02-23 | M120: 2023-02-23 | P120: 1 | Q120: =COUNTIF(TBGSHT!$D$9:$D$3620,D120) -> 6
A121: =IF($D121<>"",SUBTOTAL(103,D$4:D121),"") -> 118 | B121: 3101013113 | C121: 1 | D121: Công ty TNHH TMDV Song Anh | E121: Số 37 Xuân Diệu, P.Đồng Phú, TP. Đồng Hới, Tỉnh Quảng Bình | F121: 0949555333 | G121: 3101013113 | H121: 2016-01-20 | I121: Sở Kế hoạch và Đầu tư tỉnh Quảng Bình | J121: Nguyễn Quốc Hùng | K121: Kinh doanh vận tải hành khách bằng xe ô tô theo hợp đồng | L121: 2016-02-23 | M121: 2023-02-23 | P121: 1 | Q121: =COUNTIF(TBGSHT!$D$9:$D$3620,D121) -> 0
A122: =IF($D122<>"",SUBTOTAL(103,D$4:D122),"") -> 119 | B122: 3100195171 | C122: 1 | D122: Công ty CP Tập đoàn Trường Thịnh | E122: 50 Nguyễn Hữu Cảnh, Hải Đình, Đồng Hới, Quảng Bình | F122: 02323820024 | G122: 3100195171 | H122: 2014-06-02 | I122: Sở Kế hoạch và Đầu tư tỉnh Quảng Bình | J122: Võ Minh Hoài | K122: Kinh doanh vận tải hàng hóa thông thường | L122: 2016-02-24 | M122: 2023-02-24 | P122: 1 | Q122: =COUNTIF(TBGSHT!$D$9:$D$3620,D122) -> 0
A123: =IF($D123<>"",SUBTOTAL(103,D$4:D123),"") -> 120 | B123: 3100422191 | C123: 1 | D123: Công ty TNHH ĐT&XD Hoàng Minh | E123: 34 Quang Trung, Hải Đình, Đồng Hới, Quảng Bình | F123: 02323226666 | G123: 3100422191 | H123: 2015-10-08 | I123: Sở Kế hoạch và Đầu tư tỉnh Quảng Bình | J123: Nguyễn Hữu Thông | K123: Kinh doanh vận tải hàng hóa thông thường | L123: 2016-02-24 | M123: 2023-02-24 | P123: 1 | Q123: =COUNTIF(TBGSHT!$D$9:$D$3620,D123) -> 11
A124: =IF($D124<>"",SUBTOTAL(103,D$4:D124),"") -> 121 | C124: 1 | D124: Nguyễn Xuân Quốc | E124: xã Sen Thuỷ, huyện Lệ Thuỷ, tỉnh Quảng Bình | F124: 0941132555 | G124: 29G8002994 | H124: 2016-02-25 | I124: UBND huyện Lệ Thuỷ, tỉnh Quảng Bình | J124: Nguyễn Xuân Quốc | K124: Kinh doanh vận tải hành khách bằng xe ô tô theo hợp đồng | L124: 2016-03-10 | M124: 2023-03-10 | P124: 1 | Q124: =COUNTIF(TBGSHT!$D$9:$D$3620,D124) -> 0
A125: =IF($D125<>"",SUBTOTAL(103,D$4:D125),"") -> 122 | B125: 3100959317 | C125: 1 | D125: Công ty TNHH TMDV Ánh Hồng | E125: Thuận Phong, Xã Thuận Đức, Thành phố Đồng Hới, Tỉnh Quảng Bình | F125: 0986180975 | G125: 3100959317 | H125: 2013-05-03 | I125: Sở Kế hoạch và Đầu tư tỉnh Quảng Bình | J125: Nguyễn Thị Hồng | K125: Kinh doanh vận tải hàng hóa thông thường | L125: 2016-03-10 | M125: 2023-03-10 | P125: 1 | Q125: =COUNTIF(TBGSHT!$D$9:$D$3620,D125) -> 1
A126: =IF($D126<>"",SUBTOTAL(103,D$4:D126),"") -> 123 | B126: 3101013917 | C126: 1 | D126: Công ty CP Du Lịch Hoàng Sa Quảng Bình | E126: TT.Hoàn Lão, huyện Bố Trạch, tỉnh Quảng Bình | F126: 0905110204 | G126: 3101013917 | H126: 2016-02-26 | I126: Sở Kế hoạch và Đầu tư tỉnh Quảng Bình | J126: Trương Thị Thanh Huyền | K126: Kinh doanh vận tải hành khách bằng xe Taxi | L126: 2016-03-17 | M126: 2023-03-17 | P126: 1 | Q126: =COUNTIF(TBGSHT!$D$9:$D$3620,D126) -> 18
A127: =IF($D127<>"",SUBTOTAL(103,D$4:D127),"") -> 124 | B127: 3101023785 | C127: 1 | D127: Công ty TNHH DVVT Thành Chung | E127: Đường Tạ Quang Bửu, Phường Bắc Nghĩa, Thành phố Đồng Hới, Quảng Bình | F127: 0912416514 | G127: 3101023785 | K127: KD Vận tải HK bằng xe ô tô theo HĐ | L127: 2013-07-16 | M127: 2020-07-16 | P127: 1 | Q127: =COUNTIF(TBGSHT!$D$9:$D$3620,D127) -> 0
A128: =IF($D128<>"",SUBTOTAL(103,D$4:D128),"") -> 125 | C128: 1 | D128: Vận tải Thuỳ Linh | E128: TT Quán Hàu, huyện Quảng Ninh, tỉnh Quảng Bình | F128: 0888883569 | G128: 29F8001089 | H128: 2016-03-16 | I128: UBND huyện Quảng Ninh | J128: Nguyễn Thị Thuỳ Linh | K128: Kinh doanh vận tải hàng hóa thông thường | L128: 2016-03-21 | M128: =IF(L128<>"",DATE(YEAR(L128)+7,MONTH(L128),DAY(L128)),"") -> 2023-03-21 | P128: 1 | Q128: =COUNTIF(TBGSHT!$D$9:$D$3620,D128) -> 1
A129: =IF($D129<>"",SUBTOTAL(103,D$4:D129),"") -> 126 | B129: 3100379154 | C129: 1 | D129: Công ty TNHH Hiền Lương | E129: Tổ dân phố Môn, P.Quảng Thuận, TX.Ba Đồn, Tỉnh Quảng Bình | F129: 02323512263 | G129: 3100379154 | H129: 2015-05-12 | I129: Sở Kế hoạch và Đầu tư tỉnh Quảng Bình | J129: Nguyễn Sỹ Hiền | K129: Kinh doanh vận tải hàng hóa thông thường | L129: 2016-03-21 | M129: 2023-03-21 | P129: 1 | Q129: =COUNTIF(TBGSHT!$D$9:$D$3620,D129) -> 0
A130: =IF($D130<>"",SUBTOTAL(103,D$4:D130),"") -> 127 | B130: 3101014050 | C130: 1 | D130: Công ty TNHH VT&TM Dương Hải Nam | E130: Thôn Quốc lộ 1A, Xã Hải Trạch, Huyện Bố Trạch, Tỉnh Quảng Bình | F130: 0983386393 | G130: 3101014050 | H130: 2016-03-02 | I130: Sở Kế hoạch và Đầu tư tỉnh Quảng Bình | J130: Đặng Văn Nam | K130: Kinh doanh vận tải hàng hóa thông thường | L130: 2016-03-21 | M130: 2023-03-21 | P130: 1 | Q130: =COUNTIF(TBGSHT!$D$9:$D$3620,D130) -> 0
A131: =IF($D131<>"",SUBTOTAL(103,D$4:D131),"") -> 128 | C131: 1 | D131: Trần Văn Nam | E131: xã Đồng Trạch, huyện Bố Trạch, tỉnh Quảng Bình | F131: 0915468441 | G131: 29E8005926 | H131: 2016-03-22 | I131: UBND huyện Bố Trạch | J131: Trần Văn Nam | K131: Kinh doanh vận tải hành khách bằng xe ô tô theo hợp đồng | L131: 2016-03-25 | M131: 2023-03-25 | P131: 1 | Q131: =COUNTIF(TBGSHT!$D$9:$D$3620,D131) -> 0
A132: =IF($D132<>"",SUBTOTAL(103,D$4:D132),"") -> 129 | B132: 3100306935 | C132: 1 | D132: Công ty TNHH XDTH Bình An | E132: Minh Lợi, Phường Quảng Thọ, thị xã Ba Đồn, tỉnh Quảng Bình | F132: 0947252526 | G132: 3100306935 | H132: 2015-09-09 | I132: Sở Kế hoạch và Đầu tư tỉnh Quảng Bình | J132: Phạm Xuân Sơn | K132: Kinh doanh vận tải hàng hóa thông thường | L132: 2016-04-05 | M132: 2023-04-05 | P132: =COUNTIF($G$4:$G$370,G132) -> 1 | Q132: =COUNTIF(TBGSHT!$D$9:$D$3620,D132) -> 7
A133: =IF($D133<>"",SUBTOTAL(103,D$4:D133),"") -> 130 | B133: 3100366469 | C133: 1 | D133: Công ty TNHH Hùng Cường | E133: Xã Quảng Hưng, huyện Quảng Trạch, tỉnh Quảng Bình | F133: 0935788887 | G133: 3100366469 | H133: 2015-09-15 | I133: Sở Kế hoạch và Đầu tư tỉnh Quảng Bình | J133: Bùi Văn Quang | K133: Kinh doanh vận tải hàng hóa thông thường | L133: 2016-04-05 | M133: 2023-04-05 | P133: 1 | Q133: =COUNTIF(TBGSHT!$D$9:$D$3620,D133) -> 14
A134: =IF($D134<>"",SUBTOTAL(103,D$4:D134),"") -> 131 | B134: 3100975767 | C134: 1 | D134: Công ty TNHH Lê Hà Anh | E134: Minh Lợi, Phường Quảng Thọ, Thị xã Ba Đồn, Tỉnh Quảng Bình | G134: 3100975767 | H134: 2015-05-28 | I134: Sở Kế hoạch và Đầu tư tỉnh Quảng Bình | J134: Trần Đức Bảy | K134: Kinh doanh vận tải hàng hóa thông thường | L134: 2016-04-05 | M134: 2023-04-05 | P134: 1 | Q134: =COUNTIF(TBGSHT!$D$9:$D$3620,D134) -> 0
A135: =IF($D135<>"",SUBTOTAL(103,D$4:D135),"") -> 132 | B135: 3100376273 | C135: 1 | D135: Công ty TNHH TM&DV Hải Yến | E135: Thôn Tây Phú, xã Quang Phú, Thành phố Đồng Hới, Quảng Bình | F135: 0816863666 | G135: 3100376273 | H135: 2010-08-26 | I135: Sở Kế hoạch và Đầu tư tỉnh Quảng Bình | J135: Hoàng Huân | K135: Kinh doanh vận tải hành khách bằng xe ô tô theo hợp đồng | L135: 2016-04-06 | M135: 2023-04-06 | P135: 1 | Q135: =COUNTIF(TBGSHT!$D$9:$D$3620,D135) -> 0
A136: =IF($D136<>"",SUBTOTAL(103,D$4:D136),"") -> 133 | B136: 3100830384 | C136: 1 | D136: Công ty TNHH TMDV Thanh Đồng | E136: Thôn 16, Xã Lộc Ninh, thành phố Đồng Hới, tỉnh Quảng Bình | F136: 0945224466 | G136: 3100830384 | H136: 2015-10-27 | I136: Sở Kế hoạch và Đầu tư tỉnh Quảng Bình | J136: Lê Văn Thanh | K136: Kinh doanh vận tải hàng hóa thông thường | L136: 2016-04-13 | M136: 2023-04-13 | P136: 1 | Q136: =COUNTIF(TBGSHT!$D$9:$D$3620,D136) -> 0
A137: =IF($D137<>"",SUBTOTAL(103,D$4:D137),"") -> 134 | B137: 3100993170 | C137: 1 | D137: Công ty TNHH XDTH Tứ Phát | E137: Thôn Xuân Kiều, Quảng Xuân, Quảng Trạch, Quảng Bình | F137: 0983637141 | G137: 3100993170 | H137: 2015-01-26 | I137: Sở Kế hoạch và Đầu tư tỉnh Quảng Bình | J137: Trương Thị Thuý Hường | K137: Kinh doanh vận tải hàng hóa thông thường | L137: 2016-04-20 | M137: 2023-04-20 | P137: 1 | Q137: =COUNTIF(TBGSHT!$D$9:$D$3620,D137) -> 5
A138: =IF($D138<>"",SUBTOTAL(103,D$4:D138),"") -> 135 | B138: 3100961958 | C138: 1 | D138: CÔNG TY TNHH HOÀNG DƯƠNG HẢI | E138: TK2, TT.Đồng Lê, Huyện Tuyên Hoá, Tỉnh Quảng Bình | F138: 0976286594 | G138: 3100961958 | H138: 2013-07-29 | I138: Sở Kế hoạch và Đầu tư tỉnh Quảng Bình | J138: Hoàng Thị Phú | K138: Kinh doanh vận tải hàng hóa thông thường | L138: 2016-04-22 | M138: 2023-04-22 | P138: 1 | Q138: =COUNTIF(TBGSHT!$D$9:$D$3620,D138) -> 7
A139: =IF($D139<>"",SUBTOTAL(103,D$4:D139),"") -> 136 | B139: 3100979017 | C139: 1 | D139: CÔNG TY TNHH ĐOÀN KẾT PHÚ QUÝ | E139: Thôn Vân Bắc - Xã Quảng Hải - Thị Xã Ba Đồn - Quảng Bình. | F139: 0977935538 | G139: 3100979017 | H139: 2016-03-18 | I139: Sở Kế hoạch và Đầu tư tỉnh Quảng Bình | J139: Đoàn Anh Sơn | K139: Kinh doanh vận tải hàng hóa thông thường | L139: 2016-04-29 | M139: 2023-04-29 | P139: 1 | Q139: =COUNTIF(TBGSHT!$D$9:$D$3620,D139) -> 15
A140: =IF($D140<>"",SUBTOTAL(103,D$4:D140),"") -> 137 | B140: 3100407972 | C140: 1 | D140: Doanh nghiệp TN DVVT Thu Hà | E140: Minh Lợi, Phường Quảng Thọ, Thị xã Ba Đồn, Tỉnh Quảng Bình | F140: 0914750266 | G140: 3100407972 | H140: 2014-06-12 | I140: Sở Kế hoạch và Đầu tư tỉnh Quảng Bình | J140: Nguyễn Văn Hùng | K140: Kinh doanh vận tải hàng hóa thông thường | L140: 2016-05-20 | M140: 2023-05-20 | P140: 1 | Q140: =COUNTIF(TBGSHT!$D$9:$D$3620,D140) -> 1
A141: =IF($D141<>"",SUBTOTAL(103,D$4:D141),"") -> 138 | B141: 3101015463 | C141: 1 | D141: Công ty TNHH TMDV VT Chiến Thắng | E141: Thôn 1, Xã Bắc Trạch, Huyện Bố Trạch, Tỉnh Quảng Bình | F141: 0378628516 | G141: 3101015463 | H141: 2016-04-06 | I141: Sở Kế hoạch và Đầu tư tỉnh Quảng Bình | J141: Nguyễn Thị Hà | K141: Kinh doanh vận tải hàng hóa thông thường | L141: 2016-05-20 | M141: 2023-05-20 | P141: 1 | Q141: =COUNTIF(TBGSHT!$D$9:$D$3620,D141) -> 2
A142: =IF($D142<>"",SUBTOTAL(103,D$4:D142),"") -> 139 | B142: 3100359687 | C142: 1 | D142: Công ty TNHH TM&DV Hoàng Hương | E142: Khu phố 1, Phường Ba Đồn, Thị xã Ba Đồn, Tỉnh Quảng Bình | F142: 0916925045 | G142: 3100359687 | H142: 2014-04-24 | I142: Sở Kế hoạch và Đầu tư tỉnh Quảng Bình | J142: Nguyễn Văn Minh | K142: Kinh doanh vận tải hàng hóa thông thường | L142: 2016-05-25 | M142: 2023-05-25 | P142: 1 | Q142: =COUNTIF(TBGSHT!$D$9:$D$3620,D142) -> 1
A143: =IF($D143<>"",SUBTOTAL(103,D$4:D143),"") -> 140 | B143: 2902001069 | C143: 1 | D143: Công ty TNHH Lập Ngân | E143: Thôn Mã Lậu, xã Hoá Tiến, Huyện Minh Hoá, Quảng Bình | F143: 0935343911 | G143: 2902001069 | H143: 2008-05-13 | I143: Sở Kế hoạch và Đầu tư tỉnh Quảng Bình | J143: Trương Xuân Lập | K143: Kinh doanh vận tải hàng hóa thông thường | L143: 2016-05-26 | M143: 2023-05-26 | P143: 1 | Q143: =COUNTIF(TBGSHT!$D$9:$D$3620,D143) -> 2
A144: =IF($D144<>"",SUBTOTAL(103,D$4:D144),"") -> 141 | B144: 3101001090 | C144: 1 | D144: CÔNG TY TNHH VẬT LIỆU XD HÀ LIÊN | E144: TK8, Quy Đạt, Minh Hóa, Quảng Bình | F144: 0972722204 | G144: 3101001090 | H144: 2015-09-11 | I144: Sở Kế hoạch và Đầu tư tỉnh Quảng Bình | J144: Đinh Thanh Hà | K144: Kinh doanh vận tải hàng hóa thông thường | L144: 2016-05-30 | M144: 2023-05-30 | P144: 1 | Q144: =COUNTIF(TBGSHT!$D$9:$D$3620,D144) -> 5
A145: =IF($D145<>"",SUBTOTAL(103,D$4:D145),"") -> 142 | B145: 3000299917-001 | C145: 1 | D145: Công ty CP VT ô tô Hà Tĩnh - CN Quảng Bình | E145: 404 Phan Đình Phùng, Phường Bắc Lý, Thành Phố Đồng Hới, Tỉnh Quảng Bình | F145: 0978856888 | G145: 3000299917-001 | H145: 2016-04-14 | I145: Sở Kế hoạch và Đầu tư tỉnh Quảng Bình | J145: Phạm Anh Tuấn | K145: Kinh doanh vận tải hành khách bằng xe buýt | L145: 2016-06-01 | M145: 2023-06-01 | P145: 1 | Q145: =COUNTIF(TBGSHT!$D$9:$D$3620,D145) -> 10
A146: =IF($D146<>"",SUBTOTAL(103,D$4:D146),"") -> 143 | B146: 3100279784 | C146: 1 | D146: CÔNG TY CP SẢN XUẤT VL&XD COSEVCO I | E146: 334 Quang Trung, P.Ba Đồn, TX.Ba Đồn, Tỉnh Quảng Bình | F146: 0523514078 | G146: 3100279784 | H146: 2014-05-12 | I146: Sở Kế hoạch và Đầu tư tỉnh Quảng Bình | J146: Trần Văn Sơn | K146: Kinh doanh vận tải hàng hóa thông thường | L146: 2016-06-07 | M146: 2023-06-07 | P146: 1 | Q146: =COUNTIF(TBGSHT!$D$9:$D$3620,D146) -> 7
A147: =IF($D147<>"",SUBTOTAL(103,D$4:D147),"") -> 144 | B147: 4201601110-009 | C147: 1 | D147: CN Công ty Cổ phần Sun Taxi tại Quảng Bình | E147: Số 33 Đường Trần Kinh, Phường Đồng Phú, Thành phố Đồng Hới, Quảng Bình | F147: 0985898989 | G147: 4201601110-009 | H147: 2016-06-08 | I147: Sở Kế hoạch và Đầu tư tỉnh Quảng Bình | J147: Nguyễn Duy Hưng | K147: Kinh doanh vận tải hành khách bằng xe taxi | L147: 2016-06-23 | M147: 2023-06-23 | P147: 1 | Q147: =COUNTIF(TBGSHT!$D$9:$D$3620,D147) -> 139
A148: =IF($D148<>"",SUBTOTAL(103,D$4:D148),"") -> 145 | B148: 3100996742 | C148: 1 | D148: Công ty TNHH TMTH Tịnh Phát | E148: TDP Nam, P.Quảng Thuận, TX.Ba Đồn, Tỉnh Quảng Bình | F148: 0985787383 | G148: 3100996742 | H148: 2015-05-22 | I148: Sở Kế hoạch và Đầu tư tỉnh Quảng Bình | J148: Trần Văn Tịnh | K148: Kinh doanh vận tải hàng hóa thông thường | L148: 2016-06-23 | M148: 2023-06-23 | P148: 1 | Q148: =COUNTIF(TBGSHT!$D$9:$D$3620,D148) -> 5
A149: =IF($D149<>"",SUBTOTAL(103,D$4:D149),"") -> 146 | B149: 3100980830 | C149: 1 | D149: Công ty TNHH VTHK Hồng Hà | E149: KP2, Ba Đồn, Ba Đồn, Quảng Bình | F149: 0912944450 | G149: 3100980830 | H149: 2015-12-24 | I149: Sở Kế hoạch và Đầu tư tỉnh Quảng Bình | J149: Đinh Tiến Dũng | K149: Kinh doanh vận tải hàng hóa thông thường | L149: 2016-06-30 | M149: 2023-06-30 | P149: 1 | Q149: =COUNTIF(TBGSHT!$D$9:$D$3620,D149) -> 0
A150: =IF($D150<>"",SUBTOTAL(103,D$4:D150),"") -> 147 | B150: 3100295218 | C150: 1 | D150: Doanh nghiệp TNTM Mạnh Hương | E150: Tiểu khu 14, P.Bắc Lý, TP Đồng Hới, Tỉnh Quảng Bình | F150: 0532820063 | G150: 3100295218 | H150: 2014-06-24 | I150: Sở Kế hoạch và Đầu tư tỉnh Quảng Bình | J150: Võ Văn Luân | K150: Kinh doanh vận tải hàng hóa thông thường | L150: 2016-07-01 | M150: 2023-07-01 | P150: 1 | Q150: =COUNTIF(TBGSHT!$D$9:$D$3620,D150) -> 1
A151: =IF($D151<>"",SUBTOTAL(103,D$4:D151),"") -> 148 | B151: 3100927611 | C151: 1 | D151: Công ty Cổ phần công trình 792 | E151: Số 122 đường Hữu Nghị, P.Nam Lý, TP. Đồng Hới, Tỉnh Quảng Bình | F151: 0523825816 | G151: 3100927611 | H151: 2015-12-04 | I151: Sở Kế hoạch và Đầu tư tỉnh Quảng Bình | J151: Nguyễn Văn Đàn | K151: Kinh doanh vận tải hàng hóa thông thường | L151: 2016-07-05 | M151: 2023-07-05 | P151: 1 | Q151: =COUNTIF(TBGSHT!$D$9:$D$3620,D151) -> 1
A152: =IF($D152<>"",SUBTOTAL(103,D$4:D152),"") -> 149 | B152: 3100776578 | C152: 1 | D152: Công ty TNHH Lê Minh Phương | E152: Đường Lý Thánh Tông, Thôn 7, Xã Lộc Ninh, TP. Đồng Hới, Tỉnh Quảng Bình | F152: 0523822892 | G152: 3100776578 | H152: 2014-10-02 | I152: Sở Kế hoạch và Đầu tư tỉnh Quảng Bình | J152: Lê Hữu Thiện | K152: Kinh doanh vận tải hành khách theo hợp đồng; Kinh doanh vận tải hàng hoá thông thường, | L152: 2016-07-05 | M152: 2023-07-05 | P152: 1 | Q152: =COUNTIF(TBGSHT!$D$9:$D$3620,D152) -> 5
A153: =IF($D153<>"",SUBTOTAL(103,D$4:D153),"") -> 150 | B153: 3100491653 | C153: 1 | D153: Công ty TNHH Hoàng Lâm | E153: Khu Công nghiệp TB Đồng Hới, Phường Bắc Lý, Thành phố Đồng Hới, Tỉnh Quảng Bình | F153: 0983868616 | G153: 3100491653 | H153: 2015-12-03 | I153: Sở Kế hoạch và Đầu tư tỉnh Quảng Bình | J153: Trần Thị Tính | K153: Kinh doanh vận tải hàng hóa thông thường | L153: 2016-07-08 | M153: 2023-07-08 | P153: 1 | Q153: =COUNTIF(TBGSHT!$D$9:$D$3620,D153) -> 1
A154: =IF($D154<>"",SUBTOTAL(103,D$4:D154),"") -> 151 | B154: 3100994777 | C154: 1 | D154: Công ty TNHH Công nghiệp New Asia | E154: 182 đường F325, Phường Bắc Lý, Thành phố Đồng Hới, Quảng Bình | F154: 0523895778 | G154: 3100994777 | H154: 2015-10-02 | I154: Sở Kế hoạch và Đầu tư tỉnh Quảng Bình | J154: Lê Văn Xuân | K154: Kinh doanh vận tải hàng hóa thông thường | L154: 2016-07-14 | M154: 2023-07-14 | P154: 1 | Q154: =COUNTIF(TBGSHT!$D$9:$D$3620,D154) -> 2
A155: =IF($D155<>"",SUBTOTAL(103,D$4:D155),"") -> 152 | B155: 3101015992 | C155: 1 | D155: Công ty TNHH DVVT Đức Hùng | E155: Thôn4, Xã Hạ Trạch, Huyện Bố Trạch, Tỉnh Quảng Bình | F155: 0905559447 | G155: 3101015992 | H155: 2016-04-15 | I155: Sở Kế hoạch và Đầu tư tỉnh Quảng Bình | J155: Lê Quang Hải | K155: Kinh doanh vận tải hàng hóa thông thường | L155: 2016-07-15 | M155: 2023-07-15 | P155: 1 | Q155: =COUNTIF(TBGSHT!$D$9:$D$3620,D155) -> 2
A156: =IF($D156<>"",SUBTOTAL(103,D$4:D156),"") -> 153 | B156: 3100962091 | C156: 1 | D156: Công ty TNHH TM&XD Quang Phát | E156: Thôn 4, Xã Quảng Liên, Huyện Quảng Trạch, Tỉnh Quảng Bình | F156: 0985552026 | G156: 3100962091 | H156: 2014-12-26 | I156: Sở Kế hoạch và Đầu tư tỉnh Quảng Bình | J156: Nguyễn Tiến Quang | K156: Kinh doanh vận tải hàng hóa thông thường | L156: 2016-07-18 | M156: 2023-07-18 | P156: 1 | Q156: =COUNTIF(TBGSHT!$D$9:$D$3620,D156) -> 10
A157: =IF($D157<>"",SUBTOTAL(103,D$4:D157),"") -> 154 | B157: 3100351053 | C157: 1 | D157: Công ty TNHH TM&DV Gia Linh | E157: 306 Trần Hưng Đạo, Nam Lý, Đồng Hới, Quảng Bình | F157: 0523824876 | G157: 3100351053 | H157: 2016-06-27 | I157: Sở Kế hoạch và Đầu tư tỉnh Quảng Bình | J157: Đinh Ngọc Sơn | K157: Kinh doanh vận tải hàng hóa thông thường | L157: 2016-07-29 | M157: 2023-07-29 | P157: 1 | Q157: =COUNTIF(TBGSHT!$D$9:$D$3620,D157) -> 2
A158: =IF($D158<>"",SUBTOTAL(103,D$4:D158),"") -> 155 | B158: 3100382950 | C158: 1 | D158: Công ty TNHH TM&DVVT Trang Dung | E158: Tổ dân phố 9, P.Bắc Lý, TP. Đồng Hới, Tỉnh Quảng Bình | F158: 0523836320 | G158: 3100382950 | H158: 2016-05-04 | I158: Sở Kế hoạch và Đầu tư tỉnh Quảng Bình | J158: Trần Văn Chờ | K158: Kinh doanh vận tải hàng hóa thông thường | L158: 2016-08-10 | M158: 2023-08-10 | P158: 1 | Q158: =COUNTIF(TBGSHT!$D$9:$D$3620,D158) -> 5
A159: =IF($D159<>"",SUBTOTAL(103,D$4:D159),"") -> 156 | B159: 3101012832 | C159: 1 | D159: Công ty TNHH DVVT&TM Hùng Phát | E159: Khu phố 3, P.Ba Đồn, TX.Ba Đồn, Tỉnh Quảng Bình | F159: 0975372757 | G159: 3101012832 | H159: 2016-01-13 | I159: Sở Kế hoạch và Đầu tư tỉnh Quảng Bình | J159: Nguyễn Quốc Chương | K159: Kinh doanh vận tải hàng hóa thông thường | L159: 2016-08-30 | M159: 2023-08-30 | P159: 1 | Q159: =COUNTIF(TBGSHT!$D$9:$D$3620,D159) -> 2
A160: =IF($D160<>"",SUBTOTAL(103,D$4:D160),"") -> 157 | B160: 2902000958 | C160: 1 | D160: Công ty TNHH Thanh Vy | E160: TK2,P.Đồng Sơn,TP. Đồng Hới, Tỉnh Quảng Bình | F160: 0913376504 | G160: 2902000958 | H160: 2007-12-26 | I160: Sở Kế hoạch và Đầu tư tỉnh Quảng Bình | J160: Ngô Thị Vy | K160: Kinh doanh vận tải hàng hóa thông thường | L160: 2016-09-07 | M160: 2023-09-07 | P160: 1 | Q160: =COUNTIF(TBGSHT!$D$9:$D$3620,D160) -> 6
A161: =IF($D161<>"",SUBTOTAL(103,D$4:D161),"") -> 158 | B161: 3101019838 | C161: 1 | D161: Công ty TNHH TM&VT Xuân Thành | E161: Thôn 16, Xã Lộc Ninh, Thành phố Đồng Hới, Tỉnh Quảng Bình | F161: 0978555077 | G161: 3101019838 | H161: 2016-08-19 | I161: Sở Kế hoạch và Đầu tư tỉnh Quảng Bình | J161: Nguyễn Thị Phương | K161: Kinh doanh vận tải hàng hóa thông thường | L161: 2016-09-12 | M161: 2023-09-12 | P161: 1 | Q161: =COUNTIF(TBGSHT!$D$9:$D$3620,D161) -> 4
A162: =IF($D162<>"",SUBTOTAL(103,D$4:D162),"") -> 159 | B162: 3100494051 | C162: 1 | D162: Công ty TNHH VT&DL Quang Mạnh | E162: Thôn 1, Xã Lộc Ninh, TP. Đồng Hới, Tỉnh Quảng Bình | F162: 0905211880 | G162: 3100494051 | H162: 2016-09-08 | I162: Sở Kế hoạch và Đầu tư tỉnh Quảng Bình | J162: Nguyễn Văn Tân | K162: - Kinh doanh vận tải hành khách bằng xe ô tô theo hợp đồng | L162: 2016-09-16 | M162: 2023-09-16 | P162: 1 | Q162: =COUNTIF(TBGSHT!$D$9:$D$3620,D162) -> 6
A163: =IF($D163<>"",SUBTOTAL(103,D$4:D163),"") -> 160 | B163: 3100991367 | C163: 1 | D163: C.ty TNHH Áo Cưới Hoàng Gia | E163: TT.Kiến Giang, huyện Lệ Thuỷ, tỉnh Quảng Bình | F163: 0914303090 | G163: 3100991367 | H163: 2015-01-09 | I163: Sở Kế hoạch và Đầu tư tỉnh Quảng Bình | J163: Hoàng Quảng Thuỷ | K163: - Kinh doanh vận tải hành khách bằng xe ô tô theo hợp đồng | L163: 2016-09-23 | M163: 2023-09-23 | P163: 1 | Q163: =COUNTIF(TBGSHT!$D$9:$D$3620,D163) -> 0
A164: =IF($D164<>"",SUBTOTAL(103,D$4:D164),"") -> 161 | B164: 3100310547 | C164: 1 | D164: Công ty Cổ phần Tập đoàn Đặng Đại | E164: 137- Lý Thường Kiệt, P.Đồng Phú, TP. Đồng Hới, Tỉnh Quảng Bình (TKTcongtyDangDai@gmail.com) | F164: 0913386359 | G164: 3100310547 | H164: 2015-10-21 | I164: Sở Kế hoạch và Đầu tư tỉnh Quảng Bình | J164: Đặng Văn Diễn | K164: Kinh doanh vận tải hàng hóa thông thường | L164: 2016-09-23 | M164: 2023-09-23 | P164: 1 | Q164: =COUNTIF(TBGSHT!$D$9:$D$3620,D164) -> 15
A165: =IF($D165<>"",SUBTOTAL(103,D$4:D165),"") -> 162 | B165: 3100268133 | C165: 1 | D165: Công ty TNHH XDTH Đồng Hới | E165: 94 Hữu Nghị. P.Nam Lý, TP. Đồng Hới, Tỉnh Quảng Bình | F165: 02323824764 | G165: 3100268133 | H165: 2010-12-03 | I165: Sở Kế hoạch và Đầu tư tỉnh Quảng Bình | J165: Hoàng Văn Minh | K165: Kinh doanh vận tải hàng hóa thông thường | L165: 2016-09-23 | M165: 2023-09-23 | P165: 1 | Q165: =COUNTIF(TBGSHT!$D$9:$D$3620,D165) -> 8
A166: =IF($D166<>"",SUBTOTAL(103,D$4:D166),"") -> 163 | B166: 3100315337 | C166: 1 | D166: Công ty TNHH XDTH Hà Nam | E166: TK3, TT.Hoàn Lão, huyện Bố Trạch, tỉnh Quảng Bình | F166: 0982862764 | G166: 3100315337 | H166: 2016-04-15 | I166: Sở Kế hoạch và Đầu tư tỉnh Quảng Bình | J166: Trần Văn Nam | K166: Kinh doanh vận tải hàng hóa thông thường | L166: 2016-09-27 | M166: 2023-09-27 | P166: 1 | Q166: =COUNTIF(TBGSHT!$D$9:$D$3620,D166) -> 1
A167: =IF($D167<>"",SUBTOTAL(103,D$4:D167),"") -> 164 | B167: 3100348621 | C167: 1 | D167: Công ty Cổ phần Đông Nam Á | E167: Tiểu khu 4, P.Bắc Lý, TP. Đồng Hới, Tỉnh Quảng Bình | F167: 0912037733 | G167: 3100348621 | H167: 2012-09-19 | I167: Sở Kế hoạch và Đầu tư tỉnh Quảng Bình | J167: Nguyễn Văn Nga | K167: Kinh doanh vận tải hàng hóa thông thường | L167: 2016-09-27 | M167: 2023-09-27 | P167: 1 | Q167: =COUNTIF(TBGSHT!$D$9:$D$3620,D167) -> 2
A168: =IF($D168<>"",SUBTOTAL(103,D$4:D168),"") -> 165 | B168: 3100177623 | C168: 1 | D168: CÔNG TY CPXD TRƯỜNG XUÂN | E168: 88 Đường Hữu Nghị, P.Nam Lý, TP. Đồng Hới, Tỉnh Quảng Bình | F168: 02323843788 | G168: 3100177623 | H168: 2016-08-16 | I168: Sở Kế hoạch và Đầu tư tỉnh Quảng Bình | J168: Hoàng Minh Ngữ | K168: Kinh doanh vận tải hàng hóa thông thường | L168: 2016-09-30 | M168: 2023-09-30 | P168: 1 | Q168: =COUNTIF(TBGSHT!$D$9:$D$3620,D168) -> 0
A169: =IF($D169<>"",SUBTOTAL(103,D$4:D169),"") -> 166 | B169: 3100994713 | C169: 1 | D169: Công ty TNHH XDTH Lộc Phát | E169: Tổ dân phố 9, P.Bắc Lý, TP. Đồng Hới, Tỉnh Quảng Bình | F169: 0903342840 | G169: 3100994713 | H169: 2016-09-19 | I169: Sở Kế hoạch và Đầu tư tỉnh Quảng Bình | J169: Nguyễn Khánh Chương | K169: Kinh doanh vận tải hàng hóa thông thường | L169: 2016-10-12 | M169: 2023-10-12 | P169: 1 | Q169: =COUNTIF(TBGSHT!$D$9:$D$3620,D169) -> 2
A170: =IF($D170<>"",SUBTOTAL(103,D$4:D170),"") -> 167 | B170: 3100260857 | C170: 1 | D170: Công ty TNHH XDTH Tiên Phong | E170: Thuỷ Sơn, P.Quảng Long, TX.Ba Đồn, Tỉnh Quảng Bình | F170: 02323512148 | G170: 3100260857 | H170: 2016-03-01 | I170: Sở Kế hoạch và Đầu tư tỉnh Quảng Bình | J170: Phạm Văn Xướng | K170: Kinh doanh vận tải hàng hóa thông thường | L170: 2016-10-13 | M170: 2023-10-13 | P170: 1 | Q170: =COUNTIF(TBGSHT!$D$9:$D$3620,D170) -> 9
A171: =IF($D171<>"",SUBTOTAL(103,D$4:D171),"") -> 168 | B171: 3100105749 | C171: 1 | D171: Công ty xăng dầu Quảng Bình | E171: 118 đường Hữu Nghị, P.Nam Lý, TP. Đồng Hới, Tỉnh Quảng Bình | F171: 02323822384 | G171: 3100105749 | H171: 2015-06-05 | I171: Sở Kế hoạch và Đầu tư tỉnh Quảng Bình | J171: Lê Anh Hùng | K171: Kinh doanh vận tải hàng hóa thông thường | L171: 2016-10-18 | M171: 2023-10-18 | P171: 1 | Q171: =COUNTIF(TBGSHT!$D$9:$D$3620,D171) -> 0
A172: =IF($D172<>"",SUBTOTAL(103,D$4:D172),"") -> 169 | C172: 1 | D172: Nguyễn Ngọc Sơn | E172: xã Thuận Đức, TP. Đồng Hới, tỉnh Quảng Bình | F172: 0904942331 | G172: 29A8006381 | H172: 2016-10-20 | I172: UBND TP. Đồng Hới, tỉnh Quảng Bình | J172: Nguyễn Ngọc Sơn | K172: Kinh doanh vận tải hàng hóa thông thường | L172: 2016-10-25 | M172: 2023-10-25 | P172: 1 | Q172: =COUNTIF(TBGSHT!$D$9:$D$3620,D172) -> 1
A173: =IF($D173<>"",SUBTOTAL(103,D$4:D173),"") -> 170 | B173: 3100260695 | C173: 1 | D173: Công ty TNHH tư vấn XDTH Quảng Ninh | E173: Xã Võ Ninh, Huyện Quảng Ninh, Tỉnh Quảng Bình | F173: 0913295696 | G173: 3100260695 | H173: 2013-10-28 | I173: Sở Kế hoạch và Đầu tư tỉnh Quảng Bình | J173: Nguyễn Đình Tâm | K173: Kinh doanh vận tải hàng hóa thông thường | L173: 2016-10-28 | M173: 2023-10-28 | P173: 1 | Q173: =COUNTIF(TBGSHT!$D$9:$D$3620,D173) -> 0
A174: =IF($D174<>"",SUBTOTAL(103,D$4:D174),"") -> 171 | B174: 3101013755 | C174: 1 | D174: Công ty TNHH TMDV Hoàng Nguyên Khôi | E174: tổ DP 6, P.Đồng Sơn, TP. Đồng Hới, Tỉnh Quảng Bình | F174: 0904026555 | G174: 3101013755 | H174: 2016-02-24 | I174: Sở Kế hoạch và Đầu tư tỉnh Quảng Bình | J174: Hoàng Sơn Hải | K174: Kinh doanh vận tải khách du lịch bằng xe ô tô | L174: 2016-10-28 | M174: 2023-10-28 | P174: 1 | Q174: =COUNTIF(TBGSHT!$D$9:$D$3620,D174) -> 1
A175: =IF($D175<>"",SUBTOTAL(103,D$4:D175),"") -> 172 | B175: 3101001076 | C175: 1 | D175: Công ty TNHH Trường Phát Quảng Bình | E175: 90 Đường Lê Lợi, P.Hải Đình, TP. Đồng Hới, Tỉnh Quảng Bình | F175: 0915868777 | G175: 3101001076 | H175: 2015-09-14 | I175: Sở Kế hoạch và Đầu tư tỉnh Quảng Bình | J175: Nguyễn Xuân Thành | K175: Kinh doanh vận tải hàng hóa thông thường | L175: 2016-11-09 | M175: 2023-11-09 | P175: 1 | Q175: =COUNTIF(TBGSHT!$D$9:$D$3620,D175) -> 0
A176: =IF($D176<>"",SUBTOTAL(103,D$4:D176),"") -> 173 | B176: 3100981094 | C176: 1 | D176: Công ty TNHH XDTH Tài Nguyên | E176: Xã Thanh Trạch, Huyện Bố Trạch, Tỉnh Quảng Bình | F176: 0912201967 | G176: 3100981094 | H176: 2014-10-04 | I176: Sở Kế hoạch và Đầu tư tỉnh Quảng Bình | J176: Nguyễn Sỹ Nguyên | K176: Kinh doanh vận tải hàng hóa thông thường | L176: 2016-11-11 | M176: 2023-11-11 | P176: 1 | Q176: =COUNTIF(TBGSHT!$D$9:$D$3620,D176) -> 2
A177: =IF($D177<>"",SUBTOTAL(103,D$4:D177),"") -> 174 | B177: 3101016530 | C177: 1 | D177: Công ty TNHH Hoàng Thanh Hoài | E177: 13 Thái Phiên, P.Nam Lý, TP. Đồng Hới, Tỉnh Quảng Bình | F177: 0912037916 | G177: 3101016530 | H177: 2016-05-05 | I177: Sở Kế hoạch và Đầu tư tỉnh Quảng Bình | J177: Hoàng Thanh Hà | K177: Kinh doanh vận tải khách du lịch bằng xe ô tô | L177: 2016-11-22 | M177: 2023-11-22 | P177: 1 | Q177: =COUNTIF(TBGSHT!$D$9:$D$3620,D177) -> 5
A178: =IF($D178<>"",SUBTOTAL(103,D$4:D178),"") -> 175 | B178: 3101001284 | C178: 1 | D178: Công ty TNHH TMDL Phúc Thành | E178: Tổ dân phố 14, P.Nam Lý, TP. Đồng Hới, Tỉnh Quảng Bình | F178: 0915660333 | G178: 3101001284 | H178: 2015-09-22 | I178: Sở Kế hoạch và Đầu tư tỉnh Quảng Bình | J178: Nguyễn Văn Lành | K178: Kinh doanh vận tải hành khách bằng xe ô tô theo hợp đồng | L178: 2016-12-10 | M178: =IF(L178<>"",DATE(YEAR(L178)+7,MONTH(L178),DAY(L178)),"") -> 2023-12-10 | P178: 1 | Q178: =COUNTIF(TBGSHT!$D$9:$D$3620,D178) -> 1
A179: =IF($D179<>"",SUBTOTAL(103,D$4:D179),"") -> 176 | B179: 3100978567 | C179: 1 | D179: Công ty CP sản xuất VLXD Nguyên Anh | E179: Thôn Xuân Kiều, Xã Quảng Xuân, huyện Quảng Trạch, tỉnh Quảng Bình | F179: 0911365699 | G179: 3100978567 | H179: 2015-09-03 | I179: Sở Kế hoạch và Đầu tư tỉnh Quảng Bình | J179: Chu Hồng Phú | K179: Kinh doanh vận tải hàng hóa thông thường | L179: 2016-12-14 | M179: =IF(L179<>"",DATE(YEAR(L179)+7,MONTH(L179),DAY(L179)),"") -> 2023-12-14 | P179: 1 | Q179: =COUNTIF(TBGSHT!$D$9:$D$3620,D179) -> 10
A180: =IF($D180<>"",SUBTOTAL(103,D$4:D180),"") -> 177 | B180: 3100996083 | C180: 1 | D180: Công ty CP sản xuất VLXD Nguyên Anh II | E180: Thôn Chánh Hòa, Xã Nam Trạch, Huyện Bố Trạch, Tỉnh Quảng Bình | F180: 0911368666 | G180: 3100996083 | H180: 2016-09-26 | I180: Sở Kế hoạch và Đầu tư tỉnh Quảng Bình | J180: Lê Công Thi | K180: Kinh doanh vận tải hàng hóa thông thường | L180: 2016-12-16 | M180: =IF(L180<>"",DATE(YEAR(L180)+7,MONTH(L180),DAY(L180)),"") -> 2023-12-16 | P180: 1 | Q180: =COUNTIF(TBGSHT!$D$9:$D$3620,D180) -> 14
A181: =IF($D181<>"",SUBTOTAL(103,D$4:D181),"") -> 178 | B181: 3101001005 | C181: 1 | D181: Công ty TNHH Thuỷ sản và VT Thanh Hải | E181: Thôn Thượng Đức, Đức Trạch, Bố Trạch, Quảng Bình | F181: 0912457796 | G181: 3101001005 | H181: 2015-09-10 | I181: Sở Kế hoạch và Đầu tư tỉnh Quảng Bình | J181: Lê Thị Hới | K181: Kinh doanh vận tải hàng hóa thông thường | L181: 2016-12-22 | M181: =IF(L181<>"",DATE(YEAR(L181)+7,MONTH(L181),DAY(L181)),"") -> 2023-12-22 | P181: 1 | Q181: =COUNTIF(TBGSHT!$D$9:$D$3620,D181) -> 2
A182: =IF($D182<>"",SUBTOTAL(103,D$4:D182),"") -> 179 | B182: 3100777701 | C182: 3 | D182: Công ty TNHH VTDL Minh Hoàng | E182: Số 10, đường Đồng Hải, P.Hải Thành, TP, Đồng Hới, Tỉnh Quảng Bình | F182: 0965667778 | G182: 3100777701 | H182: 2011-08-30 | I182: Sở Kế hoạch và Đầu tư tỉnh Quảng Bình | J182: Nguyễn Văn Vân | K182: - Kinh doanh VTHK bằng xe ô tô theo hợp đồng và du lịch; - Kinh doanh vận tải hàng hóa thông thường. | L182: 2016-12-23 | M182: 2023-06-01 | P182: 1 | Q182: =COUNTIF(TBGSHT!$D$9:$D$3620,D182) -> 5
A183: =IF($D183<>"",SUBTOTAL(103,D$4:D183),"") -> 180 | C183: 3 | D183: HTX Vận tải Phú Thành Tuyên Minh | E183: Tiểu khu 3, Thị trấn Đồng Lê, huyện Tuyên Hoá | F183: 02323684273 | G183: 29B700028 | H183: 2012-11-02 | I183: UBND huyện Tuyên Hóa, tỉnh Quảng Bình | J183: Đinh Công Hành | K183: - Kinh doanh VTHK bằng xe ô tô theo tuyến cố định, hợp đồng và du lịch; - Kinh doanh vận tải hàng hóa thông thường. | L183: 2017-11-30 | M183: 2024-11-30 | P183: 1 | Q183: =COUNTIF(TBGSHT!$D$9:$D$3620,D183) -> 375
A184: =IF($D184<>"",SUBTOTAL(103,D$4:D184),"") -> 181 | B184: 3100260705 | C184: 1 | D184: Công ty TNHH MTV bê tông Hưng Vượng | E184: 80 Hữu Nghị, P.Nam Lý, TP, Đồng Hới, Tỉnh Quảng Bình | F184: 0913295469 | G184: 3100260705 | H184: 2015-12-02 | I184: Sở Kế hoạch và Đầu tư tỉnh Quảng Bình | J184: Mai Tuấn Nam | K184: Kinh doanh vận tải hàng hóa thông thường | L184: 2016-12-23 | M184: =IF(L184<>"",DATE(YEAR(L184)+7,MONTH(L184),DAY(L184)),"") -> 2023-12-23 | P184: 1 | Q184: =COUNTIF(TBGSHT!$D$9:$D$3620,D184) -> 0
A185: =IF($D185<>"",SUBTOTAL(103,D$4:D185),"") -> 182 | B185: 3100320136 | C185: 1 | D185: Công ty Cổ phân xây dựng điện VNECO12 | E185: 155 Lý Thường Kiệt,P.Đồng Phú, TP, Đồng Hới, Tỉnh Quảng Bình | F185: 0982882639 | G185: 3100320136 | H185: 2015-06-17 | I185: Sở Kế hoạch và Đầu tư tỉnh Quảng Bình | J185: Hoàng Văn Chu | K185: Kinh doanh vận tải hàng hóa thông thường | L185: 2017-01-04 | M185: 2024-01-04 | P185: 1 | Q185: =COUNTIF(TBGSHT!$D$9:$D$3620,D185) -> 0
A186: =IF($D186<>"",SUBTOTAL(103,D$4:D186),"") -> 183 | B186: 3100963169 | C186: 1 | D186: Công ty TNHH TMTH Hoàng Luật | E186: Xóm chợ, P.Quảng Thuận, TX.Ba Đồn, Tỉnh Quảng Bình | F186: 0912416777 | G186: 3100963169 | H186: 2015-12-24 | I186: Sở Kế hoạch và Đầu tư tỉnh Quảng Bình | J186: Hoàng Văn Lởi | K186: Kinh doanh vận tải hàng hóa thông thường | L186: 2017-01-05 | M186: 2024-01-05 | P186: 1 | Q186: =COUNTIF(TBGSHT!$D$9:$D$3620,D186) -> 4
A187: =IF($D187<>"",SUBTOTAL(103,D$4:D187),"") -> 184 | C187: 1 | D187: Trần Thế Mỵ | E187: Xã Quảng Phú, huyện Quảng Trạch, tỉnh Quảng Bình | F187: 01668788141 | G187: 29D800132 | H187: 2003-01-07 | I187: UBND huyện Quảng Trạch - Tỉnh Quảng Bình | J187: Trần Thế Mỵ | K187: Kinh doanh vận tải hàng hóa thông thường | L187: 2017-01-05 | M187: 2024-01-05 | P187: 1 | Q187: =COUNTIF(TBGSHT!$D$9:$D$3620,D187) -> 1
A188: =IF($D188<>"",SUBTOTAL(103,D$4:D188),"") -> 185 | B188: 3100994784 | C188: 1 | D188: Công ty TNHH TMDV Sơn Nam 6666 | E188: Tổ dân phố Dinh, P.Quảng Thuận, TX.Ba Đồn, Tỉnh Quảng Bình | F188: 0943652666 | G188: 3100994784 | H188: 2015-03-23 | I188: Sở Kế hoạch và Đầu tư tỉnh Quảng Bình | J188: Ngô Văn Nam | K188: Kinh doanh vận tải hàng hóa thông thường | L188: 2017-01-06 | M188: 2024-01-06 | P188: 1 | Q188: =COUNTIF(TBGSHT!$D$9:$D$3620,D188) -> 3
A189: =IF($D189<>"",SUBTOTAL(103,D$4:D189),"") -> 186 | B189: 3100666078 | C189: 1 | D189: Công ty TNHH TM Dương Sơn | E189: 53 Xuân Diệu, P.Nam Lý, TP. Đồng Hới, Tỉnh Quảng Bình | F189: 0934761333 | G189: 3100666078 | H189: 2012-09-19 | I189: Sở Kế hoạch và Đầu tư tỉnh Quảng Bình | J189: Dương Công Sơn | K189: Kinh doanh vận tải hàng hóa thông thường | L189: 2017-01-12 | M189: 2024-01-12 | P189: 1 | Q189: =COUNTIF(TBGSHT!$D$9:$D$3620,D189) -> 4
A190: =IF($D190<>"",SUBTOTAL(103,D$4:D190),"") -> 187 | B190: 3100382654 | C190: 1 | D190: Công ty TNHH ĐT&XD Hương Sắc | E190: 32A Nguyễn Hữu Cảnh, P.Hải Đình, TP. Đồng Hới, Tỉnh Quảng Bình | F190: 0912549859 | G190: 3100382654 | H190: 2016-05-20 | I190: Sở Kế hoạch và Đầu tư tỉnh Quảng Bình | J190: Hoàng Văn Trương | K190: Kinh doanh vận tải hàng hóa thông thường | L190: 2017-01-12 | M190: 2024-01-12 | P190: 1 | Q190: =COUNTIF(TBGSHT!$D$9:$D$3620,D190) -> 2
A191: =IF($D191<>"",SUBTOTAL(103,D$4:D191),"") -> 188 | B191: 3100137028 | C191: 1 | D191: Công ty CP Dược phẩm Quảng Bình | E191: 46 Hữu Nghị, P.Bắc Lý, TP. Đồng Hới, Tỉnh Quảng Bình | F191: 02323822475 | G191: 3100137028 | H191: 2016-07-05 | I191: Sở Kế hoạch và Đầu tư tỉnh Quảng Bình | J191: Phan Văn Ngọc | K191: Kinh doanh vận tải hàng hóa thông thường | L191: 2017-01-18 | M191: 2024-01-18 | P191: 1 | Q191: =COUNTIF(TBGSHT!$D$9:$D$3620,D191) -> 5
A192: =IF($D192<>"",SUBTOTAL(103,D$4:D192),"") -> 189 | B192: 3100765135 | C192: 1 | D192: Công ty TNHH Dung Tin | E192: 244 Trần Hưng Đạo, P.Nam Lý, TP. Đồng Hới, Tỉnh Quảng Bình | F192: 0912335585 | G192: 3100765135 | H192: 2012-04-25 | I192: Sở Kế hoạch và Đầu tư tỉnh Quảng Bình | J192: Nguyễn Thanh Tin | K192: Kinh doanh vận tải hàng hóa thông thường | L192: 2016-01-19 | M192: 2023-01-19 | P192: 1 | Q192: =COUNTIF(TBGSHT!$D$9:$D$3620,D192) -> 0
A193: =IF($D193<>"",SUBTOTAL(103,D$4:D193),"") -> 190 | B193: 3100991374 | C193: 1 | D193: Công ty TNHH TMDV Nguyên Quang Nhật | E193: 45 Trần Hưng Đạo, P.Đồng Phú, TP. Đồng Hới, Tỉnh Quảng Bình | F193: 0935282525 | G193: 3100991374 | H193: 2015-01-09 | I193: Sở Kế hoạch và Đầu tư tỉnh Quảng Bình | J193: Nguyễn Văn Quảng | K193: Kinh doanh vận tải hàng hóa thông thường | L193: 2017-01-23 | M193: 2024-01-23 | P193: 1 | Q193: =COUNTIF(TBGSHT!$D$9:$D$3620,D193) -> 0
A194: =IF($D194<>"",SUBTOTAL(103,D$4:D194),"") -> 191 | B194: 3100478109 | C194: 1 | D194: Công ty Cổ phần Hoàng Hương | E194: Thôn Phúc Kiều, Xã Quảng Tùng, Huyện Quảng Trạch, Tỉnh Quảng Bình | F194: 02323513395 | G194: 3100478109 | H194: 2013-06-13 | I194: Sở Kế hoạch và Đầu tư tỉnh Quảng Bình | J194: Nguyễn Thị Hằng | K194: Kinh doanh vận tải hàng hóa thông thường | L194: 2017-02-08 | M194: 2024-02-08 | P194: 1 | Q194: =COUNTIF(TBGSHT!$D$9:$D$3620,D194) -> 0
A195: =IF($D195<>"",SUBTOTAL(103,D$4:D195),"") -> 192 | B195: 3100270799 | C195: 1 | D195: Công ty TNHH Minh Trí | E195: 71 Lý Thánh Tông, xã Lộc Ninh, TP. Đồng Hới, tỉnh Quảng Bình | F195: 0913295470 | G195: 3100270799 | H195: 2015-03-16 | I195: Sở Kế hoạch và Đầu tư tỉnh Quảng Bình | J195: Ngô Đình Hà | K195: Kinh doanh vận tải hàng hóa thông thường | L195: 2017-02-13 | M195: 2024-02-13 | P195: 1 | Q195: =COUNTIF(TBGSHT!$D$9:$D$3620,D195) -> 17
A196: =IF($D196<>"",SUBTOTAL(103,D$4:D196),"") -> 193 | B196: 3100317359 | C196: 1 | D196: Công ty CP Tổng Công ty Tân Hoàn Cầu | E196: Khu công nghiệp Tây bắc Đồng Hới, P.Bắc Lý, TP. Đồng Hới, Tỉnh Quảng Bình | F196: 0232839623 | G196: 3100317359 | H196: 2015-02-26 | I196: Sở Kế hoạch và Đầu tư tỉnh Quảng Bình | J196: Mai Văn Huế | K196: Kinh doanh vận tải hàng hóa thông thường | L196: 2017-02-13 | M196: 2024-02-13 | P196: =COUNTIF($G$4:$G$370,G196) -> 1 | Q196: =COUNTIF(TBGSHT!$D$9:$D$3620,D196) -> 13
A197: =IF($D197<>"",SUBTOTAL(103,D$4:D197),"") -> 194 | B197: 3101020720 | D197: CÔNG TY TNHH VT ĐA PHƯƠNG THỨC MIỀN TRUNG | E197: 17/137 Hai Bà Trưng, Phường Đồng Phú, Thành Phố Đồng Hới, Tỉnh Quảng Bình | F197: 0905513903 | G197: 3101020720 | P197: 1 | Q197: =COUNTIF(TBGSHT!$D$9:$D$3620,D197) -> 1
A198: =IF($D198<>"",SUBTOTAL(103,D$4:D198),"") -> 195 | B198: 3100483042 | D198: Công ty CP ĐT&XD Tiến Đạt | E198: TDP 3, Phường Bắc Lý, Thành Phố Đồng Hới, Tỉnh Quảng Bình | F198: 02323211568 | G198: 3100483042 | P198: 1 | Q198: =COUNTIF(TBGSHT!$D$9:$D$3620,D198) -> 0
A199: =IF($D199<>"",SUBTOTAL(103,D$4:D199),"") -> 196 | D199: Dương Văn Hương | E199: Truyền Thông - Thị trấn NT Việt Trung, Huyện Bố Trạch, Tỉnh Quảng Bình | P199: 0 | Q199: =COUNTIF(TBGSHT!$D$9:$D$3620,D199) -> 0
A200: =IF($D200<>"",SUBTOTAL(103,D$4:D200),"") -> 197 | D200: Công ty TNHH Vân Cộn | E200: thôn Văn La, xã Lương Ninh, huyện Quảng Ninh, tỉnh Quảng Bình | P200: 0 | Q200: =COUNTIF(TBGSHT!$D$9:$D$3620,D200) -> 0
... 178 more rows

Sheet Phuluc (hidden)
A1: PHỤ LỤC
A2: Thống kê số lượng Phương tiện vận tải trên địa bàn
A3: (Kèm theo Công văn số /SGTVT-QLVT ngày /01/2017)
A5: TT | B5: Tên đơn vị kinh doanh vận tải | C5: Số lượng phương tiện kinh doanh vận tải (xe) | M5: Cộng | P5: Điện thoại | Q5: Đị chỉ
C6: Xe tuyến cố định | D6: Xe bus | E6: Xe Trung chuyển | F6: Xe Taxi | G6: Xe hợp đồng | H6: Xe du lịch | I6: Xe Container | J6: Xe đầu kéo | K6: Xe tải | L6: Xe Nội bộ | Y6: Số lượng | Z6: Số lượng phương tiện kinh doanh vận tải (xe) | AJ6: Cộng
Z7: Xe tuyến cố định | AA7: Xe bus | AB7: Xe Trung chuyển | AC7: Xe Taxi | AD7: Xe hợp đồng | AE7: Xe du lịch | AF7: Xe Container | AG7: Xe đầu kéo | AH7: Xe tải | AI7: Xe Nội bộ
A8: =IF($B8<>"",SUBTOTAL(103,B$8:B8),"") -> 1 | B8: HTX Vận tải Phú Thành Tuyên Minh | C8: =IFERROR(SUMPRODUCT((TBGSHT!$D$9:$D$4167=$B8)*(TBGSHT!$C$9:$C$4167=C$6)),"") -> 48 | D8: =IFERROR(SUMPRODUCT((TBGSHT!$D$9:$D$4167=$B8)*(TBGSHT!$C$9:$C$4167=D$6)),"") -> 0 | E8: =IFERROR(SUMPRODUCT((TBGSHT!$D$9:$D$4167=$B8)*(TBGSHT!$C$9:$C$4167=E$6)),"") -> 0 | F8: =IFERROR(SUMPRODUCT((TBGSHT!$D$9:$D$4167=$B8)*(TBGSHT!$C$9:$C$4167=F$6)),"") -> 0 | G8: =IFERROR(SUMPRODUCT((TBGSHT!$D$9:$D$4167=$B8)*(TBGSHT!$C$9:$C$4167=G$6)),"") -> 46 | H8: =IFERROR(SUMPRODUCT((TBGSHT!$D$9:$D$4167=$B8)*(TBGSHT!$C$9:$C$4167=H$6)),"") -> 29 | I8: =IFERROR(SUMPRODUCT((TBGSHT!$D$9:$D$4167=$B8)*(TBGSHT!$C$9:$C$4167=I$6)),"") -> 4 | J8: =IFERROR(SUMPRODUCT((TBGSHT!$D$9:$D$4167=$B8)*(TBGSHT!$C$9:$C$4167=J$6)),"") -> 31 | K8: =IFERROR(SUMPRODUCT((TBGSHT!$D$9:$D$4167=$B8)*(TBGSHT!$C$9:$C$4167=K$6)),"") -> 217 | L8: =IFERROR(SUMPRODUCT((TBGSHT!$D$9:$D$4167=$B8)*(TBGSHT!$C$9:$C$4167=L$6)),"") -> 0 | M8: =SUM(C8:K8) -> 375 | N8: =IFERROR(VLOOKUP($B8,Danhmuc!$D$4:$M$513,2,0),"") -> Tiểu khu 3, Thị trấn Đồng Lê, huyện Tuyên Hoá | O8: =IFERROR(VLOOKUP($B8,Danhmuc!$D$4:$M$513,3,0),"") -> 02323684273 | P8: =SUM(C8:H8) -> 123 | Q8: =SUM(I8:K8) -> 252 | U8: 5
A9: =IF($B9<>"",SUBTOTAL(103,B$8:B9),"") -> 2 | B9: HTX DV HTVT ĐƯỜNG BỘ ĐỒNG HỚI | C9: =IFERROR(SUMPRODUCT((TBGSHT!$D$9:$D$4167=$B9)*(TBGSHT!$C$9:$C$4167=C$6)),"") -> 0 | D9: =IFERROR(SUMPRODUCT((TBGSHT!$D$9:$D$4167=$B9)*(TBGSHT!$C$9:$C$4167=D$6)),"") -> 0 | E9: =IFERROR(SUMPRODUCT((TBGSHT!$D$9:$D$4167=$B9)*(TBGSHT!$C$9:$C$4167=E$6)),"") -> 0 | F9: =IFERROR(SUMPRODUCT((TBGSHT!$D$9:$D$4167=$B9)*(TBGSHT!$C$9:$C$4167=F$6)),"") -> 0 | G9: =IFERROR(SUMPRODUCT((TBGSHT!$D$9:$D$4167=$B9)*(TBGSHT!$C$9:$C$4167=G$6)),"") -> 52 | H9: =IFERROR(SUMPRODUCT((TBGSHT!$D$9:$D$4167=$B9)*(TBGSHT!$C$9:$C$4167=H$6)),"") -> 0 | I9: =IFERROR(SUMPRODUCT((TBGSHT!$D$9:$D$4167=$B9)*(TBGSHT!$C$9:$C$4167=I$6)),"") -> 17 | J9: =IFERROR(SUMPRODUCT((TBGSHT!$D$9:$D$4167=$B9)*(TBGSHT!$C$9:$C$4167=J$6)),"") -> 41 | K9: =IFERROR(SUMPRODUCT((TBGSHT!$D$9:$D$4167=$B9)*(TBGSHT!$C$9:$C$4167=K$6)),"") -> 250 | L9: =IFERROR(SUMPRODUCT((TBGSHT!$D$9:$D$4167=$B9)*(TBGSHT!$C$9:$C$4167=L$6)),"") -> 0 | M9: 360 | N9: =IFERROR(VLOOKUP($B9,Danhmuc!$D$4:$M$513,2,0),"") -> TDP2 Mỹ Cương, Phường Bắc Nghĩa, Thành Phố Đồng Hới, Tỉnh Quảng Bình | O9: =IFERROR(VLOOKUP($B9,Danhmuc!$D$4:$M$513,3,0),"") -> 0919406306 | P9: 52 | Q9: =SUM(I9:K9) -> 308 | U9: 1
A10: =IF($B10<>"",SUBTOTAL(103,B$8:B10),"") -> 3 | B10: HTX DỊCH VỤ HỖ TRỢ VT&HK HẢI ANH | C10: =IFERROR(SUMPRODUCT((TBGSHT!$D$9:$D$4167=$B10)*(TBGSHT!$C$9:$C$4167=C$6)),"") -> 0 | D10: =IFERROR(SUMPRODUCT((TBGSHT!$D$9:$D$4167=$B10)*(TBGSHT!$C$9:$C$4167=D$6)),"") -> 0 | E10: =IFERROR(SUMPRODUCT((TBGSHT!$D$9:$D$4167=$B10)*(TBGSHT!$C$9:$C$4167=E$6)),"") -> 0 | F10: =IFERROR(SUMPRODUCT((TBGSHT!$D$9:$D$4167=$B10)*(TBGSHT!$C$9:$C$4167=F$6)),"") -> 0 | G10: =IFERROR(SUMPRODUCT((TBGSHT!$D$9:$D$4167=$B10)*(TBGSHT!$C$9:$C$4167=G$6)),"") -> 0 | H10: =IFERROR(SUMPRODUCT((TBGSHT!$D$9:$D$4167=$B10)*(TBGSHT!$C$9:$C$4167=H$6)),"") -> 0 | I10: =IFERROR(SUMPRODUCT((TBGSHT!$D$9:$D$4167=$B10)*(TBGSHT!$C$9:$C$4167=I$6)),"") -> 0 | J10: =IFERROR(SUMPRODUCT((TBGSHT!$D$9:$D$4167=$B10)*(TBGSHT!$C$9:$C$4167=J$6)),"") -> 9 | K10: =IFERROR(SUMPRODUCT((TBGSHT!$D$9:$D$4167=$B10)*(TBGSHT!$C$9:$C$4167=K$6)),"") -> 333 | L10: =IFERROR(SUMPRODUCT((TBGSHT!$D$9:$D$4167=$B10)*(TBGSHT!$C$9:$C$4167=L$6)),"") -> 0 | M10: 342 | N10: =IFERROR(VLOOKUP($B10,Danhmuc!$D$4:$M$513,2,0),"") -> 42 Nguyễn Biểu, P. Đồng Phú, Đồng Hới, Quảng Bình | O10: =IFERROR(VLOOKUP($B10,Danhmuc!$D$4:$M$513,3,0),"") -> 0523817373 | P10: 0 | Q10: 342 | U10: 3
A11: =IF($B11<>"",SUBTOTAL(103,B$8:B11),"") -> 4 | B11: Công ty TNHH Mai Linh Quảng Bình | C11: =IFERROR(SUMPRODUCT((TBGSHT!$D$9:$D$4167=$B11)*(TBGSHT!$C$9:$C$4167=C$6)),"") -> 0 | D11: =IFERROR(SUMPRODUCT((TBGSHT!$D$9:$D$4167=$B11)*(TBGSHT!$C$9:$C$4167=D$6)),"") -> 0 | E11: =IFERROR(SUMPRODUCT((TBGSHT!$D$9:$D$4167=$B11)*(TBGSHT!$C$9:$C$4167=E$6)),"") -> 0 | F11: =IFERROR(SUMPRODUCT((TBGSHT!$D$9:$D$4167=$B11)*(TBGSHT!$C$9:$C$4167=F$6)),"") -> 149 | G11: =IFERROR(SUMPRODUCT((TBGSHT!$D$9:$D$4167=$B11)*(TBGSHT!$C$9:$C$4167=G$6)),"") -> 0 | H11: =IFERROR(SUMPRODUCT((TBGSHT!$D$9:$D$4167=$B11)*(TBGSHT!$C$9:$C$4167=H$6)),"") -> 0 | I11: =IFERROR(SUMPRODUCT((TBGSHT!$D$9:$D$4167=$B11)*(TBGSHT!$C$9:$C$4167=I$6)),"") -> 0 | J11: =IFERROR(SUMPRODUCT((TBGSHT!$D$9:$D$4167=$B11)*(TBGSHT!$C$9:$C$4167=J$6)),"") -> 0 | K11: =IFERROR(SUMPRODUCT((TBGSHT!$D$9:$D$4167=$B11)*(TBGSHT!$C$9:$C$4167=K$6)),"") -> 0 | L11: =IFERROR(SUMPRODUCT((TBGSHT!$D$9:$D$4167=$B11)*(TBGSHT!$C$9:$C$4167=L$6)),"") -> 0 | M11: 149 | N11: =IFERROR(VLOOKUP($B11,Danhmuc!$D$4:$M$513,2,0),"") -> 253A Đường Quang Trung - Phường Phú Hải - Thành phố Đồng Hới | O11: =IFERROR(VLOOKUP($B11,Danhmuc!$D$4:$M$513,3,0),"") -> 02323845888 | P11: 149 | Q11: 0 | U11: 1
A12: =IF($B12<>"",SUBTOTAL(103,B$8:B12),"") -> 5 | B12: CN Công ty Cổ phần Sun Taxi tại Quảng Bình | C12: =IFERROR(SUMPRODUCT((TBGSHT!$D$9:$D$4167=$B12)*(TBGSHT!$C$9:$C$4167=C$6)),"") -> 0 | D12: =IFERROR(SUMPRODUCT((TBGSHT!$D$9:$D$4167=$B12)*(TBGSHT!$C$9:$C$4167=D$6)),"") -> 0 | E12: =IFERROR(SUMPRODUCT((TBGSHT!$D$9:$D$4167=$B12)*(TBGSHT!$C$9:$C$4167=E$6)),"") -> 0 | F12: =IFERROR(SUMPRODUCT((TBGSHT!$D$9:$D$4167=$B12)*(TBGSHT!$C$9:$C$4167=F$6)),"") -> 139 | G12: =IFERROR(SUMPRODUCT((TBGSHT!$D$9:$D$4167=$B12)*(TBGSHT!$C$9:$C$4167=G$6)),"") -> 0 | H12: =IFERROR(SUMPRODUCT((TBGSHT!$D$9:$D$4167=$B12)*(TBGSHT!$C$9:$C$4167=H$6)),"") -> 0 | I12: =IFERROR(SUMPRODUCT((TBGSHT!$D$9:$D$4167=$B12)*(TBGSHT!$C$9:$C$4167=I$6)),"") -> 0 | J12: =IFERROR(SUMPRODUCT((TBGSHT!$D$9:$D$4167=$B12)*(TBGSHT!$C$9:$C$4167=J$6)),"") -> 0 | K12: =IFERROR(SUMPRODUCT((TBGSHT!$D$9:$D$4167=$B12)*(TBGSHT!$C$9:$C$4167=K$6)),"") -> 0 | L12: =IFERROR(SUMPRODUCT((TBGSHT!$D$9:$D$4167=$B12)*(TBGSHT!$C$9:$C$4167=L$6)),"") -> 0 | M12: 139 | N12: =IFERROR(VLOOKUP($B12,Danhmuc!$D$4:$M$513,2,0),"") -> Số 33 Đường Trần Kinh, Phường Đồng Phú, Thành phố Đồng Hới, Quảng Bình | O12: =IFERROR(VLOOKUP($B12,Danhmuc!$D$4:$M$513,3,0),"") -> 0985898989 | P12: 139 | Q12: 0 | U12: 1
A13: =IF($B13<>"",SUBTOTAL(103,B$8:B13),"") -> 6 | B13: Công ty Cổ phần vận tải Phú Hoàng | C13: =IFERROR(SUMPRODUCT((TBGSHT!$D$9:$D$4167=$B13)*(TBGSHT!$C$9:$C$4167=C$6)),"") -> 0 | D13: =IFERROR(SUMPRODUCT((TBGSHT!$D$9:$D$4167=$B13)*(TBGSHT!$C$9:$C$4167=D$6)),"") -> 0 | E13: =IFERROR(SUMPRODUCT((TBGSHT!$D$9:$D$4167=$B13)*(TBGSHT!$C$9:$C$4167=E$6)),"") -> 0 | F13: =IFERROR(SUMPRODUCT((TBGSHT!$D$9:$D$4167=$B13)*(TBGSHT!$C$9:$C$4167=F$6)),"") -> 120 | G13: =IFERROR(SUMPRODUCT((TBGSHT!$D$9:$D$4167=$B13)*(TBGSHT!$C$9:$C$4167=G$6)),"") -> 0 | H13: =IFERROR(SUMPRODUCT((TBGSHT!$D$9:$D$4167=$B13)*(TBGSHT!$C$9:$C$4167=H$6)),"") -> 0 | I13: =IFERROR(SUMPRODUCT((TBGSHT!$D$9:$D$4167=$B13)*(TBGSHT!$C$9:$C$4167=I$6)),"") -> 0 | J13: =IFERROR(SUMPRODUCT((TBGSHT!$D$9:$D$4167=$B13)*(TBGSHT!$C$9:$C$4167=J$6)),"") -> 0 | K13: =IFERROR(SUMPRODUCT((TBGSHT!$D$9:$D$4167=$B13)*(TBGSHT!$C$9:$C$4167=K$6)),"") -> 0 | L13: =IFERROR(SUMPRODUCT((TBGSHT!$D$9:$D$4167=$B13)*(TBGSHT!$C$9:$C$4167=L$6)),"") -> 0 | M13: 120 | N13: =IFERROR(VLOOKUP($B13,Danhmuc!$D$4:$M$513,2,0),"") -> Số 11 Trần Nguyên Hản, P. Đồng Phú, TP Đồng Hới, Tỉnh Quảng Bình | O13: =IFERROR(VLOOKUP($B13,Danhmuc!$D$4:$M$513,3,0),"") -> 0523845999 | P13: 120 | Q13: 0 | U13: 1
A14: =IF($B14<>"",SUBTOTAL(103,B$8:B14),"") -> 7 | B14: HTX ô tô vận tải HK Sông Gianh | C14: =IFERROR(SUMPRODUCT((TBGSHT!$D$9:$D$4167=$B14)*(TBGSHT!$C$9:$C$4167=C$6)),"") -> 70 | D14: =IFERROR(SUMPRODUCT((TBGSHT!$D$9:$D$4167=$B14)*(TBGSHT!$C$9:$C$4167=D$6)),"") -> 0 | E14: =IFERROR(SUMPRODUCT((TBGSHT!$D$9:$D$4167=$B14)*(TBGSHT!$C$9:$C$4167=E$6)),"") -> 0 | F14: =IFERROR(SUMPRODUCT((TBGSHT!$D$9:$D$4167=$B14)*(TBGSHT!$C$9:$C$4167=F$6)),"") -> 0 | G14: =IFERROR(SUMPRODUCT((TBGSHT!$D$9:$D$4167=$B14)*(TBGSHT!$C$9:$C$4167=G$6)),"") -> 7 | H14: =IFERROR(SUMPRODUCT((TBGSHT!$D$9:$D$4167=$B14)*(TBGSHT!$C$9:$C$4167=H$6)),"") -> 0 | I14: =IFERROR(SUMPRODUCT((TBGSHT!$D$9:$D$4167=$B14)*(TBGSHT!$C$9:$C$4167=I$6)),"") -> 0 | J14: =IFERROR(SUMPRODUCT((TBGSHT!$D$9:$D$4167=$B14)*(TBGSHT!$C$9:$C$4167=J$6)),"") -> 0 | K14: =IFERROR(SUMPRODUCT((TBGSHT!$D$9:$D$4167=$B14)*(TBGSHT!$C$9:$C$4167=K$6)),"") -> 1 | L14: =IFERROR(SUMPRODUCT((TBGSHT!$D$9:$D$4167=$B14)*(TBGSHT!$C$9:$C$4167=L$6)),"") -> 0 | M14: 78 | N14: =IFERROR(VLOOKUP($B14,Danhmuc!$D$4:$M$513,2,0),"") -> Tầng 2 Bến xe Ba Đồn, Phường Quảng Thọ, thị xã Ba Đồn, tỉnh Quảng Bình | O14: =IFERROR(VLOOKUP($B14,Danhmuc!$D$4:$M$513,3,0),"") -> 0523513160 | P14: 77 | Q14: 1 | U14: 1
A15: =IF($B15<>"",SUBTOTAL(103,B$8:B15),"") -> 8 | B15: Công ty TNHH Tập đoàn Sơn Hải | C15: =IFERROR(SUMPRODUCT((TBGSHT!$D$9:$D$4167=$B15)*(TBGSHT!$C$9:$C$4167=C$6)),"") -> 0 | D15: =IFERROR(SUMPRODUCT((TBGSHT!$D$9:$D$4167=$B15)*(TBGSHT!$C$9:$C$4167=D$6)),"") -> 0 | E15: =IFERROR(SUMPRODUCT((TBGSHT!$D$9:$D$4167=$B15)*(TBGSHT!$C$9:$C$4167=E$6)),"") -> 0 | F15: =IFERROR(SUMPRODUCT((TBGSHT!$D$9:$D$4167=$B15)*(TBGSHT!$C$9:$C$4167=F$6)),"") -> 0 | G15: =IFERROR(SUMPRODUCT((TBGSHT!$D$9:$D$4167=$B15)*(TBGSHT!$C$9:$C$4167=G$6)),"") -> 0 | H15: =IFERROR(SUMPRODUCT((TBGSHT!$D$9:$D$4167=$B15)*(TBGSHT!$C$9:$C$4167=H$6)),"") -> 0 | I15: =IFERROR(SUMPRODUCT((TBGSHT!$D$9:$D$4167=$B15)*(TBGSHT!$C$9:$C$4167=I$6)),"") -> 0 | J15: =IFERROR(SUMPRODUCT((TBGSHT!$D$9:$D$4167=$B15)*(TBGSHT!$C$9:$C$4167=J$6)),"") -> 2 | K15: =IFERROR(SUMPRODUCT((TBGSHT!$D$9:$D$4167=$B15)*(TBGSHT!$C$9:$C$4167=K$6)),"") -> 70 | L15: =IFERROR(SUMPRODUCT((TBGSHT!$D$9:$D$4167=$B15)*(TBGSHT!$C$9:$C$4167=L$6)),"") -> 0 | M15: 72 | N15: =IFERROR(VLOOKUP($B15,Danhmuc!$D$4:$M$513,2,0),"") -> 117 Hữu Nghị, Nam Lý, Đồng Hới, Quảng Bình | O15: =IFERROR(VLOOKUP($B15,Danhmuc!$D$4:$M$513,3,0),"") -> 0523825755 | P15: 0 | Q15: 72 | U15: 1
A16: =IF($B16<>"",SUBTOTAL(103,B$8:B16),"") -> 9 | B16: Công ty TNHH Vận tải TM Lê Nam | C16: =IFERROR(SUMPRODUCT((TBGSHT!$D$9:$D$4167=$B16)*(TBGSHT!$C$9:$C$4167=C$6)),"") -> 0 | D16: =IFERROR(SUMPRODUCT((TBGSHT!$D$9:$D$4167=$B16)*(TBGSHT!$C$9:$C$4167=D$6)),"") -> 0 | E16: =IFERROR(SUMPRODUCT((TBGSHT!$D$9:$D$4167=$B16)*(TBGSHT!$C$9:$C$4167=E$6)),"") -> 0 | F16: =IFERROR(SUMPRODUCT((TBGSHT!$D$9:$D$4167=$B16)*(TBGSHT!$C$9:$C$4167=F$6)),"") -> 0 | G16: =IFERROR(SUMPRODUCT((TBGSHT!$D$9:$D$4167=$B16)*(TBGSHT!$C$9:$C$4167=G$6)),"") -> 0 | H16: =IFERROR(SUMPRODUCT((TBGSHT!$D$9:$D$4167=$B16)*(TBGSHT!$C$9:$C$4167=H$6)),"") -> 0 | I16: =IFERROR(SUMPRODUCT((TBGSHT!$D$9:$D$4167=$B16)*(TBGSHT!$C$9:$C$4167=I$6)),"") -> 0 | J16: =IFERROR(SUMPRODUCT((TBGSHT!$D$9:$D$4167=$B16)*(TBGSHT!$C$9:$C$4167=J$6)),"") -> 53 | K16: =IFERROR(SUMPRODUCT((TBGSHT!$D$9:$D$4167=$B16)*(TBGSHT!$C$9:$C$4167=K$6)),"") -> 19 | L16: =IFERROR(SUMPRODUCT((TBGSHT!$D$9:$D$4167=$B16)*(TBGSHT!$C$9:$C$4167=L$6)),"") -> 0 | M16: 72 | N16: =IFERROR(VLOOKUP($B16,Danhmuc!$D$4:$M$513,2,0),"") -> 233 Hùng Vương, Ba Đồn, Ba Đồn, Quảng Bình | O16: =IFERROR(VLOOKUP($B16,Danhmuc!$D$4:$M$513,3,0),"") -> 0523516056 | P16: 0 | Q16: 72 | U16: 1
A17: =IF($B17<>"",SUBTOTAL(103,B$8:B17),"") -> 10 | B17: HTX ô tô VTHK Kiến Giang | C17: =IFERROR(SUMPRODUCT((TBGSHT!$D$9:$D$4167=$B17)*(TBGSHT!$C$9:$C$4167=C$6)),"") -> 30 | D17: =IFERROR(SUMPRODUCT((TBGSHT!$D$9:$D$4167=$B17)*(TBGSHT!$C$9:$C$4167=D$6)),"") -> 0 | E17: =IFERROR(SUMPRODUCT((TBGSHT!$D$9:$D$4167=$B17)*(TBGSHT!$C$9:$C$4167=E$6)),"") -> 0 | F17: =IFERROR(SUMPRODUCT((TBGSHT!$D$9:$D$4167=$B17)*(TBGSHT!$C$9:$C$4167=F$6)),"") -> 0 | G17: =IFERROR(SUMPRODUCT((TBGSHT!$D$9:$D$4167=$B17)*(TBGSHT!$C$9:$C$4167=G$6)),"") -> 10 | H17: =IFERROR(SUMPRODUCT((TBGSHT!$D$9:$D$4167=$B17)*(TBGSHT!$C$9:$C$4167=H$6)),"") -> 0 | I17: =IFERROR(SUMPRODUCT((TBGSHT!$D$9:$D$4167=$B17)*(TBGSHT!$C$9:$C$4167=I$6)),"") -> 0 | J17: =IFERROR(SUMPRODUCT((TBGSHT!$D$9:$D$4167=$B17)*(TBGSHT!$C$9:$C$4167=J$6)),"") -> 0 | K17: =IFERROR(SUMPRODUCT((TBGSHT!$D$9:$D$4167=$B17)*(TBGSHT!$C$9:$C$4167=K$6)),"") -> 22 | L17: =IFERROR(SUMPRODUCT((TBGSHT!$D$9:$D$4167=$B17)*(TBGSHT!$C$9:$C$4167=L$6)),"") -> 0 | M17: 62 | N17: =IFERROR(VLOOKUP($B17,Danhmuc!$D$4:$M$513,2,0),"") -> Quốc Lộ 1, Xã Cam Thủy, Huyện Lệ Thủy, Tỉnh Quảng Bình | O17: =IFERROR(VLOOKUP($B17,Danhmuc!$D$4:$M$513,3,0),"") -> 02323882966 | P17: 40 | Q17: 22 | U17: 2
A18: =IF($B18<>"",SUBTOTAL(103,B$8:B18),"") -> 11 | B18: Công ty CP Tập đoàn Trường Thịnh | C18: =IFERROR(SUMPRODUCT((TBGSHT!$D$9:$D$4167=$B18)*(TBGSHT!$C$9:$C$4167=C$6)),"") -> 0 | D18: =IFERROR(SUMPRODUCT((TBGSHT!$D$9:$D$4167=$B18)*(TBGSHT!$C$9:$C$4167=D$6)),"") -> 0 | E18: =IFERROR(SUMPRODUCT((TBGSHT!$D$9:$D$4167=$B18)*(TBGSHT!$C$9:$C$4167=E$6)),"") -> 0 | F18: =IFERROR(SUMPRODUCT((TBGSHT!$D$9:$D$4167=$B18)*(TBGSHT!$C$9:$C$4167=F$6)),"") -> 0 | G18: =IFERROR(SUMPRODUCT((TBGSHT!$D$9:$D$4167=$B18)*(TBGSHT!$C$9:$C$4167=G$6)),"") -> 0 | H18: =IFERROR(SUMPRODUCT((TBGSHT!$D$9:$D$4167=$B18)*(TBGSHT!$C$9:$C$4167=H$6)),"") -> 0 | I18: =IFERROR(SUMPRODUCT((TBGSHT!$D$9:$D$4167=$B18)*(TBGSHT!$C$9:$C$4167=I$6)),"") -> 0 | J18: =IFERROR(SUMPRODUCT((TBGSHT!$D$9:$D$4167=$B18)*(TBGSHT!$C$9:$C$4167=J$6)),"") -> 1 | K18: =IFERROR(SUMPRODUCT((TBGSHT!$D$9:$D$4167=$B18)*(TBGSHT!$C$9:$C$4167=K$6)),"") -> 52 | L18: =IFERROR(SUMPRODUCT((TBGSHT!$D$9:$D$4167=$B18)*(TBGSHT!$C$9:$C$4167=L$6)),"") -> 0 | M18: 53 | N18: =IFERROR(VLOOKUP($B18,Danhmuc!$D$4:$M$513,2,0),"") -> 50 Nguyễn Hữu Cảnh, Hải Đình, Đồng Hới, Quảng Bình | O18: =IFERROR(VLOOKUP($B18,Danhmuc!$D$4:$M$513,3,0),"") -> 02323820024 | P18: 0 | Q18: 53 | U18: 3
A19: =IF($B19<>"",SUBTOTAL(103,B$8:B19),"") -> 12 | B19: HTX ô tô vận tải Lý Hòa | C19: =IFERROR(SUMPRODUCT((TBGSHT!$D$9:$D$4167=$B19)*(TBGSHT!$C$9:$C$4167=C$6)),"") -> 31 | D19: =IFERROR(SUMPRODUCT((TBGSHT!$D$9:$D$4167=$B19)*(TBGSHT!$C$9:$C$4167=D$6)),"") -> 0 | E19: =IFERROR(SUMPRODUCT((TBGSHT!$D$9:$D$4167=$B19)*(TBGSHT!$C$9:$C$4167=E$6)),"") -> 0 | F19: =IFERROR(SUMPRODUCT((TBGSHT!$D$9:$D$4167=$B19)*(TBGSHT!$C$9:$C$4167=F$6)),"") -> 0 | G19: =IFERROR(SUMPRODUCT((TBGSHT!$D$9:$D$4167=$B19)*(TBGSHT!$C$9:$C$4167=G$6)),"") -> 18 | H19: =IFERROR(SUMPRODUCT((TBGSHT!$D$9:$D$4167=$B19)*(TBGSHT!$C$9:$C$4167=H$6)),"") -> 2 | I19: =IFERROR(SUMPRODUCT((TBGSHT!$D$9:$D$4167=$B19)*(TBGSHT!$C$9:$C$4167=I$6)),"") -> 0 | J19: =IFERROR(SUMPRODUCT((TBGSHT!$D$9:$D$4167=$B19)*(TBGSHT!$C$9:$C$4167=J$6)),"") -> 0 | K19: =IFERROR(SUMPRODUCT((TBGSHT!$D$9:$D$4167=$B19)*(TBGSHT!$C$9:$C$4167=K$6)),"") -> 0 | L19: =IFERROR(SUMPRODUCT((TBGSHT!$D$9:$D$4167=$B19)*(TBGSHT!$C$9:$C$4167=L$6)),"") -> 0 | M19: 51 | N19: =IFERROR(VLOOKUP($B19,Danhmuc!$D$4:$M$513,2,0),"") -> Hải Trạch, Xã Hải Trạch, Huyện Bố Trạch, Tỉnh Quảng Bình | O19: =IFERROR(VLOOKUP($B19,Danhmuc!$D$4:$M$513,3,0),"") -> 0935280207 | P19: 51 | Q19: 0 | U19: 3
A20: =IF($B20<>"",SUBTOTAL(103,B$8:B20),"") -> 13 | B20: HTX cơ khí & vận tải ô tô Huy Hoàng | C20: =IFERROR(SUMPRODUCT((TBGSHT!$D$9:$D$4167=$B20)*(TBGSHT!$C$9:$C$4167=C$6)),"") -> 33 | D20: =IFERROR(SUMPRODUCT((TBGSHT!$D$9:$D$4167=$B20)*(TBGSHT!$C$9:$C$4167=D$6)),"") -> 0 | E20: =IFERROR(SUMPRODUCT((TBGSHT!$D$9:$D$4167=$B20)*(TBGSHT!$C$9:$C$4167=E$6)),"") -> 0 | F20: =IFERROR(SUMPRODUCT((TBGSHT!$D$9:$D$4167=$B20)*(TBGSHT!$C$9:$C$4167=F$6)),"") -> 0 | G20: =IFERROR(SUMPRODUCT((TBGSHT!$D$9:$D$4167=$B20)*(TBGSHT!$C$9:$C$4167=G$6)),"") -> 9 | H20: =IFERROR(SUMPRODUCT((TBGSHT!$D$9:$D$4167=$B20)*(TBGSHT!$C$9:$C$4167=H$6)),"") -> 0 | I20: =IFERROR(SUMPRODUCT((TBGSHT!$D$9:$D$4167=$B20)*(TBGSHT!$C$9:$C$4167=I$6)),"") -> 0 | J20: =IFERROR(SUMPRODUCT((TBGSHT!$D$9:$D$4167=$B20)*(TBGSHT!$C$9:$C$4167=J$6)),"") -> 0 | K20: =IFERROR(SUMPRODUCT((TBGSHT!$D$9:$D$4167=$B20)*(TBGSHT!$C$9:$C$4167=K$6)),"") -> 3 | L20: =IFERROR(SUMPRODUCT((TBGSHT!$D$9:$D$4167=$B20)*(TBGSHT!$C$9:$C$4167=L$6)),"") -> 0 | M20: 45 | N20: =IFERROR(VLOOKUP($B20,Danhmuc!$D$4:$M$513,2,0),"") -> Số 08 Lý Thái Tổ, Phường Bắc Nghĩa, Thành Phố Đồng Hới, Tỉnh Quảng Bình | O20: =IFERROR(VLOOKUP($B20,Danhmuc!$D$4:$M$513,3,0),"") -> 02323828939 | P20: 42 | Q20: 3 | U20: 3
A21: =IF($B21<>"",SUBTOTAL(103,B$8:B21),"") -> 14 | B21: Công ty TNHH TM&VT Hoàng Chung | C21: =IFERROR(SUMPRODUCT((TBGSHT!$D$9:$D$4167=$B21)*(TBGSHT!$C$9:$C$4167=C$6)),"") -> 23 | D21: =IFERROR(SUMPRODUCT((TBGSHT!$D$9:$D$4167=$B21)*(TBGSHT!$C$9:$C$4167=D$6)),"") -> 0 | E21: =IFERROR(SUMPRODUCT((TBGSHT!$D$9:$D$4167=$B21)*(TBGSHT!$C$9:$C$4167=E$6)),"") -> 0 | F21: =IFERROR(SUMPRODUCT((TBGSHT!$D$9:$D$4167=$B21)*(TBGSHT!$C$9:$C$4167=F$6)),"") -> 0 | G21: =IFERROR(SUMPRODUCT((TBGSHT!$D$9:$D$4167=$B21)*(TBGSHT!$C$9:$C$4167=G$6)),"") -> 12 | H21: =IFERROR(SUMPRODUCT((TBGSHT!$D$9:$D$4167=$B21)*(TBGSHT!$C$9:$C$4167=H$6)),"") -> 2 | I21: =IFERROR(SUMPRODUCT((TBGSHT!$D$9:$D$4167=$B21)*(TBGSHT!$C$9:$C$4167=I$6)),"") -> 0 | J21: =IFERROR(SUMPRODUCT((TBGSHT!$D$9:$D$4167=$B21)*(TBGSHT!$C$9:$C$4167=J$6)),"") -> 0 | K21: =IFERROR(SUMPRODUCT((TBGSHT!$D$9:$D$4167=$B21)*(TBGSHT!$C$9:$C$4167=K$6)),"") -> 6 | L21: =IFERROR(SUMPRODUCT((TBGSHT!$D$9:$D$4167=$B21)*(TBGSHT!$C$9:$C$4167=L$6)),"") -> 0 | M21: 43 | N21: =IFERROR(VLOOKUP($B21,Danhmuc!$D$4:$M$513,2,0),"") -> Ngõ 29, Đường Lý Nam Đế, Phường Đồng Phú, Thành Phố Đồng Hới, Tỉnh Quảng Bình | O21: =IFERROR(VLOOKUP($B21,Danhmuc!$D$4:$M$513,3,0),"") -> 0988877360 | P21: 37 | Q21: 6 | U21: 3
A22: =IF($B22<>"",SUBTOTAL(103,B$8:B22),"") -> 15 | B22: Công ty TNHH Vương Thuận | C22: =IFERROR(SUMPRODUCT((TBGSHT!$D$9:$D$4167=$B22)*(TBGSHT!$C$9:$C$4167=C$6)),"") -> 0 | D22: =IFERROR(SUMPRODUCT((TBGSHT!$D$9:$D$4167=$B22)*(TBGSHT!$C$9:$C$4167=D$6)),"") -> 0 | E22: =IFERROR(SUMPRODUCT((TBGSHT!$D$9:$D$4167=$B22)*(TBGSHT!$C$9:$C$4167=E$6)),"") -> 0 | F22: =IFERROR(SUMPRODUCT((TBGSHT!$D$9:$D$4167=$B22)*(TBGSHT!$C$9:$C$4167=F$6)),"") -> 0 | G22: =IFERROR(SUMPRODUCT((TBGSHT!$D$9:$D$4167=$B22)*(TBGSHT!$C$9:$C$4167=G$6)),"") -> 0 | H22: =IFERROR(SUMPRODUCT((TBGSHT!$D$9:$D$4167=$B22)*(TBGSHT!$C$9:$C$4167=H$6)),"") -> 0 | I22: =IFERROR(SUMPRODUCT((TBGSHT!$D$9:$D$4167=$B22)*(TBGSHT!$C$9:$C$4167=I$6)),"") -> 16 | J22: =IFERROR(SUMPRODUCT((TBGSHT!$D$9:$D$4167=$B22)*(TBGSHT!$C$9:$C$4167=J$6)),"") -> 4 | K22: =IFERROR(SUMPRODUCT((TBGSHT!$D$9:$D$4167=$B22)*(TBGSHT!$C$9:$C$4167=K$6)),"") -> 21 | L22: =IFERROR(SUMPRODUCT((TBGSHT!$D$9:$D$4167=$B22)*(TBGSHT!$C$9:$C$4167=L$6)),"") -> 0 | M22: 41 | N22: =IFERROR(VLOOKUP($B22,Danhmuc!$D$4:$M$513,2,0),"") -> 33 Trần Quang Khải, TP Đồng Hới, Tỉnh Quảng Bình | O22: =IFERROR(VLOOKUP($B22,Danhmuc!$D$4:$M$513,3,0),"") -> 0523822115 | P22: 0 | Q22: 41 | U22: 2
A23: =IF($B23<>"",SUBTOTAL(103,B$8:B23),"") -> 16 | B23: Công ty TNHH Nguyên Lợi | C23: =IFERROR(SUMPRODUCT((TBGSHT!$D$9:$D$4167=$B23)*(TBGSHT!$C$9:$C$4167=C$6)),"") -> 0 | D23: =IFERROR(SUMPRODUCT((TBGSHT!$D$9:$D$4167=$B23)*(TBGSHT!$C$9:$C$4167=D$6)),"") -> 0 | E23: =IFERROR(SUMPRODUCT((TBGSHT!$D$9:$D$4167=$B23)*(TBGSHT!$C$9:$C$4167=E$6)),"") -> 0 | F23: =IFERROR(SUMPRODUCT((TBGSHT!$D$9:$D$4167=$B23)*(TBGSHT!$C$9:$C$4167=F$6)),"") -> 0 | G23: =IFERROR(SUMPRODUCT((TBGSHT!$D$9:$D$4167=$B23)*(TBGSHT!$C$9:$C$4167=G$6)),"") -> 0 | H23: =IFERROR(SUMPRODUCT((TBGSHT!$D$9:$D$4167=$B23)*(TBGSHT!$C$9:$C$4167=H$6)),"") -> 0 | I23: =IFERROR(SUMPRODUCT((TBGSHT!$D$9:$D$4167=$B23)*(TBGSHT!$C$9:$C$4167=I$6)),"") -> 0 | J23: =IFERROR(SUMPRODUCT((TBGSHT!$D$9:$D$4167=$B23)*(TBGSHT!$C$9:$C$4167=J$6)),"") -> 37 | K23: =IFERROR(SUMPRODUCT((TBGSHT!$D$9:$D$4167=$B23)*(TBGSHT!$C$9:$C$4167=K$6)),"") -> 4 | L23: =IFERROR(SUMPRODUCT((TBGSHT!$D$9:$D$4167=$B23)*(TBGSHT!$C$9:$C$4167=L$6)),"") -> 0 | M23: 41 | N23: =IFERROR(VLOOKUP($B23,Danhmuc!$D$4:$M$513,2,0),"") -> 16 Quang Trung, Phường Ba Đồn, Thị xã Ba Đồn, Tỉnh Quảng Bình | O23: =IFERROR(VLOOKUP($B23,Danhmuc!$D$4:$M$513,3,0),"") -> 0523512340 | P23: 0 | Q23: 41 | U23: 1
A24: =IF($B24<>"",SUBTOTAL(103,B$8:B24),"") -> 17 | B24: Công ty TNHH Cơ khí Hải Sơn | C24: =IFERROR(SUMPRODUCT((TBGSHT!$D$9:$D$4167=$B24)*(TBGSHT!$C$9:$C$4167=C$6)),"") -> 0 | D24: =IFERROR(SUMPRODUCT((TBGSHT!$D$9:$D$4167=$B24)*(TBGSHT!$C$9:$C$4167=D$6)),"") -> 0 | E24: =IFERROR(SUMPRODUCT((TBGSHT!$D$9:$D$4167=$B24)*(TBGSHT!$C$9:$C$4167=E$6)),"") -> 0 | F24: =IFERROR(SUMPRODUCT((TBGSHT!$D$9:$D$4167=$B24)*(TBGSHT!$C$9:$C$4167=F$6)),"") -> 0 | G24: =IFERROR(SUMPRODUCT((TBGSHT!$D$9:$D$4167=$B24)*(TBGSHT!$C$9:$C$4167=G$6)),"") -> 0 | H24: =IFERROR(SUMPRODUCT((TBGSHT!$D$9:$D$4167=$B24)*(TBGSHT!$C$9:$C$4167=H$6)),"") -> 0 | I24: =IFERROR(SUMPRODUCT((TBGSHT!$D$9:$D$4167=$B24)*(TBGSHT!$C$9:$C$4167=I$6)),"") -> 1 | J24: =IFERROR(SUMPRODUCT((TBGSHT!$D$9:$D$4167=$B24)*(TBGSHT!$C$9:$C$4167=J$6)),"") -> 35 | K24: =IFERROR(SUMPRODUCT((TBGSHT!$D$9:$D$4167=$B24)*(TBGSHT!$C$9:$C$4167=K$6)),"") -> 5 | L24: =IFERROR(SUMPRODUCT((TBGSHT!$D$9:$D$4167=$B24)*(TBGSHT!$C$9:$C$4167=L$6)),"") -> 0 | M24: 41 | N24: =IFERROR(VLOOKUP($B24,Danhmuc!$D$4:$M$513,2,0),"") -> Thôn 16, Xã Lộc Ninh, Thành phố Đồng Hới, Tỉnh Quảng Bình | O24: =IFERROR(VLOOKUP($B24,Danhmuc!$D$4:$M$513,3,0),"") -> 0977919333 | P24: 0 | Q24: 41 | U24: 4
A25: =IF($B25<>"",SUBTOTAL(103,B$8:B25),"") -> 18 | B25: HTX vận tải hành khách Lệ Ninh | C25: =IFERROR(SUMPRODUCT((TBGSHT!$D$9:$D$4167=$B25)*(TBGSHT!$C$9:$C$4167=C$6)),"") -> 20 | D25: =IFERROR(SUMPRODUCT((TBGSHT!$D$9:$D$4167=$B25)*(TBGSHT!$C$9:$C$4167=D$6)),"") -> 0 | E25: =IFERROR(SUMPRODUCT((TBGSHT!$D$9:$D$4167=$B25)*(TBGSHT!$C$9:$C$4167=E$6)),"") -> 0 | F25: =IFERROR(SUMPRODUCT((TBGSHT!$D$9:$D$4167=$B25)*(TBGSHT!$C$9:$C$4167=F$6)),"") -> 0 | G25: =IFERROR(SUMPRODUCT((TBGSHT!$D$9:$D$4167=$B25)*(TBGSHT!$C$9:$C$4167=G$6)),"") -> 16 | H25: =IFERROR(SUMPRODUCT((TBGSHT!$D$9:$D$4167=$B25)*(TBGSHT!$C$9:$C$4167=H$6)),"") -> 0 | I25: =IFERROR(SUMPRODUCT((TBGSHT!$D$9:$D$4167=$B25)*(TBGSHT!$C$9:$C$4167=I$6)),"") -> 0 | J25: =IFERROR(SUMPRODUCT((TBGSHT!$D$9:$D$4167=$B25)*(TBGSHT!$C$9:$C$4167=J$6)),"") -> 0 | K25: =IFERROR(SUMPRODUCT((TBGSHT!$D$9:$D$4167=$B25)*(TBGSHT!$C$9:$C$4167=K$6)),"") -> 0 | L25: =IFERROR(SUMPRODUCT((TBGSHT!$D$9:$D$4167=$B25)*(TBGSHT!$C$9:$C$4167=L$6)),"") -> 0 | M25: 36 | N25: =IFERROR(VLOOKUP($B25,Danhmuc!$D$4:$M$513,2,0),"") -> TTNT Lệ Ninh, Lệ Thuỷ, Quảng Bình | O25: =IFERROR(VLOOKUP($B25,Danhmuc!$D$4:$M$513,3,0),"") -> 02323996310 | P25: 36 | Q25: 0 | U25: 2
A26: =IF($B26<>"",SUBTOTAL(103,B$8:B26),"") -> 19 | B26: HTX DV hỗ trợ vận tải ô tô Nam Gianh | C26: =IFERROR(SUMPRODUCT((TBGSHT!$D$9:$D$4167=$B26)*(TBGSHT!$C$9:$C$4167=C$6)),"") -> 23 | D26: =IFERROR(SUMPRODUCT((TBGSHT!$D$9:$D$4167=$B26)*(TBGSHT!$C$9:$C$4167=D$6)),"") -> 0 | E26: =IFERROR(SUMPRODUCT((TBGSHT!$D$9:$D$4167=$B26)*(TBGSHT!$C$9:$C$4167=E$6)),"") -> 0 | F26: =IFERROR(SUMPRODUCT((TBGSHT!$D$9:$D$4167=$B26)*(TBGSHT!$C$9:$C$4167=F$6)),"") -> 0 | G26: =IFERROR(SUMPRODUCT((TBGSHT!$D$9:$D$4167=$B26)*(TBGSHT!$C$9:$C$4167=G$6)),"") -> 14 | H26: =IFERROR(SUMPRODUCT((TBGSHT!$D$9:$D$4167=$B26)*(TBGSHT!$C$9:$C$4167=H$6)),"") -> 0 | I26: =IFERROR(SUMPRODUCT((TBGSHT!$D$9:$D$4167=$B26)*(TBGSHT!$C$9:$C$4167=I$6)),"") -> 0 | J26: =IFERROR(SUMPRODUCT((TBGSHT!$D$9:$D$4167=$B26)*(TBGSHT!$C$9:$C$4167=J$6)),"") -> 0 | K26: =IFERROR(SUMPRODUCT((TBGSHT!$D$9:$D$4167=$B26)*(TBGSHT!$C$9:$C$4167=K$6)),"") -> 0 | L26: =IFERROR(SUMPRODUCT((TBGSHT!$D$9:$D$4167=$B26)*(TBGSHT!$C$9:$C$4167=L$6)),"") -> 0 | M26: 37 | N26: =IFERROR(VLOOKUP($B26,Danhmuc!$D$4:$M$513,2,0),"") -> Thôn Thanh Khê, xã Thanh Trạch, huyện Bố Trạch, tỉnh Quảng Bình | O26: =IFERROR(VLOOKUP($B26,Danhmuc!$D$4:$M$513,3,0),"") -> 0523866006 | P26: 37 | Q26: 0 | U26: 1
A27: =IF($B27<>"",SUBTOTAL(103,B$8:B27),"") -> 20 | B27: Công ty TNHH TMDV Hằng Dương | C27: =IFERROR(SUMPRODUCT((TBGSHT!$D$9:$D$4167=$B27)*(TBGSHT!$C$9:$C$4167=C$6)),"") -> 0 | D27: =IFERROR(SUMPRODUCT((TBGSHT!$D$9:$D$4167=$B27)*(TBGSHT!$C$9:$C$4167=D$6)),"") -> 0 | E27: =IFERROR(SUMPRODUCT((TBGSHT!$D$9:$D$4167=$B27)*(TBGSHT!$C$9:$C$4167=E$6)),"") -> 0 | F27: =IFERROR(SUMPRODUCT((TBGSHT!$D$9:$D$4167=$B27)*(TBGSHT!$C$9:$C$4167=F$6)),"") -> 0 | G27: =IFERROR(SUMPRODUCT((TBGSHT!$D$9:$D$4167=$B27)*(TBGSHT!$C$9:$C$4167=G$6)),"") -> 0 | H27: =IFERROR(SUMPRODUCT((TBGSHT!$D$9:$D$4167=$B27)*(TBGSHT!$C$9:$C$4167=H$6)),"") -> 0 | I27: =IFERROR(SUMPRODUCT((TBGSHT!$D$9:$D$4167=$B27)*(TBGSHT!$C$9:$C$4167=I$6)),"") -> 0 | J27: =IFERROR(SUMPRODUCT((TBGSHT!$D$9:$D$4167=$B27)*(TBGSHT!$C$9:$C$4167=J$6)),"") -> 32 | K27: =IFERROR(SUMPRODUCT((TBGSHT!$D$9:$D$4167=$B27)*(TBGSHT!$C$9:$C$4167=K$6)),"") -> 2 | L27: =IFERROR(SUMPRODUCT((TBGSHT!$D$9:$D$4167=$B27)*(TBGSHT!$C$9:$C$4167=L$6)),"") -> 0 | M27: 34 | N27: =IFERROR(VLOOKUP($B27,Danhmuc!$D$4:$M$513,2,0),"") -> QL1A Xóm Cồn, Phường Quảng Thuận, Thị xã Ba Đồn, Tỉnh Quảng Bình | O27: =IFERROR(VLOOKUP($B27,Danhmuc!$D$4:$M$513,3,0),"") -> 0523516688 | P27: 0 | Q27: 34 | U27: 2
A28: =IF($B28<>"",SUBTOTAL(103,B$8:B28),"") -> 21 | B28: Công ty CP Vận tải ô tô Quảng Bình | C28: =IFERROR(SUMPRODUCT((TBGSHT!$D$9:$D$4167=$B28)*(TBGSHT!$C$9:$C$4167=C$6)),"") -> 30 | D28: =IFERROR(SUMPRODUCT((TBGSHT!$D$9:$D$4167=$B28)*(TBGSHT!$C$9:$C$4167=D$6)),"") -> 0 | E28: =IFERROR(SUMPRODUCT((TBGSHT!$D$9:$D$4167=$B28)*(TBGSHT!$C$9:$C$4167=E$6)),"") -> 0 | F28: =IFERROR(SUMPRODUCT((TBGSHT!$D$9:$D$4167=$B28)*(TBGSHT!$C$9:$C$4167=F$6)),"") -> 0 | G28: =IFERROR(SUMPRODUCT((TBGSHT!$D$9:$D$4167=$B28)*(TBGSHT!$C$9:$C$4167=G$6)),"") -> 3 | H28: =IFERROR(SUMPRODUCT((TBGSHT!$D$9:$D$4167=$B28)*(TBGSHT!$C$9:$C$4167=H$6)),"") -> 0 | I28: =IFERROR(SUMPRODUCT((TBGSHT!$D$9:$D$4167=$B28)*(TBGSHT!$C$9:$C$4167=I$6)),"") -> 0 | J28: =IFERROR(SUMPRODUCT((TBGSHT!$D$9:$D$4167=$B28)*(TBGSHT!$C$9:$C$4167=J$6)),"") -> 0 | K28: =IFERROR(SUMPRODUCT((TBGSHT!$D$9:$D$4167=$B28)*(TBGSHT!$C$9:$C$4167=K$6)),"") -> 0 | L28: =IFERROR(SUMPRODUCT((TBGSHT!$D$9:$D$4167=$B28)*(TBGSHT!$C$9:$C$4167=L$6)),"") -> 0 | M28: 33 | N28: =IFERROR(VLOOKUP($B28,Danhmuc!$D$4:$M$513,2,0),"") -> 156 Đường Trần Hưng Đạo, P.Đồng Phú - TP Đồng Hới | O28: =IFERROR(VLOOKUP($B28,Danhmuc!$D$4:$M$513,3,0),"") -> 0912781342 | P28: 33 | Q28: 0 | U28: 2
A29: =IF($B29<>"",SUBTOTAL(103,B$8:B29),"") -> 22 | B29: Công ty CP ĐT&DL Phong Nha | C29: =IFERROR(SUMPRODUCT((TBGSHT!$D$9:$D$4167=$B29)*(TBGSHT!$C$9:$C$4167=C$6)),"") -> 0 | D29: =IFERROR(SUMPRODUCT((TBGSHT!$D$9:$D$4167=$B29)*(TBGSHT!$C$9:$C$4167=D$6)),"") -> 0 | E29: =IFERROR(SUMPRODUCT((TBGSHT!$D$9:$D$4167=$B29)*(TBGSHT!$C$9:$C$4167=E$6)),"") -> 0 | F29: =IFERROR(SUMPRODUCT((TBGSHT!$D$9:$D$4167=$B29)*(TBGSHT!$C$9:$C$4167=F$6)),"") -> 31 | G29: =IFERROR(SUMPRODUCT((TBGSHT!$D$9:$D$4167=$B29)*(TBGSHT!$C$9:$C$4167=G$6)),"") -> 0 | H29: =IFERROR(SUMPRODUCT((TBGSHT!$D$9:$D$4167=$B29)*(TBGSHT!$C$9:$C$4167=H$6)),"") -> 0 | I29: =IFERROR(SUMPRODUCT((TBGSHT!$D$9:$D$4167=$B29)*(TBGSHT!$C$9:$C$4167=I$6)),"") -> 0 | J29: =IFERROR(SUMPRODUCT((TBGSHT!$D$9:$D$4167=$B29)*(TBGSHT!$C$9:$C$4167=J$6)),"") -> 0 | K29: =IFERROR(SUMPRODUCT((TBGSHT!$D$9:$D$4167=$B29)*(TBGSHT!$C$9:$C$4167=K$6)),"") -> 0 | L29: =IFERROR(SUMPRODUCT((TBGSHT!$D$9:$D$4167=$B29)*(TBGSHT!$C$9:$C$4167=L$6)),"") -> 0 | M29: 31 | N29: =IFERROR(VLOOKUP($B29,Danhmuc!$D$4:$M$513,2,0),"") -> 05 Lê Văn Hưu, Phường Hải Đình, Thành Phố Đồng Hới, Tỉnh Quảng Bình | O29: =IFERROR(VLOOKUP($B29,Danhmuc!$D$4:$M$513,3,0),"") -> 02323812333 | P29: 31 | Q29: 0 | U29: 2
A30: =IF($B30<>"",SUBTOTAL(103,B$8:B30),"") -> 23 | B30: Công ty TNHH Thanh Phương | C30: =IFERROR(SUMPRODUCT((TBGSHT!$D$9:$D$4167=$B30)*(TBGSHT!$C$9:$C$4167=C$6)),"") -> 0 | D30: =IFERROR(SUMPRODUCT((TBGSHT!$D$9:$D$4167=$B30)*(TBGSHT!$C$9:$C$4167=D$6)),"") -> 0 | E30: =IFERROR(SUMPRODUCT((TBGSHT!$D$9:$D$4167=$B30)*(TBGSHT!$C$9:$C$4167=E$6)),"") -> 0 | F30: =IFERROR(SUMPRODUCT((TBGSHT!$D$9:$D$4167=$B30)*(TBGSHT!$C$9:$C$4167=F$6)),"") -> 0 | G30: =IFERROR(SUMPRODUCT((TBGSHT!$D$9:$D$4167=$B30)*(TBGSHT!$C$9:$C$4167=G$6)),"") -> 0 | H30: =IFERROR(SUMPRODUCT((TBGSHT!$D$9:$D$4167=$B30)*(TBGSHT!$C$9:$C$4167=H$6)),"") -> 0 | I30: =IFERROR(SUMPRODUCT((TBGSHT!$D$9:$D$4167=$B30)*(TBGSHT!$C$9:$C$4167=I$6)),"") -> 0 | J30: =IFERROR(SUMPRODUCT((TBGSHT!$D$9:$D$4167=$B30)*(TBGSHT!$C$9:$C$4167=J$6)),"") -> 20 | K30: =IFERROR(SUMPRODUCT((TBGSHT!$D$9:$D$4167=$B30)*(TBGSHT!$C$9:$C$4167=K$6)),"") -> 10 | L30: =IFERROR(SUMPRODUCT((TBGSHT!$D$9:$D$4167=$B30)*(TBGSHT!$C$9:$C$4167=L$6)),"") -> 0 | M30: 30 | N30: =IFERROR(VLOOKUP($B30,Danhmuc!$D$4:$M$513,2,0),"") -> TK2, Thị trấn Hoàn Lão, huyện Bố Trạch, tỉnh Quảng Bình | O30: =IFERROR(VLOOKUP($B30,Danhmuc!$D$4:$M$513,3,0),"") -> 0523611777 | P30: 0 | Q30: 30 | U30: 1
A31: =IF($B31<>"",SUBTOTAL(103,B$8:B31),"") -> 24 | B31: Hợp tác xã Vận tải Vĩnh Hồng | C31: =IFERROR(SUMPRODUCT((TBGSHT!$D$9:$D$4167=$B31)*(TBGSHT!$C$9:$C$4167=C$6)),"") -> 0 | D31: =IFERROR(SUMPRODUCT((TBGSHT!$D$9:$D$4167=$B31)*(TBGSHT!$C$9:$C$4167=D$6)),"") -> 0 | E31: =IFERROR(SUMPRODUCT((TBGSHT!$D$9:$D$4167=$B31)*(TBGSHT!$C$9:$C$4167=E$6)),"") -> 0 | F31: =IFERROR(SUMPRODUCT((TBGSHT!$D$9:$D$4167=$B31)*(TBGSHT!$C$9:$C$4167=F$6)),"") -> 0 | G31: =IFERROR(SUMPRODUCT((TBGSHT!$D$9:$D$4167=$B31)*(TBGSHT!$C$9:$C$4167=G$6)),"") -> 0 | H31: =IFERROR(SUMPRODUCT((TBGSHT!$D$9:$D$4167=$B31)*(TBGSHT!$C$9:$C$4167=H$6)),"") -> 0 | I31: =IFERROR(SUMPRODUCT((TBGSHT!$D$9:$D$4167=$B31)*(TBGSHT!$C$9:$C$4167=I$6)),"") -> 0 | J31: =IFERROR(SUMPRODUCT((TBGSHT!$D$9:$D$4167=$B31)*(TBGSHT!$C$9:$C$4167=J$6)),"") -> 0 | K31: =IFERROR(SUMPRODUCT((TBGSHT!$D$9:$D$4167=$B31)*(TBGSHT!$C$9:$C$4167=K$6)),"") -> 30 | L31: =IFERROR(SUMPRODUCT((TBGSHT!$D$9:$D$4167=$B31)*(TBGSHT!$C$9:$C$4167=L$6)),"") -> 0 | M31: 30 | N31: =IFERROR(VLOOKUP($B31,Danhmuc!$D$4:$M$513,2,0),"") -> Thôn Mỹ Đức, Xã Sơn Thủy, Huyện Lệ Thủy, Tỉnh Quảng Bình | O31: =IFERROR(VLOOKUP($B31,Danhmuc!$D$4:$M$513,3,0),"") -> 0918864751 | P31: 0 | Q31: 30 | U31: 1
A32: =IF($B32<>"",SUBTOTAL(103,B$8:B32),"") -> 25 | B32: Công ty TNHH TV-XD Tiến Phát | C32: =IFERROR(SUMPRODUCT((TBGSHT!$D$9:$D$4167=$B32)*(TBGSHT!$C$9:$C$4167=C$6)),"") -> 0 | D32: =IFERROR(SUMPRODUCT((TBGSHT!$D$9:$D$4167=$B32)*(TBGSHT!$C$9:$C$4167=D$6)),"") -> 0 | E32: =IFERROR(SUMPRODUCT((TBGSHT!$D$9:$D$4167=$B32)*(TBGSHT!$C$9:$C$4167=E$6)),"") -> 0 | F32: =IFERROR(SUMPRODUCT((TBGSHT!$D$9:$D$4167=$B32)*(TBGSHT!$C$9:$C$4167=F$6)),"") -> 0 | G32: =IFERROR(SUMPRODUCT((TBGSHT!$D$9:$D$4167=$B32)*(TBGSHT!$C$9:$C$4167=G$6)),"") -> 0 | H32: =IFERROR(SUMPRODUCT((TBGSHT!$D$9:$D$4167=$B32)*(TBGSHT!$C$9:$C$4167=H$6)),"") -> 0 | I32: =IFERROR(SUMPRODUCT((TBGSHT!$D$9:$D$4167=$B32)*(TBGSHT!$C$9:$C$4167=I$6)),"") -> 0 | J32: =IFERROR(SUMPRODUCT((TBGSHT!$D$9:$D$4167=$B32)*(TBGSHT!$C$9:$C$4167=J$6)),"") -> 0 | K32: =IFERROR(SUMPRODUCT((TBGSHT!$D$9:$D$4167=$B32)*(TBGSHT!$C$9:$C$4167=K$6)),"") -> 26 | L32: =IFERROR(SUMPRODUCT((TBGSHT!$D$9:$D$4167=$B32)*(TBGSHT!$C$9:$C$4167=L$6)),"") -> 0 | M32: 26 | N32: =IFERROR(VLOOKUP($B32,Danhmuc!$D$4:$M$513,2,0),"") -> 84 Đường Hữu Nghị, Phường Nam Lý, Thành Phố Đồng Hới, Tỉnh Quảng Bình | O32: =IFERROR(VLOOKUP($B32,Danhmuc!$D$4:$M$513,3,0),"") -> 02323822351 | P32: 0 | Q32: 26 | U32: 1
A33: =IF($B33<>"",SUBTOTAL(103,B$8:B33),"") -> 26 | B33: Công ty Cổ phần tập đoàn Tân Châu Phát | C33: =IFERROR(SUMPRODUCT((TBGSHT!$D$9:$D$4167=$B33)*(TBGSHT!$C$9:$C$4167=C$6)),"") -> 0 | D33: =IFERROR(SUMPRODUCT((TBGSHT!$D$9:$D$4167=$B33)*(TBGSHT!$C$9:$C$4167=D$6)),"") -> 0 | E33: =IFERROR(SUMPRODUCT((TBGSHT!$D$9:$D$4167=$B33)*(TBGSHT!$C$9:$C$4167=E$6)),"") -> 0 | F33: =IFERROR(SUMPRODUCT((TBGSHT!$D$9:$D$4167=$B33)*(TBGSHT!$C$9:$C$4167=F$6)),"") -> 0 | G33: =IFERROR(SUMPRODUCT((TBGSHT!$D$9:$D$4167=$B33)*(TBGSHT!$C$9:$C$4167=G$6)),"") -> 0 | H33: =IFERROR(SUMPRODUCT((TBGSHT!$D$9:$D$4167=$B33)*(TBGSHT!$C$9:$C$4167=H$6)),"") -> 0 | I33: =IFERROR(SUMPRODUCT((TBGSHT!$D$9:$D$4167=$B33)*(TBGSHT!$C$9:$C$4167=I$6)),"") -> 0 | J33: =IFERROR(SUMPRODUCT((TBGSHT!$D$9:$D$4167=$B33)*(TBGSHT!$C$9:$C$4167=J$6)),"") -> 7 | K33: =IFERROR(SUMPRODUCT((TBGSHT!$D$9:$D$4167=$B33)*(TBGSHT!$C$9:$C$4167=K$6)),"") -> 18 | L33: =IFERROR(SUMPRODUCT((TBGSHT!$D$9:$D$4167=$B33)*(TBGSHT!$C$9:$C$4167=L$6)),"") -> 0 | M33: 25 | N33: =IFERROR(VLOOKUP($B33,Danhmuc!$D$4:$M$513,2,0),"") -> TDP 8, Phường Bắc Nghĩa, Thành Phố Đồng Hới, Tỉnh Quảng Bình | O33: =IFERROR(VLOOKUP($B33,Danhmuc!$D$4:$M$513,3,0),"") -> 0903509788 | P33: 0 | Q33: 25 | U33: 2
A34: =IF($B34<>"",SUBTOTAL(103,B$8:B34),"") -> 27 | B34: CÔNG TY TNHH TMDV VẬN TẢI HOÀNG HUẤN | C34: =IFERROR(SUMPRODUCT((TBGSHT!$D$9:$D$4167=$B34)*(TBGSHT!$C$9:$C$4167=C$6)),"") -> 0 | D34: =IFERROR(SUMPRODUCT((TBGSHT!$D$9:$D$4167=$B34)*(TBGSHT!$C$9:$C$4167=D$6)),"") -> 0 | E34: =IFERROR(SUMPRODUCT((TBGSHT!$D$9:$D$4167=$B34)*(TBGSHT!$C$9:$C$4167=E$6)),"") -> 0 | F34: =IFERROR(SUMPRODUCT((TBGSHT!$D$9:$D$4167=$B34)*(TBGSHT!$C$9:$C$4167=F$6)),"") -> 0 | G34: =IFERROR(SUMPRODUCT((TBGSHT!$D$9:$D$4167=$B34)*(TBGSHT!$C$9:$C$4167=G$6)),"") -> 0 | H34: =IFERROR(SUMPRODUCT((TBGSHT!$D$9:$D$4167=$B34)*(TBGSHT!$C$9:$C$4167=H$6)),"") -> 0 | I34: =IFERROR(SUMPRODUCT((TBGSHT!$D$9:$D$4167=$B34)*(TBGSHT!$C$9:$C$4167=I$6)),"") -> 4 | J34: =IFERROR(SUMPRODUCT((TBGSHT!$D$9:$D$4167=$B34)*(TBGSHT!$C$9:$C$4167=J$6)),"") -> 1 | K34: =IFERROR(SUMPRODUCT((TBGSHT!$D$9:$D$4167=$B34)*(TBGSHT!$C$9:$C$4167=K$6)),"") -> 18 | L34: =IFERROR(SUMPRODUCT((TBGSHT!$D$9:$D$4167=$B34)*(TBGSHT!$C$9:$C$4167=L$6)),"") -> 0 | M34: 23 | N34: =IFERROR(VLOOKUP($B34,Danhmuc!$D$4:$M$513,2,0),"") -> Thôn 16, Xã Lộc Ninh, Thành phố Đồng Hới, Tỉnh Quảng Bình | O34: =IFERROR(VLOOKUP($B34,Danhmuc!$D$4:$M$513,3,0),"") -> 0523852700 | P34: 0 | Q34: 23 | U34: 1
A35: =IF($B35<>"",SUBTOTAL(103,B$8:B35),"") -> 28 | B35: Công ty TNHH Hoàng Huy Toàn | C35: =IFERROR(SUMPRODUCT((TBGSHT!$D$9:$D$4167=$B35)*(TBGSHT!$C$9:$C$4167=C$6)),"") -> 0 | D35: =IFERROR(SUMPRODUCT((TBGSHT!$D$9:$D$4167=$B35)*(TBGSHT!$C$9:$C$4167=D$6)),"") -> 0 | E35: =IFERROR(SUMPRODUCT((TBGSHT!$D$9:$D$4167=$B35)*(TBGSHT!$C$9:$C$4167=E$6)),"") -> 0 | F35: =IFERROR(SUMPRODUCT((TBGSHT!$D$9:$D$4167=$B35)*(TBGSHT!$C$9:$C$4167=F$6)),"") -> 0 | G35: =IFERROR(SUMPRODUCT((TBGSHT!$D$9:$D$4167=$B35)*(TBGSHT!$C$9:$C$4167=G$6)),"") -> 0 | H35: =IFERROR(SUMPRODUCT((TBGSHT!$D$9:$D$4167=$B35)*(TBGSHT!$C$9:$C$4167=H$6)),"") -> 0 | I35: =IFERROR(SUMPRODUCT((TBGSHT!$D$9:$D$4167=$B35)*(TBGSHT!$C$9:$C$4167=I$6)),"") -> 0 | J35: =IFERROR(SUMPRODUCT((TBGSHT!$D$9:$D$4167=$B35)*(TBGSHT!$C$9:$C$4167=J$6)),"") -> 0 | K35: =IFERROR(SUMPRODUCT((TBGSHT!$D$9:$D$4167=$B35)*(TBGSHT!$C$9:$C$4167=K$6)),"") -> 20 | L35: =IFERROR(SUMPRODUCT((TBGSHT!$D$9:$D$4167=$B35)*(TBGSHT!$C$9:$C$4167=L$6)),"") -> 0 | M35: 20 | N35: =IFERROR(VLOOKUP($B35,Danhmuc!$D$4:$M$513,2,0),"") -> Thôn 6, Xã Lộc Ninh, Thành Phố Đồng Hới, Tỉnh Quảng Bình | O35: =IFERROR(VLOOKUP($B35,Danhmuc!$D$4:$M$513,3,0),"") -> 0 | P35: 0 | Q35: 20 | U35: 1
A36: =IF($B36<>"",SUBTOTAL(103,B$8:B36),"") -> 29 | B36: Chi nhánh HTX Hòa Bình Xanh tại Quảng Bình | C36: =IFERROR(SUMPRODUCT((TBGSHT!$D$9:$D$4167=$B36)*(TBGSHT!$C$9:$C$4167=C$6)),"") -> 0 | D36: =IFERROR(SUMPRODUCT((TBGSHT!$D$9:$D$4167=$B36)*(TBGSHT!$C$9:$C$4167=D$6)),"") -> 0 | E36: =IFERROR(SUMPRODUCT((TBGSHT!$D$9:$D$4167=$B36)*(TBGSHT!$C$9:$C$4167=E$6)),"") -> 0 | F36: =IFERROR(SUMPRODUCT((TBGSHT!$D$9:$D$4167=$B36)*(TBGSHT!$C$9:$C$4167=F$6)),"") -> 21 | G36: =IFERROR(SUMPRODUCT((TBGSHT!$D$9:$D$4167=$B36)*(TBGSHT!$C$9:$C$4167=G$6)),"") -> 0 | H36: =IFERROR(SUMPRODUCT((TBGSHT!$D$9:$D$4167=$B36)*(TBGSHT!$C$9:$C$4167=H$6)),"") -> 0 | I36: =IFERROR(SUMPRODUCT((TBGSHT!$D$9:$D$4167=$B36)*(TBGSHT!$C$9:$C$4167=I$6)),"") -> 0 | J36: =IFERROR(SUMPRODUCT((TBGSHT!$D$9:$D$4167=$B36)*(TBGSHT!$C$9:$C$4167=J$6)),"") -> 0 | K36: =IFERROR(SUMPRODUCT((TBGSHT!$D$9:$D$4167=$B36)*(TBGSHT!$C$9:$C$4167=K$6)),"") -> 0 | L36: =IFERROR(SUMPRODUCT((TBGSHT!$D$9:$D$4167=$B36)*(TBGSHT!$C$9:$C$4167=L$6)),"") -> 0 | M36: 21 | N36: =IFERROR(VLOOKUP($B36,Danhmuc!$D$4:$M$513,2,0),"") -> 253A Quang Trung, Phường Phú Hải, Thành Phố Đồng Hới, Tỉnh Quảng Bình | O36: =IFERROR(VLOOKUP($B36,Danhmuc!$D$4:$M$513,3,0),"") -> 02323845888 | P36: 21 | Q36: 0 | U36: 1
A37: =IF($B37<>"",SUBTOTAL(103,B$8:B37),"") -> 30 | B37: Công ty TNHH TMVT Bình Hường | C37: =IFERROR(SUMPRODUCT((TBGSHT!$D$9:$D$4167=$B37)*(TBGSHT!$C$9:$C$4167=C$6)),"") -> 0 | D37: =IFERROR(SUMPRODUCT((TBGSHT!$D$9:$D$4167=$B37)*(TBGSHT!$C$9:$C$4167=D$6)),"") -> 0 | E37: =IFERROR(SUMPRODUCT((TBGSHT!$D$9:$D$4167=$B37)*(TBGSHT!$C$9:$C$4167=E$6)),"") -> 0 | F37: =IFERROR(SUMPRODUCT((TBGSHT!$D$9:$D$4167=$B37)*(TBGSHT!$C$9:$C$4167=F$6)),"") -> 0 | G37: =IFERROR(SUMPRODUCT((TBGSHT!$D$9:$D$4167=$B37)*(TBGSHT!$C$9:$C$4167=G$6)),"") -> 0 | H37: =IFERROR(SUMPRODUCT((TBGSHT!$D$9:$D$4167=$B37)*(TBGSHT!$C$9:$C$4167=H$6)),"") -> 0 | I37: =IFERROR(SUMPRODUCT((TBGSHT!$D$9:$D$4167=$B37)*(TBGSHT!$C$9:$C$4167=I$6)),"") -> 0 | J37: =IFERROR(SUMPRODUCT((TBGSHT!$D$9:$D$4167=$B37)*(TBGSHT!$C$9:$C$4167=J$6)),"") -> 7 | K37: =IFERROR(SUMPRODUCT((TBGSHT!$D$9:$D$4167=$B37)*(TBGSHT!$C$9:$C$4167=K$6)),"") -> 12 | L37: =IFERROR(SUMPRODUCT((TBGSHT!$D$9:$D$4167=$B37)*(TBGSHT!$C$9:$C$4167=L$6)),"") -> 0 | M37: 19 | N37: =IFERROR(VLOOKUP($B37,Danhmuc!$D$4:$M$513,2,0),"") -> Thôn Áng Sơn, Xã Vạn Ninh, Huyện Quảng Ninh, Tỉnh Quảng Bình | O37: =IFERROR(VLOOKUP($B37,Danhmuc!$D$4:$M$513,3,0),"") -> 0935687199 | P37: 0 | Q37: 19 | U37: 1
A38: =IF($B38<>"",SUBTOTAL(103,B$8:B38),"") -> 31 | B38: Công ty TNHH TM&DV Phước Linh | C38: =IFERROR(SUMPRODUCT((TBGSHT!$D$9:$D$4167=$B38)*(TBGSHT!$C$9:$C$4167=C$6)),"") -> 0 | D38: =IFERROR(SUMPRODUCT((TBGSHT!$D$9:$D$4167=$B38)*(TBGSHT!$C$9:$C$4167=D$6)),"") -> 0 | E38: =IFERROR(SUMPRODUCT((TBGSHT!$D$9:$D$4167=$B38)*(TBGSHT!$C$9:$C$4167=E$6)),"") -> 0 | F38: =IFERROR(SUMPRODUCT((TBGSHT!$D$9:$D$4167=$B38)*(TBGSHT!$C$9:$C$4167=F$6)),"") -> 0 | G38: =IFERROR(SUMPRODUCT((TBGSHT!$D$9:$D$4167=$B38)*(TBGSHT!$C$9:$C$4167=G$6)),"") -> 0 | H38: =IFERROR(SUMPRODUCT((TBGSHT!$D$9:$D$4167=$B38)*(TBGSHT!$C$9:$C$4167=H$6)),"") -> 0 | I38: =IFERROR(SUMPRODUCT((TBGSHT!$D$9:$D$4167=$B38)*(TBGSHT!$C$9:$C$4167=I$6)),"") -> 0 | J38: =IFERROR(SUMPRODUCT((TBGSHT!$D$9:$D$4167=$B38)*(TBGSHT!$C$9:$C$4167=J$6)),"") -> 0 | K38: =IFERROR(SUMPRODUCT((TBGSHT!$D$9:$D$4167=$B38)*(TBGSHT!$C$9:$C$4167=K$6)),"") -> 19 | L38: =IFERROR(SUMPRODUCT((TBGSHT!$D$9:$D$4167=$B38)*(TBGSHT!$C$9:$C$4167=L$6)),"") -> 0 | M38: 19 | N38: =IFERROR(VLOOKUP($B38,Danhmuc!$D$4:$M$513,2,0),"") -> TDP4, Phường Ba Đồn, Thị xã Ba Đồn, Tỉnh Quảng Bình | O38: =IFERROR(VLOOKUP($B38,Danhmuc!$D$4:$M$513,3,0),"") -> 0943384171 | P38: 0 | Q38: 19 | U38: 1
A39: =IF($B39<>"",SUBTOTAL(103,B$8:B39),"") -> 32 | B39: Công ty TNHH Hòa Đại Phát | C39: =IFERROR(SUMPRODUCT((TBGSHT!$D$9:$D$4167=$B39)*(TBGSHT!$C$9:$C$4167=C$6)),"") -> 0 | D39: =IFERROR(SUMPRODUCT((TBGSHT!$D$9:$D$4167=$B39)*(TBGSHT!$C$9:$C$4167=D$6)),"") -> 0 | E39: =IFERROR(SUMPRODUCT((TBGSHT!$D$9:$D$4167=$B39)*(TBGSHT!$C$9:$C$4167=E$6)),"") -> 0 | F39: =IFERROR(SUMPRODUCT((TBGSHT!$D$9:$D$4167=$B39)*(TBGSHT!$C$9:$C$4167=F$6)),"") -> 0 | G39: =IFERROR(SUMPRODUCT((TBGSHT!$D$9:$D$4167=$B39)*(TBGSHT!$C$9:$C$4167=G$6)),"") -> 0 | H39: =IFERROR(SUMPRODUCT((TBGSHT!$D$9:$D$4167=$B39)*(TBGSHT!$C$9:$C$4167=H$6)),"") -> 0 | I39: =IFERROR(SUMPRODUCT((TBGSHT!$D$9:$D$4167=$B39)*(TBGSHT!$C$9:$C$4167=I$6)),"") -> 0 | J39: =IFERROR(SUMPRODUCT((TBGSHT!$D$9:$D$4167=$B39)*(TBGSHT!$C$9:$C$4167=J$6)),"") -> 15 | K39: =IFERROR(SUMPRODUCT((TBGSHT!$D$9:$D$4167=$B39)*(TBGSHT!$C$9:$C$4167=K$6)),"") -> 3 | L39: =IFERROR(SUMPRODUCT((TBGSHT!$D$9:$D$4167=$B39)*(TBGSHT!$C$9:$C$4167=L$6)),"") -> 0 | M39: 18 | N39: =IFERROR(VLOOKUP($B39,Danhmuc!$D$4:$M$513,2,0),"") -> xã An Ninh, huyện Quảng Ninh, tỉnh Quảng Bình | O39: =IFERROR(VLOOKUP($B39,Danhmuc!$D$4:$M$513,3,0),"") -> 0523938599 | P39: 0 | Q39: 18 | U39: 1
A40: =IF($B40<>"",SUBTOTAL(103,B$8:B40),"") -> 33 | B40: Công ty CP Du Lịch Hoàng Sa Quảng Bình | C40: =IFERROR(SUMPRODUCT((TBGSHT!$D$9:$D$4167=$B40)*(TBGSHT!$C$9:$C$4167=C$6)),"") -> 0 | D40: =IFERROR(SUMPRODUCT((TBGSHT!$D$9:$D$4167=$B40)*(TBGSHT!$C$9:$C$4167=D$6)),"") -> 0 | E40: =IFERROR(SUMPRODUCT((TBGSHT!$D$9:$D$4167=$B40)*(TBGSHT!$C$9:$C$4167=E$6)),"") -> 0 | F40: =IFERROR(SUMPRODUCT((TBGSHT!$D$9:$D$4167=$B40)*(TBGSHT!$C$9:$C$4167=F$6)),"") -> 14 | G40: =IFERROR(SUMPRODUCT((TBGSHT!$D$9:$D$4167=$B40)*(TBGSHT!$C$9:$C$4167=G$6)),"") -> 4 | H40: =IFERROR(SUMPRODUCT((TBGSHT!$D$9:$D$4167=$B40)*(TBGSHT!$C$9:$C$4167=H$6)),"") -> 0 | I40: =IFERROR(SUMPRODUCT((TBGSHT!$D$9:$D$4167=$B40)*(TBGSHT!$C$9:$C$4167=I$6)),"") -> 0 | J40: =IFERROR(SUMPRODUCT((TBGSHT!$D$9:$D$4167=$B40)*(TBGSHT!$C$9:$C$4167=J$6)),"") -> 0 | K40: =IFERROR(SUMPRODUCT((TBGSHT!$D$9:$D$4167=$B40)*(TBGSHT!$C$9:$C$4167=K$6)),"") -> 0 | L40: =IFERROR(SUMPRODUCT((TBGSHT!$D$9:$D$4167=$B40)*(TBGSHT!$C$9:$C$4167=L$6)),"") -> 0 | M40: 18 | N40: =IFERROR(VLOOKUP($B40,Danhmuc!$D$4:$M$513,2,0),"") -> TT.Hoàn Lão, huyện Bố Trạch, tỉnh Quảng Bình | O40: =IFERROR(VLOOKUP($B40,Danhmuc!$D$4:$M$513,3,0),"") -> 0905110204 | P40: 18 | Q40: 0 | U40: 1
A41: =IF($B41<>"",SUBTOTAL(103,B$8:B41),"") -> 34 | B41: CÔNG TY TNHH XÂY DỰNG MINH HÀ | C41: =IFERROR(SUMPRODUCT((TBGSHT!$D$9:$D$4167=$B41)*(TBGSHT!$C$9:$C$4167=C$6)),"") -> 0 | D41: =IFERROR(SUMPRODUCT((TBGSHT!$D$9:$D$4167=$B41)*(TBGSHT!$C$9:$C$4167=D$6)),"") -> 0 | E41: =IFERROR(SUMPRODUCT((TBGSHT!$D$9:$D$4167=$B41)*(TBGSHT!$C$9:$C$4167=E$6)),"") -> 0 | F41: =IFERROR(SUMPRODUCT((TBGSHT!$D$9:$D$4167=$B41)*(TBGSHT!$C$9:$C$4167=F$6)),"") -> 0 | G41: =IFERROR(SUMPRODUCT((TBGSHT!$D$9:$D$4167=$B41)*(TBGSHT!$C$9:$C$4167=G$6)),"") -> 0 | H41: =IFERROR(SUMPRODUCT((TBGSHT!$D$9:$D$4167=$B41)*(TBGSHT!$C$9:$C$4167=H$6)),"") -> 0 | I41: =IFERROR(SUMPRODUCT((TBGSHT!$D$9:$D$4167=$B41)*(TBGSHT!$C$9:$C$4167=I$6)),"") -> 0 | J41: =IFERROR(SUMPRODUCT((TBGSHT!$D$9:$D$4167=$B41)*(TBGSHT!$C$9:$C$4167=J$6)),"") -> 0 | K41: =IFERROR(SUMPRODUCT((TBGSHT!$D$9:$D$4167=$B41)*(TBGSHT!$C$9:$C$4167=K$6)),"") -> 18 | L41: =IFERROR(SUMPRODUCT((TBGSHT!$D$9:$D$4167=$B41)*(TBGSHT!$C$9:$C$4167=L$6)),"") -> 0 | M41: 18 | N41: =IFERROR(VLOOKUP($B41,Danhmuc!$D$4:$M$513,2,0),"") -> Đường F325 TK 7, Phường Bắc Lý, Thành Phố Đồng Hới, Tỉnh Quảng Bình | O41: =IFERROR(VLOOKUP($B41,Danhmuc!$D$4:$M$513,3,0),"") -> 0 | P41: 0 | Q41: 18 | U41: 1
A42: =IF($B42<>"",SUBTOTAL(103,B$8:B42),"") -> 35 | B42: CÔNG TY TNHH TMTH TUẤN VIỆT | C42: =IFERROR(SUMPRODUCT((TBGSHT!$D$9:$D$4167=$B42)*(TBGSHT!$C$9:$C$4167=C$6)),"") -> 0 | D42: =IFERROR(SUMPRODUCT((TBGSHT!$D$9:$D$4167=$B42)*(TBGSHT!$C$9:$C$4167=D$6)),"") -> 0 | E42: =IFERROR(SUMPRODUCT((TBGSHT!$D$9:$D$4167=$B42)*(TBGSHT!$C$9:$C$4167=E$6)),"") -> 0 | F42: =IFERROR(SUMPRODUCT((TBGSHT!$D$9:$D$4167=$B42)*(TBGSHT!$C$9:$C$4167=F$6)),"") -> 0 | G42: =IFERROR(SUMPRODUCT((TBGSHT!$D$9:$D$4167=$B42)*(TBGSHT!$C$9:$C$4167=G$6)),"") -> 0 | H42: =IFERROR(SUMPRODUCT((TBGSHT!$D$9:$D$4167=$B42)*(TBGSHT!$C$9:$C$4167=H$6)),"") -> 0 | I42: =IFERROR(SUMPRODUCT((TBGSHT!$D$9:$D$4167=$B42)*(TBGSHT!$C$9:$C$4167=I$6)),"") -> 0 | J42: =IFERROR(SUMPRODUCT((TBGSHT!$D$9:$D$4167=$B42)*(TBGSHT!$C$9:$C$4167=J$6)),"") -> 0 | K42: =IFERROR(SUMPRODUCT((TBGSHT!$D$9:$D$4167=$B42)*(TBGSHT!$C$9:$C$4167=K$6)),"") -> 18 | L42: =IFERROR(SUMPRODUCT((TBGSHT!$D$9:$D$4167=$B42)*(TBGSHT!$C$9:$C$4167=L$6)),"") -> 0 | M42: 18 | N42: =IFERROR(VLOOKUP($B42,Danhmuc!$D$4:$M$513,2,0),"") -> 01 Mẹ Suốt, Phường Hải Đình, Thành Phố Đồng Hới, Tỉnh Quảng Bình | O42: =IFERROR(VLOOKUP($B42,Danhmuc!$D$4:$M$513,3,0),"") -> 0 | P42: 0 | Q42: 18 | U42: 1
A43: =IF($B43<>"",SUBTOTAL(103,B$8:B43),"") -> 36 | B43: Công ty TNHH XD Thái An | C43: =IFERROR(SUMPRODUCT((TBGSHT!$D$9:$D$4167=$B43)*(TBGSHT!$C$9:$C$4167=C$6)),"") -> 0 | D43: =IFERROR(SUMPRODUCT((TBGSHT!$D$9:$D$4167=$B43)*(TBGSHT!$C$9:$C$4167=D$6)),"") -> 0 | E43: =IFERROR(SUMPRODUCT((TBGSHT!$D$9:$D$4167=$B43)*(TBGSHT!$C$9:$C$4167=E$6)),"") -> 0 | F43: =IFERROR(SUMPRODUCT((TBGSHT!$D$9:$D$4167=$B43)*(TBGSHT!$C$9:$C$4167=F$6)),"") -> 0 | G43: =IFERROR(SUMPRODUCT((TBGSHT!$D$9:$D$4167=$B43)*(TBGSHT!$C$9:$C$4167=G$6)),"") -> 0 | H43: =IFERROR(SUMPRODUCT((TBGSHT!$D$9:$D$4167=$B43)*(TBGSHT!$C$9:$C$4167=H$6)),"") -> 0 | I43: =IFERROR(SUMPRODUCT((TBGSHT!$D$9:$D$4167=$B43)*(TBGSHT!$C$9:$C$4167=I$6)),"") -> 0 | J43: =IFERROR(SUMPRODUCT((TBGSHT!$D$9:$D$4167=$B43)*(TBGSHT!$C$9:$C$4167=J$6)),"") -> 0 | K43: =IFERROR(SUMPRODUCT((TBGSHT!$D$9:$D$4167=$B43)*(TBGSHT!$C$9:$C$4167=K$6)),"") -> 18 | L43: =IFERROR(SUMPRODUCT((TBGSHT!$D$9:$D$4167=$B43)*(TBGSHT!$C$9:$C$4167=L$6)),"") -> 0 | M43: 18 | N43: =IFERROR(VLOOKUP($B43,Danhmuc!$D$4:$M$513,2,0),"") -> Thôn 3, xã Lộc Ninh, TP. Đồng Hới, Tỉnh Quảng Bình | O43: =IFERROR(VLOOKUP($B43,Danhmuc!$D$4:$M$513,3,0),"") -> 0 | P43: 0 | Q43: 18 | U43: 1
A44: =IF($B44<>"",SUBTOTAL(103,B$8:B44),"") -> 37 | B44: CÔNG TY CP SẢN XUẤT VL&XD COSEVCO I | C44: =IFERROR(SUMPRODUCT((TBGSHT!$D$9:$D$4167=$B44)*(TBGSHT!$C$9:$C$4167=C$6)),"") -> 0 | D44: =IFERROR(SUMPRODUCT((TBGSHT!$D$9:$D$4167=$B44)*(TBGSHT!$C$9:$C$4167=D$6)),"") -> 0 | E44: =IFERROR(SUMPRODUCT((TBGSHT!$D$9:$D$4167=$B44)*(TBGSHT!$C$9:$C$4167=E$6)),"") -> 0 | F44: =IFERROR(SUMPRODUCT((TBGSHT!$D$9:$D$4167=$B44)*(TBGSHT!$C$9:$C$4167=F$6)),"") -> 0 | G44: =IFERROR(SUMPRODUCT((TBGSHT!$D$9:$D$4167=$B44)*(TBGSHT!$C$9:$C$4167=G$6)),"") -> 0 | H44: =IFERROR(SUMPRODUCT((TBGSHT!$D$9:$D$4167=$B44)*(TBGSHT!$C$9:$C$4167=H$6)),"") -> 0 | I44: =IFERROR(SUMPRODUCT((TBGSHT!$D$9:$D$4167=$B44)*(TBGSHT!$C$9:$C$4167=I$6)),"") -> 0 | J44: =IFERROR(SUMPRODUCT((TBGSHT!$D$9:$D$4167=$B44)*(TBGSHT!$C$9:$C$4167=J$6)),"") -> 2 | K44: =IFERROR(SUMPRODUCT((TBGSHT!$D$9:$D$4167=$B44)*(TBGSHT!$C$9:$C$4167=K$6)),"") -> 15 | L44: =IFERROR(SUMPRODUCT((TBGSHT!$D$9:$D$4167=$B44)*(TBGSHT!$C$9:$C$4167=L$6)),"") -> 0 | M44: 17 | N44: =IFERROR(VLOOKUP($B44,Danhmuc!$D$4:$M$513,2,0),"") -> 334 Quang Trung, P.Ba Đồn, TX.Ba Đồn, Tỉnh Quảng Bình | O44: =IFERROR(VLOOKUP($B44,Danhmuc!$D$4:$M$513,3,0),"") -> 0523514078 | P44: 0 | Q44: 17 | U44: 1
A45: =IF($B45<>"",SUBTOTAL(103,B$8:B45),"") -> 38 | B45: Công ty TNHH Minh Trí | C45: =IFERROR(SUMPRODUCT((TBGSHT!$D$9:$D$4167=$B45)*(TBGSHT!$C$9:$C$4167=C$6)),"") -> 0 | D45: =IFERROR(SUMPRODUCT((TBGSHT!$D$9:$D$4167=$B45)*(TBGSHT!$C$9:$C$4167=D$6)),"") -> 0 | E45: =IFERROR(SUMPRODUCT((TBGSHT!$D$9:$D$4167=$B45)*(TBGSHT!$C$9:$C$4167=E$6)),"") -> 0 | F45: =IFERROR(SUMPRODUCT((TBGSHT!$D$9:$D$4167=$B45)*(TBGSHT!$C$9:$C$4167=F$6)),"") -> 0 | G45: =IFERROR(SUMPRODUCT((TBGSHT!$D$9:$D$4167=$B45)*(TBGSHT!$C$9:$C$4167=G$6)),"") -> 0 | H45: =IFERROR(SUMPRODUCT((TBGSHT!$D$9:$D$4167=$B45)*(TBGSHT!$C$9:$C$4167=H$6)),"") -> 0 | I45: =IFERROR(SUMPRODUCT((TBGSHT!$D$9:$D$4167=$B45)*(TBGSHT!$C$9:$C$4167=I$6)),"") -> 0 | J45: =IFERROR(SUMPRODUCT((TBGSHT!$D$9:$D$4167=$B45)*(TBGSHT!$C$9:$C$4167=J$6)),"") -> 0 | K45: =IFERROR(SUMPRODUCT((TBGSHT!$D$9:$D$4167=$B45)*(TBGSHT!$C$9:$C$4167=K$6)),"") -> 17 | L45: =IFERROR(SUMPRODUCT((TBGSHT!$D$9:$D$4167=$B45)*(TBGSHT!$C$9:$C$4167=L$6)),"") -> 0 | M45: 17 | N45: =IFERROR(VLOOKUP($B45,Danhmuc!$D$4:$M$513,2,0),"") -> 71 Lý Thánh Tông, xã Lộc Ninh, TP. Đồng Hới, tỉnh Quảng Bình | O45: =IFERROR(VLOOKUP($B45,Danhmuc!$D$4:$M$513,3,0),"") -> 0913295470 | P45: 0 | Q45: 17 | U45: 1
A46: =IF($B46<>"",SUBTOTAL(103,B$8:B46),"") -> 39 | B46: CÔNG TY TNHH TM&DV TH TRƯỜNG GIANG | C46: =IFERROR(SUMPRODUCT((TBGSHT!$D$9:$D$4167=$B46)*(TBGSHT!$C$9:$C$4167=C$6)),"") -> 0 | D46: =IFERROR(SUMPRODUCT((TBGSHT!$D$9:$D$4167=$B46)*(TBGSHT!$C$9:$C$4167=D$6)),"") -> 0 | E46: =IFERROR(SUMPRODUCT((TBGSHT!$D$9:$D$4167=$B46)*(TBGSHT!$C$9:$C$4167=E$6)),"") -> 0 | F46: =IFERROR(SUMPRODUCT((TBGSHT!$D$9:$D$4167=$B46)*(TBGSHT!$C$9:$C$4167=F$6)),"") -> 0 | G46: =IFERROR(SUMPRODUCT((TBGSHT!$D$9:$D$4167=$B46)*(TBGSHT!$C$9:$C$4167=G$6)),"") -> 0 | H46: =IFERROR(SUMPRODUCT((TBGSHT!$D$9:$D$4167=$B46)*(TBGSHT!$C$9:$C$4167=H$6)),"") -> 0 | I46: =IFERROR(SUMPRODUCT((TBGSHT!$D$9:$D$4167=$B46)*(TBGSHT!$C$9:$C$4167=I$6)),"") -> 0 | J46: =IFERROR(SUMPRODUCT((TBGSHT!$D$9:$D$4167=$B46)*(TBGSHT!$C$9:$C$4167=J$6)),"") -> 0 | K46: =IFERROR(SUMPRODUCT((TBGSHT!$D$9:$D$4167=$B46)*(TBGSHT!$C$9:$C$4167=K$6)),"") -> 17 | L46: =IFERROR(SUMPRODUCT((TBGSHT!$D$9:$D$4167=$B46)*(TBGSHT!$C$9:$C$4167=L$6)),"") -> 0 | M46: 17 | N46: =IFERROR(VLOOKUP($B46,Danhmuc!$D$4:$M$513,2,0),"") -> 429 Lý Thường Kiệt, Phường Bắc Lý, Thành Phố Đồng Hới, Tỉnh Quảng Bình | O46: =IFERROR(VLOOKUP($B46,Danhmuc!$D$4:$M$513,3,0),"") -> 0 | P46: 0 | Q46: 17 | U46: 1
A47: =IF($B47<>"",SUBTOTAL(103,B$8:B47),"") -> 40 | B47: Công ty TNHH Phong Thương | C47: =IFERROR(SUMPRODUCT((TBGSHT!$D$9:$D$4167=$B47)*(TBGSHT!$C$9:$C$4167=C$6)),"") -> 0 | D47: =IFERROR(SUMPRODUCT((TBGSHT!$D$9:$D$4167=$B47)*(TBGSHT!$C$9:$C$4167=D$6)),"") -> 0 | E47: =IFERROR(SUMPRODUCT((TBGSHT!$D$9:$D$4167=$B47)*(TBGSHT!$C$9:$C$4167=E$6)),"") -> 0 | F47: =IFERROR(SUMPRODUCT((TBGSHT!$D$9:$D$4167=$B47)*(TBGSHT!$C$9:$C$4167=F$6)),"") -> 0 | G47: =IFERROR(SUMPRODUCT((TBGSHT!$D$9:$D$4167=$B47)*(TBGSHT!$C$9:$C$4167=G$6)),"") -> 0 | H47: =IFERROR(SUMPRODUCT((TBGSHT!$D$9:$D$4167=$B47)*(TBGSHT!$C$9:$C$4167=H$6)),"") -> 0 | I47: =IFERROR(SUMPRODUCT((TBGSHT!$D$9:$D$4167=$B47)*(TBGSHT!$C$9:$C$4167=I$6)),"") -> 0 | J47: =IFERROR(SUMPRODUCT((TBGSHT!$D$9:$D$4167=$B47)*(TBGSHT!$C$9:$C$4167=J$6)),"") -> 0 | K47: =IFERROR(SUMPRODUCT((TBGSHT!$D$9:$D$4167=$B47)*(TBGSHT!$C$9:$C$4167=K$6)),"") -> 16 | L47: =IFERROR(SUMPRODUCT((TBGSHT!$D$9:$D$4167=$B47)*(TBGSHT!$C$9:$C$4167=L$6)),"") -> 0 | M47: 16 | N47: =IFERROR(VLOOKUP($B47,Danhmuc!$D$4:$M$513,2,0),"") -> Minh Lợi, Quảng Thọ, Ba Đồn, Ba Đồn | O47: =IFERROR(VLOOKUP($B47,Danhmuc!$D$4:$M$513,3,0),"") -> 0523513787 | P47: 0 | Q47: 16 | U47: 2
A48: =IF($B48<>"",SUBTOTAL(103,B$8:B48),"") -> 41 | B48: Công ty CP TM&DV vận tải Quảng Bình | C48: =IFERROR(SUMPRODUCT((TBGSHT!$D$9:$D$4167=$B48)*(TBGSHT!$C$9:$C$4167=C$6)),"") -> 0 | D48: =IFERROR(SUMPRODUCT((TBGSHT!$D$9:$D$4167=$B48)*(TBGSHT!$C$9:$C$4167=D$6)),"") -> 16 | E48: =IFERROR(SUMPRODUCT((TBGSHT!$D$9:$D$4167=$B48)*(TBGSHT!$C$9:$C$4167=E$6)),"") -> 0 | F48: =IFERROR(SUMPRODUCT((TBGSHT!$D$9:$D$4167=$B48)*(TBGSHT!$C$9:$C$4167=F$6)),"") -> 0 | G48: =IFERROR(SUMPRODUCT((TBGSHT!$D$9:$D$4167=$B48)*(TBGSHT!$C$9:$C$4167=G$6)),"") -> 0 | H48: =IFERROR(SUMPRODUCT((TBGSHT!$D$9:$D$4167=$B48)*(TBGSHT!$C$9:$C$4167=H$6)),"") -> 0 | I48: =IFERROR(SUMPRODUCT((TBGSHT!$D$9:$D$4167=$B48)*(TBGSHT!$C$9:$C$4167=I$6)),"") -> 0 | J48: =IFERROR(SUMPRODUCT((TBGSHT!$D$9:$D$4167=$B48)*(TBGSHT!$C$9:$C$4167=J$6)),"") -> 0 | K48: =IFERROR(SUMPRODUCT((TBGSHT!$D$9:$D$4167=$B48)*(TBGSHT!$C$9:$C$4167=K$6)),"") -> 0 | L48: =IFERROR(SUMPRODUCT((TBGSHT!$D$9:$D$4167=$B48)*(TBGSHT!$C$9:$C$4167=L$6)),"") -> 0 | M48: 16 | N48: =IFERROR(VLOOKUP($B48,Danhmuc!$D$4:$M$513,2,0),"") -> TDP 7, Phường Bắc Lý, Thành Phố Đồng Hới, Tỉnh Quảng Bình | O48: =IFERROR(VLOOKUP($B48,Danhmuc!$D$4:$M$513,3,0),"") -> 0979056966 | P48: 16 | Q48: 0 | U48: 1
A49: =IF($B49<>"",SUBTOTAL(103,B$8:B49),"") -> 42 | B49: CN Công ty TNHH TM&DV Điền Lộc | C49: =IFERROR(SUMPRODUCT((TBGSHT!$D$9:$D$4167=$B49)*(TBGSHT!$C$9:$C$4167=C$6)),"") -> 0 | D49: =IFERROR(SUMPRODUCT((TBGSHT!$D$9:$D$4167=$B49)*(TBGSHT!$C$9:$C$4167=D$6)),"") -> 0 | E49: =IFERROR(SUMPRODUCT((TBGSHT!$D$9:$D$4167=$B49)*(TBGSHT!$C$9:$C$4167=E$6)),"") -> 0 | F49: =IFERROR(SUMPRODUCT((TBGSHT!$D$9:$D$4167=$B49)*(TBGSHT!$C$9:$C$4167=F$6)),"") -> 0 | G49: =IFERROR(SUMPRODUCT((TBGSHT!$D$9:$D$4167=$B49)*(TBGSHT!$C$9:$C$4167=G$6)),"") -> 0 | H49: =IFERROR(SUMPRODUCT((TBGSHT!$D$9:$D$4167=$B49)*(TBGSHT!$C$9:$C$4167=H$6)),"") -> 0 | I49: =IFERROR(SUMPRODUCT((TBGSHT!$D$9:$D$4167=$B49)*(TBGSHT!$C$9:$C$4167=I$6)),"") -> 0 | J49: =IFERROR(SUMPRODUCT((TBGSHT!$D$9:$D$4167=$B49)*(TBGSHT!$C$9:$C$4167=J$6)),"") -> 2 | K49: =IFERROR(SUMPRODUCT((TBGSHT!$D$9:$D$4167=$B49)*(TBGSHT!$C$9:$C$4167=K$6)),"") -> 13 | L49: =IFERROR(SUMPRODUCT((TBGSHT!$D$9:$D$4167=$B49)*(TBGSHT!$C$9:$C$4167=L$6)),"") -> 0 | M49: 15 | N49: =IFERROR(VLOOKUP($B49,Danhmuc!$D$4:$M$513,2,0),"") -> 181 đường F325, Bắc Lý, Đồng Hới, Quảng Bình | O49: =IFERROR(VLOOKUP($B49,Danhmuc!$D$4:$M$513,3,0),"") -> 0908743666 | P49: 0 | Q49: 15 | U49: 1
A50: =IF($B50<>"",SUBTOTAL(103,B$8:B50),"") -> 43 | B50: Công ty TNHH TM Lê Dũng Linh | C50: =IFERROR(SUMPRODUCT((TBGSHT!$D$9:$D$4167=$B50)*(TBGSHT!$C$9:$C$4167=C$6)),"") -> 0 | D50: =IFERROR(SUMPRODUCT((TBGSHT!$D$9:$D$4167=$B50)*(TBGSHT!$C$9:$C$4167=D$6)),"") -> 0 | E50: =IFERROR(SUMPRODUCT((TBGSHT!$D$9:$D$4167=$B50)*(TBGSHT!$C$9:$C$4167=E$6)),"") -> 0 | F50: =IFERROR(SUMPRODUCT((TBGSHT!$D$9:$D$4167=$B50)*(TBGSHT!$C$9:$C$4167=F$6)),"") -> 0 | G50: =IFERROR(SUMPRODUCT((TBGSHT!$D$9:$D$4167=$B50)*(TBGSHT!$C$9:$C$4167=G$6)),"") -> 0 | H50: =IFERROR(SUMPRODUCT((TBGSHT!$D$9:$D$4167=$B50)*(TBGSHT!$C$9:$C$4167=H$6)),"") -> 0 | I50: =IFERROR(SUMPRODUCT((TBGSHT!$D$9:$D$4167=$B50)*(TBGSHT!$C$9:$C$4167=I$6)),"") -> 0 | J50: =IFERROR(SUMPRODUCT((TBGSHT!$D$9:$D$4167=$B50)*(TBGSHT!$C$9:$C$4167=J$6)),"") -> 0 | K50: =IFERROR(SUMPRODUCT((TBGSHT!$D$9:$D$4167=$B50)*(TBGSHT!$C$9:$C$4167=K$6)),"") -> 15 | L50: =IFERROR(SUMPRODUCT((TBGSHT!$D$9:$D$4167=$B50)*(TBGSHT!$C$9:$C$4167=L$6)),"") -> 0 | M50: 15 | N50: =IFERROR(VLOOKUP($B50,Danhmuc!$D$4:$M$513,2,0),"") -> Minh Lợi, Phường Quảng Thọ, thị xã Ba Đồn, tỉnh Quảng Bình | O50: =IFERROR(VLOOKUP($B50,Danhmuc!$D$4:$M$513,3,0),"") -> 0523513570 | P50: 0 | Q50: 15 | U50: 3
A51: =IF($B51<>"",SUBTOTAL(103,B$8:B51),"") -> 44 | B51: Công ty Cổ phần Tập đoàn Đặng Đại | C51: =IFERROR(SUMPRODUCT((TBGSHT!$D$9:$D$4167=$B51)*(TBGSHT!$C$9:$C$4167=C$6)),"") -> 0 | D51: =IFERROR(SUMPRODUCT((TBGSHT!$D$9:$D$4167=$B51)*(TBGSHT!$C$9:$C$4167=D$6)),"") -> 0 | E51: =IFERROR(SUMPRODUCT((TBGSHT!$D$9:$D$4167=$B51)*(TBGSHT!$C$9:$C$4167=E$6)),"") -> 0 | F51: =IFERROR(SUMPRODUCT((TBGSHT!$D$9:$D$4167=$B51)*(TBGSHT!$C$9:$C$4167=F$6)),"") -> 0 | G51: =IFERROR(SUMPRODUCT((TBGSHT!$D$9:$D$4167=$B51)*(TBGSHT!$C$9:$C$4167=G$6)),"") -> 0 | H51: =IFERROR(SUMPRODUCT((TBGSHT!$D$9:$D$4167=$B51)*(TBGSHT!$C$9:$C$4167=H$6)),"") -> 0 | I51: =IFERROR(SUMPRODUCT((TBGSHT!$D$9:$D$4167=$B51)*(TBGSHT!$C$9:$C$4167=I$6)),"") -> 0 | J51: =IFERROR(SUMPRODUCT((TBGSHT!$D$9:$D$4167=$B51)*(TBGSHT!$C$9:$C$4167=J$6)),"") -> 0 | K51: =IFERROR(SUMPRODUCT((TBGSHT!$D$9:$D$4167=$B51)*(TBGSHT!$C$9:$C$4167=K$6)),"") -> 15 | L51: =IFERROR(SUMPRODUCT((TBGSHT!$D$9:$D$4167=$B51)*(TBGSHT!$C$9:$C$4167=L$6)),"") -> 0 | M51: 15 | N51: =IFERROR(VLOOKUP($B51,Danhmuc!$D$4:$M$513,2,0),"") -> 137- Lý Thường Kiệt, P.Đồng Phú, TP. Đồng Hới, Tỉnh Quảng Bình (TKTcongtyDangDai@gmail.com) | O51: =IFERROR(VLOOKUP($B51,Danhmuc!$D$4:$M$513,3,0),"") -> 0913386359 | P51: 0 | Q51: 15 | U51: 1
A52: =IF($B52<>"",SUBTOTAL(103,B$8:B52),"") -> 45 | B52: Công ty CPKD VLXD Nguyên Anh 1 | C52: =IFERROR(SUMPRODUCT((TBGSHT!$D$9:$D$4167=$B52)*(TBGSHT!$C$9:$C$4167=C$6)),"") -> 0 | D52: =IFERROR(SUMPRODUCT((TBGSHT!$D$9:$D$4167=$B52)*(TBGSHT!$C$9:$C$4167=D$6)),"") -> 0 | E52: =IFERROR(SUMPRODUCT((TBGSHT!$D$9:$D$4167=$B52)*(TBGSHT!$C$9:$C$4167=E$6)),"") -> 0 | F52: =IFERROR(SUMPRODUCT((TBGSHT!$D$9:$D$4167=$B52)*(TBGSHT!$C$9:$C$4167=F$6)),"") -> 0 | G52: =IFERROR(SUMPRODUCT((TBGSHT!$D$9:$D$4167=$B52)*(TBGSHT!$C$9:$C$4167=G$6)),"") -> 0 | H52: =IFERROR(SUMPRODUCT((TBGSHT!$D$9:$D$4167=$B52)*(TBGSHT!$C$9:$C$4167=H$6)),"") -> 0 | I52: =IFERROR(SUMPRODUCT((TBGSHT!$D$9:$D$4167=$B52)*(TBGSHT!$C$9:$C$4167=I$6)),"") -> 0 | J52: =IFERROR(SUMPRODUCT((TBGSHT!$D$9:$D$4167=$B52)*(TBGSHT!$C$9:$C$4167=J$6)),"") -> 8 | K52: =IFERROR(SUMPRODUCT((TBGSHT!$D$9:$D$4167=$B52)*(TBGSHT!$C$9:$C$4167=K$6)),"") -> 7 | L52: =IFERROR(SUMPRODUCT((TBGSHT!$D$9:$D$4167=$B52)*(TBGSHT!$C$9:$C$4167=L$6)),"") -> 0 | M52: 15 | N52: =IFERROR(VLOOKUP($B52,Danhmuc!$D$4:$M$513,2,0),"") -> Thôn Xuân Kiều, Xã Quảng Xuân, Huyện Quảng Trạch, Tỉnh Quảng Bình | O52: =IFERROR(VLOOKUP($B52,Danhmuc!$D$4:$M$513,3,0),"") -> 0 | P52: 0 | Q52: 15 | U52: 1
A53: =IF($B53<>"",SUBTOTAL(103,B$8:B53),"") -> 46 | B53: Công ty TNHH Diến Hồng | C53: =IFERROR(SUMPRODUCT((TBGSHT!$D$9:$D$4167=$B53)*(TBGSHT!$C$9:$C$4167=C$6)),"") -> 0 | D53: =IFERROR(SUMPRODUCT((TBGSHT!$D$9:$D$4167=$B53)*(TBGSHT!$C$9:$C$4167=D$6)),"") -> 0 | E53: =IFERROR(SUMPRODUCT((TBGSHT!$D$9:$D$4167=$B53)*(TBGSHT!$C$9:$C$4167=E$6)),"") -> 0 | F53: =IFERROR(SUMPRODUCT((TBGSHT!$D$9:$D$4167=$B53)*(TBGSHT!$C$9:$C$4167=F$6)),"") -> 0 | G53: =IFERROR(SUMPRODUCT((TBGSHT!$D$9:$D$4167=$B53)*(TBGSHT!$C$9:$C$4167=G$6)),"") -> 0 | H53: =IFERROR(SUMPRODUCT((TBGSHT!$D$9:$D$4167=$B53)*(TBGSHT!$C$9:$C$4167=H$6)),"") -> 0 | I53: =IFERROR(SUMPRODUCT((TBGSHT!$D$9:$D$4167=$B53)*(TBGSHT!$C$9:$C$4167=I$6)),"") -> 2 | J53: =IFERROR(SUMPRODUCT((TBGSHT!$D$9:$D$4167=$B53)*(TBGSHT!$C$9:$C$4167=J$6)),"") -> 0 | K53: =IFERROR(SUMPRODUCT((TBGSHT!$D$9:$D$4167=$B53)*(TBGSHT!$C$9:$C$4167=K$6)),"") -> 12 | L53: =IFERROR(SUMPRODUCT((TBGSHT!$D$9:$D$4167=$B53)*(TBGSHT!$C$9:$C$4167=L$6)),"") -> 0 | M53: 14 | N53: =IFERROR(VLOOKUP($B53,Danhmuc!$D$4:$M$513,2,0),"") -> TK8, Quy Đạt, Minh Hóa, Quảng Bình | O53: =IFERROR(VLOOKUP($B53,Danhmuc!$D$4:$M$513,3,0),"") -> 0523572244 | P53: 0 | Q53: 14 | U53: 2
A54: =IF($B54<>"",SUBTOTAL(103,B$8:B54),"") -> 47 | B54: Công ty TNHH Hùng Cường | C54: =IFERROR(SUMPRODUCT((TBGSHT!$D$9:$D$4167=$B54)*(TBGSHT!$C$9:$C$4167=C$6)),"") -> 0 | D54: =IFERROR(SUMPRODUCT((TBGSHT!$D$9:$D$4167=$B54)*(TBGSHT!$C$9:$C$4167=D$6)),"") -> 0 | E54: =IFERROR(SUMPRODUCT((TBGSHT!$D$9:$D$4167=$B54)*(TBGSHT!$C$9:$C$4167=E$6)),"") -> 0 | F54: =IFERROR(SUMPRODUCT((TBGSHT!$D$9:$D$4167=$B54)*(TBGSHT!$C$9:$C$4167=F$6)),"") -> 0 | G54: =IFERROR(SUMPRODUCT((TBGSHT!$D$9:$D$4167=$B54)*(TBGSHT!$C$9:$C$4167=G$6)),"") -> 0 | H54: =IFERROR(SUMPRODUCT((TBGSHT!$D$9:$D$4167=$B54)*(TBGSHT!$C$9:$C$4167=H$6)),"") -> 0 | I54: =IFERROR(SUMPRODUCT((TBGSHT!$D$9:$D$4167=$B54)*(TBGSHT!$C$9:$C$4167=I$6)),"") -> 0 | J54: =IFERROR(SUMPRODUCT((TBGSHT!$D$9:$D$4167=$B54)*(TBGSHT!$C$9:$C$4167=J$6)),"") -> 10 | K54: =IFERROR(SUMPRODUCT((TBGSHT!$D$9:$D$4167=$B54)*(TBGSHT!$C$9:$C$4167=K$6)),"") -> 4 | L54: =IFERROR(SUMPRODUCT((TBGSHT!$D$9:$D$4167=$B54)*(TBGSHT!$C$9:$C$4167=L$6)),"") -> 0 | M54: 14 | N54: =IFERROR(VLOOKUP($B54,Danhmuc!$D$4:$M$513,2,0),"") -> Xã Quảng Hưng, huyện Quảng Trạch, tỉnh Quảng Bình | O54: =IFERROR(VLOOKUP($B54,Danhmuc!$D$4:$M$513,3,0),"") -> 0935788887 | P54: 0 | Q54: 14 | U54: 1
A55: =IF($B55<>"",SUBTOTAL(103,B$8:B55),"") -> 48 | B55: CÔNG TY TNHH ĐOÀN KẾT PHÚ QUÝ | C55: =IFERROR(SUMPRODUCT((TBGSHT!$D$9:$D$4167=$B55)*(TBGSHT!$C$9:$C$4167=C$6)),"") -> 0 | D55: =IFERROR(SUMPRODUCT((TBGSHT!$D$9:$D$4167=$B55)*(TBGSHT!$C$9:$C$4167=D$6)),"") -> 0 | E55: =IFERROR(SUMPRODUCT((TBGSHT!$D$9:$D$4167=$B55)*(TBGSHT!$C$9:$C$4167=E$6)),"") -> 0 | F55: =IFERROR(SUMPRODUCT((TBGSHT!$D$9:$D$4167=$B55)*(TBGSHT!$C$9:$C$4167=F$6)),"") -> 0 | G55: =IFERROR(SUMPRODUCT((TBGSHT!$D$9:$D$4167=$B55)*(TBGSHT!$C$9:$C$4167=G$6)),"") -> 0 | H55: =IFERROR(SUMPRODUCT((TBGSHT!$D$9:$D$4167=$B55)*(TBGSHT!$C$9:$C$4167=H$6)),"") -> 0 | I55: =IFERROR(SUMPRODUCT((TBGSHT!$D$9:$D$4167=$B55)*(TBGSHT!$C$9:$C$4167=I$6)),"") -> 0 | J55: =IFERROR(SUMPRODUCT((TBGSHT!$D$9:$D$4167=$B55)*(TBGSHT!$C$9:$C$4167=J$6)),"") -> 0 | K55: =IFERROR(SUMPRODUCT((TBGSHT!$D$9:$D$4167=$B55)*(TBGSHT!$C$9:$C$4167=K$6)),"") -> 15 | L55: =IFERROR(SUMPRODUCT((TBGSHT!$D$9:$D$4167=$B55)*(TBGSHT!$C$9:$C$4167=L$6)),"") -> 0 | M55: 15 | N55: =IFERROR(VLOOKUP($B55,Danhmuc!$D$4:$M$513,2,0),"") -> Thôn Vân Bắc - Xã Quảng Hải - Thị Xã Ba Đồn - Quảng Bình. | O55: =IFERROR(VLOOKUP($B55,Danhmuc!$D$4:$M$513,3,0),"") -> 0977935538 | P55: 0 | Q55: 15 | U55: 1
A56: =IF($B56<>"",SUBTOTAL(103,B$8:B56),"") -> 49 | B56: Công ty CP sản xuất VLXD Nguyên Anh II | C56: =IFERROR(SUMPRODUCT((TBGSHT!$D$9:$D$4167=$B56)*(TBGSHT!$C$9:$C$4167=C$6)),"") -> 0 | D56: =IFERROR(SUMPRODUCT((TBGSHT!$D$9:$D$4167=$B56)*(TBGSHT!$C$9:$C$4167=D$6)),"") -> 0 | E56: =IFERROR(SUMPRODUCT((TBGSHT!$D$9:$D$4167=$B56)*(TBGSHT!$C$9:$C$4167=E$6)),"") -> 0 | F56: =IFERROR(SUMPRODUCT((TBGSHT!$D$9:$D$4167=$B56)*(TBGSHT!$C$9:$C$4167=F$6)),"") -> 0 | G56: =IFERROR(SUMPRODUCT((TBGSHT!$D$9:$D$4167=$B56)*(TBGSHT!$C$9:$C$4167=G$6)),"") -> 0 | H56: =IFERROR(SUMPRODUCT((TBGSHT!$D$9:$D$4167=$B56)*(TBGSHT!$C$9:$C$4167=H$6)),"") -> 0 | I56: =IFERROR(SUMPRODUCT((TBGSHT!$D$9:$D$4167=$B56)*(TBGSHT!$C$9:$C$4167=I$6)),"") -> 0 | J56: =IFERROR(SUMPRODUCT((TBGSHT!$D$9:$D$4167=$B56)*(TBGSHT!$C$9:$C$4167=J$6)),"") -> 0 | K56: =IFERROR(SUMPRODUCT((TBGSHT!$D$9:$D$4167=$B56)*(TBGSHT!$C$9:$C$4167=K$6)),"") -> 14 | L56: =IFERROR(SUMPRODUCT((TBGSHT!$D$9:$D$4167=$B56)*(TBGSHT!$C$9:$C$4167=L$6)),"") -> 0 | M56: 14 | N56: =IFERROR(VLOOKUP($B56,Danhmuc!$D$4:$M$513,2,0),"") -> Thôn Chánh Hòa, Xã Nam Trạch, Huyện Bố Trạch, Tỉnh Quảng Bình | O56: =IFERROR(VLOOKUP($B56,Danhmuc!$D$4:$M$513,3,0),"") -> 0911368666 | P56: 0 | Q56: 14 | U56: 1
A57: =IF($B57<>"",SUBTOTAL(103,B$8:B57),"") -> 50 | B57: Công ty TNHH DVVT Minh Huy | C57: =IFERROR(SUMPRODUCT((TBGSHT!$D$9:$D$4167=$B57)*(TBGSHT!$C$9:$C$4167=C$6)),"") -> 4 | D57: =IFERROR(SUMPRODUCT((TBGSHT!$D$9:$D$4167=$B57)*(TBGSHT!$C$9:$C$4167=D$6)),"") -> 0 | E57: =IFERROR(SUMPRODUCT((TBGSHT!$D$9:$D$4167=$B57)*(TBGSHT!$C$9:$C$4167=E$6)),"") -> 0 | F57: =IFERROR(SUMPRODUCT((TBGSHT!$D$9:$D$4167=$B57)*(TBGSHT!$C$9:$C$4167=F$6)),"") -> 9 | G57: =IFERROR(SUMPRODUCT((TBGSHT!$D$9:$D$4167=$B57)*(TBGSHT!$C$9:$C$4167=G$6)),"") -> 1 | H57: =IFERROR(SUMPRODUCT((TBGSHT!$D$9:$D$4167=$B57)*(TBGSHT!$C$9:$C$4167=H$6)),"") -> 0 | I57: =IFERROR(SUMPRODUCT((TBGSHT!$D$9:$D$4167=$B57)*(TBGSHT!$C$9:$C$4167=I$6)),"") -> 0 | J57: =IFERROR(SUMPRODUCT((TBGSHT!$D$9:$D$4167=$B57)*(TBGSHT!$C$9:$C$4167=J$6)),"") -> 0 | K57: =IFERROR(SUMPRODUCT((TBGSHT!$D$9:$D$4167=$B57)*(TBGSHT!$C$9:$C$4167=K$6)),"") -> 0 | L57: =IFERROR(SUMPRODUCT((TBGSHT!$D$9:$D$4167=$B57)*(TBGSHT!$C$9:$C$4167=L$6)),"") -> 0 | M57: 14 | N57: =IFERROR(VLOOKUP($B57,Danhmuc!$D$4:$M$513,2,0),"") -> Tổ dân phố số 7, Thị trấn Kiến Giang, Huyện Lệ Thuỷ, Tỉnh Quảng Bình | O57: =IFERROR(VLOOKUP($B57,Danhmuc!$D$4:$M$513,3,0),"") -> 0943444555 | P57: 14 | Q57: 0 | U57: 2
A58: =IF($B58<>"",SUBTOTAL(103,B$8:B58),"") -> 51 | B58: Công ty CP Tổng Công ty Tân Hoàn Cầu | C58: =IFERROR(SUMPRODUCT((TBGSHT!$D$9:$D$4167=$B58)*(TBGSHT!$C$9:$C$4167=C$6)),"") -> 0 | D58: =IFERROR(SUMPRODUCT((TBGSHT!$D$9:$D$4167=$B58)*(TBGSHT!$C$9:$C$4167=D$6)),"") -> 0 | E58: =IFERROR(SUMPRODUCT((TBGSHT!$D$9:$D$4167=$B58)*(TBGSHT!$C$9:$C$4167=E$6)),"") -> 0 | F58: =IFERROR(SUMPRODUCT((TBGSHT!$D$9:$D$4167=$B58)*(TBGSHT!$C$9:$C$4167=F$6)),"") -> 0 | G58: =IFERROR(SUMPRODUCT((TBGSHT!$D$9:$D$4167=$B58)*(TBGSHT!$C$9:$C$4167=G$6)),"") -> 0 | H58: =IFERROR(SUMPRODUCT((TBGSHT!$D$9:$D$4167=$B58)*(TBGSHT!$C$9:$C$4167=H$6)),"") -> 0 | I58: =IFERROR(SUMPRODUCT((TBGSHT!$D$9:$D$4167=$B58)*(TBGSHT!$C$9:$C$4167=I$6)),"") -> 0 | J58: =IFERROR(SUMPRODUCT((TBGSHT!$D$9:$D$4167=$B58)*(TBGSHT!$C$9:$C$4167=J$6)),"") -> 1 | K58: =IFERROR(SUMPRODUCT((TBGSHT!$D$9:$D$4167=$B58)*(TBGSHT!$C$9:$C$4167=K$6)),"") -> 12 | L58: =IFERROR(SUMPRODUCT((TBGSHT!$D$9:$D$4167=$B58)*(TBGSHT!$C$9:$C$4167=L$6)),"") -> 0 | M58: 13 | N58: =IFERROR(VLOOKUP($B58,Danhmuc!$D$4:$M$513,2,0),"") -> Khu công nghiệp Tây bắc Đồng Hới, P.Bắc Lý, TP. Đồng Hới, Tỉnh Quảng Bình | O58: =IFERROR(VLOOKUP($B58,Danhmuc!$D$4:$M$513,3,0),"") -> 0232839623 | P58: 0 | Q58: 13 | U58: 1
A59: =IF($B59<>"",SUBTOTAL(103,B$8:B59),"") -> 52 | B59: Công ty TNHH TM Ngọc Phương | C59: =IFERROR(SUMPRODUCT((TBGSHT!$D$9:$D$4167=$B59)*(TBGSHT!$C$9:$C$4167=C$6)),"") -> 0 | D59: =IFERROR(SUMPRODUCT((TBGSHT!$D$9:$D$4167=$B59)*(TBGSHT!$C$9:$C$4167=D$6)),"") -> 0 | E59: =IFERROR(SUMPRODUCT((TBGSHT!$D$9:$D$4167=$B59)*(TBGSHT!$C$9:$C$4167=E$6)),"") -> 0 | F59: =IFERROR(SUMPRODUCT((TBGSHT!$D$9:$D$4167=$B59)*(TBGSHT!$C$9:$C$4167=F$6)),"") -> 0 | G59: =IFERROR(SUMPRODUCT((TBGSHT!$D$9:$D$4167=$B59)*(TBGSHT!$C$9:$C$4167=G$6)),"") -> 0 | H59: =IFERROR(SUMPRODUCT((TBGSHT!$D$9:$D$4167=$B59)*(TBGSHT!$C$9:$C$4167=H$6)),"") -> 0 | I59: =IFERROR(SUMPRODUCT((TBGSHT!$D$9:$D$4167=$B59)*(TBGSHT!$C$9:$C$4167=I$6)),"") -> 0 | J59: =IFERROR(SUMPRODUCT((TBGSHT!$D$9:$D$4167=$B59)*(TBGSHT!$C$9:$C$4167=J$6)),"") -> 0 | K59: =IFERROR(SUMPRODUCT((TBGSHT!$D$9:$D$4167=$B59)*(TBGSHT!$C$9:$C$4167=K$6)),"") -> 13 | L59: =IFERROR(SUMPRODUCT((TBGSHT!$D$9:$D$4167=$B59)*(TBGSHT!$C$9:$C$4167=L$6)),"") -> 0 | M59: 13 | N59: =IFERROR(VLOOKUP($B59,Danhmuc!$D$4:$M$513,2,0),"") -> 14 Ngô Gia Tự, Phường Nam Lý, Thành Phố Đồng Hới, Tỉnh Quảng Bình | O59: =IFERROR(VLOOKUP($B59,Danhmuc!$D$4:$M$513,3,0),"") -> 0 | P59: 0 | Q59: 13 | U59: 1
A60: =IF($B60<>"",SUBTOTAL(103,B$8:B60),"") -> 53 | B60: Công ty TNHH DL&VT Phong Phú | C60: =IFERROR(SUMPRODUCT((TBGSHT!$D$9:$D$4167=$B60)*(TBGSHT!$C$9:$C$4167=C$6)),"") -> 10 | D60: =IFERROR(SUMPRODUCT((TBGSHT!$D$9:$D$4167=$B60)*(TBGSHT!$C$9:$C$4167=D$6)),"") -> 0 | E60: =IFERROR(SUMPRODUCT((TBGSHT!$D$9:$D$4167=$B60)*(TBGSHT!$C$9:$C$4167=E$6)),"") -> 0 | F60: =IFERROR(SUMPRODUCT((TBGSHT!$D$9:$D$4167=$B60)*(TBGSHT!$C$9:$C$4167=F$6)),"") -> 0 | G60: =IFERROR(SUMPRODUCT((TBGSHT!$D$9:$D$4167=$B60)*(TBGSHT!$C$9:$C$4167=G$6)),"") -> 2 | H60: =IFERROR(SUMPRODUCT((TBGSHT!$D$9:$D$4167=$B60)*(TBGSHT!$C$9:$C$4167=H$6)),"") -> 1 | I60: =IFERROR(SUMPRODUCT((TBGSHT!$D$9:$D$4167=$B60)*(TBGSHT!$C$9:$C$4167=I$6)),"") -> 0 | J60: =IFERROR(SUMPRODUCT((TBGSHT!$D$9:$D$4167=$B60)*(TBGSHT!$C$9:$C$4167=J$6)),"") -> 0 | K60: =IFERROR(SUMPRODUCT((TBGSHT!$D$9:$D$4167=$B60)*(TBGSHT!$C$9:$C$4167=K$6)),"") -> 0 | L60: =IFERROR(SUMPRODUCT((TBGSHT!$D$9:$D$4167=$B60)*(TBGSHT!$C$9:$C$4167=L$6)),"") -> 0 | M60: 13 | N60: =IFERROR(VLOOKUP($B60,Danhmuc!$D$4:$M$513,2,0),"") -> Thôn Đức Thủy, Xã Đức Ninh, Thành Phố Đồng Hới, Tỉnh Quảng Bình | O60: =IFERROR(VLOOKUP($B60,Danhmuc!$D$4:$M$513,3,0),"") -> 0975160777 | P60: 13 | Q60: 0 | U60: 1
A61: =IF($B61<>"",SUBTOTAL(103,B$8:B61),"") -> 54 | B61: Công ty CPKD Dầu khí Quảng Bình | C61: =IFERROR(SUMPRODUCT((TBGSHT!$D$9:$D$4167=$B61)*(TBGSHT!$C$9:$C$4167=C$6)),"") -> 0 | D61: =IFERROR(SUMPRODUCT((TBGSHT!$D$9:$D$4167=$B61)*(TBGSHT!$C$9:$C$4167=D$6)),"") -> 0 | E61: =IFERROR(SUMPRODUCT((TBGSHT!$D$9:$D$4167=$B61)*(TBGSHT!$C$9:$C$4167=E$6)),"") -> 0 | F61: =IFERROR(SUMPRODUCT((TBGSHT!$D$9:$D$4167=$B61)*(TBGSHT!$C$9:$C$4167=F$6)),"") -> 0 | G61: =IFERROR(SUMPRODUCT((TBGSHT!$D$9:$D$4167=$B61)*(TBGSHT!$C$9:$C$4167=G$6)),"") -> 0 | H61: =IFERROR(SUMPRODUCT((TBGSHT!$D$9:$D$4167=$B61)*(TBGSHT!$C$9:$C$4167=H$6)),"") -> 0 | I61: =IFERROR(SUMPRODUCT((TBGSHT!$D$9:$D$4167=$B61)*(TBGSHT!$C$9:$C$4167=I$6)),"") -> 0 | J61: =IFERROR(SUMPRODUCT((TBGSHT!$D$9:$D$4167=$B61)*(TBGSHT!$C$9:$C$4167=J$6)),"") -> 0 | K61: =IFERROR(SUMPRODUCT((TBGSHT!$D$9:$D$4167=$B61)*(TBGSHT!$C$9:$C$4167=K$6)),"") -> 12 | L61: =IFERROR(SUMPRODUCT((TBGSHT!$D$9:$D$4167=$B61)*(TBGSHT!$C$9:$C$4167=L$6)),"") -> 0 | M61: 12 | N61: =IFERROR(VLOOKUP($B61,Danhmuc!$D$4:$M$513,2,0),"") -> Khu công nghiệp Tây Bắc Đồng Hới, P.Bắc Lý, TP. Đồng Hới, Tỉnh Quảng Bình | O61: =IFERROR(VLOOKUP($B61,Danhmuc!$D$4:$M$513,3,0),"") -> 0912328098 | P61: 0 | Q61: 12 | U61: 1
A62: =IF($B62<>"",SUBTOTAL(103,B$8:B62),"") -> 55 | B62: Công ty TNHH TM&DV Vận tải Minh Đức | C62: =IFERROR(SUMPRODUCT((TBGSHT!$D$9:$D$4167=$B62)*(TBGSHT!$C$9:$C$4167=C$6)),"") -> 0 | D62: =IFERROR(SUMPRODUCT((TBGSHT!$D$9:$D$4167=$B62)*(TBGSHT!$C$9:$C$4167=D$6)),"") -> 0 | E62: =IFERROR(SUMPRODUCT((TBGSHT!$D$9:$D$4167=$B62)*(TBGSHT!$C$9:$C$4167=E$6)),"") -> 0 | F62: =IFERROR(SUMPRODUCT((TBGSHT!$D$9:$D$4167=$B62)*(TBGSHT!$C$9:$C$4167=F$6)),"") -> 0 | G62: =IFERROR(SUMPRODUCT((TBGSHT!$D$9:$D$4167=$B62)*(TBGSHT!$C$9:$C$4167=G$6)),"") -> 0 | H62: =IFERROR(SUMPRODUCT((TBGSHT!$D$9:$D$4167=$B62)*(TBGSHT!$C$9:$C$4167=H$6)),"") -> 0 | I62: =IFERROR(SUMPRODUCT((TBGSHT!$D$9:$D$4167=$B62)*(TBGSHT!$C$9:$C$4167=I$6)),"") -> 0 | J62: =IFERROR(SUMPRODUCT((TBGSHT!$D$9:$D$4167=$B62)*(TBGSHT!$C$9:$C$4167=J$6)),"") -> 10 | K62: =IFERROR(SUMPRODUCT((TBGSHT!$D$9:$D$4167=$B62)*(TBGSHT!$C$9:$C$4167=K$6)),"") -> 2 | L62: =IFERROR(SUMPRODUCT((TBGSHT!$D$9:$D$4167=$B62)*(TBGSHT!$C$9:$C$4167=L$6)),"") -> 0 | M62: 12 | N62: =IFERROR(VLOOKUP($B62,Danhmuc!$D$4:$M$513,2,0),"") -> TDP Nam, Quảng Thuận, Ba Đồn, Quảng Bình | O62: =IFERROR(VLOOKUP($B62,Danhmuc!$D$4:$M$513,3,0),"") -> 0916131355 | P62: 0 | Q62: 12 | U62: 1
A63: =IF($B63<>"",SUBTOTAL(103,B$8:B63),"") -> 56 | B63: CÔNG TY CPXD TRƯỜNG XUÂN | C63: =IFERROR(SUMPRODUCT((TBGSHT!$D$9:$D$4167=$B63)*(TBGSHT!$C$9:$C$4167=C$6)),"") -> 0 | D63: =IFERROR(SUMPRODUCT((TBGSHT!$D$9:$D$4167=$B63)*(TBGSHT!$C$9:$C$4167=D$6)),"") -> 0 | E63: =IFERROR(SUMPRODUCT((TBGSHT!$D$9:$D$4167=$B63)*(TBGSHT!$C$9:$C$4167=E$6)),"") -> 0 | F63: =IFERROR(SUMPRODUCT((TBGSHT!$D$9:$D$4167=$B63)*(TBGSHT!$C$9:$C$4167=F$6)),"") -> 0 | G63: =IFERROR(SUMPRODUCT((TBGSHT!$D$9:$D$4167=$B63)*(TBGSHT!$C$9:$C$4167=G$6)),"") -> 0 | H63: =IFERROR(SUMPRODUCT((TBGSHT!$D$9:$D$4167=$B63)*(TBGSHT!$C$9:$C$4167=H$6)),"") -> 0 | I63: =IFERROR(SUMPRODUCT((TBGSHT!$D$9:$D$4167=$B63)*(TBGSHT!$C$9:$C$4167=I$6)),"") -> 0 | J63: =IFERROR(SUMPRODUCT((TBGSHT!$D$9:$D$4167=$B63)*(TBGSHT!$C$9:$C$4167=J$6)),"") -> 0 | K63: =IFERROR(SUMPRODUCT((TBGSHT!$D$9:$D$4167=$B63)*(TBGSHT!$C$9:$C$4167=K$6)),"") -> 12 | L63: =IFERROR(SUMPRODUCT((TBGSHT!$D$9:$D$4167=$B63)*(TBGSHT!$C$9:$C$4167=L$6)),"") -> 0 | M63: 12 | N63: =IFERROR(VLOOKUP($B63,Danhmuc!$D$4:$M$513,2,0),"") -> 88 Đường Hữu Nghị, P.Nam Lý, TP. Đồng Hới, Tỉnh Quảng Bình | O63: =IFERROR(VLOOKUP($B63,Danhmuc!$D$4:$M$513,3,0),"") -> 02323843788 | P63: 0 | Q63: 12 | U63: 1
A64: =IF($B64<>"",SUBTOTAL(103,B$8:B64),"") -> 57 | B64: CÔNG TY CP SẢN XUẤT VLXD CIB | C64: =IFERROR(SUMPRODUCT((TBGSHT!$D$9:$D$4167=$B64)*(TBGSHT!$C$9:$C$4167=C$6)),"") -> 0 | D64: =IFERROR(SUMPRODUCT((TBGSHT!$D$9:$D$4167=$B64)*(TBGSHT!$C$9:$C$4167=D$6)),"") -> 0 | E64: =IFERROR(SUMPRODUCT((TBGSHT!$D$9:$D$4167=$B64)*(TBGSHT!$C$9:$C$4167=E$6)),"") -> 0 | F64: =IFERROR(SUMPRODUCT((TBGSHT!$D$9:$D$4167=$B64)*(TBGSHT!$C$9:$C$4167=F$6)),"") -> 0 | G64: =IFERROR(SUMPRODUCT((TBGSHT!$D$9:$D$4167=$B64)*(TBGSHT!$C$9:$C$4167=G$6)),"") -> 0 | H64: =IFERROR(SUMPRODUCT((TBGSHT!$D$9:$D$4167=$B64)*(TBGSHT!$C$9:$C$4167=H$6)),"") -> 0 | I64: =IFERROR(SUMPRODUCT((TBGSHT!$D$9:$D$4167=$B64)*(TBGSHT!$C$9:$C$4167=I$6)),"") -> 0 | J64: =IFERROR(SUMPRODUCT((TBGSHT!$D$9:$D$4167=$B64)*(TBGSHT!$C$9:$C$4167=J$6)),"") -> 0 | K64: =IFERROR(SUMPRODUCT((TBGSHT!$D$9:$D$4167=$B64)*(TBGSHT!$C$9:$C$4167=K$6)),"") -> 12 | L64: =IFERROR(SUMPRODUCT((TBGSHT!$D$9:$D$4167=$B64)*(TBGSHT!$C$9:$C$4167=L$6)),"") -> 0 | M64: 12 | N64: =IFERROR(VLOOKUP($B64,Danhmuc!$D$4:$M$513,2,0),"") -> Thôn Xuân Kiều, Xã Quảng Xuân, Huyện Quảng Trạch, Tỉnh Quảng Bình | O64: =IFERROR(VLOOKUP($B64,Danhmuc!$D$4:$M$513,3,0),"") -> 0 | P64: 0 | Q64: 12 | U64: 3
A65: =IF($B65<>"",SUBTOTAL(103,B$8:B65),"") -> 58 | B65: Công ty TNHH TMTH Phước Sang | C65: =IFERROR(SUMPRODUCT((TBGSHT!$D$9:$D$4167=$B65)*(TBGSHT!$C$9:$C$4167=C$6)),"") -> 0 | D65: =IFERROR(SUMPRODUCT((TBGSHT!$D$9:$D$4167=$B65)*(TBGSHT!$C$9:$C$4167=D$6)),"") -> 0 | E65: =IFERROR(SUMPRODUCT((TBGSHT!$D$9:$D$4167=$B65)*(TBGSHT!$C$9:$C$4167=E$6)),"") -> 0 | F65: =IFERROR(SUMPRODUCT((TBGSHT!$D$9:$D$4167=$B65)*(TBGSHT!$C$9:$C$4167=F$6)),"") -> 0 | G65: =IFERROR(SUMPRODUCT((TBGSHT!$D$9:$D$4167=$B65)*(TBGSHT!$C$9:$C$4167=G$6)),"") -> 0 | H65: =IFERROR(SUMPRODUCT((TBGSHT!$D$9:$D$4167=$B65)*(TBGSHT!$C$9:$C$4167=H$6)),"") -> 0 | I65: =IFERROR(SUMPRODUCT((TBGSHT!$D$9:$D$4167=$B65)*(TBGSHT!$C$9:$C$4167=I$6)),"") -> 0 | J65: =IFERROR(SUMPRODUCT((TBGSHT!$D$9:$D$4167=$B65)*(TBGSHT!$C$9:$C$4167=J$6)),"") -> 0 | K65: =IFERROR(SUMPRODUCT((TBGSHT!$D$9:$D$4167=$B65)*(TBGSHT!$C$9:$C$4167=K$6)),"") -> 11 | L65: =IFERROR(SUMPRODUCT((TBGSHT!$D$9:$D$4167=$B65)*(TBGSHT!$C$9:$C$4167=L$6)),"") -> 0 | M65: 11 | N65: =IFERROR(VLOOKUP($B65,Danhmuc!$D$4:$M$513,2,0),"") -> Thôn Thượng Đức, Đức Trạch, Bố Trạch, Quảng Bình | O65: =IFERROR(VLOOKUP($B65,Danhmuc!$D$4:$M$513,3,0),"") -> 0523864458 | P65: 0 | Q65: 11 | U65: 1
A66: =IF($B66<>"",SUBTOTAL(103,B$8:B66),"") -> 59 | B66: Công ty TNHH ĐT&XD Hoàng Minh | C66: =IFERROR(SUMPRODUCT((TBGSHT!$D$9:$D$4167=$B66)*(TBGSHT!$C$9:$C$4167=C$6)),"") -> 0 | D66: =IFERROR(SUMPRODUCT((TBGSHT!$D$9:$D$4167=$B66)*(TBGSHT!$C$9:$C$4167=D$6)),"") -> 0 | E66: =IFERROR(SUMPRODUCT((TBGSHT!$D$9:$D$4167=$B66)*(TBGSHT!$C$9:$C$4167=E$6)),"") -> 0 | F66: =IFERROR(SUMPRODUCT((TBGSHT!$D$9:$D$4167=$B66)*(TBGSHT!$C$9:$C$4167=F$6)),"") -> 0 | G66: =IFERROR(SUMPRODUCT((TBGSHT!$D$9:$D$4167=$B66)*(TBGSHT!$C$9:$C$4167=G$6)),"") -> 0 | H66: =IFERROR(SUMPRODUCT((TBGSHT!$D$9:$D$4167=$B66)*(TBGSHT!$C$9:$C$4167=H$6)),"") -> 0 | I66: =IFERROR(SUMPRODUCT((TBGSHT!$D$9:$D$4167=$B66)*(TBGSHT!$C$9:$C$4167=I$6)),"") -> 0 | J66: =IFERROR(SUMPRODUCT((TBGSHT!$D$9:$D$4167=$B66)*(TBGSHT!$C$9:$C$4167=J$6)),"") -> 1 | K66: =IFERROR(SUMPRODUCT((TBGSHT!$D$9:$D$4167=$B66)*(TBGSHT!$C$9:$C$4167=K$6)),"") -> 10 | L66: =IFERROR(SUMPRODUCT((TBGSHT!$D$9:$D$4167=$B66)*(TBGSHT!$C$9:$C$4167=L$6)),"") -> 0 | M66: 11 | N66: =IFERROR(VLOOKUP($B66,Danhmuc!$D$4:$M$513,2,0),"") -> 34 Quang Trung, Hải Đình, Đồng Hới, Quảng Bình | O66: =IFERROR(VLOOKUP($B66,Danhmuc!$D$4:$M$513,3,0),"") -> 02323226666 | P66: 0 | Q66: 11 | U66: 1
A67: =IF($B67<>"",SUBTOTAL(103,B$8:B67),"") -> 60 | B67: CÔNG TY TNHH TMDV HẢI PHƯƠNG | C67: =IFERROR(SUMPRODUCT((TBGSHT!$D$9:$D$4167=$B67)*(TBGSHT!$C$9:$C$4167=C$6)),"") -> 0 | D67: =IFERROR(SUMPRODUCT((TBGSHT!$D$9:$D$4167=$B67)*(TBGSHT!$C$9:$C$4167=D$6)),"") -> 0 | E67: =IFERROR(SUMPRODUCT((TBGSHT!$D$9:$D$4167=$B67)*(TBGSHT!$C$9:$C$4167=E$6)),"") -> 0 | F67: =IFERROR(SUMPRODUCT((TBGSHT!$D$9:$D$4167=$B67)*(TBGSHT!$C$9:$C$4167=F$6)),"") -> 0 | G67: =IFERROR(SUMPRODUCT((TBGSHT!$D$9:$D$4167=$B67)*(TBGSHT!$C$9:$C$4167=G$6)),"") -> 0 | H67: =IFERROR(SUMPRODUCT((TBGSHT!$D$9:$D$4167=$B67)*(TBGSHT!$C$9:$C$4167=H$6)),"") -> 0 | I67: =IFERROR(SUMPRODUCT((TBGSHT!$D$9:$D$4167=$B67)*(TBGSHT!$C$9:$C$4167=I$6)),"") -> 0 | J67: =IFERROR(SUMPRODUCT((TBGSHT!$D$9:$D$4167=$B67)*(TBGSHT!$C$9:$C$4167=J$6)),"") -> 0 | K67: =IFERROR(SUMPRODUCT((TBGSHT!$D$9:$D$4167=$B67)*(TBGSHT!$C$9:$C$4167=K$6)),"") -> 11 | L67: =IFERROR(SUMPRODUCT((TBGSHT!$D$9:$D$4167=$B67)*(TBGSHT!$C$9:$C$4167=L$6)),"") -> 0 | M67: 11 | N67: =IFERROR(VLOOKUP($B67,Danhmuc!$D$4:$M$513,2,0),"") -> Tổ dân phố 10, phường Đồng Phú, Thành phố Đồng Hới, Quảng Bình | O67: =IFERROR(VLOOKUP($B67,Danhmuc!$D$4:$M$513,3,0),"") -> 0905253666 | P67: 0 | Q67: 11 | U67: 1
A68: =IF($B68<>"",SUBTOTAL(103,B$8:B68),"") -> 61 | B68: CÔNG TY TNHH XÂY DỰNG VIỆT TIẾN | C68: =IFERROR(SUMPRODUCT((TBGSHT!$D$9:$D$4167=$B68)*(TBGSHT!$C$9:$C$4167=C$6)),"") -> 0 | D68: =IFERROR(SUMPRODUCT((TBGSHT!$D$9:$D$4167=$B68)*(TBGSHT!$C$9:$C$4167=D$6)),"") -> 0 | E68: =IFERROR(SUMPRODUCT((TBGSHT!$D$9:$D$4167=$B68)*(TBGSHT!$C$9:$C$4167=E$6)),"") -> 0 | F68: =IFERROR(SUMPRODUCT((TBGSHT!$D$9:$D$4167=$B68)*(TBGSHT!$C$9:$C$4167=F$6)),"") -> 0 | G68: =IFERROR(SUMPRODUCT((TBGSHT!$D$9:$D$4167=$B68)*(TBGSHT!$C$9:$C$4167=G$6)),"") -> 0 | H68: =IFERROR(SUMPRODUCT((TBGSHT!$D$9:$D$4167=$B68)*(TBGSHT!$C$9:$C$4167=H$6)),"") -> 0 | I68: =IFERROR(SUMPRODUCT((TBGSHT!$D$9:$D$4167=$B68)*(TBGSHT!$C$9:$C$4167=I$6)),"") -> 0 | J68: =IFERROR(SUMPRODUCT((TBGSHT!$D$9:$D$4167=$B68)*(TBGSHT!$C$9:$C$4167=J$6)),"") -> 0 | K68: =IFERROR(SUMPRODUCT((TBGSHT!$D$9:$D$4167=$B68)*(TBGSHT!$C$9:$C$4167=K$6)),"") -> 11 | L68: =IFERROR(SUMPRODUCT((TBGSHT!$D$9:$D$4167=$B68)*(TBGSHT!$C$9:$C$4167=L$6)),"") -> 0 | M68: 11 | N68: =IFERROR(VLOOKUP($B68,Danhmuc!$D$4:$M$513,2,0),"") -> Số 02 Tô Hiệu, Phường Nam Lý, Thành Phố Đồng Hới, Tỉnh Quảng Bình | O68: =IFERROR(VLOOKUP($B68,Danhmuc!$D$4:$M$513,3,0),"") -> 0 | P68: 0 | Q68: 11 | U68: 2
A69: =IF($B69<>"",SUBTOTAL(103,B$8:B69),"") -> 62 | B69: CÔNG TY TNHH XĂNG DẦU THANH NGHĨA | C69: =IFERROR(SUMPRODUCT((TBGSHT!$D$9:$D$4167=$B69)*(TBGSHT!$C$9:$C$4167=C$6)),"") -> 0 | D69: =IFERROR(SUMPRODUCT((TBGSHT!$D$9:$D$4167=$B69)*(TBGSHT!$C$9:$C$4167=D$6)),"") -> 0 | E69: =IFERROR(SUMPRODUCT((TBGSHT!$D$9:$D$4167=$B69)*(TBGSHT!$C$9:$C$4167=E$6)),"") -> 0 | F69: =IFERROR(SUMPRODUCT((TBGSHT!$D$9:$D$4167=$B69)*(TBGSHT!$C$9:$C$4167=F$6)),"") -> 11 | G69: =IFERROR(SUMPRODUCT((TBGSHT!$D$9:$D$4167=$B69)*(TBGSHT!$C$9:$C$4167=G$6)),"") -> 0 | H69: =IFERROR(SUMPRODUCT((TBGSHT!$D$9:$D$4167=$B69)*(TBGSHT!$C$9:$C$4167=H$6)),"") -> 0 | I69: =IFERROR(SUMPRODUCT((TBGSHT!$D$9:$D$4167=$B69)*(TBGSHT!$C$9:$C$4167=I$6)),"") -> 0 | J69: =IFERROR(SUMPRODUCT((TBGSHT!$D$9:$D$4167=$B69)*(TBGSHT!$C$9:$C$4167=J$6)),"") -> 0 | K69: =IFERROR(SUMPRODUCT((TBGSHT!$D$9:$D$4167=$B69)*(TBGSHT!$C$9:$C$4167=K$6)),"") -> 0 | L69: =IFERROR(SUMPRODUCT((TBGSHT!$D$9:$D$4167=$B69)*(TBGSHT!$C$9:$C$4167=L$6)),"") -> 0 | M69: 11 | N69: =IFERROR(VLOOKUP($B69,Danhmuc!$D$4:$M$513,2,0),"") -> Xã Quảng Hòa, Thị xã Ba Đồn, Tỉnh Quảng Bình | O69: =IFERROR(VLOOKUP($B69,Danhmuc!$D$4:$M$513,3,0),"") -> 0912944652 | P69: 11 | Q69: 0 | U69: 1
A70: =IF($B70<>"",SUBTOTAL(103,B$8:B70),"") -> 63 | B70: HTX vận tải hành khách Hiền Ninh | C70: =IFERROR(SUMPRODUCT((TBGSHT!$D$9:$D$4167=$B70)*(TBGSHT!$C$9:$C$4167=C$6)),"") -> 5 | D70: =IFERROR(SUMPRODUCT((TBGSHT!$D$9:$D$4167=$B70)*(TBGSHT!$C$9:$C$4167=D$6)),"") -> 0 | E70: =IFERROR(SUMPRODUCT((TBGSHT!$D$9:$D$4167=$B70)*(TBGSHT!$C$9:$C$4167=E$6)),"") -> 0 | F70: =IFERROR(SUMPRODUCT((TBGSHT!$D$9:$D$4167=$B70)*(TBGSHT!$C$9:$C$4167=F$6)),"") -> 0 | G70: =IFERROR(SUMPRODUCT((TBGSHT!$D$9:$D$4167=$B70)*(TBGSHT!$C$9:$C$4167=G$6)),"") -> 5 | H70: =IFERROR(SUMPRODUCT((TBGSHT!$D$9:$D$4167=$B70)*(TBGSHT!$C$9:$C$4167=H$6)),"") -> 0 | I70: =IFERROR(SUMPRODUCT((TBGSHT!$D$9:$D$4167=$B70)*(TBGSHT!$C$9:$C$4167=I$6)),"") -> 0 | J70: =IFERROR(SUMPRODUCT((TBGSHT!$D$9:$D$4167=$B70)*(TBGSHT!$C$9:$C$4167=J$6)),"") -> 0 | K70: =IFERROR(SUMPRODUCT((TBGSHT!$D$9:$D$4167=$B70)*(TBGSHT!$C$9:$C$4167=K$6)),"") -> 1 | L70: =IFERROR(SUMPRODUCT((TBGSHT!$D$9:$D$4167=$B70)*(TBGSHT!$C$9:$C$4167=L$6)),"") -> 0 | M70: 11 | N70: =IFERROR(VLOOKUP($B70,Danhmuc!$D$4:$M$513,2,0),"") -> Thôn Cổ Hiền, Xã Hiền Ninh, Huyện Quảng Ninh, Tỉnh Quảng Bình | O70: =IFERROR(VLOOKUP($B70,Danhmuc!$D$4:$M$513,3,0),"") -> 02323936351 | P70: 10 | Q70: 1 | U70: 1
A71: =IF($B71<>"",SUBTOTAL(103,B$8:B71),"") -> 64 | B71: Công ty TNHH DVVT Tiến Đạt | C71: =IFERROR(SUMPRODUCT((TBGSHT!$D$9:$D$4167=$B71)*(TBGSHT!$C$9:$C$4167=C$6)),"") -> 6 | D71: =IFERROR(SUMPRODUCT((TBGSHT!$D$9:$D$4167=$B71)*(TBGSHT!$C$9:$C$4167=D$6)),"") -> 0 | E71: =IFERROR(SUMPRODUCT((TBGSHT!$D$9:$D$4167=$B71)*(TBGSHT!$C$9:$C$4167=E$6)),"") -> 0 | F71: =IFERROR(SUMPRODUCT((TBGSHT!$D$9:$D$4167=$B71)*(TBGSHT!$C$9:$C$4167=F$6)),"") -> 0 | G71: =IFERROR(SUMPRODUCT((TBGSHT!$D$9:$D$4167=$B71)*(TBGSHT!$C$9:$C$4167=G$6)),"") -> 5 | H71: =IFERROR(SUMPRODUCT((TBGSHT!$D$9:$D$4167=$B71)*(TBGSHT!$C$9:$C$4167=H$6)),"") -> 0 | I71: =IFERROR(SUMPRODUCT((TBGSHT!$D$9:$D$4167=$B71)*(TBGSHT!$C$9:$C$4167=I$6)),"") -> 0 | J71: =IFERROR(SUMPRODUCT((TBGSHT!$D$9:$D$4167=$B71)*(TBGSHT!$C$9:$C$4167=J$6)),"") -> 0 | K71: =IFERROR(SUMPRODUCT((TBGSHT!$D$9:$D$4167=$B71)*(TBGSHT!$C$9:$C$4167=K$6)),"") -> 0 | L71: =IFERROR(SUMPRODUCT((TBGSHT!$D$9:$D$4167=$B71)*(TBGSHT!$C$9:$C$4167=L$6)),"") -> 0 | M71: 11 | N71: =IFERROR(VLOOKUP($B71,Danhmuc!$D$4:$M$513,2,0),"") -> Tiểu khu 3, TT Nông Trường VT, Huyện Bố Trạch | O71: =IFERROR(VLOOKUP($B71,Danhmuc!$D$4:$M$513,3,0),"") -> 0985898005 | P71: 11 | Q71: 0 | U71: 1
A72: =IF($B72<>"",SUBTOTAL(103,B$8:B72),"") -> 65 | B72: Công ty TNHH Linfox Transport Quảng Bình | C72: =IFERROR(SUMPRODUCT((TBGSHT!$D$9:$D$4167=$B72)*(TBGSHT!$C$9:$C$4167=C$6)),"") -> 0 | D72: =IFERROR(SUMPRODUCT((TBGSHT!$D$9:$D$4167=$B72)*(TBGSHT!$C$9:$C$4167=D$6)),"") -> 0 | E72: =IFERROR(SUMPRODUCT((TBGSHT!$D$9:$D$4167=$B72)*(TBGSHT!$C$9:$C$4167=E$6)),"") -> 0 | F72: =IFERROR(SUMPRODUCT((TBGSHT!$D$9:$D$4167=$B72)*(TBGSHT!$C$9:$C$4167=F$6)),"") -> 0 | G72: =IFERROR(SUMPRODUCT((TBGSHT!$D$9:$D$4167=$B72)*(TBGSHT!$C$9:$C$4167=G$6)),"") -> 0 | H72: =IFERROR(SUMPRODUCT((TBGSHT!$D$9:$D$4167=$B72)*(TBGSHT!$C$9:$C$4167=H$6)),"") -> 0 | I72: =IFERROR(SUMPRODUCT((TBGSHT!$D$9:$D$4167=$B72)*(TBGSHT!$C$9:$C$4167=I$6)),"") -> 10 | J72: =IFERROR(SUMPRODUCT((TBGSHT!$D$9:$D$4167=$B72)*(TBGSHT!$C$9:$C$4167=J$6)),"") -> 0 | K72: =IFERROR(SUMPRODUCT((TBGSHT!$D$9:$D$4167=$B72)*(TBGSHT!$C$9:$C$4167=K$6)),"") -> 0 | L72: =IFERROR(SUMPRODUCT((TBGSHT!$D$9:$D$4167=$B72)*(TBGSHT!$C$9:$C$4167=L$6)),"") -> 0 | M72: =SUM(C72:K72) -> 10 | N72: =IFERROR(VLOOKUP($B72,Danhmuc!$D$4:$M$513,2,0),"") -> KKT CKQT Cha Lo, Xã Dân Hóa, Huyện Minh Hóa, Tỉnh Quảng Bình | O72: =IFERROR(VLOOKUP($B72,Danhmuc!$D$4:$M$513,3,0),"") -> 0965303911 | P72: =SUM(C72:H72) -> 0 | Q72: 10 | U72: 1
A73: =IF($B73<>"",SUBTOTAL(103,B$8:B73),"") -> 66 | B73: Công ty TNHH TM&VT Trường Hưng | C73: =IFERROR(SUMPRODUCT((TBGSHT!$D$9:$D$4167=$B73)*(TBGSHT!$C$9:$C$4167=C$6)),"") -> 0 | D73: =IFERROR(SUMPRODUCT((TBGSHT!$D$9:$D$4167=$B73)*(TBGSHT!$C$9:$C$4167=D$6)),"") -> 0 | E73: =IFERROR(SUMPRODUCT((TBGSHT!$D$9:$D$4167=$B73)*(TBGSHT!$C$9:$C$4167=E$6)),"") -> 0 | F73: =IFERROR(SUMPRODUCT((TBGSHT!$D$9:$D$4167=$B73)*(TBGSHT!$C$9:$C$4167=F$6)),"") -> 0 | G73: =IFERROR(SUMPRODUCT((TBGSHT!$D$9:$D$4167=$B73)*(TBGSHT!$C$9:$C$4167=G$6)),"") -> 0 | H73: =IFERROR(SUMPRODUCT((TBGSHT!$D$9:$D$4167=$B73)*(TBGSHT!$C$9:$C$4167=H$6)),"") -> 0 | I73: =IFERROR(SUMPRODUCT((TBGSHT!$D$9:$D$4167=$B73)*(TBGSHT!$C$9:$C$4167=I$6)),"") -> 0 | J73: =IFERROR(SUMPRODUCT((TBGSHT!$D$9:$D$4167=$B73)*(TBGSHT!$C$9:$C$4167=J$6)),"") -> 0 | K73: =IFERROR(SUMPRODUCT((TBGSHT!$D$9:$D$4167=$B73)*(TBGSHT!$C$9:$C$4167=K$6)),"") -> 10 | L73: =IFERROR(SUMPRODUCT((TBGSHT!$D$9:$D$4167=$B73)*(TBGSHT!$C$9:$C$4167=L$6)),"") -> 0 | M73: 10 | N73: =IFERROR(VLOOKUP($B73,Danhmuc!$D$4:$M$513,2,0),"") -> Thôn Yên Thắng, xã Yên Hoá, huyện Minh Hoá, tỉnh Quảng Bình | O73: =IFERROR(VLOOKUP($B73,Danhmuc!$D$4:$M$513,3,0),"") -> 0905102199 | P73: 0 | Q73: =SUM(I73:K73) -> 10 | U73: 1
A74: =IF($B74<>"",SUBTOTAL(103,B$8:B74),"") -> 67 | B74: Công ty TNHH TM&XD Quang Phát | C74: =IFERROR(SUMPRODUCT((TBGSHT!$D$9:$D$4167=$B74)*(TBGSHT!$C$9:$C$4167=C$6)),"") -> 0 | D74: =IFERROR(SUMPRODUCT((TBGSHT!$D$9:$D$4167=$B74)*(TBGSHT!$C$9:$C$4167=D$6)),"") -> 0 | E74: =IFERROR(SUMPRODUCT((TBGSHT!$D$9:$D$4167=$B74)*(TBGSHT!$C$9:$C$4167=E$6)),"") -> 0 | F74: =IFERROR(SUMPRODUCT((TBGSHT!$D$9:$D$4167=$B74)*(TBGSHT!$C$9:$C$4167=F$6)),"") -> 0 | G74: =IFERROR(SUMPRODUCT((TBGSHT!$D$9:$D$4167=$B74)*(TBGSHT!$C$9:$C$4167=G$6)),"") -> 0 | H74: =IFERROR(SUMPRODUCT((TBGSHT!$D$9:$D$4167=$B74)*(TBGSHT!$C$9:$C$4167=H$6)),"") -> 0 | I74: =IFERROR(SUMPRODUCT((TBGSHT!$D$9:$D$4167=$B74)*(TBGSHT!$C$9:$C$4167=I$6)),"") -> 0 | J74: =IFERROR(SUMPRODUCT((TBGSHT!$D$9:$D$4167=$B74)*(TBGSHT!$C$9:$C$4167=J$6)),"") -> 2 | K74: =IFERROR(SUMPRODUCT((TBGSHT!$D$9:$D$4167=$B74)*(TBGSHT!$C$9:$C$4167=K$6)),"") -> 8 | L74: =IFERROR(SUMPRODUCT((TBGSHT!$D$9:$D$4167=$B74)*(TBGSHT!$C$9:$C$4167=L$6)),"") -> 0 | M74: 10 | N74: =IFERROR(VLOOKUP($B74,Danhmuc!$D$4:$M$513,2,0),"") -> Thôn 4, Xã Quảng Liên, Huyện Quảng Trạch, Tỉnh Quảng Bình | O74: =IFERROR(VLOOKUP($B74,Danhmuc!$D$4:$M$513,3,0),"") -> 0985552026 | P74: 0 | Q74: 10 | U74: 1
A75: =IF($B75<>"",SUBTOTAL(103,B$8:B75),"") -> 68 | B75: Công ty CP sản xuất VLXD Nguyên Anh | C75: =IFERROR(SUMPRODUCT((TBGSHT!$D$9:$D$4167=$B75)*(TBGSHT!$C$9:$C$4167=C$6)),"") -> 0 | D75: =IFERROR(SUMPRODUCT((TBGSHT!$D$9:$D$4167=$B75)*(TBGSHT!$C$9:$C$4167=D$6)),"") -> 0 | E75: =IFERROR(SUMPRODUCT((TBGSHT!$D$9:$D$4167=$B75)*(TBGSHT!$C$9:$C$4167=E$6)),"") -> 0 | F75: =IFERROR(SUMPRODUCT((TBGSHT!$D$9:$D$4167=$B75)*(TBGSHT!$C$9:$C$4167=F$6)),"") -> 0 | G75: =IFERROR(SUMPRODUCT((TBGSHT!$D$9:$D$4167=$B75)*(TBGSHT!$C$9:$C$4167=G$6)),"") -> 0 | H75: =IFERROR(SUMPRODUCT((TBGSHT!$D$9:$D$4167=$B75)*(TBGSHT!$C$9:$C$4167=H$6)),"") -> 0 | I75: =IFERROR(SUMPRODUCT((TBGSHT!$D$9:$D$4167=$B75)*(TBGSHT!$C$9:$C$4167=I$6)),"") -> 0 | J75: =IFERROR(SUMPRODUCT((TBGSHT!$D$9:$D$4167=$B75)*(TBGSHT!$C$9:$C$4167=J$6)),"") -> 0 | K75: =IFERROR(SUMPRODUCT((TBGSHT!$D$9:$D$4167=$B75)*(TBGSHT!$C$9:$C$4167=K$6)),"") -> 10 | L75: =IFERROR(SUMPRODUCT((TBGSHT!$D$9:$D$4167=$B75)*(TBGSHT!$C$9:$C$4167=L$6)),"") -> 0 | M75: 10 | N75: =IFERROR(VLOOKUP($B75,Danhmuc!$D$4:$M$513,2,0),"") -> Thôn Xuân Kiều, Xã Quảng Xuân, huyện Quảng Trạch, tỉnh Quảng Bình | O75: =IFERROR(VLOOKUP($B75,Danhmuc!$D$4:$M$513,3,0),"") -> 0911365699 | P75: 0 | Q75: 10 | U75: 1
A76: =IF($B76<>"",SUBTOTAL(103,B$8:B76),"") -> 69 | B76: Công ty TNHH XDTH Tâm Anh | C76: =IFERROR(SUMPRODUCT((TBGSHT!$D$9:$D$4167=$B76)*(TBGSHT!$C$9:$C$4167=C$6)),"") -> 0 | D76: =IFERROR(SUMPRODUCT((TBGSHT!$D$9:$D$4167=$B76)*(TBGSHT!$C$9:$C$4167=D$6)),"") -> 0 | E76: =IFERROR(SUMPRODUCT((TBGSHT!$D$9:$D$4167=$B76)*(TBGSHT!$C$9:$C$4167=E$6)),"") -> 0 | F76: =IFERROR(SUMPRODUCT((TBGSHT!$D$9:$D$4167=$B76)*(TBGSHT!$C$9:$C$4167=F$6)),"") -> 0 | G76: =IFERROR(SUMPRODUCT((TBGSHT!$D$9:$D$4167=$B76)*(TBGSHT!$C$9:$C$4167=G$6)),"") -> 0 | H76: =IFERROR(SUMPRODUCT((TBGSHT!$D$9:$D$4167=$B76)*(TBGSHT!$C$9:$C$4167=H$6)),"") -> 0 | I76: =IFERROR(SUMPRODUCT((TBGSHT!$D$9:$D$4167=$B76)*(TBGSHT!$C$9:$C$4167=I$6)),"") -> 0 | J76: =IFERROR(SUMPRODUCT((TBGSHT!$D$9:$D$4167=$B76)*(TBGSHT!$C$9:$C$4167=J$6)),"") -> 0 | K76: =IFERROR(SUMPRODUCT((TBGSHT!$D$9:$D$4167=$B76)*(TBGSHT!$C$9:$C$4167=K$6)),"") -> 10 | L76: =IFERROR(SUMPRODUCT((TBGSHT!$D$9:$D$4167=$B76)*(TBGSHT!$C$9:$C$4167=L$6)),"") -> 0 | M76: 10 | N76: =IFERROR(VLOOKUP($B76,Danhmuc!$D$4:$M$513,2,0),"") -> Thôn Mỹ Duyệt, Huyện Lệ Thuỷ, Tỉnh Quảng Bình | O76: =IFERROR(VLOOKUP($B76,Danhmuc!$D$4:$M$513,3,0),"") -> 0 | P76: 0 | Q76: 10 | U76: 1
A77: =IF($B77<>"",SUBTOTAL(103,B$8:B77),"") -> 70 | B77: Công ty TNHH KT&PHMT Mỏ đất Nghĩa Ninh | C77: =IFERROR(SUMPRODUCT((TBGSHT!$D$9:$D$4167=$B77)*(TBGSHT!$C$9:$C$4167=C$6)),"") -> 0 | D77: =IFERROR(SUMPRODUCT((TBGSHT!$D$9:$D$4167=$B77)*(TBGSHT!$C$9:$C$4167=D$6)),"") -> 0 | E77: =IFERROR(SUMPRODUCT((TBGSHT!$D$9:$D$4167=$B77)*(TBGSHT!$C$9:$C$4167=E$6)),"") -> 0 | F77: =IFERROR(SUMPRODUCT((TBGSHT!$D$9:$D$4167=$B77)*(TBGSHT!$C$9:$C$4167=F$6)),"") -> 0 | G77: =IFERROR(SUMPRODUCT((TBGSHT!$D$9:$D$4167=$B77)*(TBGSHT!$C$9:$C$4167=G$6)),"") -> 0 | H77: =IFERROR(SUMPRODUCT((TBGSHT!$D$9:$D$4167=$B77)*(TBGSHT!$C$9:$C$4167=H$6)),"") -> 0 | I77: =IFERROR(SUMPRODUCT((TBGSHT!$D$9:$D$4167=$B77)*(TBGSHT!$C$9:$C$4167=I$6)),"") -> 0 | J77: =IFERROR(SUMPRODUCT((TBGSHT!$D$9:$D$4167=$B77)*(TBGSHT!$C$9:$C$4167=J$6)),"") -> 0 | K77: =IFERROR(SUMPRODUCT((TBGSHT!$D$9:$D$4167=$B77)*(TBGSHT!$C$9:$C$4167=K$6)),"") -> 10 | L77: =IFERROR(SUMPRODUCT((TBGSHT!$D$9:$D$4167=$B77)*(TBGSHT!$C$9:$C$4167=L$6)),"") -> 0 | M77: 10 | N77: =IFERROR(VLOOKUP($B77,Danhmuc!$D$4:$M$513,2,0),"") -> Phường Nam Lý, Thành Phố Đồng Hới, Tỉnh Quảng Bình | O77: =IFERROR(VLOOKUP($B77,Danhmuc!$D$4:$M$513,3,0),"") -> 0 | P77: 0 | Q77: 10 | U77: 1
A78: =IF($B78<>"",SUBTOTAL(103,B$8:B78),"") -> 71 | B78: Công ty CP VT ô tô Hà Tĩnh - CN Quảng Bình | C78: =IFERROR(SUMPRODUCT((TBGSHT!$D$9:$D$4167=$B78)*(TBGSHT!$C$9:$C$4167=C$6)),"") -> 0 | D78: =IFERROR(SUMPRODUCT((TBGSHT!$D$9:$D$4167=$B78)*(TBGSHT!$C$9:$C$4167=D$6)),"") -> 10 | E78: =IFERROR(SUMPRODUCT((TBGSHT!$D$9:$D$4167=$B78)*(TBGSHT!$C$9:$C$4167=E$6)),"") -> 0 | F78: =IFERROR(SUMPRODUCT((TBGSHT!$D$9:$D$4167=$B78)*(TBGSHT!$C$9:$C$4167=F$6)),"") -> 0 | G78: =IFERROR(SUMPRODUCT((TBGSHT!$D$9:$D$4167=$B78)*(TBGSHT!$C$9:$C$4167=G$6)),"") -> 0 | H78: =IFERROR(SUMPRODUCT((TBGSHT!$D$9:$D$4167=$B78)*(TBGSHT!$C$9:$C$4167=H$6)),"") -> 0 | I78: =IFERROR(SUMPRODUCT((TBGSHT!$D$9:$D$4167=$B78)*(TBGSHT!$C$9:$C$4167=I$6)),"") -> 0 | J78: =IFERROR(SUMPRODUCT((TBGSHT!$D$9:$D$4167=$B78)*(TBGSHT!$C$9:$C$4167=J$6)),"") -> 0 | K78: =IFERROR(SUMPRODUCT((TBGSHT!$D$9:$D$4167=$B78)*(TBGSHT!$C$9:$C$4167=K$6)),"") -> 0 | L78: =IFERROR(SUMPRODUCT((TBGSHT!$D$9:$D$4167=$B78)*(TBGSHT!$C$9:$C$4167=L$6)),"") -> 0 | M78: 10 | N78: =IFERROR(VLOOKUP($B78,Danhmuc!$D$4:$M$513,2,0),"") -> 404 Phan Đình Phùng, Phường Bắc Lý, Thành Phố Đồng Hới, Tỉnh Quảng Bình | O78: =IFERROR(VLOOKUP($B78,Danhmuc!$D$4:$M$513,3,0),"") -> 0978856888 | P78: 10 | Q78: 0 | U78: 1
A79: =IF($B79<>"",SUBTOTAL(103,B$8:B79),"") -> 72 | B79: Công ty TNHH Vận tải Nam Mỹ | C79: =IFERROR(SUMPRODUCT((TBGSHT!$D$9:$D$4167=$B79)*(TBGSHT!$C$9:$C$4167=C$6)),"") -> 0 | D79: =IFERROR(SUMPRODUCT((TBGSHT!$D$9:$D$4167=$B79)*(TBGSHT!$C$9:$C$4167=D$6)),"") -> 0 | E79: =IFERROR(SUMPRODUCT((TBGSHT!$D$9:$D$4167=$B79)*(TBGSHT!$C$9:$C$4167=E$6)),"") -> 0 | F79: =IFERROR(SUMPRODUCT((TBGSHT!$D$9:$D$4167=$B79)*(TBGSHT!$C$9:$C$4167=F$6)),"") -> 0 | G79: =IFERROR(SUMPRODUCT((TBGSHT!$D$9:$D$4167=$B79)*(TBGSHT!$C$9:$C$4167=G$6)),"") -> 0 | H79: =IFERROR(SUMPRODUCT((TBGSHT!$D$9:$D$4167=$B79)*(TBGSHT!$C$9:$C$4167=H$6)),"") -> 0 | I79: =IFERROR(SUMPRODUCT((TBGSHT!$D$9:$D$4167=$B79)*(TBGSHT!$C$9:$C$4167=I$6)),"") -> 0 | J79: =IFERROR(SUMPRODUCT((TBGSHT!$D$9:$D$4167=$B79)*(TBGSHT!$C$9:$C$4167=J$6)),"") -> 9 | K79: =IFERROR(SUMPRODUCT((TBGSHT!$D$9:$D$4167=$B79)*(TBGSHT!$C$9:$C$4167=K$6)),"") -> 0 | L79: =IFERROR(SUMPRODUCT((TBGSHT!$D$9:$D$4167=$B79)*(TBGSHT!$C$9:$C$4167=L$6)),"") -> 0 | M79: 9 | N79: =IFERROR(VLOOKUP($B79,Danhmuc!$D$4:$M$513,2,0),"") -> Thôn Thuận Bài, Quảng Thuận, Ba Đồn, Quảng Bình | O79: =IFERROR(VLOOKUP($B79,Danhmuc!$D$4:$M$513,3,0),"") -> 0972534555 | P79: 0 | Q79: 9 | U79: 1
A80: =IF($B80<>"",SUBTOTAL(103,B$8:B80),"") -> 73 | B80: Công ty TNHH TMDV vận tải Hữu Hiền | C80: =IFERROR(SUMPRODUCT((TBGSHT!$D$9:$D$4167=$B80)*(TBGSHT!$C$9:$C$4167=C$6)),"") -> 0 | D80: =IFERROR(SUMPRODUCT((TBGSHT!$D$9:$D$4167=$B80)*(TBGSHT!$C$9:$C$4167=D$6)),"") -> 0 | E80: =IFERROR(SUMPRODUCT((TBGSHT!$D$9:$D$4167=$B80)*(TBGSHT!$C$9:$C$4167=E$6)),"") -> 0 | F80: =IFERROR(SUMPRODUCT((TBGSHT!$D$9:$D$4167=$B80)*(TBGSHT!$C$9:$C$4167=F$6)),"") -> 0 | G80: =IFERROR(SUMPRODUCT((TBGSHT!$D$9:$D$4167=$B80)*(TBGSHT!$C$9:$C$4167=G$6)),"") -> 0 | H80: =IFERROR(SUMPRODUCT((TBGSHT!$D$9:$D$4167=$B80)*(TBGSHT!$C$9:$C$4167=H$6)),"") -> 0 | I80: =IFERROR(SUMPRODUCT((TBGSHT!$D$9:$D$4167=$B80)*(TBGSHT!$C$9:$C$4167=I$6)),"") -> 0 | J80: =IFERROR(SUMPRODUCT((TBGSHT!$D$9:$D$4167=$B80)*(TBGSHT!$C$9:$C$4167=J$6)),"") -> 0 | K80: =IFERROR(SUMPRODUCT((TBGSHT!$D$9:$D$4167=$B80)*(TBGSHT!$C$9:$C$4167=K$6)),"") -> 9 | L80: =IFERROR(SUMPRODUCT((TBGSHT!$D$9:$D$4167=$B80)*(TBGSHT!$C$9:$C$4167=L$6)),"") -> 0 | M80: 9 | N80: =IFERROR(VLOOKUP($B80,Danhmuc!$D$4:$M$513,2,0),"") -> 214 Lý Thường Kiệt, Đồng Phú, Đồng Hới, Quảng Bình | O80: =IFERROR(VLOOKUP($B80,Danhmuc!$D$4:$M$513,3,0),"") -> 0913069979 | P80: 0 | Q80: 9 | U80: 1
A81: =IF($B81<>"",SUBTOTAL(103,B$8:B81),"") -> 74 | B81: Công ty TNHH XDTH Tiên Phong | C81: =IFERROR(SUMPRODUCT((TBGSHT!$D$9:$D$4167=$B81)*(TBGSHT!$C$9:$C$4167=C$6)),"") -> 0 | D81: =IFERROR(SUMPRODUCT((TBGSHT!$D$9:$D$4167=$B81)*(TBGSHT!$C$9:$C$4167=D$6)),"") -> 0 | E81: =IFERROR(SUMPRODUCT((TBGSHT!$D$9:$D$4167=$B81)*(TBGSHT!$C$9:$C$4167=E$6)),"") -> 0 | F81: =IFERROR(SUMPRODUCT((TBGSHT!$D$9:$D$4167=$B81)*(TBGSHT!$C$9:$C$4167=F$6)),"") -> 0 | G81: =IFERROR(SUMPRODUCT((TBGSHT!$D$9:$D$4167=$B81)*(TBGSHT!$C$9:$C$4167=G$6)),"") -> 0 | H81: =IFERROR(SUMPRODUCT((TBGSHT!$D$9:$D$4167=$B81)*(TBGSHT!$C$9:$C$4167=H$6)),"") -> 0 | I81: =IFERROR(SUMPRODUCT((TBGSHT!$D$9:$D$4167=$B81)*(TBGSHT!$C$9:$C$4167=I$6)),"") -> 0 | J81: =IFERROR(SUMPRODUCT((TBGSHT!$D$9:$D$4167=$B81)*(TBGSHT!$C$9:$C$4167=J$6)),"") -> 0 | K81: =IFERROR(SUMPRODUCT((TBGSHT!$D$9:$D$4167=$B81)*(TBGSHT!$C$9:$C$4167=K$6)),"") -> 9 | L81: =IFERROR(SUMPRODUCT((TBGSHT!$D$9:$D$4167=$B81)*(TBGSHT!$C$9:$C$4167=L$6)),"") -> 0 | M81: 9 | N81: =IFERROR(VLOOKUP($B81,Danhmuc!$D$4:$M$513,2,0),"") -> Thuỷ Sơn, P.Quảng Long, TX.Ba Đồn, Tỉnh Quảng Bình | O81: =IFERROR(VLOOKUP($B81,Danhmuc!$D$4:$M$513,3,0),"") -> 02323512148 | P81: 0 | Q81: 9 | U81: 1
A82: =IF($B82<>"",SUBTOTAL(103,B$8:B82),"") -> 75 | B82: Công ty TNHH TMTH Xăng dầu Việt Trung | C82: =IFERROR(SUMPRODUCT((TBGSHT!$D$9:$D$4167=$B82)*(TBGSHT!$C$9:$C$4167=C$6)),"") -> 0 | D82: =IFERROR(SUMPRODUCT((TBGSHT!$D$9:$D$4167=$B82)*(TBGSHT!$C$9:$C$4167=D$6)),"") -> 0 | E82: =IFERROR(SUMPRODUCT((TBGSHT!$D$9:$D$4167=$B82)*(TBGSHT!$C$9:$C$4167=E$6)),"") -> 0 | F82: =IFERROR(SUMPRODUCT((TBGSHT!$D$9:$D$4167=$B82)*(TBGSHT!$C$9:$C$4167=F$6)),"") -> 0 | G82: =IFERROR(SUMPRODUCT((TBGSHT!$D$9:$D$4167=$B82)*(TBGSHT!$C$9:$C$4167=G$6)),"") -> 0 | H82: =IFERROR(SUMPRODUCT((TBGSHT!$D$9:$D$4167=$B82)*(TBGSHT!$C$9:$C$4167=H$6)),"") -> 0 | I82: =IFERROR(SUMPRODUCT((TBGSHT!$D$9:$D$4167=$B82)*(TBGSHT!$C$9:$C$4167=I$6)),"") -> 0 | J82: =IFERROR(SUMPRODUCT((TBGSHT!$D$9:$D$4167=$B82)*(TBGSHT!$C$9:$C$4167=J$6)),"") -> 4 | K82: =IFERROR(SUMPRODUCT((TBGSHT!$D$9:$D$4167=$B82)*(TBGSHT!$C$9:$C$4167=K$6)),"") -> 5 | L82: =IFERROR(SUMPRODUCT((TBGSHT!$D$9:$D$4167=$B82)*(TBGSHT!$C$9:$C$4167=L$6)),"") -> 0 | M82: 9 | N82: =IFERROR(VLOOKUP($B82,Danhmuc!$D$4:$M$513,2,0),"") -> Thôn 5, Xã Phú Định, Huyện Bố Trạch, Tỉnh Quảng Bình | O82: =IFERROR(VLOOKUP($B82,Danhmuc!$D$4:$M$513,3,0),"") -> 0 | P82: 0 | Q82: 9 | U82: 1
A83: =IF($B83<>"",SUBTOTAL(103,B$8:B83),"") -> 76 | B83: CÔNG TY TNHH TM&DV TRƯỜNG PHIÊM | C83: =IFERROR(SUMPRODUCT((TBGSHT!$D$9:$D$4167=$B83)*(TBGSHT!$C$9:$C$4167=C$6)),"") -> 0 | D83: =IFERROR(SUMPRODUCT((TBGSHT!$D$9:$D$4167=$B83)*(TBGSHT!$C$9:$C$4167=D$6)),"") -> 0 | E83: =IFERROR(SUMPRODUCT((TBGSHT!$D$9:$D$4167=$B83)*(TBGSHT!$C$9:$C$4167=E$6)),"") -> 0 | F83: =IFERROR(SUMPRODUCT((TBGSHT!$D$9:$D$4167=$B83)*(TBGSHT!$C$9:$C$4167=F$6)),"") -> 0 | G83: =IFERROR(SUMPRODUCT((TBGSHT!$D$9:$D$4167=$B83)*(TBGSHT!$C$9:$C$4167=G$6)),"") -> 0 | H83: =IFERROR(SUMPRODUCT((TBGSHT!$D$9:$D$4167=$B83)*(TBGSHT!$C$9:$C$4167=H$6)),"") -> 0 | I83: =IFERROR(SUMPRODUCT((TBGSHT!$D$9:$D$4167=$B83)*(TBGSHT!$C$9:$C$4167=I$6)),"") -> 0 | J83: =IFERROR(SUMPRODUCT((TBGSHT!$D$9:$D$4167=$B83)*(TBGSHT!$C$9:$C$4167=J$6)),"") -> 0 | K83: =IFERROR(SUMPRODUCT((TBGSHT!$D$9:$D$4167=$B83)*(TBGSHT!$C$9:$C$4167=K$6)),"") -> 9 | L83: =IFERROR(SUMPRODUCT((TBGSHT!$D$9:$D$4167=$B83)*(TBGSHT!$C$9:$C$4167=L$6)),"") -> 0 | M83: 9 | N83: =IFERROR(VLOOKUP($B83,Danhmuc!$D$4:$M$513,2,0),"") -> TK2, Thị trấn Hoàn Lão, Huyện Bố Trạch, Tỉnh Quảng Bình | O83: =IFERROR(VLOOKUP($B83,Danhmuc!$D$4:$M$513,3,0),"") -> 0 | P83: 0 | Q83: 9 | U83: 2
A84: =IF($B84<>"",SUBTOTAL(103,B$8:B84),"") -> 77 | B84: Công ty TNHH TM&DL Diệu Linh | C84: =IFERROR(SUMPRODUCT((TBGSHT!$D$9:$D$4167=$B84)*(TBGSHT!$C$9:$C$4167=C$6)),"") -> 0 | D84: =IFERROR(SUMPRODUCT((TBGSHT!$D$9:$D$4167=$B84)*(TBGSHT!$C$9:$C$4167=D$6)),"") -> 0 | E84: =IFERROR(SUMPRODUCT((TBGSHT!$D$9:$D$4167=$B84)*(TBGSHT!$C$9:$C$4167=E$6)),"") -> 0 | F84: =IFERROR(SUMPRODUCT((TBGSHT!$D$9:$D$4167=$B84)*(TBGSHT!$C$9:$C$4167=F$6)),"") -> 0 | G84: =IFERROR(SUMPRODUCT((TBGSHT!$D$9:$D$4167=$B84)*(TBGSHT!$C$9:$C$4167=G$6)),"") -> 4 | H84: =IFERROR(SUMPRODUCT((TBGSHT!$D$9:$D$4167=$B84)*(TBGSHT!$C$9:$C$4167=H$6)),"") -> 4 | I84: =IFERROR(SUMPRODUCT((TBGSHT!$D$9:$D$4167=$B84)*(TBGSHT!$C$9:$C$4167=I$6)),"") -> 0 | J84: =IFERROR(SUMPRODUCT((TBGSHT!$D$9:$D$4167=$B84)*(TBGSHT!$C$9:$C$4167=J$6)),"") -> 0 | K84: =IFERROR(SUMPRODUCT((TBGSHT!$D$9:$D$4167=$B84)*(TBGSHT!$C$9:$C$4167=K$6)),"") -> 0 | L84: =IFERROR(SUMPRODUCT((TBGSHT!$D$9:$D$4167=$B84)*(TBGSHT!$C$9:$C$4167=L$6)),"") -> 0 | M84: 8 | N84: =IFERROR(VLOOKUP($B84,Danhmuc!$D$4:$M$513,2,0),"") -> TK10, Nam Lý, TP Đồng Hới | O84: =IFERROR(VLOOKUP($B84,Danhmuc!$D$4:$M$513,3,0),"") -> 0977211212 | P84: 8 | Q84: 0 | U84: 1
A85: =IF($B85<>"",SUBTOTAL(103,B$8:B85),"") -> 78 | B85: Công ty TNHH VT&TM Thuận Lợi | C85: =IFERROR(SUMPRODUCT((TBGSHT!$D$9:$D$4167=$B85)*(TBGSHT!$C$9:$C$4167=C$6)),"") -> 0 | D85: =IFERROR(SUMPRODUCT((TBGSHT!$D$9:$D$4167=$B85)*(TBGSHT!$C$9:$C$4167=D$6)),"") -> 0 | E85: =IFERROR(SUMPRODUCT((TBGSHT!$D$9:$D$4167=$B85)*(TBGSHT!$C$9:$C$4167=E$6)),"") -> 0 | F85: =IFERROR(SUMPRODUCT((TBGSHT!$D$9:$D$4167=$B85)*(TBGSHT!$C$9:$C$4167=F$6)),"") -> 0 | G85: =IFERROR(SUMPRODUCT((TBGSHT!$D$9:$D$4167=$B85)*(TBGSHT!$C$9:$C$4167=G$6)),"") -> 0 | H85: =IFERROR(SUMPRODUCT((TBGSHT!$D$9:$D$4167=$B85)*(TBGSHT!$C$9:$C$4167=H$6)),"") -> 0 | I85: =IFERROR(SUMPRODUCT((TBGSHT!$D$9:$D$4167=$B85)*(TBGSHT!$C$9:$C$4167=I$6)),"") -> 0 | J85: =IFERROR(SUMPRODUCT((TBGSHT!$D$9:$D$4167=$B85)*(TBGSHT!$C$9:$C$4167=J$6)),"") -> 0 | K85: =IFERROR(SUMPRODUCT((TBGSHT!$D$9:$D$4167=$B85)*(TBGSHT!$C$9:$C$4167=K$6)),"") -> 8 | L85: =IFERROR(SUMPRODUCT((TBGSHT!$D$9:$D$4167=$B85)*(TBGSHT!$C$9:$C$4167=L$6)),"") -> 0 | M85: 8 | N85: =IFERROR(VLOOKUP($B85,Danhmuc!$D$4:$M$513,2,0),"") -> Xã Hải Trạch, Huyện Bố Trạch, Tỉnh Quảng Bình | O85: =IFERROR(VLOOKUP($B85,Danhmuc!$D$4:$M$513,3,0),"") -> 02323846124 | P85: 0 | Q85: 8 | U85: 1
A86: =IF($B86<>"",SUBTOTAL(103,B$8:B86),"") -> 79 | B86: Công ty TNHH XDTH Đồng Hới | C86: =IFERROR(SUMPRODUCT((TBGSHT!$D$9:$D$4167=$B86)*(TBGSHT!$C$9:$C$4167=C$6)),"") -> 0 | D86: =IFERROR(SUMPRODUCT((TBGSHT!$D$9:$D$4167=$B86)*(TBGSHT!$C$9:$C$4167=D$6)),"") -> 0 | E86: =IFERROR(SUMPRODUCT((TBGSHT!$D$9:$D$4167=$B86)*(TBGSHT!$C$9:$C$4167=E$6)),"") -> 0 | F86: =IFERROR(SUMPRODUCT((TBGSHT!$D$9:$D$4167=$B86)*(TBGSHT!$C$9:$C$4167=F$6)),"") -> 0 | G86: =IFERROR(SUMPRODUCT((TBGSHT!$D$9:$D$4167=$B86)*(TBGSHT!$C$9:$C$4167=G$6)),"") -> 0 | H86: =IFERROR(SUMPRODUCT((TBGSHT!$D$9:$D$4167=$B86)*(TBGSHT!$C$9:$C$4167=H$6)),"") -> 0 | I86: =IFERROR(SUMPRODUCT((TBGSHT!$D$9:$D$4167=$B86)*(TBGSHT!$C$9:$C$4167=I$6)),"") -> 0 | J86: =IFERROR(SUMPRODUCT((TBGSHT!$D$9:$D$4167=$B86)*(TBGSHT!$C$9:$C$4167=J$6)),"") -> 0 | K86: =IFERROR(SUMPRODUCT((TBGSHT!$D$9:$D$4167=$B86)*(TBGSHT!$C$9:$C$4167=K$6)),"") -> 8 | L86: =IFERROR(SUMPRODUCT((TBGSHT!$D$9:$D$4167=$B86)*(TBGSHT!$C$9:$C$4167=L$6)),"") -> 0 | M86: 8 | N86: =IFERROR(VLOOKUP($B86,Danhmuc!$D$4:$M$513,2,0),"") -> 94 Hữu Nghị. P.Nam Lý, TP. Đồng Hới, Tỉnh Quảng Bình | O86: =IFERROR(VLOOKUP($B86,Danhmuc!$D$4:$M$513,3,0),"") -> 02323824764 | P86: 0 | Q86: 8 | U86: 1
A87: =IF($B87<>"",SUBTOTAL(103,B$8:B87),"") -> 80 | B87: Công ty TNHH XDTM Lâm Minh | C87: =IFERROR(SUMPRODUCT((TBGSHT!$D$9:$D$4167=$B87)*(TBGSHT!$C$9:$C$4167=C$6)),"") -> 0 | D87: =IFERROR(SUMPRODUCT((TBGSHT!$D$9:$D$4167=$B87)*(TBGSHT!$C$9:$C$4167=D$6)),"") -> 0 | E87: =IFERROR(SUMPRODUCT((TBGSHT!$D$9:$D$4167=$B87)*(TBGSHT!$C$9:$C$4167=E$6)),"") -> 0 | F87: =IFERROR(SUMPRODUCT((TBGSHT!$D$9:$D$4167=$B87)*(TBGSHT!$C$9:$C$4167=F$6)),"") -> 0 | G87: =IFERROR(SUMPRODUCT((TBGSHT!$D$9:$D$4167=$B87)*(TBGSHT!$C$9:$C$4167=G$6)),"") -> 0 | H87: =IFERROR(SUMPRODUCT((TBGSHT!$D$9:$D$4167=$B87)*(TBGSHT!$C$9:$C$4167=H$6)),"") -> 0 | I87: =IFERROR(SUMPRODUCT((TBGSHT!$D$9:$D$4167=$B87)*(TBGSHT!$C$9:$C$4167=I$6)),"") -> 0 | J87: =IFERROR(SUMPRODUCT((TBGSHT!$D$9:$D$4167=$B87)*(TBGSHT!$C$9:$C$4167=J$6)),"") -> 0 | K87: =IFERROR(SUMPRODUCT((TBGSHT!$D$9:$D$4167=$B87)*(TBGSHT!$C$9:$C$4167=K$6)),"") -> 8 | L87: =IFERROR(SUMPRODUCT((TBGSHT!$D$9:$D$4167=$B87)*(TBGSHT!$C$9:$C$4167=L$6)),"") -> 0 | M87: 8 | N87: =IFERROR(VLOOKUP($B87,Danhmuc!$D$4:$M$513,2,0),"") -> Thôn Lương Yến, Xã Lương Ninh, Huyện Quảng Ninh, Tỉnh Quảng Bình | O87: =IFERROR(VLOOKUP($B87,Danhmuc!$D$4:$M$513,3,0),"") -> 0 | P87: 0 | Q87: 8 | U87: 1
A88: =IF($B88<>"",SUBTOTAL(103,B$8:B88),"") -> 81 | B88: Công ty TNHH XD&TM Hải Thành | C88: =IFERROR(SUMPRODUCT((TBGSHT!$D$9:$D$4167=$B88)*(TBGSHT!$C$9:$C$4167=C$6)),"") -> 0 | D88: =IFERROR(SUMPRODUCT((TBGSHT!$D$9:$D$4167=$B88)*(TBGSHT!$C$9:$C$4167=D$6)),"") -> 0 | E88: =IFERROR(SUMPRODUCT((TBGSHT!$D$9:$D$4167=$B88)*(TBGSHT!$C$9:$C$4167=E$6)),"") -> 0 | F88: =IFERROR(SUMPRODUCT((TBGSHT!$D$9:$D$4167=$B88)*(TBGSHT!$C$9:$C$4167=F$6)),"") -> 0 | G88: =IFERROR(SUMPRODUCT((TBGSHT!$D$9:$D$4167=$B88)*(TBGSHT!$C$9:$C$4167=G$6)),"") -> 0 | H88: =IFERROR(SUMPRODUCT((TBGSHT!$D$9:$D$4167=$B88)*(TBGSHT!$C$9:$C$4167=H$6)),"") -> 0 | I88: =IFERROR(SUMPRODUCT((TBGSHT!$D$9:$D$4167=$B88)*(TBGSHT!$C$9:$C$4167=I$6)),"") -> 0 | J88: =IFERROR(SUMPRODUCT((TBGSHT!$D$9:$D$4167=$B88)*(TBGSHT!$C$9:$C$4167=J$6)),"") -> 0 | K88: =IFERROR(SUMPRODUCT((TBGSHT!$D$9:$D$4167=$B88)*(TBGSHT!$C$9:$C$4167=K$6)),"") -> 8 | L88: =IFERROR(SUMPRODUCT((TBGSHT!$D$9:$D$4167=$B88)*(TBGSHT!$C$9:$C$4167=L$6)),"") -> 0 | M88: 8 | N88: =IFERROR(VLOOKUP($B88,Danhmuc!$D$4:$M$513,2,0),"") -> 53 Nguyễn Hữu Cảnh, Đồng Phú, Đồng Hới, Quảng Bình | O88: =IFERROR(VLOOKUP($B88,Danhmuc!$D$4:$M$513,3,0),"") -> 0 | P88: 0 | Q88: 8 | U88: 1
A89: =IF($B89<>"",SUBTOTAL(103,B$8:B89),"") -> 82 | B89: Công ty Cổ phần XDTH II Quảng Bình | C89: =IFERROR(SUMPRODUCT((TBGSHT!$D$9:$D$4167=$B89)*(TBGSHT!$C$9:$C$4167=C$6)),"") -> 0 | D89: =IFERROR(SUMPRODUCT((TBGSHT!$D$9:$D$4167=$B89)*(TBGSHT!$C$9:$C$4167=D$6)),"") -> 0 | E89: =IFERROR(SUMPRODUCT((TBGSHT!$D$9:$D$4167=$B89)*(TBGSHT!$C$9:$C$4167=E$6)),"") -> 0 | F89: =IFERROR(SUMPRODUCT((TBGSHT!$D$9:$D$4167=$B89)*(TBGSHT!$C$9:$C$4167=F$6)),"") -> 0 | G89: =IFERROR(SUMPRODUCT((TBGSHT!$D$9:$D$4167=$B89)*(TBGSHT!$C$9:$C$4167=G$6)),"") -> 0 | H89: =IFERROR(SUMPRODUCT((TBGSHT!$D$9:$D$4167=$B89)*(TBGSHT!$C$9:$C$4167=H$6)),"") -> 0 | I89: =IFERROR(SUMPRODUCT((TBGSHT!$D$9:$D$4167=$B89)*(TBGSHT!$C$9:$C$4167=I$6)),"") -> 0 | J89: =IFERROR(SUMPRODUCT((TBGSHT!$D$9:$D$4167=$B89)*(TBGSHT!$C$9:$C$4167=J$6)),"") -> 0 | K89: =IFERROR(SUMPRODUCT((TBGSHT!$D$9:$D$4167=$B89)*(TBGSHT!$C$9:$C$4167=K$6)),"") -> 8 | L89: =IFERROR(SUMPRODUCT((TBGSHT!$D$9:$D$4167=$B89)*(TBGSHT!$C$9:$C$4167=L$6)),"") -> 0 | M89: 8 | N89: =IFERROR(VLOOKUP($B89,Danhmuc!$D$4:$M$513,2,0),"") -> 27 Lý Thường Kiệt, Phường Đồng Mỹ, Thành Phố Đồng Hới, Tỉnh Quảng Bình | O89: =IFERROR(VLOOKUP($B89,Danhmuc!$D$4:$M$513,3,0),"") -> 0 | P89: 0 | Q89: 8
A90: =IF($B90<>"",SUBTOTAL(103,B$8:B90),"") -> 83 | B90: Công ty TNHH Vận tải Duyên Hà | C90: =IFERROR(SUMPRODUCT((TBGSHT!$D$9:$D$4167=$B90)*(TBGSHT!$C$9:$C$4167=C$6)),"") -> 0 | D90: =IFERROR(SUMPRODUCT((TBGSHT!$D$9:$D$4167=$B90)*(TBGSHT!$C$9:$C$4167=D$6)),"") -> 0 | E90: =IFERROR(SUMPRODUCT((TBGSHT!$D$9:$D$4167=$B90)*(TBGSHT!$C$9:$C$4167=E$6)),"") -> 0 | F90: =IFERROR(SUMPRODUCT((TBGSHT!$D$9:$D$4167=$B90)*(TBGSHT!$C$9:$C$4167=F$6)),"") -> 0 | G90: =IFERROR(SUMPRODUCT((TBGSHT!$D$9:$D$4167=$B90)*(TBGSHT!$C$9:$C$4167=G$6)),"") -> 0 | H90: =IFERROR(SUMPRODUCT((TBGSHT!$D$9:$D$4167=$B90)*(TBGSHT!$C$9:$C$4167=H$6)),"") -> 0 | I90: =IFERROR(SUMPRODUCT((TBGSHT!$D$9:$D$4167=$B90)*(TBGSHT!$C$9:$C$4167=I$6)),"") -> 0 | J90: =IFERROR(SUMPRODUCT((TBGSHT!$D$9:$D$4167=$B90)*(TBGSHT!$C$9:$C$4167=J$6)),"") -> 0 | K90: =IFERROR(SUMPRODUCT((TBGSHT!$D$9:$D$4167=$B90)*(TBGSHT!$C$9:$C$4167=K$6)),"") -> 8 | L90: =IFERROR(SUMPRODUCT((TBGSHT!$D$9:$D$4167=$B90)*(TBGSHT!$C$9:$C$4167=L$6)),"") -> 0 | M90: 8 | N90: =IFERROR(VLOOKUP($B90,Danhmuc!$D$4:$M$513,2,0),"") -> 71 Hai Bà Trưng, Phường Đồng Phú, Thành Phố Đồng Hới, Tỉnh Quảng Bình | O90: =IFERROR(VLOOKUP($B90,Danhmuc!$D$4:$M$513,3,0),"") -> 0 | P90: 0 | Q90: 8 | U90: 2
A91: =IF($B91<>"",SUBTOTAL(103,B$8:B91),"") -> 84 | B91: Công ty TNHH Hương Hạnh | C91: =IFERROR(SUMPRODUCT((TBGSHT!$D$9:$D$4167=$B91)*(TBGSHT!$C$9:$C$4167=C$6)),"") -> 0 | D91: =IFERROR(SUMPRODUCT((TBGSHT!$D$9:$D$4167=$B91)*(TBGSHT!$C$9:$C$4167=D$6)),"") -> 0 | E91: =IFERROR(SUMPRODUCT((TBGSHT!$D$9:$D$4167=$B91)*(TBGSHT!$C$9:$C$4167=E$6)),"") -> 0 | F91: =IFERROR(SUMPRODUCT((TBGSHT!$D$9:$D$4167=$B91)*(TBGSHT!$C$9:$C$4167=F$6)),"") -> 0 | G91: =IFERROR(SUMPRODUCT((TBGSHT!$D$9:$D$4167=$B91)*(TBGSHT!$C$9:$C$4167=G$6)),"") -> 0 | H91: =IFERROR(SUMPRODUCT((TBGSHT!$D$9:$D$4167=$B91)*(TBGSHT!$C$9:$C$4167=H$6)),"") -> 0 | I91: =IFERROR(SUMPRODUCT((TBGSHT!$D$9:$D$4167=$B91)*(TBGSHT!$C$9:$C$4167=I$6)),"") -> 0 | J91: =IFERROR(SUMPRODUCT((TBGSHT!$D$9:$D$4167=$B91)*(TBGSHT!$C$9:$C$4167=J$6)),"") -> 0 | K91: =IFERROR(SUMPRODUCT((TBGSHT!$D$9:$D$4167=$B91)*(TBGSHT!$C$9:$C$4167=K$6)),"") -> 8 | L91: =IFERROR(SUMPRODUCT((TBGSHT!$D$9:$D$4167=$B91)*(TBGSHT!$C$9:$C$4167=L$6)),"") -> 0 | M91: 8 | N91: =IFERROR(VLOOKUP($B91,Danhmuc!$D$4:$M$513,2,0),"") -> Thôn Đại Nam, Xã Đại Trạch, Huyện Bố Trạch, Tỉnh Quảng Bình | O91: =IFERROR(VLOOKUP($B91,Danhmuc!$D$4:$M$513,3,0),"") -> 0 | P91: 0 | Q91: 8 | U91: 1
A92: =IF($B92<>"",SUBTOTAL(103,B$8:B92),"") -> 85 | B92: Công ty TNHH Hải Vân | C92: =IFERROR(SUMPRODUCT((TBGSHT!$D$9:$D$4167=$B92)*(TBGSHT!$C$9:$C$4167=C$6)),"") -> 0 | D92: =IFERROR(SUMPRODUCT((TBGSHT!$D$9:$D$4167=$B92)*(TBGSHT!$C$9:$C$4167=D$6)),"") -> 0 | E92: =IFERROR(SUMPRODUCT((TBGSHT!$D$9:$D$4167=$B92)*(TBGSHT!$C$9:$C$4167=E$6)),"") -> 0 | F92: =IFERROR(SUMPRODUCT((TBGSHT!$D$9:$D$4167=$B92)*(TBGSHT!$C$9:$C$4167=F$6)),"") -> 0 | G92: =IFERROR(SUMPRODUCT((TBGSHT!$D$9:$D$4167=$B92)*(TBGSHT!$C$9:$C$4167=G$6)),"") -> 0 | H92: =IFERROR(SUMPRODUCT((TBGSHT!$D$9:$D$4167=$B92)*(TBGSHT!$C$9:$C$4167=H$6)),"") -> 0 | I92: =IFERROR(SUMPRODUCT((TBGSHT!$D$9:$D$4167=$B92)*(TBGSHT!$C$9:$C$4167=I$6)),"") -> 0 | J92: =IFERROR(SUMPRODUCT((TBGSHT!$D$9:$D$4167=$B92)*(TBGSHT!$C$9:$C$4167=J$6)),"") -> 0 | K92: =IFERROR(SUMPRODUCT((TBGSHT!$D$9:$D$4167=$B92)*(TBGSHT!$C$9:$C$4167=K$6)),"") -> 7 | L92: =IFERROR(SUMPRODUCT((TBGSHT!$D$9:$D$4167=$B92)*(TBGSHT!$C$9:$C$4167=L$6)),"") -> 0 | M92: 7 | N92: =IFERROR(VLOOKUP($B92,Danhmuc!$D$4:$M$513,2,0),"") -> Đường Quang Trung, tiểu khu Diêm Hải, Phường Phú Hải, TP Đồng Hới, Quảng Bình | O92: =IFERROR(VLOOKUP($B92,Danhmuc!$D$4:$M$513,3,0),"") -> 02323822097 | P92: 0 | Q92: 7 | U92: 1
A93: =IF($B93<>"",SUBTOTAL(103,B$8:B93),"") -> 86 | B93: Công ty TNHH TM Quy Hương | C93: =IFERROR(SUMPRODUCT((TBGSHT!$D$9:$D$4167=$B93)*(TBGSHT!$C$9:$C$4167=C$6)),"") -> 0 | D93: =IFERROR(SUMPRODUCT((TBGSHT!$D$9:$D$4167=$B93)*(TBGSHT!$C$9:$C$4167=D$6)),"") -> 0 | E93: =IFERROR(SUMPRODUCT((TBGSHT!$D$9:$D$4167=$B93)*(TBGSHT!$C$9:$C$4167=E$6)),"") -> 0 | F93: =IFERROR(SUMPRODUCT((TBGSHT!$D$9:$D$4167=$B93)*(TBGSHT!$C$9:$C$4167=F$6)),"") -> 0 | G93: =IFERROR(SUMPRODUCT((TBGSHT!$D$9:$D$4167=$B93)*(TBGSHT!$C$9:$C$4167=G$6)),"") -> 0 | H93: =IFERROR(SUMPRODUCT((TBGSHT!$D$9:$D$4167=$B93)*(TBGSHT!$C$9:$C$4167=H$6)),"") -> 0 | I93: =IFERROR(SUMPRODUCT((TBGSHT!$D$9:$D$4167=$B93)*(TBGSHT!$C$9:$C$4167=I$6)),"") -> 0 | J93: =IFERROR(SUMPRODUCT((TBGSHT!$D$9:$D$4167=$B93)*(TBGSHT!$C$9:$C$4167=J$6)),"") -> 4 | K93: =IFERROR(SUMPRODUCT((TBGSHT!$D$9:$D$4167=$B93)*(TBGSHT!$C$9:$C$4167=K$6)),"") -> 3 | L93: =IFERROR(SUMPRODUCT((TBGSHT!$D$9:$D$4167=$B93)*(TBGSHT!$C$9:$C$4167=L$6)),"") -> 0 | M93: 7 | N93: =IFERROR(VLOOKUP($B93,Danhmuc!$D$4:$M$513,2,0),"") -> 320 - Quang Trung, Phường Ba Đồn, Thị xã Ba Đồn, Tỉnh Quảng Bình | O93: =IFERROR(VLOOKUP($B93,Danhmuc!$D$4:$M$513,3,0),"") -> 0523510333 | P93: 0 | Q93: 7 | U93: 1
A94: =IF($B94<>"",SUBTOTAL(103,B$8:B94),"") -> 87 | B94: Công ty TNHH Phú Hải | C94: =IFERROR(SUMPRODUCT((TBGSHT!$D$9:$D$4167=$B94)*(TBGSHT!$C$9:$C$4167=C$6)),"") -> 0 | D94: =IFERROR(SUMPRODUCT((TBGSHT!$D$9:$D$4167=$B94)*(TBGSHT!$C$9:$C$4167=D$6)),"") -> 0 | E94: =IFERROR(SUMPRODUCT((TBGSHT!$D$9:$D$4167=$B94)*(TBGSHT!$C$9:$C$4167=E$6)),"") -> 0 | F94: =IFERROR(SUMPRODUCT((TBGSHT!$D$9:$D$4167=$B94)*(TBGSHT!$C$9:$C$4167=F$6)),"") -> 0 | G94: =IFERROR(SUMPRODUCT((TBGSHT!$D$9:$D$4167=$B94)*(TBGSHT!$C$9:$C$4167=G$6)),"") -> 0 | H94: =IFERROR(SUMPRODUCT((TBGSHT!$D$9:$D$4167=$B94)*(TBGSHT!$C$9:$C$4167=H$6)),"") -> 0 | I94: =IFERROR(SUMPRODUCT((TBGSHT!$D$9:$D$4167=$B94)*(TBGSHT!$C$9:$C$4167=I$6)),"") -> 0 | J94: =IFERROR(SUMPRODUCT((TBGSHT!$D$9:$D$4167=$B94)*(TBGSHT!$C$9:$C$4167=J$6)),"") -> 1 | K94: =IFERROR(SUMPRODUCT((TBGSHT!$D$9:$D$4167=$B94)*(TBGSHT!$C$9:$C$4167=K$6)),"") -> 6 | L94: =IFERROR(SUMPRODUCT((TBGSHT!$D$9:$D$4167=$B94)*(TBGSHT!$C$9:$C$4167=L$6)),"") -> 0 | M94: 7 | N94: =IFERROR(VLOOKUP($B94,Danhmuc!$D$4:$M$513,2,0),"") -> 299 Trần Hưng Đạo, TP Đồng Hới, Tỉnh Quảng Bình | O94: =IFERROR(VLOOKUP($B94,Danhmuc!$D$4:$M$513,3,0),"") -> 0523851979 | P94: 0 | Q94: 7 | U94: 1
A95: =IF($B95<>"",SUBTOTAL(103,B$8:B95),"") -> 88 | B95: Công ty TNHH TMTH Minh Khiêm | C95: =IFERROR(SUMPRODUCT((TBGSHT!$D$9:$D$4167=$B95)*(TBGSHT!$C$9:$C$4167=C$6)),"") -> 0 | D95: =IFERROR(SUMPRODUCT((TBGSHT!$D$9:$D$4167=$B95)*(TBGSHT!$C$9:$C$4167=D$6)),"") -> 0 | E95: =IFERROR(SUMPRODUCT((TBGSHT!$D$9:$D$4167=$B95)*(TBGSHT!$C$9:$C$4167=E$6)),"") -> 0 | F95: =IFERROR(SUMPRODUCT((TBGSHT!$D$9:$D$4167=$B95)*(TBGSHT!$C$9:$C$4167=F$6)),"") -> 0 | G95: =IFERROR(SUMPRODUCT((TBGSHT!$D$9:$D$4167=$B95)*(TBGSHT!$C$9:$C$4167=G$6)),"") -> 0 | H95: =IFERROR(SUMPRODUCT((TBGSHT!$D$9:$D$4167=$B95)*(TBGSHT!$C$9:$C$4167=H$6)),"") -> 0 | I95: =IFERROR(SUMPRODUCT((TBGSHT!$D$9:$D$4167=$B95)*(TBGSHT!$C$9:$C$4167=I$6)),"") -> 0 | J95: =IFERROR(SUMPRODUCT((TBGSHT!$D$9:$D$4167=$B95)*(TBGSHT!$C$9:$C$4167=J$6)),"") -> 2 | K95: =IFERROR(SUMPRODUCT((TBGSHT!$D$9:$D$4167=$B95)*(TBGSHT!$C$9:$C$4167=K$6)),"") -> 5 | L95: =IFERROR(SUMPRODUCT((TBGSHT!$D$9:$D$4167=$B95)*(TBGSHT!$C$9:$C$4167=L$6)),"") -> 0 | M95: 7 | N95: =IFERROR(VLOOKUP($B95,Danhmuc!$D$4:$M$513,2,0),"") -> Tổ dân phố Cồn, Quảng Thuận, Ba Đồn, Quảng Bình | O95: =IFERROR(VLOOKUP($B95,Danhmuc!$D$4:$M$513,3,0),"") -> 0523512239 | P95: 0 | Q95: 7 | U95: 1
A96: =IF($B96<>"",SUBTOTAL(103,B$8:B96),"") -> 89 | B96: Công ty CP sản xuất Lâm sản Xuất khẩu Quảng Đông | C96: =IFERROR(SUMPRODUCT((TBGSHT!$D$9:$D$4167=$B96)*(TBGSHT!$C$9:$C$4167=C$6)),"") -> 0 | D96: =IFERROR(SUMPRODUCT((TBGSHT!$D$9:$D$4167=$B96)*(TBGSHT!$C$9:$C$4167=D$6)),"") -> 0 | E96: =IFERROR(SUMPRODUCT((TBGSHT!$D$9:$D$4167=$B96)*(TBGSHT!$C$9:$C$4167=E$6)),"") -> 0 | F96: =IFERROR(SUMPRODUCT((TBGSHT!$D$9:$D$4167=$B96)*(TBGSHT!$C$9:$C$4167=F$6)),"") -> 0 | G96: =IFERROR(SUMPRODUCT((TBGSHT!$D$9:$D$4167=$B96)*(TBGSHT!$C$9:$C$4167=G$6)),"") -> 0 | H96: =IFERROR(SUMPRODUCT((TBGSHT!$D$9:$D$4167=$B96)*(TBGSHT!$C$9:$C$4167=H$6)),"") -> 0 | I96: =IFERROR(SUMPRODUCT((TBGSHT!$D$9:$D$4167=$B96)*(TBGSHT!$C$9:$C$4167=I$6)),"") -> 0 | J96: =IFERROR(SUMPRODUCT((TBGSHT!$D$9:$D$4167=$B96)*(TBGSHT!$C$9:$C$4167=J$6)),"") -> 2 | K96: =IFERROR(SUMPRODUCT((TBGSHT!$D$9:$D$4167=$B96)*(TBGSHT!$C$9:$C$4167=K$6)),"") -> 5 | L96: =IFERROR(SUMPRODUCT((TBGSHT!$D$9:$D$4167=$B96)*(TBGSHT!$C$9:$C$4167=L$6)),"") -> 0 | M96: 7 | N96: =IFERROR(VLOOKUP($B96,Danhmuc!$D$4:$M$513,2,0),"") -> KCN Hòn La, Quảng Đông, Quảng Trạch, Quảng Bình | O96: =IFERROR(VLOOKUP($B96,Danhmuc!$D$4:$M$513,3,0),"") -> 0523599022 | P96: 0 | Q96: 7 | U96: 1
A97: =IF($B97<>"",SUBTOTAL(103,B$8:B97),"") -> 90 | B97: Công ty TNHH DVTM Nghĩa Cảnh | C97: =IFERROR(SUMPRODUCT((TBGSHT!$D$9:$D$4167=$B97)*(TBGSHT!$C$9:$C$4167=C$6)),"") -> 0 | D97: =IFERROR(SUMPRODUCT((TBGSHT!$D$9:$D$4167=$B97)*(TBGSHT!$C$9:$C$4167=D$6)),"") -> 0 | E97: =IFERROR(SUMPRODUCT((TBGSHT!$D$9:$D$4167=$B97)*(TBGSHT!$C$9:$C$4167=E$6)),"") -> 0 | F97: =IFERROR(SUMPRODUCT((TBGSHT!$D$9:$D$4167=$B97)*(TBGSHT!$C$9:$C$4167=F$6)),"") -> 0 | G97: =IFERROR(SUMPRODUCT((TBGSHT!$D$9:$D$4167=$B97)*(TBGSHT!$C$9:$C$4167=G$6)),"") -> 0 | H97: =IFERROR(SUMPRODUCT((TBGSHT!$D$9:$D$4167=$B97)*(TBGSHT!$C$9:$C$4167=H$6)),"") -> 0 | I97: =IFERROR(SUMPRODUCT((TBGSHT!$D$9:$D$4167=$B97)*(TBGSHT!$C$9:$C$4167=I$6)),"") -> 0 | J97: =IFERROR(SUMPRODUCT((TBGSHT!$D$9:$D$4167=$B97)*(TBGSHT!$C$9:$C$4167=J$6)),"") -> 0 | K97: =IFERROR(SUMPRODUCT((TBGSHT!$D$9:$D$4167=$B97)*(TBGSHT!$C$9:$C$4167=K$6)),"") -> 7 | L97: =IFERROR(SUMPRODUCT((TBGSHT!$D$9:$D$4167=$B97)*(TBGSHT!$C$9:$C$4167=L$6)),"") -> 0 | M97: 7 | N97: =IFERROR(VLOOKUP($B97,Danhmuc!$D$4:$M$513,2,0),"") -> TT.Đồng Lê, huyện Tuyên Hoá, tỉnh Quảng Bình | O97: =IFERROR(VLOOKUP($B97,Danhmuc!$D$4:$M$513,3,0),"") -> 0912719006 | P97: 0 | Q97: 7 | U97: 1
A98: =IF($B98<>"",SUBTOTAL(103,B$8:B98),"") -> 91 | B98: Công ty TNHH XDTH Bình An | C98: =IFERROR(SUMPRODUCT((TBGSHT!$D$9:$D$4167=$B98)*(TBGSHT!$C$9:$C$4167=C$6)),"") -> 0 | D98: =IFERROR(SUMPRODUCT((TBGSHT!$D$9:$D$4167=$B98)*(TBGSHT!$C$9:$C$4167=D$6)),"") -> 0 | E98: =IFERROR(SUMPRODUCT((TBGSHT!$D$9:$D$4167=$B98)*(TBGSHT!$C$9:$C$4167=E$6)),"") -> 0 | F98: =IFERROR(SUMPRODUCT((TBGSHT!$D$9:$D$4167=$B98)*(TBGSHT!$C$9:$C$4167=F$6)),"") -> 0 | G98: =IFERROR(SUMPRODUCT((TBGSHT!$D$9:$D$4167=$B98)*(TBGSHT!$C$9:$C$4167=G$6)),"") -> 0 | H98: =IFERROR(SUMPRODUCT((TBGSHT!$D$9:$D$4167=$B98)*(TBGSHT!$C$9:$C$4167=H$6)),"") -> 0 | I98: =IFERROR(SUMPRODUCT((TBGSHT!$D$9:$D$4167=$B98)*(TBGSHT!$C$9:$C$4167=I$6)),"") -> 0 | J98: =IFERROR(SUMPRODUCT((TBGSHT!$D$9:$D$4167=$B98)*(TBGSHT!$C$9:$C$4167=J$6)),"") -> 5 | K98: =IFERROR(SUMPRODUCT((TBGSHT!$D$9:$D$4167=$B98)*(TBGSHT!$C$9:$C$4167=K$6)),"") -> 2 | L98: =IFERROR(SUMPRODUCT((TBGSHT!$D$9:$D$4167=$B98)*(TBGSHT!$C$9:$C$4167=L$6)),"") -> 0 | M98: 7 | N98: =IFERROR(VLOOKUP($B98,Danhmuc!$D$4:$M$513,2,0),"") -> Minh Lợi, Phường Quảng Thọ, thị xã Ba Đồn, tỉnh Quảng Bình | O98: =IFERROR(VLOOKUP($B98,Danhmuc!$D$4:$M$513,3,0),"") -> 0947252526 | P98: 0 | Q98: 7 | U98: 1
A99: =IF($B99<>"",SUBTOTAL(103,B$8:B99),"") -> 92 | B99: CÔNG TY TNHH HOÀNG DƯƠNG HẢI | C99: =IFERROR(SUMPRODUCT((TBGSHT!$D$9:$D$4167=$B99)*(TBGSHT!$C$9:$C$4167=C$6)),"") -> 0 | D99: =IFERROR(SUMPRODUCT((TBGSHT!$D$9:$D$4167=$B99)*(TBGSHT!$C$9:$C$4167=D$6)),"") -> 0 | E99: =IFERROR(SUMPRODUCT((TBGSHT!$D$9:$D$4167=$B99)*(TBGSHT!$C$9:$C$4167=E$6)),"") -> 0 | F99: =IFERROR(SUMPRODUCT((TBGSHT!$D$9:$D$4167=$B99)*(TBGSHT!$C$9:$C$4167=F$6)),"") -> 0 | G99: =IFERROR(SUMPRODUCT((TBGSHT!$D$9:$D$4167=$B99)*(TBGSHT!$C$9:$C$4167=G$6)),"") -> 0 | H99: =IFERROR(SUMPRODUCT((TBGSHT!$D$9:$D$4167=$B99)*(TBGSHT!$C$9:$C$4167=H$6)),"") -> 0 | I99: =IFERROR(SUMPRODUCT((TBGSHT!$D$9:$D$4167=$B99)*(TBGSHT!$C$9:$C$4167=I$6)),"") -> 0 | J99: =IFERROR(SUMPRODUCT((TBGSHT!$D$9:$D$4167=$B99)*(TBGSHT!$C$9:$C$4167=J$6)),"") -> 0 | K99: =IFERROR(SUMPRODUCT((TBGSHT!$D$9:$D$4167=$B99)*(TBGSHT!$C$9:$C$4167=K$6)),"") -> 7 | L99: =IFERROR(SUMPRODUCT((TBGSHT!$D$9:$D$4167=$B99)*(TBGSHT!$C$9:$C$4167=L$6)),"") -> 0 | M99: 7 | N99: =IFERROR(VLOOKUP($B99,Danhmuc!$D$4:$M$513,2,0),"") -> TK2, TT.Đồng Lê, Huyện Tuyên Hoá, Tỉnh Quảng Bình | O99: =IFERROR(VLOOKUP($B99,Danhmuc!$D$4:$M$513,3,0),"") -> 0976286594 | P99: 0 | Q99: 7 | U99: 1
A100: =IF($B100<>"",SUBTOTAL(103,B$8:B100),"") -> 93 | B100: Công ty TNHH DL&TM Chiến Nguyệt | C100: =IFERROR(SUMPRODUCT((TBGSHT!$D$9:$D$4167=$B100)*(TBGSHT!$C$9:$C$4167=C$6)),"") -> 0 | D100: =IFERROR(SUMPRODUCT((TBGSHT!$D$9:$D$4167=$B100)*(TBGSHT!$C$9:$C$4167=D$6)),"") -> 0 | E100: =IFERROR(SUMPRODUCT((TBGSHT!$D$9:$D$4167=$B100)*(TBGSHT!$C$9:$C$4167=E$6)),"") -> 0 | F100: =IFERROR(SUMPRODUCT((TBGSHT!$D$9:$D$4167=$B100)*(TBGSHT!$C$9:$C$4167=F$6)),"") -> 0 | G100: =IFERROR(SUMPRODUCT((TBGSHT!$D$9:$D$4167=$B100)*(TBGSHT!$C$9:$C$4167=G$6)),"") -> 5 | H100: =IFERROR(SUMPRODUCT((TBGSHT!$D$9:$D$4167=$B100)*(TBGSHT!$C$9:$C$4167=H$6)),"") -> 2 | I100: =IFERROR(SUMPRODUCT((TBGSHT!$D$9:$D$4167=$B100)*(TBGSHT!$C$9:$C$4167=I$6)),"") -> 0 | J100: =IFERROR(SUMPRODUCT((TBGSHT!$D$9:$D$4167=$B100)*(TBGSHT!$C$9:$C$4167=J$6)),"") -> 0 | K100: =IFERROR(SUMPRODUCT((TBGSHT!$D$9:$D$4167=$B100)*(TBGSHT!$C$9:$C$4167=K$6)),"") -> 0 | L100: =IFERROR(SUMPRODUCT((TBGSHT!$D$9:$D$4167=$B100)*(TBGSHT!$C$9:$C$4167=L$6)),"") -> 0 | M100: 7 | N100: =IFERROR(VLOOKUP($B100,Danhmuc!$D$4:$M$513,2,0),"") -> Thôn Thanh Khê, xã Thanh Trạch, huyện Bố Trạch, tỉnh Quảng Bình | O100: =IFERROR(VLOOKUP($B100,Danhmuc!$D$4:$M$513,3,0),"") -> 0905866905 | P100: 7 | Q100: 0 | U100: 1
A101: =IF($B101<>"",SUBTOTAL(103,B$8:B101),"") -> 94 | B101: CÔNG TY TNHH VT&TM HÒA PHÁT | C101: =IFERROR(SUMPRODUCT((TBGSHT!$D$9:$D$4167=$B101)*(TBGSHT!$C$9:$C$4167=C$6)),"") -> 0 | D101: =IFERROR(SUMPRODUCT((TBGSHT!$D$9:$D$4167=$B101)*(TBGSHT!$C$9:$C$4167=D$6)),"") -> 0 | E101: =IFERROR(SUMPRODUCT((TBGSHT!$D$9:$D$4167=$B101)*(TBGSHT!$C$9:$C$4167=E$6)),"") -> 0 | F101: =IFERROR(SUMPRODUCT((TBGSHT!$D$9:$D$4167=$B101)*(TBGSHT!$C$9:$C$4167=F$6)),"") -> 0 | G101: =IFERROR(SUMPRODUCT((TBGSHT!$D$9:$D$4167=$B101)*(TBGSHT!$C$9:$C$4167=G$6)),"") -> 0 | H101: =IFERROR(SUMPRODUCT((TBGSHT!$D$9:$D$4167=$B101)*(TBGSHT!$C$9:$C$4167=H$6)),"") -> 0 | I101: =IFERROR(SUMPRODUCT((TBGSHT!$D$9:$D$4167=$B101)*(TBGSHT!$C$9:$C$4167=I$6)),"") -> 0 | J101: =IFERROR(SUMPRODUCT((TBGSHT!$D$9:$D$4167=$B101)*(TBGSHT!$C$9:$C$4167=J$6)),"") -> 1 | K101: =IFERROR(SUMPRODUCT((TBGSHT!$D$9:$D$4167=$B101)*(TBGSHT!$C$9:$C$4167=K$6)),"") -> 6 | L101: =IFERROR(SUMPRODUCT((TBGSHT!$D$9:$D$4167=$B101)*(TBGSHT!$C$9:$C$4167=L$6)),"") -> 0 | M101: 7 | N101: =IFERROR(VLOOKUP($B101,Danhmuc!$D$4:$M$513,2,0),"") -> Xuân Dục 1, Gia Ninh, Quảng Ninh, Quảng Bình | O101: =IFERROR(VLOOKUP($B101,Danhmuc!$D$4:$M$513,3,0),"") -> 0983260355 | P101: 0 | Q101: 7 | U101: 1
A102: =IF($B102<>"",SUBTOTAL(103,B$8:B102),"") -> 95 | B102: Công ty TNHH Tân Thịnh | C102: =IFERROR(SUMPRODUCT((TBGSHT!$D$9:$D$4167=$B102)*(TBGSHT!$C$9:$C$4167=C$6)),"") -> 0 | D102: =IFERROR(SUMPRODUCT((TBGSHT!$D$9:$D$4167=$B102)*(TBGSHT!$C$9:$C$4167=D$6)),"") -> 0 | E102: =IFERROR(SUMPRODUCT((TBGSHT!$D$9:$D$4167=$B102)*(TBGSHT!$C$9:$C$4167=E$6)),"") -> 0 | F102: =IFERROR(SUMPRODUCT((TBGSHT!$D$9:$D$4167=$B102)*(TBGSHT!$C$9:$C$4167=F$6)),"") -> 0 | G102: =IFERROR(SUMPRODUCT((TBGSHT!$D$9:$D$4167=$B102)*(TBGSHT!$C$9:$C$4167=G$6)),"") -> 0 | H102: =IFERROR(SUMPRODUCT((TBGSHT!$D$9:$D$4167=$B102)*(TBGSHT!$C$9:$C$4167=H$6)),"") -> 0 | I102: =IFERROR(SUMPRODUCT((TBGSHT!$D$9:$D$4167=$B102)*(TBGSHT!$C$9:$C$4167=I$6)),"") -> 0 | J102: =IFERROR(SUMPRODUCT((TBGSHT!$D$9:$D$4167=$B102)*(TBGSHT!$C$9:$C$4167=J$6)),"") -> 0 | K102: =IFERROR(SUMPRODUCT((TBGSHT!$D$9:$D$4167=$B102)*(TBGSHT!$C$9:$C$4167=K$6)),"") -> 7 | L102: =IFERROR(SUMPRODUCT((TBGSHT!$D$9:$D$4167=$B102)*(TBGSHT!$C$9:$C$4167=L$6)),"") -> 0 | M102: 7 | N102: =IFERROR(VLOOKUP($B102,Danhmuc!$D$4:$M$513,2,0),"") -> Thôn Mỹ Đức, xã Sơn Thuỷ, huyện Lệ Thuỷ, tỉnh Quảng Bình | O102: =IFERROR(VLOOKUP($B102,Danhmuc!$D$4:$M$513,3,0),"") -> 0 | P102: 0 | Q102: 7 | U102: 1
A103: =IF($B103<>"",SUBTOTAL(103,B$8:B103),"") -> 96 | B103: CÔNG TY CỔ PHẦN SƠN THÀNH TÂM | C103: =IFERROR(SUMPRODUCT((TBGSHT!$D$9:$D$4167=$B103)*(TBGSHT!$C$9:$C$4167=C$6)),"") -> 0 | D103: =IFERROR(SUMPRODUCT((TBGSHT!$D$9:$D$4167=$B103)*(TBGSHT!$C$9:$C$4167=D$6)),"") -> 0 | E103: =IFERROR(SUMPRODUCT((TBGSHT!$D$9:$D$4167=$B103)*(TBGSHT!$C$9:$C$4167=E$6)),"") -> 0 | F103: =IFERROR(SUMPRODUCT((TBGSHT!$D$9:$D$4167=$B103)*(TBGSHT!$C$9:$C$4167=F$6)),"") -> 0 | G103: =IFERROR(SUMPRODUCT((TBGSHT!$D$9:$D$4167=$B103)*(TBGSHT!$C$9:$C$4167=G$6)),"") -> 0 | H103: =IFERROR(SUMPRODUCT((TBGSHT!$D$9:$D$4167=$B103)*(TBGSHT!$C$9:$C$4167=H$6)),"") -> 0 | I103: =IFERROR(SUMPRODUCT((TBGSHT!$D$9:$D$4167=$B103)*(TBGSHT!$C$9:$C$4167=I$6)),"") -> 1 | J103: =IFERROR(SUMPRODUCT((TBGSHT!$D$9:$D$4167=$B103)*(TBGSHT!$C$9:$C$4167=J$6)),"") -> 5 | K103: =IFERROR(SUMPRODUCT((TBGSHT!$D$9:$D$4167=$B103)*(TBGSHT!$C$9:$C$4167=K$6)),"") -> 1 | L103: =IFERROR(SUMPRODUCT((TBGSHT!$D$9:$D$4167=$B103)*(TBGSHT!$C$9:$C$4167=L$6)),"") -> 0 | M103: 7 | N103: =IFERROR(VLOOKUP($B103,Danhmuc!$D$4:$M$513,2,0),"") -> Thôn Sa Động, Xã Bảo Ninh, Thành Phố Đồng Hới, Tỉnh Quảng Bình | O103: =IFERROR(VLOOKUP($B103,Danhmuc!$D$4:$M$513,3,0),"") -> 0917144305 | P103: 0 | Q103: 7 | U103: 1
A104: =IF($B104<>"",SUBTOTAL(103,B$8:B104),"") -> 97 | B104: CÔNG TY TNHH TM LÝ LỜI | C104: =IFERROR(SUMPRODUCT((TBGSHT!$D$9:$D$4167=$B104)*(TBGSHT!$C$9:$C$4167=C$6)),"") -> 0 | D104: =IFERROR(SUMPRODUCT((TBGSHT!$D$9:$D$4167=$B104)*(TBGSHT!$C$9:$C$4167=D$6)),"") -> 0 | E104: =IFERROR(SUMPRODUCT((TBGSHT!$D$9:$D$4167=$B104)*(TBGSHT!$C$9:$C$4167=E$6)),"") -> 0 | F104: =IFERROR(SUMPRODUCT((TBGSHT!$D$9:$D$4167=$B104)*(TBGSHT!$C$9:$C$4167=F$6)),"") -> 0 | G104: =IFERROR(SUMPRODUCT((TBGSHT!$D$9:$D$4167=$B104)*(TBGSHT!$C$9:$C$4167=G$6)),"") -> 0 | H104: =IFERROR(SUMPRODUCT((TBGSHT!$D$9:$D$4167=$B104)*(TBGSHT!$C$9:$C$4167=H$6)),"") -> 0 | I104: =IFERROR(SUMPRODUCT((TBGSHT!$D$9:$D$4167=$B104)*(TBGSHT!$C$9:$C$4167=I$6)),"") -> 0 | J104: =IFERROR(SUMPRODUCT((TBGSHT!$D$9:$D$4167=$B104)*(TBGSHT!$C$9:$C$4167=J$6)),"") -> 0 | K104: =IFERROR(SUMPRODUCT((TBGSHT!$D$9:$D$4167=$B104)*(TBGSHT!$C$9:$C$4167=K$6)),"") -> 7 | L104: =IFERROR(SUMPRODUCT((TBGSHT!$D$9:$D$4167=$B104)*(TBGSHT!$C$9:$C$4167=L$6)),"") -> 0 | M104: 7 | N104: =IFERROR(VLOOKUP($B104,Danhmuc!$D$4:$M$513,2,0),"") -> KP1, Phường Ba Đồn, Thị xã Ba Đồn, Tỉnh Quảng Bình | O104: =IFERROR(VLOOKUP($B104,Danhmuc!$D$4:$M$513,3,0),"") -> 0 | P104: 0 | Q104: 7 | U104: 1
A105: =IF($B105<>"",SUBTOTAL(103,B$8:B105),"") -> 98 | B105: Công ty TNHH Hà Thọ | C105: =IFERROR(SUMPRODUCT((TBGSHT!$D$9:$D$4167=$B105)*(TBGSHT!$C$9:$C$4167=C$6)),"") -> 0 | D105: =IFERROR(SUMPRODUCT((TBGSHT!$D$9:$D$4167=$B105)*(TBGSHT!$C$9:$C$4167=D$6)),"") -> 0 | E105: =IFERROR(SUMPRODUCT((TBGSHT!$D$9:$D$4167=$B105)*(TBGSHT!$C$9:$C$4167=E$6)),"") -> 0 | F105: =IFERROR(SUMPRODUCT((TBGSHT!$D$9:$D$4167=$B105)*(TBGSHT!$C$9:$C$4167=F$6)),"") -> 0 | G105: =IFERROR(SUMPRODUCT((TBGSHT!$D$9:$D$4167=$B105)*(TBGSHT!$C$9:$C$4167=G$6)),"") -> 0 | H105: =IFERROR(SUMPRODUCT((TBGSHT!$D$9:$D$4167=$B105)*(TBGSHT!$C$9:$C$4167=H$6)),"") -> 0 | I105: =IFERROR(SUMPRODUCT((TBGSHT!$D$9:$D$4167=$B105)*(TBGSHT!$C$9:$C$4167=I$6)),"") -> 0 | J105: =IFERROR(SUMPRODUCT((TBGSHT!$D$9:$D$4167=$B105)*(TBGSHT!$C$9:$C$4167=J$6)),"") -> 0 | K105: =IFERROR(SUMPRODUCT((TBGSHT!$D$9:$D$4167=$B105)*(TBGSHT!$C$9:$C$4167=K$6)),"") -> 7 | L105: =IFERROR(SUMPRODUCT((TBGSHT!$D$9:$D$4167=$B105)*(TBGSHT!$C$9:$C$4167=L$6)),"") -> 0 | M105: 7 | N105: =IFERROR(VLOOKUP($B105,Danhmuc!$D$4:$M$513,2,0),"") -> Đường Quang Trung, Phường Phú Hải, Thành Phố Đồng Hới, Tỉnh Quảng Bình | O105: =IFERROR(VLOOKUP($B105,Danhmuc!$D$4:$M$513,3,0),"") -> 0 | P105: 0 | Q105: 7 | U105: 2
A106: =IF($B106<>"",SUBTOTAL(103,B$8:B106),"") -> 99 | B106: Công ty TNHH TMDV Hữu Lộc | C106: =IFERROR(SUMPRODUCT((TBGSHT!$D$9:$D$4167=$B106)*(TBGSHT!$C$9:$C$4167=C$6)),"") -> 0 | D106: =IFERROR(SUMPRODUCT((TBGSHT!$D$9:$D$4167=$B106)*(TBGSHT!$C$9:$C$4167=D$6)),"") -> 0 | E106: =IFERROR(SUMPRODUCT((TBGSHT!$D$9:$D$4167=$B106)*(TBGSHT!$C$9:$C$4167=E$6)),"") -> 0 | F106: =IFERROR(SUMPRODUCT((TBGSHT!$D$9:$D$4167=$B106)*(TBGSHT!$C$9:$C$4167=F$6)),"") -> 0 | G106: =IFERROR(SUMPRODUCT((TBGSHT!$D$9:$D$4167=$B106)*(TBGSHT!$C$9:$C$4167=G$6)),"") -> 0 | H106: =IFERROR(SUMPRODUCT((TBGSHT!$D$9:$D$4167=$B106)*(TBGSHT!$C$9:$C$4167=H$6)),"") -> 0 | I106: =IFERROR(SUMPRODUCT((TBGSHT!$D$9:$D$4167=$B106)*(TBGSHT!$C$9:$C$4167=I$6)),"") -> 0 | J106: =IFERROR(SUMPRODUCT((TBGSHT!$D$9:$D$4167=$B106)*(TBGSHT!$C$9:$C$4167=J$6)),"") -> 1 | K106: =IFERROR(SUMPRODUCT((TBGSHT!$D$9:$D$4167=$B106)*(TBGSHT!$C$9:$C$4167=K$6)),"") -> 6 | L106: =IFERROR(SUMPRODUCT((TBGSHT!$D$9:$D$4167=$B106)*(TBGSHT!$C$9:$C$4167=L$6)),"") -> 0 | M106: 7 | N106: =IFERROR(VLOOKUP($B106,Danhmuc!$D$4:$M$513,2,0),"") -> Thôn 7, Xã Lộc Ninh, Thành Phố Đồng Hới, Tỉnh Quảng Bình | O106: =IFERROR(VLOOKUP($B106,Danhmuc!$D$4:$M$513,3,0),"") -> 0912037713 | P106: 0 | Q106: 7 | U106: 1
A107: =IF($B107<>"",SUBTOTAL(103,B$8:B107),"") -> 100 | B107: CÔNG TY TNHH HƯNG PHÚC | C107: =IFERROR(SUMPRODUCT((TBGSHT!$D$9:$D$4167=$B107)*(TBGSHT!$C$9:$C$4167=C$6)),"") -> 0 | D107: =IFERROR(SUMPRODUCT((TBGSHT!$D$9:$D$4167=$B107)*(TBGSHT!$C$9:$C$4167=D$6)),"") -> 0 | E107: =IFERROR(SUMPRODUCT((TBGSHT!$D$9:$D$4167=$B107)*(TBGSHT!$C$9:$C$4167=E$6)),"") -> 0 | F107: =IFERROR(SUMPRODUCT((TBGSHT!$D$9:$D$4167=$B107)*(TBGSHT!$C$9:$C$4167=F$6)),"") -> 0 | G107: =IFERROR(SUMPRODUCT((TBGSHT!$D$9:$D$4167=$B107)*(TBGSHT!$C$9:$C$4167=G$6)),"") -> 0 | H107: =IFERROR(SUMPRODUCT((TBGSHT!$D$9:$D$4167=$B107)*(TBGSHT!$C$9:$C$4167=H$6)),"") -> 0 | I107: =IFERROR(SUMPRODUCT((TBGSHT!$D$9:$D$4167=$B107)*(TBGSHT!$C$9:$C$4167=I$6)),"") -> 0 | J107: =IFERROR(SUMPRODUCT((TBGSHT!$D$9:$D$4167=$B107)*(TBGSHT!$C$9:$C$4167=J$6)),"") -> 0 | K107: =IFERROR(SUMPRODUCT((TBGSHT!$D$9:$D$4167=$B107)*(TBGSHT!$C$9:$C$4167=K$6)),"") -> 7 | L107: =IFERROR(SUMPRODUCT((TBGSHT!$D$9:$D$4167=$B107)*(TBGSHT!$C$9:$C$4167=L$6)),"") -> 0 | M107: 7 | N107: =IFERROR(VLOOKUP($B107,Danhmuc!$D$4:$M$513,2,0),"") -> Đường Trường Chinh, Phường Bắc Lý, Thành Phố Đồng Hới, Tỉnh Quảng Bình | O107: =IFERROR(VLOOKUP($B107,Danhmuc!$D$4:$M$513,3,0),"") -> 0933806496 | P107: 0 | Q107: 7 | U107: 1
A108: =IF($B108<>"",SUBTOTAL(103,B$8:B108),"") -> 101 | B108: Công ty TNHH TM&DVVT Đại Việt Phát | C108: =IFERROR(SUMPRODUCT((TBGSHT!$D$9:$D$4167=$B108)*(TBGSHT!$C$9:$C$4167=C$6)),"") -> 0 | D108: =IFERROR(SUMPRODUCT((TBGSHT!$D$9:$D$4167=$B108)*(TBGSHT!$C$9:$C$4167=D$6)),"") -> 0 | E108: =IFERROR(SUMPRODUCT((TBGSHT!$D$9:$D$4167=$B108)*(TBGSHT!$C$9:$C$4167=E$6)),"") -> 0 | F108: =IFERROR(SUMPRODUCT((TBGSHT!$D$9:$D$4167=$B108)*(TBGSHT!$C$9:$C$4167=F$6)),"") -> 0 | G108: =IFERROR(SUMPRODUCT((TBGSHT!$D$9:$D$4167=$B108)*(TBGSHT!$C$9:$C$4167=G$6)),"") -> 0 | H108: =IFERROR(SUMPRODUCT((TBGSHT!$D$9:$D$4167=$B108)*(TBGSHT!$C$9:$C$4167=H$6)),"") -> 0 | I108: =IFERROR(SUMPRODUCT((TBGSHT!$D$9:$D$4167=$B108)*(TBGSHT!$C$9:$C$4167=I$6)),"") -> 0 | J108: =IFERROR(SUMPRODUCT((TBGSHT!$D$9:$D$4167=$B108)*(TBGSHT!$C$9:$C$4167=J$6)),"") -> 7 | K108: =IFERROR(SUMPRODUCT((TBGSHT!$D$9:$D$4167=$B108)*(TBGSHT!$C$9:$C$4167=K$6)),"") -> 0 | L108: =IFERROR(SUMPRODUCT((TBGSHT!$D$9:$D$4167=$B108)*(TBGSHT!$C$9:$C$4167=L$6)),"") -> 0 | M108: 7 | N108: =IFERROR(VLOOKUP($B108,Danhmuc!$D$4:$M$513,2,0),"") -> Tổ dân phố Nam, Phường Quảng Thuận, Thị xã Ba Đồn, Tỉnh Quảng Bình | O108: =IFERROR(VLOOKUP($B108,Danhmuc!$D$4:$M$513,3,0),"") -> 0905613555 | P108: 0 | Q108: 7 | U108: 1
A109: =IF($B109<>"",SUBTOTAL(103,B$8:B109),"") -> 102 | B109: CÔNG TY TNHH TM HẢI BÌNH | C109: =IFERROR(SUMPRODUCT((TBGSHT!$D$9:$D$4167=$B109)*(TBGSHT!$C$9:$C$4167=C$6)),"") -> 0 | D109: =IFERROR(SUMPRODUCT((TBGSHT!$D$9:$D$4167=$B109)*(TBGSHT!$C$9:$C$4167=D$6)),"") -> 0 | E109: =IFERROR(SUMPRODUCT((TBGSHT!$D$9:$D$4167=$B109)*(TBGSHT!$C$9:$C$4167=E$6)),"") -> 0 | F109: =IFERROR(SUMPRODUCT((TBGSHT!$D$9:$D$4167=$B109)*(TBGSHT!$C$9:$C$4167=F$6)),"") -> 0 | G109: =IFERROR(SUMPRODUCT((TBGSHT!$D$9:$D$4167=$B109)*(TBGSHT!$C$9:$C$4167=G$6)),"") -> 0 | H109: =IFERROR(SUMPRODUCT((TBGSHT!$D$9:$D$4167=$B109)*(TBGSHT!$C$9:$C$4167=H$6)),"") -> 0 | I109: =IFERROR(SUMPRODUCT((TBGSHT!$D$9:$D$4167=$B109)*(TBGSHT!$C$9:$C$4167=I$6)),"") -> 0 | J109: =IFERROR(SUMPRODUCT((TBGSHT!$D$9:$D$4167=$B109)*(TBGSHT!$C$9:$C$4167=J$6)),"") -> 0 | K109: =IFERROR(SUMPRODUCT((TBGSHT!$D$9:$D$4167=$B109)*(TBGSHT!$C$9:$C$4167=K$6)),"") -> 7 | L109: =IFERROR(SUMPRODUCT((TBGSHT!$D$9:$D$4167=$B109)*(TBGSHT!$C$9:$C$4167=L$6)),"") -> 0 | M109: 7 | N109: =IFERROR(VLOOKUP($B109,Danhmuc!$D$4:$M$513,2,0),"") -> 289 Quang Trung, Phường Ba Đồn, Thị xã Ba Đồn, Tỉnh Quảng Bình | O109: =IFERROR(VLOOKUP($B109,Danhmuc!$D$4:$M$513,3,0),"") -> 0 | P109: 0 | Q109: 7 | U109: 1
A110: =IF($B110<>"",SUBTOTAL(103,B$8:B110),"") -> 103 | B110: Công ty TNHH An Hoàng Linh | C110: =IFERROR(SUMPRODUCT((TBGSHT!$D$9:$D$4167=$B110)*(TBGSHT!$C$9:$C$4167=C$6)),"") -> 0 | D110: =IFERROR(SUMPRODUCT((TBGSHT!$D$9:$D$4167=$B110)*(TBGSHT!$C$9:$C$4167=D$6)),"") -> 0 | E110: =IFERROR(SUMPRODUCT((TBGSHT!$D$9:$D$4167=$B110)*(TBGSHT!$C$9:$C$4167=E$6)),"") -> 0 | F110: =IFERROR(SUMPRODUCT((TBGSHT!$D$9:$D$4167=$B110)*(TBGSHT!$C$9:$C$4167=F$6)),"") -> 0 | G110: =IFERROR(SUMPRODUCT((TBGSHT!$D$9:$D$4167=$B110)*(TBGSHT!$C$9:$C$4167=G$6)),"") -> 7 | H110: =IFERROR(SUMPRODUCT((TBGSHT!$D$9:$D$4167=$B110)*(TBGSHT!$C$9:$C$4167=H$6)),"") -> 0 | I110: =IFERROR(SUMPRODUCT((TBGSHT!$D$9:$D$4167=$B110)*(TBGSHT!$C$9:$C$4167=I$6)),"") -> 0 | J110: =IFERROR(SUMPRODUCT((TBGSHT!$D$9:$D$4167=$B110)*(TBGSHT!$C$9:$C$4167=J$6)),"") -> 0 | K110: =IFERROR(SUMPRODUCT((TBGSHT!$D$9:$D$4167=$B110)*(TBGSHT!$C$9:$C$4167=K$6)),"") -> 0 | L110: =IFERROR(SUMPRODUCT((TBGSHT!$D$9:$D$4167=$B110)*(TBGSHT!$C$9:$C$4167=L$6)),"") -> 0 | M110: 7 | N110: =IFERROR(VLOOKUP($B110,Danhmuc!$D$4:$M$513,2,0),"") -> Thôn Đông Hưng, Xã Quảng Đông, Huyện Quảng Trạch, Tỉnh Quảng Bình | O110: =IFERROR(VLOOKUP($B110,Danhmuc!$D$4:$M$513,3,0),"") -> 0966673888 | P110: 7 | Q110: 0 | U110: 1
A111: =IF($B111<>"",SUBTOTAL(103,B$8:B111),"") -> 104 | B111: Doanh nghiệp tư nhân Thắng Lợi | C111: =IFERROR(SUMPRODUCT((TBGSHT!$D$9:$D$4167=$B111)*(TBGSHT!$C$9:$C$4167=C$6)),"") -> 0 | D111: =IFERROR(SUMPRODUCT((TBGSHT!$D$9:$D$4167=$B111)*(TBGSHT!$C$9:$C$4167=D$6)),"") -> 0 | E111: =IFERROR(SUMPRODUCT((TBGSHT!$D$9:$D$4167=$B111)*(TBGSHT!$C$9:$C$4167=E$6)),"") -> 0 | F111: =IFERROR(SUMPRODUCT((TBGSHT!$D$9:$D$4167=$B111)*(TBGSHT!$C$9:$C$4167=F$6)),"") -> 0 | G111: =IFERROR(SUMPRODUCT((TBGSHT!$D$9:$D$4167=$B111)*(TBGSHT!$C$9:$C$4167=G$6)),"") -> 0 | H111: =IFERROR(SUMPRODUCT((TBGSHT!$D$9:$D$4167=$B111)*(TBGSHT!$C$9:$C$4167=H$6)),"") -> 0 | I111: =IFERROR(SUMPRODUCT((TBGSHT!$D$9:$D$4167=$B111)*(TBGSHT!$C$9:$C$4167=I$6)),"") -> 1 | J111: =IFERROR(SUMPRODUCT((TBGSHT!$D$9:$D$4167=$B111)*(TBGSHT!$C$9:$C$4167=J$6)),"") -> 5 | K111: =IFERROR(SUMPRODUCT((TBGSHT!$D$9:$D$4167=$B111)*(TBGSHT!$C$9:$C$4167=K$6)),"") -> 0 | L111: =IFERROR(SUMPRODUCT((TBGSHT!$D$9:$D$4167=$B111)*(TBGSHT!$C$9:$C$4167=L$6)),"") -> 0 | M111: 6 | N111: =IFERROR(VLOOKUP($B111,Danhmuc!$D$4:$M$513,2,0),"") -> Thôn Thọ Sơn, Quảng Đông, Quảng Trạch, Quảng Bình | O111: =IFERROR(VLOOKUP($B111,Danhmuc!$D$4:$M$513,3,0),"") -> 0523596881 | P111: 0 | Q111: 6 | U111: 1
A112: =IF($B112<>"",SUBTOTAL(103,B$8:B112),"") -> 105 | B112: Công ty TNHH TM Bằng Phương | C112: =IFERROR(SUMPRODUCT((TBGSHT!$D$9:$D$4167=$B112)*(TBGSHT!$C$9:$C$4167=C$6)),"") -> 0 | D112: =IFERROR(SUMPRODUCT((TBGSHT!$D$9:$D$4167=$B112)*(TBGSHT!$C$9:$C$4167=D$6)),"") -> 0 | E112: =IFERROR(SUMPRODUCT((TBGSHT!$D$9:$D$4167=$B112)*(TBGSHT!$C$9:$C$4167=E$6)),"") -> 0 | F112: =IFERROR(SUMPRODUCT((TBGSHT!$D$9:$D$4167=$B112)*(TBGSHT!$C$9:$C$4167=F$6)),"") -> 0 | G112: =IFERROR(SUMPRODUCT((TBGSHT!$D$9:$D$4167=$B112)*(TBGSHT!$C$9:$C$4167=G$6)),"") -> 0 | H112: =IFERROR(SUMPRODUCT((TBGSHT!$D$9:$D$4167=$B112)*(TBGSHT!$C$9:$C$4167=H$6)),"") -> 0 | I112: =IFERROR(SUMPRODUCT((TBGSHT!$D$9:$D$4167=$B112)*(TBGSHT!$C$9:$C$4167=I$6)),"") -> 0 | J112: =IFERROR(SUMPRODUCT((TBGSHT!$D$9:$D$4167=$B112)*(TBGSHT!$C$9:$C$4167=J$6)),"") -> 1 | K112: =IFERROR(SUMPRODUCT((TBGSHT!$D$9:$D$4167=$B112)*(TBGSHT!$C$9:$C$4167=K$6)),"") -> 5 | L112: =IFERROR(SUMPRODUCT((TBGSHT!$D$9:$D$4167=$B112)*(TBGSHT!$C$9:$C$4167=L$6)),"") -> 0 | M112: 6 | N112: =IFERROR(VLOOKUP($B112,Danhmuc!$D$4:$M$513,2,0),"") -> TK10, Hoàn Lão, Bố Trạch, Quảng Bình | O112: =IFERROR(VLOOKUP($B112,Danhmuc!$D$4:$M$513,3,0),"") -> 0982231557 | P112: 0 | Q112: 6 | U112: 1
A113: =IF($B113<>"",SUBTOTAL(103,B$8:B113),"") -> 106 | B113: Công ty TNHH VT&TM Tấn Phát | C113: =IFERROR(SUMPRODUCT((TBGSHT!$D$9:$D$4167=$B113)*(TBGSHT!$C$9:$C$4167=C$6)),"") -> 0 | D113: =IFERROR(SUMPRODUCT((TBGSHT!$D$9:$D$4167=$B113)*(TBGSHT!$C$9:$C$4167=D$6)),"") -> 0 | E113: =IFERROR(SUMPRODUCT((TBGSHT!$D$9:$D$4167=$B113)*(TBGSHT!$C$9:$C$4167=E$6)),"") -> 0 | F113: =IFERROR(SUMPRODUCT((TBGSHT!$D$9:$D$4167=$B113)*(TBGSHT!$C$9:$C$4167=F$6)),"") -> 0 | G113: =IFERROR(SUMPRODUCT((TBGSHT!$D$9:$D$4167=$B113)*(TBGSHT!$C$9:$C$4167=G$6)),"") -> 0 | H113: =IFERROR(SUMPRODUCT((TBGSHT!$D$9:$D$4167=$B113)*(TBGSHT!$C$9:$C$4167=H$6)),"") -> 0 | I113: =IFERROR(SUMPRODUCT((TBGSHT!$D$9:$D$4167=$B113)*(TBGSHT!$C$9:$C$4167=I$6)),"") -> 0 | J113: =IFERROR(SUMPRODUCT((TBGSHT!$D$9:$D$4167=$B113)*(TBGSHT!$C$9:$C$4167=J$6)),"") -> 2 | K113: =IFERROR(SUMPRODUCT((TBGSHT!$D$9:$D$4167=$B113)*(TBGSHT!$C$9:$C$4167=K$6)),"") -> 4 | L113: =IFERROR(SUMPRODUCT((TBGSHT!$D$9:$D$4167=$B113)*(TBGSHT!$C$9:$C$4167=L$6)),"") -> 0 | M113: 6 | N113: =IFERROR(VLOOKUP($B113,Danhmuc!$D$4:$M$513,2,0),"") -> TK7, Thị trấn Quy Đạt, Minh Hóa, Tuyên Hóa, Quảng Bình | O113: =IFERROR(VLOOKUP($B113,Danhmuc!$D$4:$M$513,3,0),"") -> '0905473678 | P113: 0 | Q113: 6 | U113: 1
A114: =IF($B114<>"",SUBTOTAL(103,B$8:B114),"") -> 107 | B114: Công ty TNHH Vũ Lâm | C114: =IFERROR(SUMPRODUCT((TBGSHT!$D$9:$D$4167=$B114)*(TBGSHT!$C$9:$C$4167=C$6)),"") -> 0 | D114: =IFERROR(SUMPRODUCT((TBGSHT!$D$9:$D$4167=$B114)*(TBGSHT!$C$9:$C$4167=D$6)),"") -> 0 | E114: =IFERROR(SUMPRODUCT((TBGSHT!$D$9:$D$4167=$B114)*(TBGSHT!$C$9:$C$4167=E$6)),"") -> 0 | F114: =IFERROR(SUMPRODUCT((TBGSHT!$D$9:$D$4167=$B114)*(TBGSHT!$C$9:$C$4167=F$6)),"") -> 0 | G114: =IFERROR(SUMPRODUCT((TBGSHT!$D$9:$D$4167=$B114)*(TBGSHT!$C$9:$C$4167=G$6)),"") -> 0 | H114: =IFERROR(SUMPRODUCT((TBGSHT!$D$9:$D$4167=$B114)*(TBGSHT!$C$9:$C$4167=H$6)),"") -> 0 | I114: =IFERROR(SUMPRODUCT((TBGSHT!$D$9:$D$4167=$B114)*(TBGSHT!$C$9:$C$4167=I$6)),"") -> 0 | J114: =IFERROR(SUMPRODUCT((TBGSHT!$D$9:$D$4167=$B114)*(TBGSHT!$C$9:$C$4167=J$6)),"") -> 0 | K114: =IFERROR(SUMPRODUCT((TBGSHT!$D$9:$D$4167=$B114)*(TBGSHT!$C$9:$C$4167=K$6)),"") -> 6 | L114: =IFERROR(SUMPRODUCT((TBGSHT!$D$9:$D$4167=$B114)*(TBGSHT!$C$9:$C$4167=L$6)),"") -> 0 | M114: 6 | N114: =IFERROR(VLOOKUP($B114,Danhmuc!$D$4:$M$513,2,0),"") -> Xã Cảnh Dương, Huyện Quảng Trạch, Tỉnh Quảng Bình | O114: =IFERROR(VLOOKUP($B114,Danhmuc!$D$4:$M$513,3,0),"") -> 02323596232 | P114: 0 | Q114: 6 | U114: 1
A115: =IF($B115<>"",SUBTOTAL(103,B$8:B115),"") -> 108 | B115: Công ty TNHH Tổng Công ty Thế Thịnh | C115: =IFERROR(SUMPRODUCT((TBGSHT!$D$9:$D$4167=$B115)*(TBGSHT!$C$9:$C$4167=C$6)),"") -> 0 | D115: =IFERROR(SUMPRODUCT((TBGSHT!$D$9:$D$4167=$B115)*(TBGSHT!$C$9:$C$4167=D$6)),"") -> 0 | E115: =IFERROR(SUMPRODUCT((TBGSHT!$D$9:$D$4167=$B115)*(TBGSHT!$C$9:$C$4167=E$6)),"") -> 0 | F115: =IFERROR(SUMPRODUCT((TBGSHT!$D$9:$D$4167=$B115)*(TBGSHT!$C$9:$C$4167=F$6)),"") -> 0 | G115: =IFERROR(SUMPRODUCT((TBGSHT!$D$9:$D$4167=$B115)*(TBGSHT!$C$9:$C$4167=G$6)),"") -> 0 | H115: =IFERROR(SUMPRODUCT((TBGSHT!$D$9:$D$4167=$B115)*(TBGSHT!$C$9:$C$4167=H$6)),"") -> 0 | I115: =IFERROR(SUMPRODUCT((TBGSHT!$D$9:$D$4167=$B115)*(TBGSHT!$C$9:$C$4167=I$6)),"") -> 0 | J115: =IFERROR(SUMPRODUCT((TBGSHT!$D$9:$D$4167=$B115)*(TBGSHT!$C$9:$C$4167=J$6)),"") -> 0 | K115: =IFERROR(SUMPRODUCT((TBGSHT!$D$9:$D$4167=$B115)*(TBGSHT!$C$9:$C$4167=K$6)),"") -> 6 | L115: =IFERROR(SUMPRODUCT((TBGSHT!$D$9:$D$4167=$B115)*(TBGSHT!$C$9:$C$4167=L$6)),"") -> 0 | M115: 6 | N115: =IFERROR(VLOOKUP($B115,Danhmuc!$D$4:$M$513,2,0),"") -> Đường Hữu Nghị, P.Nam Lý, TP. Đồng Hới, Tỉnh Quảng Bình | O115: =IFERROR(VLOOKUP($B115,Danhmuc!$D$4:$M$513,3,0),"") -> 02323845287 | P115: 0 | Q115: 6 | U115: 1
A116: =IF($B116<>"",SUBTOTAL(103,B$8:B116),"") -> 109 | B116: Công ty TNHH Thanh Vy | C116: =IFERROR(SUMPRODUCT((TBGSHT!$D$9:$D$4167=$B116)*(TBGSHT!$C$9:$C$4167=C$6)),"") -> 0 | D116: =IFERROR(SUMPRODUCT((TBGSHT!$D$9:$D$4167=$B116)*(TBGSHT!$C$9:$C$4167=D$6)),"") -> 0 | E116: =IFERROR(SUMPRODUCT((TBGSHT!$D$9:$D$4167=$B116)*(TBGSHT!$C$9:$C$4167=E$6)),"") -> 0 | F116: =IFERROR(SUMPRODUCT((TBGSHT!$D$9:$D$4167=$B116)*(TBGSHT!$C$9:$C$4167=F$6)),"") -> 0 | G116: =IFERROR(SUMPRODUCT((TBGSHT!$D$9:$D$4167=$B116)*(TBGSHT!$C$9:$C$4167=G$6)),"") -> 0 | H116: =IFERROR(SUMPRODUCT((TBGSHT!$D$9:$D$4167=$B116)*(TBGSHT!$C$9:$C$4167=H$6)),"") -> 0 | I116: =IFERROR(SUMPRODUCT((TBGSHT!$D$9:$D$4167=$B116)*(TBGSHT!$C$9:$C$4167=I$6)),"") -> 0 | J116: =IFERROR(SUMPRODUCT((TBGSHT!$D$9:$D$4167=$B116)*(TBGSHT!$C$9:$C$4167=J$6)),"") -> 0 | K116: =IFERROR(SUMPRODUCT((TBGSHT!$D$9:$D$4167=$B116)*(TBGSHT!$C$9:$C$4167=K$6)),"") -> 6 | L116: =IFERROR(SUMPRODUCT((TBGSHT!$D$9:$D$4167=$B116)*(TBGSHT!$C$9:$C$4167=L$6)),"") -> 0 | M116: 6 | N116: =IFERROR(VLOOKUP($B116,Danhmuc!$D$4:$M$513,2,0),"") -> TK2,P.Đồng Sơn,TP. Đồng Hới, Tỉnh Quảng Bình | O116: =IFERROR(VLOOKUP($B116,Danhmuc!$D$4:$M$513,3,0),"") -> 0913376504 | P116: 0 | Q116: 6 | U116: 1
A117: =IF($B117<>"",SUBTOTAL(103,B$8:B117),"") -> 110 | B117: Công ty TNHH VT&DL Quang Mạnh | C117: =IFERROR(SUMPRODUCT((TBGSHT!$D$9:$D$4167=$B117)*(TBGSHT!$C$9:$C$4167=C$6)),"") -> 0 | D117: =IFERROR(SUMPRODUCT((TBGSHT!$D$9:$D$4167=$B117)*(TBGSHT!$C$9:$C$4167=D$6)),"") -> 0 | E117: =IFERROR(SUMPRODUCT((TBGSHT!$D$9:$D$4167=$B117)*(TBGSHT!$C$9:$C$4167=E$6)),"") -> 0 | F117: =IFERROR(SUMPRODUCT((TBGSHT!$D$9:$D$4167=$B117)*(TBGSHT!$C$9:$C$4167=F$6)),"") -> 0 | G117: =IFERROR(SUMPRODUCT((TBGSHT!$D$9:$D$4167=$B117)*(TBGSHT!$C$9:$C$4167=G$6)),"") -> 5 | H117: =IFERROR(SUMPRODUCT((TBGSHT!$D$9:$D$4167=$B117)*(TBGSHT!$C$9:$C$4167=H$6)),"") -> 0 | I117: =IFERROR(SUMPRODUCT((TBGSHT!$D$9:$D$4167=$B117)*(TBGSHT!$C$9:$C$4167=I$6)),"") -> 0 | J117: =IFERROR(SUMPRODUCT((TBGSHT!$D$9:$D$4167=$B117)*(TBGSHT!$C$9:$C$4167=J$6)),"") -> 0 | K117: =IFERROR(SUMPRODUCT((TBGSHT!$D$9:$D$4167=$B117)*(TBGSHT!$C$9:$C$4167=K$6)),"") -> 1 | L117: =IFERROR(SUMPRODUCT((TBGSHT!$D$9:$D$4167=$B117)*(TBGSHT!$C$9:$C$4167=L$6)),"") -> 0 | M117: 6 | N117: =IFERROR(VLOOKUP($B117,Danhmuc!$D$4:$M$513,2,0),"") -> Thôn 1, Xã Lộc Ninh, TP. Đồng Hới, Tỉnh Quảng Bình | O117: =IFERROR(VLOOKUP($B117,Danhmuc!$D$4:$M$513,3,0),"") -> 0905211880 | P117: 5 | Q117: 1 | U117: 1
A118: =IF($B118<>"",SUBTOTAL(103,B$8:B118),"") -> 111 | B118: Công ty TNHH xây dựng Thuận Đức | C118: =IFERROR(SUMPRODUCT((TBGSHT!$D$9:$D$4167=$B118)*(TBGSHT!$C$9:$C$4167=C$6)),"") -> 0 | D118: =IFERROR(SUMPRODUCT((TBGSHT!$D$9:$D$4167=$B118)*(TBGSHT!$C$9:$C$4167=D$6)),"") -> 0 | E118: =IFERROR(SUMPRODUCT((TBGSHT!$D$9:$D$4167=$B118)*(TBGSHT!$C$9:$C$4167=E$6)),"") -> 0 | F118: =IFERROR(SUMPRODUCT((TBGSHT!$D$9:$D$4167=$B118)*(TBGSHT!$C$9:$C$4167=F$6)),"") -> 0 | G118: =IFERROR(SUMPRODUCT((TBGSHT!$D$9:$D$4167=$B118)*(TBGSHT!$C$9:$C$4167=G$6)),"") -> 0 | H118: =IFERROR(SUMPRODUCT((TBGSHT!$D$9:$D$4167=$B118)*(TBGSHT!$C$9:$C$4167=H$6)),"") -> 0 | I118: =IFERROR(SUMPRODUCT((TBGSHT!$D$9:$D$4167=$B118)*(TBGSHT!$C$9:$C$4167=I$6)),"") -> 0 | J118: =IFERROR(SUMPRODUCT((TBGSHT!$D$9:$D$4167=$B118)*(TBGSHT!$C$9:$C$4167=J$6)),"") -> 0 | K118: =IFERROR(SUMPRODUCT((TBGSHT!$D$9:$D$4167=$B118)*(TBGSHT!$C$9:$C$4167=K$6)),"") -> 6 | L118: =IFERROR(SUMPRODUCT((TBGSHT!$D$9:$D$4167=$B118)*(TBGSHT!$C$9:$C$4167=L$6)),"") -> 0 | M118: 6 | N118: =IFERROR(VLOOKUP($B118,Danhmuc!$D$4:$M$513,2,0),"") -> Thôn Thuận Đức, Xã Thuận Đức, Thành Phố Đồng Hới, Tỉnh Quảng Bình | O118: =IFERROR(VLOOKUP($B118,Danhmuc!$D$4:$M$513,3,0),"") -> 0 | P118: 0 | Q118: 6 | U118: 1
A119: =IF($B119<>"",SUBTOTAL(103,B$8:B119),"") -> 112 | B119: CÔNG TY TNHH HỒNG VÂN | C119: =IFERROR(SUMPRODUCT((TBGSHT!$D$9:$D$4167=$B119)*(TBGSHT!$C$9:$C$4167=C$6)),"") -> 0 | D119: =IFERROR(SUMPRODUCT((TBGSHT!$D$9:$D$4167=$B119)*(TBGSHT!$C$9:$C$4167=D$6)),"") -> 0 | E119: =IFERROR(SUMPRODUCT((TBGSHT!$D$9:$D$4167=$B119)*(TBGSHT!$C$9:$C$4167=E$6)),"") -> 0 | F119: =IFERROR(SUMPRODUCT((TBGSHT!$D$9:$D$4167=$B119)*(TBGSHT!$C$9:$C$4167=F$6)),"") -> 0 | G119: =IFERROR(SUMPRODUCT((TBGSHT!$D$9:$D$4167=$B119)*(TBGSHT!$C$9:$C$4167=G$6)),"") -> 1 | H119: =IFERROR(SUMPRODUCT((TBGSHT!$D$9:$D$4167=$B119)*(TBGSHT!$C$9:$C$4167=H$6)),"") -> 0 | I119: =IFERROR(SUMPRODUCT((TBGSHT!$D$9:$D$4167=$B119)*(TBGSHT!$C$9:$C$4167=I$6)),"") -> 0 | J119: =IFERROR(SUMPRODUCT((TBGSHT!$D$9:$D$4167=$B119)*(TBGSHT!$C$9:$C$4167=J$6)),"") -> 0 | K119: =IFERROR(SUMPRODUCT((TBGSHT!$D$9:$D$4167=$B119)*(TBGSHT!$C$9:$C$4167=K$6)),"") -> 5 | L119: =IFERROR(SUMPRODUCT((TBGSHT!$D$9:$D$4167=$B119)*(TBGSHT!$C$9:$C$4167=L$6)),"") -> 0 | M119: 6 | N119: =IFERROR(VLOOKUP($B119,Danhmuc!$D$4:$M$513,2,0),"") -> 592 Quang Trung, Phường Quảng Phong, Thị xã Ba Đồn, Tỉnh Quảng Bình | O119: =IFERROR(VLOOKUP($B119,Danhmuc!$D$4:$M$513,3,0),"") -> 02323517207 | P119: 1 | Q119: 5 | U119: 1
A120: =IF($B120<>"",SUBTOTAL(103,B$8:B120),"") -> 113 | B120: CÔNG TY TNHH VT&TMTH HOÀNG LINH | C120: =IFERROR(SUMPRODUCT((TBGSHT!$D$9:$D$4167=$B120)*(TBGSHT!$C$9:$C$4167=C$6)),"") -> 0 | D120: =IFERROR(SUMPRODUCT((TBGSHT!$D$9:$D$4167=$B120)*(TBGSHT!$C$9:$C$4167=D$6)),"") -> 0 | E120: =IFERROR(SUMPRODUCT((TBGSHT!$D$9:$D$4167=$B120)*(TBGSHT!$C$9:$C$4167=E$6)),"") -> 0 | F120: =IFERROR(SUMPRODUCT((TBGSHT!$D$9:$D$4167=$B120)*(TBGSHT!$C$9:$C$4167=F$6)),"") -> 0 | G120: =IFERROR(SUMPRODUCT((TBGSHT!$D$9:$D$4167=$B120)*(TBGSHT!$C$9:$C$4167=G$6)),"") -> 0 | H120: =IFERROR(SUMPRODUCT((TBGSHT!$D$9:$D$4167=$B120)*(TBGSHT!$C$9:$C$4167=H$6)),"") -> 0 | I120: =IFERROR(SUMPRODUCT((TBGSHT!$D$9:$D$4167=$B120)*(TBGSHT!$C$9:$C$4167=I$6)),"") -> 0 | J120: =IFERROR(SUMPRODUCT((TBGSHT!$D$9:$D$4167=$B120)*(TBGSHT!$C$9:$C$4167=J$6)),"") -> 6 | K120: =IFERROR(SUMPRODUCT((TBGSHT!$D$9:$D$4167=$B120)*(TBGSHT!$C$9:$C$4167=K$6)),"") -> 0 | L120: =IFERROR(SUMPRODUCT((TBGSHT!$D$9:$D$4167=$B120)*(TBGSHT!$C$9:$C$4167=L$6)),"") -> 0 | M120: 6 | N120: =IFERROR(VLOOKUP($B120,Danhmuc!$D$4:$M$513,2,0),"") -> Thuận Bài, Phường Quảng Thuận, Thị xã Ba Đồn, Tỉnh Quảng Bình | O120: =IFERROR(VLOOKUP($B120,Danhmuc!$D$4:$M$513,3,0),"") -> 0 | P120: 0 | Q120: 6 | U120: 2
A121: =IF($B121<>"",SUBTOTAL(103,B$8:B121),"") -> 114 | B121: Doanh nghiệp tư nhân Dũng Hiền | C121: =IFERROR(SUMPRODUCT((TBGSHT!$D$9:$D$4167=$B121)*(TBGSHT!$C$9:$C$4167=C$6)),"") -> 0 | D121: =IFERROR(SUMPRODUCT((TBGSHT!$D$9:$D$4167=$B121)*(TBGSHT!$C$9:$C$4167=D$6)),"") -> 0 | E121: =IFERROR(SUMPRODUCT((TBGSHT!$D$9:$D$4167=$B121)*(TBGSHT!$C$9:$C$4167=E$6)),"") -> 0 | F121: =IFERROR(SUMPRODUCT((TBGSHT!$D$9:$D$4167=$B121)*(TBGSHT!$C$9:$C$4167=F$6)),"") -> 0 | G121: =IFERROR(SUMPRODUCT((TBGSHT!$D$9:$D$4167=$B121)*(TBGSHT!$C$9:$C$4167=G$6)),"") -> 0 | H121: =IFERROR(SUMPRODUCT((TBGSHT!$D$9:$D$4167=$B121)*(TBGSHT!$C$9:$C$4167=H$6)),"") -> 0 | I121: =IFERROR(SUMPRODUCT((TBGSHT!$D$9:$D$4167=$B121)*(TBGSHT!$C$9:$C$4167=I$6)),"") -> 0 | J121: =IFERROR(SUMPRODUCT((TBGSHT!$D$9:$D$4167=$B121)*(TBGSHT!$C$9:$C$4167=J$6)),"") -> 0 | K121: =IFERROR(SUMPRODUCT((TBGSHT!$D$9:$D$4167=$B121)*(TBGSHT!$C$9:$C$4167=K$6)),"") -> 6 | L121: =IFERROR(SUMPRODUCT((TBGSHT!$D$9:$D$4167=$B121)*(TBGSHT!$C$9:$C$4167=L$6)),"") -> 0 | M121: 6 | N121: =IFERROR(VLOOKUP($B121,Danhmuc!$D$4:$M$513,2,0),"") -> Đường F325, Tiểu khu 12, Phường Bắc Lý, Thành phố Đồng Hới, Tỉnh Quảng Bình | O121: =IFERROR(VLOOKUP($B121,Danhmuc!$D$4:$M$513,3,0),"") -> 0 | P121: 0 | Q121: 6 | U121: 2
A122: =IF($B122<>"",SUBTOTAL(103,B$8:B122),"") -> 115 | B122: CÔNG TY TNHH TM HOA HẰNG | C122: =IFERROR(SUMPRODUCT((TBGSHT!$D$9:$D$4167=$B122)*(TBGSHT!$C$9:$C$4167=C$6)),"") -> 0 | D122: =IFERROR(SUMPRODUCT((TBGSHT!$D$9:$D$4167=$B122)*(TBGSHT!$C$9:$C$4167=D$6)),"") -> 0 | E122: =IFERROR(SUMPRODUCT((TBGSHT!$D$9:$D$4167=$B122)*(TBGSHT!$C$9:$C$4167=E$6)),"") -> 0 | F122: =IFERROR(SUMPRODUCT((TBGSHT!$D$9:$D$4167=$B122)*(TBGSHT!$C$9:$C$4167=F$6)),"") -> 0 | G122: =IFERROR(SUMPRODUCT((TBGSHT!$D$9:$D$4167=$B122)*(TBGSHT!$C$9:$C$4167=G$6)),"") -> 0 | H122: =IFERROR(SUMPRODUCT((TBGSHT!$D$9:$D$4167=$B122)*(TBGSHT!$C$9:$C$4167=H$6)),"") -> 0 | I122: =IFERROR(SUMPRODUCT((TBGSHT!$D$9:$D$4167=$B122)*(TBGSHT!$C$9:$C$4167=I$6)),"") -> 0 | J122: =IFERROR(SUMPRODUCT((TBGSHT!$D$9:$D$4167=$B122)*(TBGSHT!$C$9:$C$4167=J$6)),"") -> 0 | K122: =IFERROR(SUMPRODUCT((TBGSHT!$D$9:$D$4167=$B122)*(TBGSHT!$C$9:$C$4167=K$6)),"") -> 6 | L122: =IFERROR(SUMPRODUCT((TBGSHT!$D$9:$D$4167=$B122)*(TBGSHT!$C$9:$C$4167=L$6)),"") -> 0 | M122: 6 | N122: =IFERROR(VLOOKUP($B122,Danhmuc!$D$4:$M$513,2,0),"") -> Khu phố 1, Phường Ba Đồn, Thị xã Ba Đồn, Tỉnh Quảng Bình | O122: =IFERROR(VLOOKUP($B122,Danhmuc!$D$4:$M$513,3,0),"") -> 0 | P122: 0 | Q122: 6 | U122: 1
A123: =IF($B123<>"",SUBTOTAL(103,B$8:B123),"") -> 116 | B123: Công ty Cổ phần nước khoáng Bang | C123: =IFERROR(SUMPRODUCT((TBGSHT!$D$9:$D$4167=$B123)*(TBGSHT!$C$9:$C$4167=C$6)),"") -> 0 | D123: =IFERROR(SUMPRODUCT((TBGSHT!$D$9:$D$4167=$B123)*(TBGSHT!$C$9:$C$4167=D$6)),"") -> 0 | E123: =IFERROR(SUMPRODUCT((TBGSHT!$D$9:$D$4167=$B123)*(TBGSHT!$C$9:$C$4167=E$6)),"") -> 0 | F123: =IFERROR(SUMPRODUCT((TBGSHT!$D$9:$D$4167=$B123)*(TBGSHT!$C$9:$C$4167=F$6)),"") -> 0 | G123: =IFERROR(SUMPRODUCT((TBGSHT!$D$9:$D$4167=$B123)*(TBGSHT!$C$9:$C$4167=G$6)),"") -> 0 | H123: =IFERROR(SUMPRODUCT((TBGSHT!$D$9:$D$4167=$B123)*(TBGSHT!$C$9:$C$4167=H$6)),"") -> 0 | I123: =IFERROR(SUMPRODUCT((TBGSHT!$D$9:$D$4167=$B123)*(TBGSHT!$C$9:$C$4167=I$6)),"") -> 0 | J123: =IFERROR(SUMPRODUCT((TBGSHT!$D$9:$D$4167=$B123)*(TBGSHT!$C$9:$C$4167=J$6)),"") -> 0 | K123: =IFERROR(SUMPRODUCT((TBGSHT!$D$9:$D$4167=$B123)*(TBGSHT!$C$9:$C$4167=K$6)),"") -> 6 | L123: =IFERROR(SUMPRODUCT((TBGSHT!$D$9:$D$4167=$B123)*(TBGSHT!$C$9:$C$4167=L$6)),"") -> 0 | M123: 6 | N123: =IFERROR(VLOOKUP($B123,Danhmuc!$D$4:$M$513,2,0),"") -> Thị trấn Kiến Giang, Huyện Lệ Thủy, Tỉnh Quảng Bình | O123: =IFERROR(VLOOKUP($B123,Danhmuc!$D$4:$M$513,3,0),"") -> 0 | P123: 0 | Q123: 6 | U123: 1
A124: =IF($B124<>"",SUBTOTAL(103,B$8:B124),"") -> 117 | B124: Công ty TNHH DV TMVT Thành Chung | C124: =IFERROR(SUMPRODUCT((TBGSHT!$D$9:$D$4167=$B124)*(TBGSHT!$C$9:$C$4167=C$6)),"") -> 0 | D124: =IFERROR(SUMPRODUCT((TBGSHT!$D$9:$D$4167=$B124)*(TBGSHT!$C$9:$C$4167=D$6)),"") -> 0 | E124: =IFERROR(SUMPRODUCT((TBGSHT!$D$9:$D$4167=$B124)*(TBGSHT!$C$9:$C$4167=E$6)),"") -> 0 | F124: =IFERROR(SUMPRODUCT((TBGSHT!$D$9:$D$4167=$B124)*(TBGSHT!$C$9:$C$4167=F$6)),"") -> 0 | G124: =IFERROR(SUMPRODUCT((TBGSHT!$D$9:$D$4167=$B124)*(TBGSHT!$C$9:$C$4167=G$6)),"") -> 5 | H124: =IFERROR(SUMPRODUCT((TBGSHT!$D$9:$D$4167=$B124)*(TBGSHT!$C$9:$C$4167=H$6)),"") -> 1 | I124: =IFERROR(SUMPRODUCT((TBGSHT!$D$9:$D$4167=$B124)*(TBGSHT!$C$9:$C$4167=I$6)),"") -> 0 | J124: =IFERROR(SUMPRODUCT((TBGSHT!$D$9:$D$4167=$B124)*(TBGSHT!$C$9:$C$4167=J$6)),"") -> 0 | K124: =IFERROR(SUMPRODUCT((TBGSHT!$D$9:$D$4167=$B124)*(TBGSHT!$C$9:$C$4167=K$6)),"") -> 0 | L124: =IFERROR(SUMPRODUCT((TBGSHT!$D$9:$D$4167=$B124)*(TBGSHT!$C$9:$C$4167=L$6)),"") -> 0 | M124: 6 | N124: =IFERROR(VLOOKUP($B124,Danhmuc!$D$4:$M$513,2,0),"") -> Xã Hải Trạch - H. Bố Trạch - T. Quảng Bình, Xã Hải Trạch, Huyện Bố Trạch, Tỉnh Quảng Bình | O124: =IFERROR(VLOOKUP($B124,Danhmuc!$D$4:$M$513,3,0),"") -> 0912416514 | P124: 6 | Q124: 0 | U124: 1
A125: =IF($B125<>"",SUBTOTAL(103,B$8:B125),"") -> 118 | B125: CÔNG TY TNHH XÂY DỰNG SƠN TRƯỜNG | C125: =IFERROR(SUMPRODUCT((TBGSHT!$D$9:$D$4167=$B125)*(TBGSHT!$C$9:$C$4167=C$6)),"") -> 0 | D125: =IFERROR(SUMPRODUCT((TBGSHT!$D$9:$D$4167=$B125)*(TBGSHT!$C$9:$C$4167=D$6)),"") -> 0 | E125: =IFERROR(SUMPRODUCT((TBGSHT!$D$9:$D$4167=$B125)*(TBGSHT!$C$9:$C$4167=E$6)),"") -> 0 | F125: =IFERROR(SUMPRODUCT((TBGSHT!$D$9:$D$4167=$B125)*(TBGSHT!$C$9:$C$4167=F$6)),"") -> 0 | G125: =IFERROR(SUMPRODUCT((TBGSHT!$D$9:$D$4167=$B125)*(TBGSHT!$C$9:$C$4167=G$6)),"") -> 0 | H125: =IFERROR(SUMPRODUCT((TBGSHT!$D$9:$D$4167=$B125)*(TBGSHT!$C$9:$C$4167=H$6)),"") -> 0 | I125: =IFERROR(SUMPRODUCT((TBGSHT!$D$9:$D$4167=$B125)*(TBGSHT!$C$9:$C$4167=I$6)),"") -> 0 | J125: =IFERROR(SUMPRODUCT((TBGSHT!$D$9:$D$4167=$B125)*(TBGSHT!$C$9:$C$4167=J$6)),"") -> 0 | K125: =IFERROR(SUMPRODUCT((TBGSHT!$D$9:$D$4167=$B125)*(TBGSHT!$C$9:$C$4167=K$6)),"") -> 6 | L125: =IFERROR(SUMPRODUCT((TBGSHT!$D$9:$D$4167=$B125)*(TBGSHT!$C$9:$C$4167=L$6)),"") -> 0 | M125: 6 | N125: =IFERROR(VLOOKUP($B125,Danhmuc!$D$4:$M$513,2,0),"") -> 49 Hữu Nghị, Phường Bắc Lý, Thành Phố Đồng Hới, Tỉnh Quảng Bình | O125: =IFERROR(VLOOKUP($B125,Danhmuc!$D$4:$M$513,3,0),"") -> 0 | P125: 0 | Q125: 6 | U125: 1
A126: =IF($B126<>"",SUBTOTAL(103,B$8:B126),"") -> 119 | B126: CÔNG TY TNHH VT-DL LỘC PHÁT | C126: =IFERROR(SUMPRODUCT((TBGSHT!$D$9:$D$4167=$B126)*(TBGSHT!$C$9:$C$4167=C$6)),"") -> 0 | D126: =IFERROR(SUMPRODUCT((TBGSHT!$D$9:$D$4167=$B126)*(TBGSHT!$C$9:$C$4167=D$6)),"") -> 0 | E126: =IFERROR(SUMPRODUCT((TBGSHT!$D$9:$D$4167=$B126)*(TBGSHT!$C$9:$C$4167=E$6)),"") -> 0 | F126: =IFERROR(SUMPRODUCT((TBGSHT!$D$9:$D$4167=$B126)*(TBGSHT!$C$9:$C$4167=F$6)),"") -> 0 | G126: =IFERROR(SUMPRODUCT((TBGSHT!$D$9:$D$4167=$B126)*(TBGSHT!$C$9:$C$4167=G$6)),"") -> 5 | H126: =IFERROR(SUMPRODUCT((TBGSHT!$D$9:$D$4167=$B126)*(TBGSHT!$C$9:$C$4167=H$6)),"") -> 0 | I126: =IFERROR(SUMPRODUCT((TBGSHT!$D$9:$D$4167=$B126)*(TBGSHT!$C$9:$C$4167=I$6)),"") -> 0 | J126: =IFERROR(SUMPRODUCT((TBGSHT!$D$9:$D$4167=$B126)*(TBGSHT!$C$9:$C$4167=J$6)),"") -> 0 | K126: =IFERROR(SUMPRODUCT((TBGSHT!$D$9:$D$4167=$B126)*(TBGSHT!$C$9:$C$4167=K$6)),"") -> 0 | L126: =IFERROR(SUMPRODUCT((TBGSHT!$D$9:$D$4167=$B126)*(TBGSHT!$C$9:$C$4167=L$6)),"") -> 0 | M126: 5 | N126: =IFERROR(VLOOKUP($B126,Danhmuc!$D$4:$M$513,2,0),"") -> 201 Lý Thường Kiệt, TP Đồng Hới | O126: =IFERROR(VLOOKUP($B126,Danhmuc!$D$4:$M$513,3,0),"") -> 02323822766 | P126: 5 | Q126: 0 | U126: 2
A127: =IF($B127<>"",SUBTOTAL(103,B$8:B127),"") -> 120 | B127: Công ty TNHH Du lịch Anh Dũng | C127: =IFERROR(SUMPRODUCT((TBGSHT!$D$9:$D$4167=$B127)*(TBGSHT!$C$9:$C$4167=C$6)),"") -> 0 | D127: =IFERROR(SUMPRODUCT((TBGSHT!$D$9:$D$4167=$B127)*(TBGSHT!$C$9:$C$4167=D$6)),"") -> 0 | E127: =IFERROR(SUMPRODUCT((TBGSHT!$D$9:$D$4167=$B127)*(TBGSHT!$C$9:$C$4167=E$6)),"") -> 0 | F127: =IFERROR(SUMPRODUCT((TBGSHT!$D$9:$D$4167=$B127)*(TBGSHT!$C$9:$C$4167=F$6)),"") -> 0 | G127: =IFERROR(SUMPRODUCT((TBGSHT!$D$9:$D$4167=$B127)*(TBGSHT!$C$9:$C$4167=G$6)),"") -> 5 | H127: =IFERROR(SUMPRODUCT((TBGSHT!$D$9:$D$4167=$B127)*(TBGSHT!$C$9:$C$4167=H$6)),"") -> 0 | I127: =IFERROR(SUMPRODUCT((TBGSHT!$D$9:$D$4167=$B127)*(TBGSHT!$C$9:$C$4167=I$6)),"") -> 0 | J127: =IFERROR(SUMPRODUCT((TBGSHT!$D$9:$D$4167=$B127)*(TBGSHT!$C$9:$C$4167=J$6)),"") -> 0 | K127: =IFERROR(SUMPRODUCT((TBGSHT!$D$9:$D$4167=$B127)*(TBGSHT!$C$9:$C$4167=K$6)),"") -> 0 | L127: =IFERROR(SUMPRODUCT((TBGSHT!$D$9:$D$4167=$B127)*(TBGSHT!$C$9:$C$4167=L$6)),"") -> 0 | M127: 5 | N127: =IFERROR(VLOOKUP($B127,Danhmuc!$D$4:$M$513,2,0),"") -> Tổ dân phố 10, Phường Nam Lý, TP. Đồng Hới, Tỉnh Quảng Bình | O127: =IFERROR(VLOOKUP($B127,Danhmuc!$D$4:$M$513,3,0),"") -> 0916901855 | P127: 5 | Q127: 0 | U127: 2
A128: =IF($B128<>"",SUBTOTAL(103,B$8:B128),"") -> 121 | B128: Công ty TNHH Dịch vụ VTDL Thảo Nguyên | C128: =IFERROR(SUMPRODUCT((TBGSHT!$D$9:$D$4167=$B128)*(TBGSHT!$C$9:$C$4167=C$6)),"") -> 0 | D128: =IFERROR(SUMPRODUCT((TBGSHT!$D$9:$D$4167=$B128)*(TBGSHT!$C$9:$C$4167=D$6)),"") -> 0 | E128: =IFERROR(SUMPRODUCT((TBGSHT!$D$9:$D$4167=$B128)*(TBGSHT!$C$9:$C$4167=E$6)),"") -> 0 | F128: =IFERROR(SUMPRODUCT((TBGSHT!$D$9:$D$4167=$B128)*(TBGSHT!$C$9:$C$4167=F$6)),"") -> 0 | G128: =IFERROR(SUMPRODUCT((TBGSHT!$D$9:$D$4167=$B128)*(TBGSHT!$C$9:$C$4167=G$6)),"") -> 3 | H128: =IFERROR(SUMPRODUCT((TBGSHT!$D$9:$D$4167=$B128)*(TBGSHT!$C$9:$C$4167=H$6)),"") -> 2 | I128: =IFERROR(SUMPRODUCT((TBGSHT!$D$9:$D$4167=$B128)*(TBGSHT!$C$9:$C$4167=I$6)),"") -> 0 | J128: =IFERROR(SUMPRODUCT((TBGSHT!$D$9:$D$4167=$B128)*(TBGSHT!$C$9:$C$4167=J$6)),"") -> 0 | K128: =IFERROR(SUMPRODUCT((TBGSHT!$D$9:$D$4167=$B128)*(TBGSHT!$C$9:$C$4167=K$6)),"") -> 0 | L128: =IFERROR(SUMPRODUCT((TBGSHT!$D$9:$D$4167=$B128)*(TBGSHT!$C$9:$C$4167=L$6)),"") -> 0 | M128: 5 | N128: =IFERROR(VLOOKUP($B128,Danhmuc!$D$4:$M$513,2,0),"") -> Thôn Xuân Tiến, xã Sơn Trạch, huyện Bố Trạch, tỉnh Quảng Bình | O128: =IFERROR(VLOOKUP($B128,Danhmuc!$D$4:$M$513,3,0),"") -> 0917026168 | P128: 5 | Q128: 0 | U128: 1
A129: =IF($B129<>"",SUBTOTAL(103,B$8:B129),"") -> 122 | B129: Công ty TNHH VTTM Anh Anh | C129: =IFERROR(SUMPRODUCT((TBGSHT!$D$9:$D$4167=$B129)*(TBGSHT!$C$9:$C$4167=C$6)),"") -> 0 | D129: =IFERROR(SUMPRODUCT((TBGSHT!$D$9:$D$4167=$B129)*(TBGSHT!$C$9:$C$4167=D$6)),"") -> 0 | E129: =IFERROR(SUMPRODUCT((TBGSHT!$D$9:$D$4167=$B129)*(TBGSHT!$C$9:$C$4167=E$6)),"") -> 0 | F129: =IFERROR(SUMPRODUCT((TBGSHT!$D$9:$D$4167=$B129)*(TBGSHT!$C$9:$C$4167=F$6)),"") -> 0 | G129: =IFERROR(SUMPRODUCT((TBGSHT!$D$9:$D$4167=$B129)*(TBGSHT!$C$9:$C$4167=G$6)),"") -> 0 | H129: =IFERROR(SUMPRODUCT((TBGSHT!$D$9:$D$4167=$B129)*(TBGSHT!$C$9:$C$4167=H$6)),"") -> 0 | I129: =IFERROR(SUMPRODUCT((TBGSHT!$D$9:$D$4167=$B129)*(TBGSHT!$C$9:$C$4167=I$6)),"") -> 0 | J129: =IFERROR(SUMPRODUCT((TBGSHT!$D$9:$D$4167=$B129)*(TBGSHT!$C$9:$C$4167=J$6)),"") -> 5 | K129: =IFERROR(SUMPRODUCT((TBGSHT!$D$9:$D$4167=$B129)*(TBGSHT!$C$9:$C$4167=K$6)),"") -> 0 | L129: =IFERROR(SUMPRODUCT((TBGSHT!$D$9:$D$4167=$B129)*(TBGSHT!$C$9:$C$4167=L$6)),"") -> 0 | M129: 5 | N129: =IFERROR(VLOOKUP($B129,Danhmuc!$D$4:$M$513,2,0),"") -> Thôn Phú Ninh, Quảng Thanh, Quảng Trạch, Quảng Bình | O129: =IFERROR(VLOOKUP($B129,Danhmuc!$D$4:$M$513,3,0),"") -> 0966986133 | P129: 0 | Q129: 5 | U129: 1
A130: =IF($B130<>"",SUBTOTAL(103,B$8:B130),"") -> 123 | B130: Công ty TNHH VT&DV Vinafco Miền Trung | C130: =IFERROR(SUMPRODUCT((TBGSHT!$D$9:$D$4167=$B130)*(TBGSHT!$C$9:$C$4167=C$6)),"") -> 0 | D130: =IFERROR(SUMPRODUCT((TBGSHT!$D$9:$D$4167=$B130)*(TBGSHT!$C$9:$C$4167=D$6)),"") -> 0 | E130: =IFERROR(SUMPRODUCT((TBGSHT!$D$9:$D$4167=$B130)*(TBGSHT!$C$9:$C$4167=E$6)),"") -> 0 | F130: =IFERROR(SUMPRODUCT((TBGSHT!$D$9:$D$4167=$B130)*(TBGSHT!$C$9:$C$4167=F$6)),"") -> 0 | G130: =IFERROR(SUMPRODUCT((TBGSHT!$D$9:$D$4167=$B130)*(TBGSHT!$C$9:$C$4167=G$6)),"") -> 0 | H130: =IFERROR(SUMPRODUCT((TBGSHT!$D$9:$D$4167=$B130)*(TBGSHT!$C$9:$C$4167=H$6)),"") -> 0 | I130: =IFERROR(SUMPRODUCT((TBGSHT!$D$9:$D$4167=$B130)*(TBGSHT!$C$9:$C$4167=I$6)),"") -> 4 | J130: =IFERROR(SUMPRODUCT((TBGSHT!$D$9:$D$4167=$B130)*(TBGSHT!$C$9:$C$4167=J$6)),"") -> 1 | K130: =IFERROR(SUMPRODUCT((TBGSHT!$D$9:$D$4167=$B130)*(TBGSHT!$C$9:$C$4167=K$6)),"") -> 0 | L130: =IFERROR(SUMPRODUCT((TBGSHT!$D$9:$D$4167=$B130)*(TBGSHT!$C$9:$C$4167=L$6)),"") -> 0 | M130: 5 | N130: =IFERROR(VLOOKUP($B130,Danhmuc!$D$4:$M$513,2,0),"") -> Thôn Minh Lợi, phường Quảng Thọ, thị xã Ba Đồn, tỉnh Quảng Bình | O130: =IFERROR(VLOOKUP($B130,Danhmuc!$D$4:$M$513,3,0),"") -> '0936161188 | P130: 0 | Q130: 5 | U130: 1
A131: =IF($B131<>"",SUBTOTAL(103,B$8:B131),"") -> 124 | B131: CÔNG TY TNHH TM TÀI VẸN | C131: =IFERROR(SUMPRODUCT((TBGSHT!$D$9:$D$4167=$B131)*(TBGSHT!$C$9:$C$4167=C$6)),"") -> 0 | D131: =IFERROR(SUMPRODUCT((TBGSHT!$D$9:$D$4167=$B131)*(TBGSHT!$C$9:$C$4167=D$6)),"") -> 0 | E131: =IFERROR(SUMPRODUCT((TBGSHT!$D$9:$D$4167=$B131)*(TBGSHT!$C$9:$C$4167=E$6)),"") -> 0 | F131: =IFERROR(SUMPRODUCT((TBGSHT!$D$9:$D$4167=$B131)*(TBGSHT!$C$9:$C$4167=F$6)),"") -> 0 | G131: =IFERROR(SUMPRODUCT((TBGSHT!$D$9:$D$4167=$B131)*(TBGSHT!$C$9:$C$4167=G$6)),"") -> 0 | H131: =IFERROR(SUMPRODUCT((TBGSHT!$D$9:$D$4167=$B131)*(TBGSHT!$C$9:$C$4167=H$6)),"") -> 0 | I131: =IFERROR(SUMPRODUCT((TBGSHT!$D$9:$D$4167=$B131)*(TBGSHT!$C$9:$C$4167=I$6)),"") -> 0 | J131: =IFERROR(SUMPRODUCT((TBGSHT!$D$9:$D$4167=$B131)*(TBGSHT!$C$9:$C$4167=J$6)),"") -> 0 | K131: =IFERROR(SUMPRODUCT((TBGSHT!$D$9:$D$4167=$B131)*(TBGSHT!$C$9:$C$4167=K$6)),"") -> 5 | L131: =IFERROR(SUMPRODUCT((TBGSHT!$D$9:$D$4167=$B131)*(TBGSHT!$C$9:$C$4167=L$6)),"") -> 0 | M131: 5 | N131: =IFERROR(VLOOKUP($B131,Danhmuc!$D$4:$M$513,2,0),"") -> Thôn Tam Đa, Tiến Hoá, Tuyên Hoá, Quảng Bình | O131: =IFERROR(VLOOKUP($B131,Danhmuc!$D$4:$M$513,3,0),"") -> 0984158249 | P131: 0 | Q131: 5 | U131: 1
A132: =IF($B132<>"",SUBTOTAL(103,B$8:B132),"") -> 125 | B132: Công ty TNHH VT&TM Dũng Anh | C132: =IFERROR(SUMPRODUCT((TBGSHT!$D$9:$D$4167=$B132)*(TBGSHT!$C$9:$C$4167=C$6)),"") -> 0 | D132: =IFERROR(SUMPRODUCT((TBGSHT!$D$9:$D$4167=$B132)*(TBGSHT!$C$9:$C$4167=D$6)),"") -> 0 | E132: =IFERROR(SUMPRODUCT((TBGSHT!$D$9:$D$4167=$B132)*(TBGSHT!$C$9:$C$4167=E$6)),"") -> 0 | F132: =IFERROR(SUMPRODUCT((TBGSHT!$D$9:$D$4167=$B132)*(TBGSHT!$C$9:$C$4167=F$6)),"") -> 0 | G132: =IFERROR(SUMPRODUCT((TBGSHT!$D$9:$D$4167=$B132)*(TBGSHT!$C$9:$C$4167=G$6)),"") -> 0 | H132: =IFERROR(SUMPRODUCT((TBGSHT!$D$9:$D$4167=$B132)*(TBGSHT!$C$9:$C$4167=H$6)),"") -> 0 | I132: =IFERROR(SUMPRODUCT((TBGSHT!$D$9:$D$4167=$B132)*(TBGSHT!$C$9:$C$4167=I$6)),"") -> 0 | J132: =IFERROR(SUMPRODUCT((TBGSHT!$D$9:$D$4167=$B132)*(TBGSHT!$C$9:$C$4167=J$6)),"") -> 0 | K132: =IFERROR(SUMPRODUCT((TBGSHT!$D$9:$D$4167=$B132)*(TBGSHT!$C$9:$C$4167=K$6)),"") -> 5 | L132: =IFERROR(SUMPRODUCT((TBGSHT!$D$9:$D$4167=$B132)*(TBGSHT!$C$9:$C$4167=L$6)),"") -> 0 | M132: 5 | N132: =IFERROR(VLOOKUP($B132,Danhmuc!$D$4:$M$513,2,0),"") -> Thôn Thuận Hoà, Thuận Đức, Đồng Hới, Quảng Bình | O132: =IFERROR(VLOOKUP($B132,Danhmuc!$D$4:$M$513,3,0),"") -> 09055998687 | P132: 0 | Q132: 5 | U132: 1
A133: =IF($B133<>"",SUBTOTAL(103,B$8:B133),"") -> 126 | B133: Công ty TNHH XDTH Tứ Phát | C133: =IFERROR(SUMPRODUCT((TBGSHT!$D$9:$D$4167=$B133)*(TBGSHT!$C$9:$C$4167=C$6)),"") -> 0 | D133: =IFERROR(SUMPRODUCT((TBGSHT!$D$9:$D$4167=$B133)*(TBGSHT!$C$9:$C$4167=D$6)),"") -> 0 | E133: =IFERROR(SUMPRODUCT((TBGSHT!$D$9:$D$4167=$B133)*(TBGSHT!$C$9:$C$4167=E$6)),"") -> 0 | F133: =IFERROR(SUMPRODUCT((TBGSHT!$D$9:$D$4167=$B133)*(TBGSHT!$C$9:$C$4167=F$6)),"") -> 0 | G133: =IFERROR(SUMPRODUCT((TBGSHT!$D$9:$D$4167=$B133)*(TBGSHT!$C$9:$C$4167=G$6)),"") -> 0 | H133: =IFERROR(SUMPRODUCT((TBGSHT!$D$9:$D$4167=$B133)*(TBGSHT!$C$9:$C$4167=H$6)),"") -> 0 | I133: =IFERROR(SUMPRODUCT((TBGSHT!$D$9:$D$4167=$B133)*(TBGSHT!$C$9:$C$4167=I$6)),"") -> 0 | J133: =IFERROR(SUMPRODUCT((TBGSHT!$D$9:$D$4167=$B133)*(TBGSHT!$C$9:$C$4167=J$6)),"") -> 5 | K133: =IFERROR(SUMPRODUCT((TBGSHT!$D$9:$D$4167=$B133)*(TBGSHT!$C$9:$C$4167=K$6)),"") -> 0 | L133: =IFERROR(SUMPRODUCT((TBGSHT!$D$9:$D$4167=$B133)*(TBGSHT!$C$9:$C$4167=L$6)),"") -> 0 | M133: 5 | N133: =IFERROR(VLOOKUP($B133,Danhmuc!$D$4:$M$513,2,0),"") -> Thôn Xuân Kiều, Quảng Xuân, Quảng Trạch, Quảng Bình | O133: =IFERROR(VLOOKUP($B133,Danhmuc!$D$4:$M$513,3,0),"") -> 0983637141 | P133: 0 | Q133: 5 | U133: 1
A134: =IF($B134<>"",SUBTOTAL(103,B$8:B134),"") -> 127 | B134: CÔNG TY TNHH VẬT LIỆU XD HÀ LIÊN | C134: =IFERROR(SUMPRODUCT((TBGSHT!$D$9:$D$4167=$B134)*(TBGSHT!$C$9:$C$4167=C$6)),"") -> 0 | D134: =IFERROR(SUMPRODUCT((TBGSHT!$D$9:$D$4167=$B134)*(TBGSHT!$C$9:$C$4167=D$6)),"") -> 0 | E134: =IFERROR(SUMPRODUCT((TBGSHT!$D$9:$D$4167=$B134)*(TBGSHT!$C$9:$C$4167=E$6)),"") -> 0 | F134: =IFERROR(SUMPRODUCT((TBGSHT!$D$9:$D$4167=$B134)*(TBGSHT!$C$9:$C$4167=F$6)),"") -> 0 | G134: =IFERROR(SUMPRODUCT((TBGSHT!$D$9:$D$4167=$B134)*(TBGSHT!$C$9:$C$4167=G$6)),"") -> 0 | H134: =IFERROR(SUMPRODUCT((TBGSHT!$D$9:$D$4167=$B134)*(TBGSHT!$C$9:$C$4167=H$6)),"") -> 0 | I134: =IFERROR(SUMPRODUCT((TBGSHT!$D$9:$D$4167=$B134)*(TBGSHT!$C$9:$C$4167=I$6)),"") -> 0 | J134: =IFERROR(SUMPRODUCT((TBGSHT!$D$9:$D$4167=$B134)*(TBGSHT!$C$9:$C$4167=J$6)),"") -> 3 | K134: =IFERROR(SUMPRODUCT((TBGSHT!$D$9:$D$4167=$B134)*(TBGSHT!$C$9:$C$4167=K$6)),"") -> 2 | L134: =IFERROR(SUMPRODUCT((TBGSHT!$D$9:$D$4167=$B134)*(TBGSHT!$C$9:$C$4167=L$6)),"") -> 0 | M134: 5 | N134: =IFERROR(VLOOKUP($B134,Danhmuc!$D$4:$M$513,2,0),"") -> TK8, Quy Đạt, Minh Hóa, Quảng Bình | O134: =IFERROR(VLOOKUP($B134,Danhmuc!$D$4:$M$513,3,0),"") -> 0972722204 | P134: 0 | Q134: 5 | U134: 1
A135: =IF($B135<>"",SUBTOTAL(103,B$8:B135),"") -> 128 | B135: Công ty TNHH TMTH Tịnh Phát | C135: =IFERROR(SUMPRODUCT((TBGSHT!$D$9:$D$4167=$B135)*(TBGSHT!$C$9:$C$4167=C$6)),"") -> 0 | D135: =IFERROR(SUMPRODUCT((TBGSHT!$D$9:$D$4167=$B135)*(TBGSHT!$C$9:$C$4167=D$6)),"") -> 0 | E135: =IFERROR(SUMPRODUCT((TBGSHT!$D$9:$D$4167=$B135)*(TBGSHT!$C$9:$C$4167=E$6)),"") -> 0 | F135: =IFERROR(SUMPRODUCT((TBGSHT!$D$9:$D$4167=$B135)*(TBGSHT!$C$9:$C$4167=F$6)),"") -> 0 | G135: =IFERROR(SUMPRODUCT((TBGSHT!$D$9:$D$4167=$B135)*(TBGSHT!$C$9:$C$4167=G$6)),"") -> 0 | H135: =IFERROR(SUMPRODUCT((TBGSHT!$D$9:$D$4167=$B135)*(TBGSHT!$C$9:$C$4167=H$6)),"") -> 0 | I135: =IFERROR(SUMPRODUCT((TBGSHT!$D$9:$D$4167=$B135)*(TBGSHT!$C$9:$C$4167=I$6)),"") -> 0 | J135: =IFERROR(SUMPRODUCT((TBGSHT!$D$9:$D$4167=$B135)*(TBGSHT!$C$9:$C$4167=J$6)),"") -> 0 | K135: =IFERROR(SUMPRODUCT((TBGSHT!$D$9:$D$4167=$B135)*(TBGSHT!$C$9:$C$4167=K$6)),"") -> 5 | L135: =IFERROR(SUMPRODUCT((TBGSHT!$D$9:$D$4167=$B135)*(TBGSHT!$C$9:$C$4167=L$6)),"") -> 0 | M135: 5 | N135: =IFERROR(VLOOKUP($B135,Danhmuc!$D$4:$M$513,2,0),"") -> TDP Nam, P.Quảng Thuận, TX.Ba Đồn, Tỉnh Quảng Bình | O135: =IFERROR(VLOOKUP($B135,Danhmuc!$D$4:$M$513,3,0),"") -> 0985787383 | P135: 0 | Q135: 5 | U135: 1
A136: =IF($B136<>"",SUBTOTAL(103,B$8:B136),"") -> 129 | B136: Công ty TNHH Lê Minh Phương | C136: =IFERROR(SUMPRODUCT((TBGSHT!$D$9:$D$4167=$B136)*(TBGSHT!$C$9:$C$4167=C$6)),"") -> 0 | D136: =IFERROR(SUMPRODUCT((TBGSHT!$D$9:$D$4167=$B136)*(TBGSHT!$C$9:$C$4167=D$6)),"") -> 0 | E136: =IFERROR(SUMPRODUCT((TBGSHT!$D$9:$D$4167=$B136)*(TBGSHT!$C$9:$C$4167=E$6)),"") -> 0 | F136: =IFERROR(SUMPRODUCT((TBGSHT!$D$9:$D$4167=$B136)*(TBGSHT!$C$9:$C$4167=F$6)),"") -> 0 | G136: =IFERROR(SUMPRODUCT((TBGSHT!$D$9:$D$4167=$B136)*(TBGSHT!$C$9:$C$4167=G$6)),"") -> 2 | H136: =IFERROR(SUMPRODUCT((TBGSHT!$D$9:$D$4167=$B136)*(TBGSHT!$C$9:$C$4167=H$6)),"") -> 0 | I136: =IFERROR(SUMPRODUCT((TBGSHT!$D$9:$D$4167=$B136)*(TBGSHT!$C$9:$C$4167=I$6)),"") -> 0 | J136: =IFERROR(SUMPRODUCT((TBGSHT!$D$9:$D$4167=$B136)*(TBGSHT!$C$9:$C$4167=J$6)),"") -> 0 | K136: =IFERROR(SUMPRODUCT((TBGSHT!$D$9:$D$4167=$B136)*(TBGSHT!$C$9:$C$4167=K$6)),"") -> 3 | L136: =IFERROR(SUMPRODUCT((TBGSHT!$D$9:$D$4167=$B136)*(TBGSHT!$C$9:$C$4167=L$6)),"") -> 0 | M136: =SUM(C136:K136) -> 5 | N136: =IFERROR(VLOOKUP($B136,Danhmuc!$D$4:$M$513,2,0),"") -> Đường Lý Thánh Tông, Thôn 7, Xã Lộc Ninh, TP. Đồng Hới, Tỉnh Quảng Bình | O136: =IFERROR(VLOOKUP($B136,Danhmuc!$D$4:$M$513,3,0),"") -> 0523822892 | P136: =SUM(C136:H136) -> 2 | Q136: 3 | U136: 1
A137: =IF($B137<>"",SUBTOTAL(103,B$8:B137),"") -> 130 | B137: Công ty TNHH TM&DVVT Trang Dung | C137: =IFERROR(SUMPRODUCT((TBGSHT!$D$9:$D$4167=$B137)*(TBGSHT!$C$9:$C$4167=C$6)),"") -> 0 | D137: =IFERROR(SUMPRODUCT((TBGSHT!$D$9:$D$4167=$B137)*(TBGSHT!$C$9:$C$4167=D$6)),"") -> 0 | E137: =IFERROR(SUMPRODUCT((TBGSHT!$D$9:$D$4167=$B137)*(TBGSHT!$C$9:$C$4167=E$6)),"") -> 0 | F137: =IFERROR(SUMPRODUCT((TBGSHT!$D$9:$D$4167=$B137)*(TBGSHT!$C$9:$C$4167=F$6)),"") -> 0 | G137: =IFERROR(SUMPRODUCT((TBGSHT!$D$9:$D$4167=$B137)*(TBGSHT!$C$9:$C$4167=G$6)),"") -> 0 | H137: =IFERROR(SUMPRODUCT((TBGSHT!$D$9:$D$4167=$B137)*(TBGSHT!$C$9:$C$4167=H$6)),"") -> 0 | I137: =IFERROR(SUMPRODUCT((TBGSHT!$D$9:$D$4167=$B137)*(TBGSHT!$C$9:$C$4167=I$6)),"") -> 0 | J137: =IFERROR(SUMPRODUCT((TBGSHT!$D$9:$D$4167=$B137)*(TBGSHT!$C$9:$C$4167=J$6)),"") -> 0 | K137: =IFERROR(SUMPRODUCT((TBGSHT!$D$9:$D$4167=$B137)*(TBGSHT!$C$9:$C$4167=K$6)),"") -> 5 | L137: =IFERROR(SUMPRODUCT((TBGSHT!$D$9:$D$4167=$B137)*(TBGSHT!$C$9:$C$4167=L$6)),"") -> 0 | M137: 5 | N137: =IFERROR(VLOOKUP($B137,Danhmuc!$D$4:$M$513,2,0),"") -> Tổ dân phố 9, P.Bắc Lý, TP. Đồng Hới, Tỉnh Quảng Bình | O137: =IFERROR(VLOOKUP($B137,Danhmuc!$D$4:$M$513,3,0),"") -> 0523836320 | P137: 0 | Q137: =SUM(I137:K137) -> 5 | U137: 1
A138: =IF($B138<>"",SUBTOTAL(103,B$8:B138),"") -> 131 | B138: Công ty TNHH Hoàng Thanh Hoài | C138: =IFERROR(SUMPRODUCT((TBGSHT!$D$9:$D$4167=$B138)*(TBGSHT!$C$9:$C$4167=C$6)),"") -> 0 | D138: =IFERROR(SUMPRODUCT((TBGSHT!$D$9:$D$4167=$B138)*(TBGSHT!$C$9:$C$4167=D$6)),"") -> 0 | E138: =IFERROR(SUMPRODUCT((TBGSHT!$D$9:$D$4167=$B138)*(TBGSHT!$C$9:$C$4167=E$6)),"") -> 0 | F138: =IFERROR(SUMPRODUCT((TBGSHT!$D$9:$D$4167=$B138)*(TBGSHT!$C$9:$C$4167=F$6)),"") -> 0 | G138: =IFERROR(SUMPRODUCT((TBGSHT!$D$9:$D$4167=$B138)*(TBGSHT!$C$9:$C$4167=G$6)),"") -> 0 | H138: =IFERROR(SUMPRODUCT((TBGSHT!$D$9:$D$4167=$B138)*(TBGSHT!$C$9:$C$4167=H$6)),"") -> 5 | I138: =IFERROR(SUMPRODUCT((TBGSHT!$D$9:$D$4167=$B138)*(TBGSHT!$C$9:$C$4167=I$6)),"") -> 0 | J138: =IFERROR(SUMPRODUCT((TBGSHT!$D$9:$D$4167=$B138)*(TBGSHT!$C$9:$C$4167=J$6)),"") -> 0 | K138: =IFERROR(SUMPRODUCT((TBGSHT!$D$9:$D$4167=$B138)*(TBGSHT!$C$9:$C$4167=K$6)),"") -> 0 | L138: =IFERROR(SUMPRODUCT((TBGSHT!$D$9:$D$4167=$B138)*(TBGSHT!$C$9:$C$4167=L$6)),"") -> 0 | M138: 5 | N138: =IFERROR(VLOOKUP($B138,Danhmuc!$D$4:$M$513,2,0),"") -> 13 Thái Phiên, P.Nam Lý, TP. Đồng Hới, Tỉnh Quảng Bình | O138: =IFERROR(VLOOKUP($B138,Danhmuc!$D$4:$M$513,3,0),"") -> 0912037916 | P138: 5 | Q138: 0 | U138: 1
A139: =IF($B139<>"",SUBTOTAL(103,B$8:B139),"") -> 132 | B139: Công ty TNHH VTDL Minh Hoàng | C139: =IFERROR(SUMPRODUCT((TBGSHT!$D$9:$D$4167=$B139)*(TBGSHT!$C$9:$C$4167=C$6)),"") -> 0 | D139: =IFERROR(SUMPRODUCT((TBGSHT!$D$9:$D$4167=$B139)*(TBGSHT!$C$9:$C$4167=D$6)),"") -> 0 | E139: =IFERROR(SUMPRODUCT((TBGSHT!$D$9:$D$4167=$B139)*(TBGSHT!$C$9:$C$4167=E$6)),"") -> 0 | F139: =IFERROR(SUMPRODUCT((TBGSHT!$D$9:$D$4167=$B139)*(TBGSHT!$C$9:$C$4167=F$6)),"") -> 0 | G139: =IFERROR(SUMPRODUCT((TBGSHT!$D$9:$D$4167=$B139)*(TBGSHT!$C$9:$C$4167=G$6)),"") -> 4 | H139: =IFERROR(SUMPRODUCT((TBGSHT!$D$9:$D$4167=$B139)*(TBGSHT!$C$9:$C$4167=H$6)),"") -> 1 | I139: =IFERROR(SUMPRODUCT((TBGSHT!$D$9:$D$4167=$B139)*(TBGSHT!$C$9:$C$4167=I$6)),"") -> 0 | J139: =IFERROR(SUMPRODUCT((TBGSHT!$D$9:$D$4167=$B139)*(TBGSHT!$C$9:$C$4167=J$6)),"") -> 0 | K139: =IFERROR(SUMPRODUCT((TBGSHT!$D$9:$D$4167=$B139)*(TBGSHT!$C$9:$C$4167=K$6)),"") -> 0 | L139: =IFERROR(SUMPRODUCT((TBGSHT!$D$9:$D$4167=$B139)*(TBGSHT!$C$9:$C$4167=L$6)),"") -> 0 | M139: 5 | N139: =IFERROR(VLOOKUP($B139,Danhmuc!$D$4:$M$513,2,0),"") -> Số 10, đường Đồng Hải, P.Hải Thành, TP, Đồng Hới, Tỉnh Quảng Bình | O139: =IFERROR(VLOOKUP($B139,Danhmuc!$D$4:$M$513,3,0),"") -> 0965667778 | P139: 5 | Q139: 0 | U139: 2
A140: =IF($B140<>"",SUBTOTAL(103,B$8:B140),"") -> 133 | B140: Công ty CP Dược phẩm Quảng Bình | C140: =IFERROR(SUMPRODUCT((TBGSHT!$D$9:$D$4167=$B140)*(TBGSHT!$C$9:$C$4167=C$6)),"") -> 0 | D140: =IFERROR(SUMPRODUCT((TBGSHT!$D$9:$D$4167=$B140)*(TBGSHT!$C$9:$C$4167=D$6)),"") -> 0 | E140: =IFERROR(SUMPRODUCT((TBGSHT!$D$9:$D$4167=$B140)*(TBGSHT!$C$9:$C$4167=E$6)),"") -> 0 | F140: =IFERROR(SUMPRODUCT((TBGSHT!$D$9:$D$4167=$B140)*(TBGSHT!$C$9:$C$4167=F$6)),"") -> 0 | G140: =IFERROR(SUMPRODUCT((TBGSHT!$D$9:$D$4167=$B140)*(TBGSHT!$C$9:$C$4167=G$6)),"") -> 0 | H140: =IFERROR(SUMPRODUCT((TBGSHT!$D$9:$D$4167=$B140)*(TBGSHT!$C$9:$C$4167=H$6)),"") -> 0 | I140: =IFERROR(SUMPRODUCT((TBGSHT!$D$9:$D$4167=$B140)*(TBGSHT!$C$9:$C$4167=I$6)),"") -> 0 | J140: =IFERROR(SUMPRODUCT((TBGSHT!$D$9:$D$4167=$B140)*(TBGSHT!$C$9:$C$4167=J$6)),"") -> 0 | K140: =IFERROR(SUMPRODUCT((TBGSHT!$D$9:$D$4167=$B140)*(TBGSHT!$C$9:$C$4167=K$6)),"") -> 5 | L140: =IFERROR(SUMPRODUCT((TBGSHT!$D$9:$D$4167=$B140)*(TBGSHT!$C$9:$C$4167=L$6)),"") -> 0 | M140: 5 | N140: =IFERROR(VLOOKUP($B140,Danhmuc!$D$4:$M$513,2,0),"") -> 46 Hữu Nghị, P.Bắc Lý, TP. Đồng Hới, Tỉnh Quảng Bình | O140: =IFERROR(VLOOKUP($B140,Danhmuc!$D$4:$M$513,3,0),"") -> 02323822475 | P140: 0 | Q140: 5 | U140: 2
A141: =IF($B141<>"",SUBTOTAL(103,B$8:B141),"") -> 134 | B141: Công ty TNHH Dung Tin | C141: =IFERROR(SUMPRODUCT((TBGSHT!$D$9:$D$4167=$B141)*(TBGSHT!$C$9:$C$4167=C$6)),"") -> 0 | D141: =IFERROR(SUMPRODUCT((TBGSHT!$D$9:$D$4167=$B141)*(TBGSHT!$C$9:$C$4167=D$6)),"") -> 0 | E141: =IFERROR(SUMPRODUCT((TBGSHT!$D$9:$D$4167=$B141)*(TBGSHT!$C$9:$C$4167=E$6)),"") -> 0 | F141: =IFERROR(SUMPRODUCT((TBGSHT!$D$9:$D$4167=$B141)*(TBGSHT!$C$9:$C$4167=F$6)),"") -> 0 | G141: =IFERROR(SUMPRODUCT((TBGSHT!$D$9:$D$4167=$B141)*(TBGSHT!$C$9:$C$4167=G$6)),"") -> 0 | H141: =IFERROR(SUMPRODUCT((TBGSHT!$D$9:$D$4167=$B141)*(TBGSHT!$C$9:$C$4167=H$6)),"") -> 0 | I141: =IFERROR(SUMPRODUCT((TBGSHT!$D$9:$D$4167=$B141)*(TBGSHT!$C$9:$C$4167=I$6)),"") -> 0 | J141: =IFERROR(SUMPRODUCT((TBGSHT!$D$9:$D$4167=$B141)*(TBGSHT!$C$9:$C$4167=J$6)),"") -> 0 | K141: =IFERROR(SUMPRODUCT((TBGSHT!$D$9:$D$4167=$B141)*(TBGSHT!$C$9:$C$4167=K$6)),"") -> 5 | L141: =IFERROR(SUMPRODUCT((TBGSHT!$D$9:$D$4167=$B141)*(TBGSHT!$C$9:$C$4167=L$6)),"") -> 0 | M141: 5 | N141: =IFERROR(VLOOKUP($B141,Danhmuc!$D$4:$M$513,2,0),"") -> 244 Trần Hưng Đạo, P.Nam Lý, TP. Đồng Hới, Tỉnh Quảng Bình | O141: =IFERROR(VLOOKUP($B141,Danhmuc!$D$4:$M$513,3,0),"") -> 0912335585 | P141: 0 | Q141: 5 | U141: 1
A142: =IF($B142<>"",SUBTOTAL(103,B$8:B142),"") -> 135 | B142: Công ty TNHH TM và XDTH Trường Khánh | C142: =IFERROR(SUMPRODUCT((TBGSHT!$D$9:$D$4167=$B142)*(TBGSHT!$C$9:$C$4167=C$6)),"") -> 0 | D142: =IFERROR(SUMPRODUCT((TBGSHT!$D$9:$D$4167=$B142)*(TBGSHT!$C$9:$C$4167=D$6)),"") -> 0 | E142: =IFERROR(SUMPRODUCT((TBGSHT!$D$9:$D$4167=$B142)*(TBGSHT!$C$9:$C$4167=E$6)),"") -> 0 | F142: =IFERROR(SUMPRODUCT((TBGSHT!$D$9:$D$4167=$B142)*(TBGSHT!$C$9:$C$4167=F$6)),"") -> 0 | G142: =IFERROR(SUMPRODUCT((TBGSHT!$D$9:$D$4167=$B142)*(TBGSHT!$C$9:$C$4167=G$6)),"") -> 0 | H142: =IFERROR(SUMPRODUCT((TBGSHT!$D$9:$D$4167=$B142)*(TBGSHT!$C$9:$C$4167=H$6)),"") -> 0 | I142: =IFERROR(SUMPRODUCT((TBGSHT!$D$9:$D$4167=$B142)*(TBGSHT!$C$9:$C$4167=I$6)),"") -> 0 | J142: =IFERROR(SUMPRODUCT((TBGSHT!$D$9:$D$4167=$B142)*(TBGSHT!$C$9:$C$4167=J$6)),"") -> 0 | K142: =IFERROR(SUMPRODUCT((TBGSHT!$D$9:$D$4167=$B142)*(TBGSHT!$C$9:$C$4167=K$6)),"") -> 5 | L142: =IFERROR(SUMPRODUCT((TBGSHT!$D$9:$D$4167=$B142)*(TBGSHT!$C$9:$C$4167=L$6)),"") -> 0 | M142: 5 | N142: =IFERROR(VLOOKUP($B142,Danhmuc!$D$4:$M$513,2,0),"") -> 92 Cao Bá Quát, Phường Đồng Mỹ, Thành Phố Đồng Hới, Tỉnh Quảng Bình | O142: =IFERROR(VLOOKUP($B142,Danhmuc!$D$4:$M$513,3,0),"") -> 0 | P142: 0 | Q142: 5 | U142: 1
A143: =IF($B143<>"",SUBTOTAL(103,B$8:B143),"") -> 136 | B143: CÔNG TY TNHH XÂY DỰNG ĐỨC LƯỢNG | C143: =IFERROR(SUMPRODUCT((TBGSHT!$D$9:$D$4167=$B143)*(TBGSHT!$C$9:$C$4167=C$6)),"") -> 0 | D143: =IFERROR(SUMPRODUCT((TBGSHT!$D$9:$D$4167=$B143)*(TBGSHT!$C$9:$C$4167=D$6)),"") -> 0 | E143: =IFERROR(SUMPRODUCT((TBGSHT!$D$9:$D$4167=$B143)*(TBGSHT!$C$9:$C$4167=E$6)),"") -> 0 | F143: =IFERROR(SUMPRODUCT((TBGSHT!$D$9:$D$4167=$B143)*(TBGSHT!$C$9:$C$4167=F$6)),"") -> 0 | G143: =IFERROR(SUMPRODUCT((TBGSHT!$D$9:$D$4167=$B143)*(TBGSHT!$C$9:$C$4167=G$6)),"") -> 0 | H143: =IFERROR(SUMPRODUCT((TBGSHT!$D$9:$D$4167=$B143)*(TBGSHT!$C$9:$C$4167=H$6)),"") -> 0 | I143: =IFERROR(SUMPRODUCT((TBGSHT!$D$9:$D$4167=$B143)*(TBGSHT!$C$9:$C$4167=I$6)),"") -> 0 | J143: =IFERROR(SUMPRODUCT((TBGSHT!$D$9:$D$4167=$B143)*(TBGSHT!$C$9:$C$4167=J$6)),"") -> 0 | K143: =IFERROR(SUMPRODUCT((TBGSHT!$D$9:$D$4167=$B143)*(TBGSHT!$C$9:$C$4167=K$6)),"") -> 5 | L143: =IFERROR(SUMPRODUCT((TBGSHT!$D$9:$D$4167=$B143)*(TBGSHT!$C$9:$C$4167=L$6)),"") -> 0 | M143: 5 | N143: =IFERROR(VLOOKUP($B143,Danhmuc!$D$4:$M$513,2,0),"") -> Tổ dân phố 2, Phường Bắc Lý, Thành Phố Đồng Hới, Tỉnh Quảng Bình | O143: =IFERROR(VLOOKUP($B143,Danhmuc!$D$4:$M$513,3,0),"") -> 0 | P143: 0 | Q143: 5 | U143: 2
A144: =IF($B144<>"",SUBTOTAL(103,B$8:B144),"") -> 137 | B144: Công ty TNHH Thái Sơn | C144: =IFERROR(SUMPRODUCT((TBGSHT!$D$9:$D$4167=$B144)*(TBGSHT!$C$9:$C$4167=C$6)),"") -> 0 | D144: =IFERROR(SUMPRODUCT((TBGSHT!$D$9:$D$4167=$B144)*(TBGSHT!$C$9:$C$4167=D$6)),"") -> 0 | E144: =IFERROR(SUMPRODUCT((TBGSHT!$D$9:$D$4167=$B144)*(TBGSHT!$C$9:$C$4167=E$6)),"") -> 0 | F144: =IFERROR(SUMPRODUCT((TBGSHT!$D$9:$D$4167=$B144)*(TBGSHT!$C$9:$C$4167=F$6)),"") -> 0 | G144: =IFERROR(SUMPRODUCT((TBGSHT!$D$9:$D$4167=$B144)*(TBGSHT!$C$9:$C$4167=G$6)),"") -> 0 | H144: =IFERROR(SUMPRODUCT((TBGSHT!$D$9:$D$4167=$B144)*(TBGSHT!$C$9:$C$4167=H$6)),"") -> 0 | I144: =IFERROR(SUMPRODUCT((TBGSHT!$D$9:$D$4167=$B144)*(TBGSHT!$C$9:$C$4167=I$6)),"") -> 0 | J144: =IFERROR(SUMPRODUCT((TBGSHT!$D$9:$D$4167=$B144)*(TBGSHT!$C$9:$C$4167=J$6)),"") -> 0 | K144: =IFERROR(SUMPRODUCT((TBGSHT!$D$9:$D$4167=$B144)*(TBGSHT!$C$9:$C$4167=K$6)),"") -> 5 | L144: =IFERROR(SUMPRODUCT((TBGSHT!$D$9:$D$4167=$B144)*(TBGSHT!$C$9:$C$4167=L$6)),"") -> 0 | M144: 5 | N144: =IFERROR(VLOOKUP($B144,Danhmuc!$D$4:$M$513,2,0),"") -> 141 Trần Hưng Đạo, Phường Đồng Phú, Thành Phố Đồng Hới, Tỉnh Quảng Bình | O144: =IFERROR(VLOOKUP($B144,Danhmuc!$D$4:$M$513,3,0),"") -> 0 | P144: 0 | Q144: 5 | U144: 1
A145: =IF($B145<>"",SUBTOTAL(103,B$8:B145),"") -> 138 | B145: Công ty TNHH MTV Quỳnh Hoa | C145: =IFERROR(SUMPRODUCT((TBGSHT!$D$9:$D$4167=$B145)*(TBGSHT!$C$9:$C$4167=C$6)),"") -> 0 | D145: =IFERROR(SUMPRODUCT((TBGSHT!$D$9:$D$4167=$B145)*(TBGSHT!$C$9:$C$4167=D$6)),"") -> 0 | E145: =IFERROR(SUMPRODUCT((TBGSHT!$D$9:$D$4167=$B145)*(TBGSHT!$C$9:$C$4167=E$6)),"") -> 0 | F145: =IFERROR(SUMPRODUCT((TBGSHT!$D$9:$D$4167=$B145)*(TBGSHT!$C$9:$C$4167=F$6)),"") -> 0 | G145: =IFERROR(SUMPRODUCT((TBGSHT!$D$9:$D$4167=$B145)*(TBGSHT!$C$9:$C$4167=G$6)),"") -> 0 | H145: =IFERROR(SUMPRODUCT((TBGSHT!$D$9:$D$4167=$B145)*(TBGSHT!$C$9:$C$4167=H$6)),"") -> 0 | I145: =IFERROR(SUMPRODUCT((TBGSHT!$D$9:$D$4167=$B145)*(TBGSHT!$C$9:$C$4167=I$6)),"") -> 0 | J145: =IFERROR(SUMPRODUCT((TBGSHT!$D$9:$D$4167=$B145)*(TBGSHT!$C$9:$C$4167=J$6)),"") -> 0 | K145: =IFERROR(SUMPRODUCT((TBGSHT!$D$9:$D$4167=$B145)*(TBGSHT!$C$9:$C$4167=K$6)),"") -> 5 | L145: =IFERROR(SUMPRODUCT((TBGSHT!$D$9:$D$4167=$B145)*(TBGSHT!$C$9:$C$4167=L$6)),"") -> 0 | M145: 5 | N145: =IFERROR(VLOOKUP($B145,Danhmuc!$D$4:$M$513,2,0),"") -> Thôn Cương Trung C, Xã Tiến Hóa, Huyện Tuyên Hoá, Quảng Bình | O145: =IFERROR(VLOOKUP($B145,Danhmuc!$D$4:$M$513,3,0),"") -> 0 | P145: 0 | Q145: 5 | U145: 1
A146: =IF($B146<>"",SUBTOTAL(103,B$8:B146),"") -> 139 | B146: CÔNG TY TNHH TMTH QUỐC KHÁNH | C146: =IFERROR(SUMPRODUCT((TBGSHT!$D$9:$D$4167=$B146)*(TBGSHT!$C$9:$C$4167=C$6)),"") -> 0 | D146: =IFERROR(SUMPRODUCT((TBGSHT!$D$9:$D$4167=$B146)*(TBGSHT!$C$9:$C$4167=D$6)),"") -> 0 | E146: =IFERROR(SUMPRODUCT((TBGSHT!$D$9:$D$4167=$B146)*(TBGSHT!$C$9:$C$4167=E$6)),"") -> 0 | F146: =IFERROR(SUMPRODUCT((TBGSHT!$D$9:$D$4167=$B146)*(TBGSHT!$C$9:$C$4167=F$6)),"") -> 0 | G146: =IFERROR(SUMPRODUCT((TBGSHT!$D$9:$D$4167=$B146)*(TBGSHT!$C$9:$C$4167=G$6)),"") -> 0 | H146: =IFERROR(SUMPRODUCT((TBGSHT!$D$9:$D$4167=$B146)*(TBGSHT!$C$9:$C$4167=H$6)),"") -> 0 | I146: =IFERROR(SUMPRODUCT((TBGSHT!$D$9:$D$4167=$B146)*(TBGSHT!$C$9:$C$4167=I$6)),"") -> 0 | J146: =IFERROR(SUMPRODUCT((TBGSHT!$D$9:$D$4167=$B146)*(TBGSHT!$C$9:$C$4167=J$6)),"") -> 0 | K146: =IFERROR(SUMPRODUCT((TBGSHT!$D$9:$D$4167=$B146)*(TBGSHT!$C$9:$C$4167=K$6)),"") -> 5 | L146: =IFERROR(SUMPRODUCT((TBGSHT!$D$9:$D$4167=$B146)*(TBGSHT!$C$9:$C$4167=L$6)),"") -> 0 | M146: 5 | N146: =IFERROR(VLOOKUP($B146,Danhmuc!$D$4:$M$513,2,0),"") -> 275 Trần Hưng Đạo, phường Nam Lý, thành phố Đồng Hới, tỉnh Quảng Bình | O146: =IFERROR(VLOOKUP($B146,Danhmuc!$D$4:$M$513,3,0),"") -> 0 | P146: 0 | Q146: 5 | U146: 1
A147: =IF($B147<>"",SUBTOTAL(103,B$8:B147),"") -> 140 | B147: Công ty TNHH DVTM Luận Lan | C147: =IFERROR(SUMPRODUCT((TBGSHT!$D$9:$D$4167=$B147)*(TBGSHT!$C$9:$C$4167=C$6)),"") -> 0 | D147: =IFERROR(SUMPRODUCT((TBGSHT!$D$9:$D$4167=$B147)*(TBGSHT!$C$9:$C$4167=D$6)),"") -> 0 | E147: =IFERROR(SUMPRODUCT((TBGSHT!$D$9:$D$4167=$B147)*(TBGSHT!$C$9:$C$4167=E$6)),"") -> 0 | F147: =IFERROR(SUMPRODUCT((TBGSHT!$D$9:$D$4167=$B147)*(TBGSHT!$C$9:$C$4167=F$6)),"") -> 0 | G147: =IFERROR(SUMPRODUCT((TBGSHT!$D$9:$D$4167=$B147)*(TBGSHT!$C$9:$C$4167=G$6)),"") -> 5 | H147: =IFERROR(SUMPRODUCT((TBGSHT!$D$9:$D$4167=$B147)*(TBGSHT!$C$9:$C$4167=H$6)),"") -> 0 | I147: =IFERROR(SUMPRODUCT((TBGSHT!$D$9:$D$4167=$B147)*(TBGSHT!$C$9:$C$4167=I$6)),"") -> 0 | J147: =IFERROR(SUMPRODUCT((TBGSHT!$D$9:$D$4167=$B147)*(TBGSHT!$C$9:$C$4167=J$6)),"") -> 0 | K147: =IFERROR(SUMPRODUCT((TBGSHT!$D$9:$D$4167=$B147)*(TBGSHT!$C$9:$C$4167=K$6)),"") -> 0 | L147: =IFERROR(SUMPRODUCT((TBGSHT!$D$9:$D$4167=$B147)*(TBGSHT!$C$9:$C$4167=L$6)),"") -> 0 | M147: 5 | N147: =IFERROR(VLOOKUP($B147,Danhmuc!$D$4:$M$513,2,0),"") -> TDP Cầu, Phường Quảng Phong, TX.Ba Đồn, Tỉnh Quảng Bình | O147: =IFERROR(VLOOKUP($B147,Danhmuc!$D$4:$M$513,3,0),"") -> 0978374375 | P147: 5 | Q147: 0 | U147: 1
A148: =IF($B148<>"",SUBTOTAL(103,B$8:B148),"") -> 141 | B148: CÔNG TY TNHH TM&XD NGỌC MINH | C148: =IFERROR(SUMPRODUCT((TBGSHT!$D$9:$D$4167=$B148)*(TBGSHT!$C$9:$C$4167=C$6)),"") -> 0 | D148: =IFERROR(SUMPRODUCT((TBGSHT!$D$9:$D$4167=$B148)*(TBGSHT!$C$9:$C$4167=D$6)),"") -> 0 | E148: =IFERROR(SUMPRODUCT((TBGSHT!$D$9:$D$4167=$B148)*(TBGSHT!$C$9:$C$4167=E$6)),"") -> 0 | F148: =IFERROR(SUMPRODUCT((TBGSHT!$D$9:$D$4167=$B148)*(TBGSHT!$C$9:$C$4167=F$6)),"") -> 0 | G148: =IFERROR(SUMPRODUCT((TBGSHT!$D$9:$D$4167=$B148)*(TBGSHT!$C$9:$C$4167=G$6)),"") -> 0 | H148: =IFERROR(SUMPRODUCT((TBGSHT!$D$9:$D$4167=$B148)*(TBGSHT!$C$9:$C$4167=H$6)),"") -> 0 | I148: =IFERROR(SUMPRODUCT((TBGSHT!$D$9:$D$4167=$B148)*(TBGSHT!$C$9:$C$4167=I$6)),"") -> 0 | J148: =IFERROR(SUMPRODUCT((TBGSHT!$D$9:$D$4167=$B148)*(TBGSHT!$C$9:$C$4167=J$6)),"") -> 0 | K148: =IFERROR(SUMPRODUCT((TBGSHT!$D$9:$D$4167=$B148)*(TBGSHT!$C$9:$C$4167=K$6)),"") -> 5 | L148: =IFERROR(SUMPRODUCT((TBGSHT!$D$9:$D$4167=$B148)*(TBGSHT!$C$9:$C$4167=L$6)),"") -> 0 | M148: 5 | N148: =IFERROR(VLOOKUP($B148,Danhmuc!$D$4:$M$513,2,0),"") -> Thôn 2 Thanh Thuỷ, Xã Thanh Thủy, Huyện Lệ Thủy, Tỉnh Quảng Bình | O148: =IFERROR(VLOOKUP($B148,Danhmuc!$D$4:$M$513,3,0),"") -> 0 | P148: 0 | Q148: 5
A149: =IF($B149<>"",SUBTOTAL(103,B$8:B149),"") -> 142 | B149: CÔNG TY TNHH NGUYỆT PHÚC | C149: =IFERROR(SUMPRODUCT((TBGSHT!$D$9:$D$4167=$B149)*(TBGSHT!$C$9:$C$4167=C$6)),"") -> 0 | D149: =IFERROR(SUMPRODUCT((TBGSHT!$D$9:$D$4167=$B149)*(TBGSHT!$C$9:$C$4167=D$6)),"") -> 0 | E149: =IFERROR(SUMPRODUCT((TBGSHT!$D$9:$D$4167=$B149)*(TBGSHT!$C$9:$C$4167=E$6)),"") -> 0 | F149: =IFERROR(SUMPRODUCT((TBGSHT!$D$9:$D$4167=$B149)*(TBGSHT!$C$9:$C$4167=F$6)),"") -> 0 | G149: =IFERROR(SUMPRODUCT((TBGSHT!$D$9:$D$4167=$B149)*(TBGSHT!$C$9:$C$4167=G$6)),"") -> 0 | H149: =IFERROR(SUMPRODUCT((TBGSHT!$D$9:$D$4167=$B149)*(TBGSHT!$C$9:$C$4167=H$6)),"") -> 0 | I149: =IFERROR(SUMPRODUCT((TBGSHT!$D$9:$D$4167=$B149)*(TBGSHT!$C$9:$C$4167=I$6)),"") -> 0 | J149: =IFERROR(SUMPRODUCT((TBGSHT!$D$9:$D$4167=$B149)*(TBGSHT!$C$9:$C$4167=J$6)),"") -> 0 | K149: =IFERROR(SUMPRODUCT((TBGSHT!$D$9:$D$4167=$B149)*(TBGSHT!$C$9:$C$4167=K$6)),"") -> 5 | L149: =IFERROR(SUMPRODUCT((TBGSHT!$D$9:$D$4167=$B149)*(TBGSHT!$C$9:$C$4167=L$6)),"") -> 0 | M149: 5 | N149: =IFERROR(VLOOKUP($B149,Danhmuc!$D$4:$M$513,2,0),"") -> DP9, Phường Nam Lý, Thành Phố Đồng Hới, Tỉnh Quảng Bình | O149: =IFERROR(VLOOKUP($B149,Danhmuc!$D$4:$M$513,3,0),"") -> 0 | P149: 0 | Q149: 5 | U149: 1
A150: =IF($B150<>"",SUBTOTAL(103,B$8:B150),"") -> 143 | B150: CÔNG TY TNHH TM&DV TOÀN THẮNG | C150: =IFERROR(SUMPRODUCT((TBGSHT!$D$9:$D$4167=$B150)*(TBGSHT!$C$9:$C$4167=C$6)),"") -> 0 | D150: =IFERROR(SUMPRODUCT((TBGSHT!$D$9:$D$4167=$B150)*(TBGSHT!$C$9:$C$4167=D$6)),"") -> 0 | E150: =IFERROR(SUMPRODUCT((TBGSHT!$D$9:$D$4167=$B150)*(TBGSHT!$C$9:$C$4167=E$6)),"") -> 0 | F150: =IFERROR(SUMPRODUCT((TBGSHT!$D$9:$D$4167=$B150)*(TBGSHT!$C$9:$C$4167=F$6)),"") -> 0 | G150: =IFERROR(SUMPRODUCT((TBGSHT!$D$9:$D$4167=$B150)*(TBGSHT!$C$9:$C$4167=G$6)),"") -> 0 | H150: =IFERROR(SUMPRODUCT((TBGSHT!$D$9:$D$4167=$B150)*(TBGSHT!$C$9:$C$4167=H$6)),"") -> 0 | I150: =IFERROR(SUMPRODUCT((TBGSHT!$D$9:$D$4167=$B150)*(TBGSHT!$C$9:$C$4167=I$6)),"") -> 0 | J150: =IFERROR(SUMPRODUCT((TBGSHT!$D$9:$D$4167=$B150)*(TBGSHT!$C$9:$C$4167=J$6)),"") -> 0 | K150: =IFERROR(SUMPRODUCT((TBGSHT!$D$9:$D$4167=$B150)*(TBGSHT!$C$9:$C$4167=K$6)),"") -> 5 | L150: =IFERROR(SUMPRODUCT((TBGSHT!$D$9:$D$4167=$B150)*(TBGSHT!$C$9:$C$4167=L$6)),"") -> 0 | M150: 5 | N150: =IFERROR(VLOOKUP($B150,Danhmuc!$D$4:$M$513,2,0),"") -> KP4, Phường Ba Đồn, Thị xã Ba Đồn, Tỉnh Quảng Bình | O150: =IFERROR(VLOOKUP($B150,Danhmuc!$D$4:$M$513,3,0),"") -> 0914239317 | P150: 0 | Q150: 5 | U150: 1
A151: =IF($B151<>"",SUBTOTAL(103,B$8:B151),"") -> 144 | B151: CÔNG TY CP SCĐB & XDTH II QUẢNG BÌNH | C151: =IFERROR(SUMPRODUCT((TBGSHT!$D$9:$D$4167=$B151)*(TBGSHT!$C$9:$C$4167=C$6)),"") -> 0 | D151: =IFERROR(SUMPRODUCT((TBGSHT!$D$9:$D$4167=$B151)*(TBGSHT!$C$9:$C$4167=D$6)),"") -> 0 | E151: =IFERROR(SUMPRODUCT((TBGSHT!$D$9:$D$4167=$B151)*(TBGSHT!$C$9:$C$4167=E$6)),"") -> 0 | F151: =IFERROR(SUMPRODUCT((TBGSHT!$D$9:$D$4167=$B151)*(TBGSHT!$C$9:$C$4167=F$6)),"") -> 0 | G151: =IFERROR(SUMPRODUCT((TBGSHT!$D$9:$D$4167=$B151)*(TBGSHT!$C$9:$C$4167=G$6)),"") -> 0 | H151: =IFERROR(SUMPRODUCT((TBGSHT!$D$9:$D$4167=$B151)*(TBGSHT!$C$9:$C$4167=H$6)),"") -> 0 | I151: =IFERROR(SUMPRODUCT((TBGSHT!$D$9:$D$4167=$B151)*(TBGSHT!$C$9:$C$4167=I$6)),"") -> 0 | J151: =IFERROR(SUMPRODUCT((TBGSHT!$D$9:$D$4167=$B151)*(TBGSHT!$C$9:$C$4167=J$6)),"") -> 0 | K151: =IFERROR(SUMPRODUCT((TBGSHT!$D$9:$D$4167=$B151)*(TBGSHT!$C$9:$C$4167=K$6)),"") -> 5 | L151: =IFERROR(SUMPRODUCT((TBGSHT!$D$9:$D$4167=$B151)*(TBGSHT!$C$9:$C$4167=L$6)),"") -> 0 | M151: 5 | N151: =IFERROR(VLOOKUP($B151,Danhmuc!$D$4:$M$513,2,0),"") -> TK Lưu Thuận, Thị trấn Đồng Lê, Huyện Tuyên Hoá, Tỉnh Quảng Bình | O151: =IFERROR(VLOOKUP($B151,Danhmuc!$D$4:$M$513,3,0),"") -> 0944787666 | P151: 0 | Q151: 5 | U151: 1
A152: =IF($B152<>"",SUBTOTAL(103,B$8:B152),"") -> 145 | B152: Công ty CP Đầu tư thương mại Thành Châu | C152: =IFERROR(SUMPRODUCT((TBGSHT!$D$9:$D$4167=$B152)*(TBGSHT!$C$9:$C$4167=C$6)),"") -> 0 | D152: =IFERROR(SUMPRODUCT((TBGSHT!$D$9:$D$4167=$B152)*(TBGSHT!$C$9:$C$4167=D$6)),"") -> 0 | E152: =IFERROR(SUMPRODUCT((TBGSHT!$D$9:$D$4167=$B152)*(TBGSHT!$C$9:$C$4167=E$6)),"") -> 0 | F152: =IFERROR(SUMPRODUCT((TBGSHT!$D$9:$D$4167=$B152)*(TBGSHT!$C$9:$C$4167=F$6)),"") -> 0 | G152: =IFERROR(SUMPRODUCT((TBGSHT!$D$9:$D$4167=$B152)*(TBGSHT!$C$9:$C$4167=G$6)),"") -> 0 | H152: =IFERROR(SUMPRODUCT((TBGSHT!$D$9:$D$4167=$B152)*(TBGSHT!$C$9:$C$4167=H$6)),"") -> 0 | I152: =IFERROR(SUMPRODUCT((TBGSHT!$D$9:$D$4167=$B152)*(TBGSHT!$C$9:$C$4167=I$6)),"") -> 0 | J152: =IFERROR(SUMPRODUCT((TBGSHT!$D$9:$D$4167=$B152)*(TBGSHT!$C$9:$C$4167=J$6)),"") -> 0 | K152: =IFERROR(SUMPRODUCT((TBGSHT!$D$9:$D$4167=$B152)*(TBGSHT!$C$9:$C$4167=K$6)),"") -> 5 | L152: =IFERROR(SUMPRODUCT((TBGSHT!$D$9:$D$4167=$B152)*(TBGSHT!$C$9:$C$4167=L$6)),"") -> 0 | M152: 5 | N152: =IFERROR(VLOOKUP($B152,Danhmuc!$D$4:$M$513,2,0),"") -> Thôn Giao Tế, Xã Đức Ninh, Thành Phố Đồng Hới, Tỉnh Quảng Bình | O152: =IFERROR(VLOOKUP($B152,Danhmuc!$D$4:$M$513,3,0),"") -> 0 | P152: 0 | Q152: 5
A153: =IF($B153<>"",SUBTOTAL(103,B$8:B153),"") -> 146 | B153: CÔNG TY TNHH TỔNG HỢP TƯỜNG DÙNG | C153: =IFERROR(SUMPRODUCT((TBGSHT!$D$9:$D$4167=$B153)*(TBGSHT!$C$9:$C$4167=C$6)),"") -> 0 | D153: =IFERROR(SUMPRODUCT((TBGSHT!$D$9:$D$4167=$B153)*(TBGSHT!$C$9:$C$4167=D$6)),"") -> 0 | E153: =IFERROR(SUMPRODUCT((TBGSHT!$D$9:$D$4167=$B153)*(TBGSHT!$C$9:$C$4167=E$6)),"") -> 0 | F153: =IFERROR(SUMPRODUCT((TBGSHT!$D$9:$D$4167=$B153)*(TBGSHT!$C$9:$C$4167=F$6)),"") -> 0 | G153: =IFERROR(SUMPRODUCT((TBGSHT!$D$9:$D$4167=$B153)*(TBGSHT!$C$9:$C$4167=G$6)),"") -> 0 | H153: =IFERROR(SUMPRODUCT((TBGSHT!$D$9:$D$4167=$B153)*(TBGSHT!$C$9:$C$4167=H$6)),"") -> 0 | I153: =IFERROR(SUMPRODUCT((TBGSHT!$D$9:$D$4167=$B153)*(TBGSHT!$C$9:$C$4167=I$6)),"") -> 0 | J153: =IFERROR(SUMPRODUCT((TBGSHT!$D$9:$D$4167=$B153)*(TBGSHT!$C$9:$C$4167=J$6)),"") -> 0 | K153: =IFERROR(SUMPRODUCT((TBGSHT!$D$9:$D$4167=$B153)*(TBGSHT!$C$9:$C$4167=K$6)),"") -> 5 | L153: =IFERROR(SUMPRODUCT((TBGSHT!$D$9:$D$4167=$B153)*(TBGSHT!$C$9:$C$4167=L$6)),"") -> 0 | M153: 5 | N153: =IFERROR(VLOOKUP($B153,Danhmuc!$D$4:$M$513,2,0),"") -> 95 Quang Trung, Phường Quảng Thọ, Thị xã Ba Đồn, Tỉnh Quảng Bình | O153: =IFERROR(VLOOKUP($B153,Danhmuc!$D$4:$M$513,3,0),"") -> 0 | P153: 0 | Q153: 5
A154: =IF($B154<>"",SUBTOTAL(103,B$8:B154),"") -> 147 | B154: Công ty TNHH TMVT Phú Gia | C154: =IFERROR(SUMPRODUCT((TBGSHT!$D$9:$D$4167=$B154)*(TBGSHT!$C$9:$C$4167=C$6)),"") -> 0 | D154: =IFERROR(SUMPRODUCT((TBGSHT!$D$9:$D$4167=$B154)*(TBGSHT!$C$9:$C$4167=D$6)),"") -> 0 | E154: =IFERROR(SUMPRODUCT((TBGSHT!$D$9:$D$4167=$B154)*(TBGSHT!$C$9:$C$4167=E$6)),"") -> 0 | F154: =IFERROR(SUMPRODUCT((TBGSHT!$D$9:$D$4167=$B154)*(TBGSHT!$C$9:$C$4167=F$6)),"") -> 0 | G154: =IFERROR(SUMPRODUCT((TBGSHT!$D$9:$D$4167=$B154)*(TBGSHT!$C$9:$C$4167=G$6)),"") -> 0 | H154: =IFERROR(SUMPRODUCT((TBGSHT!$D$9:$D$4167=$B154)*(TBGSHT!$C$9:$C$4167=H$6)),"") -> 0 | I154: =IFERROR(SUMPRODUCT((TBGSHT!$D$9:$D$4167=$B154)*(TBGSHT!$C$9:$C$4167=I$6)),"") -> 0 | J154: =IFERROR(SUMPRODUCT((TBGSHT!$D$9:$D$4167=$B154)*(TBGSHT!$C$9:$C$4167=J$6)),"") -> 4 | K154: =IFERROR(SUMPRODUCT((TBGSHT!$D$9:$D$4167=$B154)*(TBGSHT!$C$9:$C$4167=K$6)),"") -> 0 | L154: =IFERROR(SUMPRODUCT((TBGSHT!$D$9:$D$4167=$B154)*(TBGSHT!$C$9:$C$4167=L$6)),"") -> 0 | M154: 4 | N154: =IFERROR(VLOOKUP($B154,Danhmuc!$D$4:$M$513,2,0),"") -> Thị trấn Quy Đạt, huyện Minh Hóa, tỉnh Quảng Bình | O154: =IFERROR(VLOOKUP($B154,Danhmuc!$D$4:$M$513,3,0),"") -> 0905862888 | P154: 0 | Q154: 4
A155: =IF($B155<>"",SUBTOTAL(103,B$8:B155),"") -> 148 | B155: Công ty TNHH Phương Hoa | C155: =IFERROR(SUMPRODUCT((TBGSHT!$D$9:$D$4167=$B155)*(TBGSHT!$C$9:$C$4167=C$6)),"") -> 0 | D155: =IFERROR(SUMPRODUCT((TBGSHT!$D$9:$D$4167=$B155)*(TBGSHT!$C$9:$C$4167=D$6)),"") -> 0 | E155: =IFERROR(SUMPRODUCT((TBGSHT!$D$9:$D$4167=$B155)*(TBGSHT!$C$9:$C$4167=E$6)),"") -> 0 | F155: =IFERROR(SUMPRODUCT((TBGSHT!$D$9:$D$4167=$B155)*(TBGSHT!$C$9:$C$4167=F$6)),"") -> 0 | G155: =IFERROR(SUMPRODUCT((TBGSHT!$D$9:$D$4167=$B155)*(TBGSHT!$C$9:$C$4167=G$6)),"") -> 0 | H155: =IFERROR(SUMPRODUCT((TBGSHT!$D$9:$D$4167=$B155)*(TBGSHT!$C$9:$C$4167=H$6)),"") -> 0 | I155: =IFERROR(SUMPRODUCT((TBGSHT!$D$9:$D$4167=$B155)*(TBGSHT!$C$9:$C$4167=I$6)),"") -> 0 | J155: =IFERROR(SUMPRODUCT((TBGSHT!$D$9:$D$4167=$B155)*(TBGSHT!$C$9:$C$4167=J$6)),"") -> 2 | K155: =IFERROR(SUMPRODUCT((TBGSHT!$D$9:$D$4167=$B155)*(TBGSHT!$C$9:$C$4167=K$6)),"") -> 2 | L155: =IFERROR(SUMPRODUCT((TBGSHT!$D$9:$D$4167=$B155)*(TBGSHT!$C$9:$C$4167=L$6)),"") -> 0 | M155: 4 | N155: =IFERROR(VLOOKUP($B155,Danhmuc!$D$4:$M$513,2,0),"") -> TK12, Hoàn Lão, Bố Trạch, Quảng Bình | O155: =IFERROR(VLOOKUP($B155,Danhmuc!$D$4:$M$513,3,0),"") -> 0911131133 | P155: 0 | Q155: 4
A156: =IF($B156<>"",SUBTOTAL(103,B$8:B156),"") -> 149 | B156: Công ty TNHH Vận tải Bảo Hiền | C156: =IFERROR(SUMPRODUCT((TBGSHT!$D$9:$D$4167=$B156)*(TBGSHT!$C$9:$C$4167=C$6)),"") -> 0 | D156: =IFERROR(SUMPRODUCT((TBGSHT!$D$9:$D$4167=$B156)*(TBGSHT!$C$9:$C$4167=D$6)),"") -> 0 | E156: =IFERROR(SUMPRODUCT((TBGSHT!$D$9:$D$4167=$B156)*(TBGSHT!$C$9:$C$4167=E$6)),"") -> 0 | F156: =IFERROR(SUMPRODUCT((TBGSHT!$D$9:$D$4167=$B156)*(TBGSHT!$C$9:$C$4167=F$6)),"") -> 0 | G156: =IFERROR(SUMPRODUCT((TBGSHT!$D$9:$D$4167=$B156)*(TBGSHT!$C$9:$C$4167=G$6)),"") -> 0 | H156: =IFERROR(SUMPRODUCT((TBGSHT!$D$9:$D$4167=$B156)*(TBGSHT!$C$9:$C$4167=H$6)),"") -> 0 | I156: =IFERROR(SUMPRODUCT((TBGSHT!$D$9:$D$4167=$B156)*(TBGSHT!$C$9:$C$4167=I$6)),"") -> 0 | J156: =IFERROR(SUMPRODUCT((TBGSHT!$D$9:$D$4167=$B156)*(TBGSHT!$C$9:$C$4167=J$6)),"") -> 0 | K156: =IFERROR(SUMPRODUCT((TBGSHT!$D$9:$D$4167=$B156)*(TBGSHT!$C$9:$C$4167=K$6)),"") -> 4 | L156: =IFERROR(SUMPRODUCT((TBGSHT!$D$9:$D$4167=$B156)*(TBGSHT!$C$9:$C$4167=L$6)),"") -> 0 | M156: 4 | N156: =IFERROR(VLOOKUP($B156,Danhmuc!$D$4:$M$513,2,0),"") -> TK9, Bắc Lý, Đồng Hới, Quảng Bình | O156: =IFERROR(VLOOKUP($B156,Danhmuc!$D$4:$M$513,3,0),"") -> 0935137667 | P156: 0 | Q156: 4
A157: =IF($B157<>"",SUBTOTAL(103,B$8:B157),"") -> 150 | B157: Công ty TNHH TM&VT Xuân Thành | C157: =IFERROR(SUMPRODUCT((TBGSHT!$D$9:$D$4167=$B157)*(TBGSHT!$C$9:$C$4167=C$6)),"") -> 0 | D157: =IFERROR(SUMPRODUCT((TBGSHT!$D$9:$D$4167=$B157)*(TBGSHT!$C$9:$C$4167=D$6)),"") -> 0 | E157: =IFERROR(SUMPRODUCT((TBGSHT!$D$9:$D$4167=$B157)*(TBGSHT!$C$9:$C$4167=E$6)),"") -> 0 | F157: =IFERROR(SUMPRODUCT((TBGSHT!$D$9:$D$4167=$B157)*(TBGSHT!$C$9:$C$4167=F$6)),"") -> 0 | G157: =IFERROR(SUMPRODUCT((TBGSHT!$D$9:$D$4167=$B157)*(TBGSHT!$C$9:$C$4167=G$6)),"") -> 0 | H157: =IFERROR(SUMPRODUCT((TBGSHT!$D$9:$D$4167=$B157)*(TBGSHT!$C$9:$C$4167=H$6)),"") -> 0 | I157: =IFERROR(SUMPRODUCT((TBGSHT!$D$9:$D$4167=$B157)*(TBGSHT!$C$9:$C$4167=I$6)),"") -> 0 | J157: =IFERROR(SUMPRODUCT((TBGSHT!$D$9:$D$4167=$B157)*(TBGSHT!$C$9:$C$4167=J$6)),"") -> 4 | K157: =IFERROR(SUMPRODUCT((TBGSHT!$D$9:$D$4167=$B157)*(TBGSHT!$C$9:$C$4167=K$6)),"") -> 0 | L157: =IFERROR(SUMPRODUCT((TBGSHT!$D$9:$D$4167=$B157)*(TBGSHT!$C$9:$C$4167=L$6)),"") -> 0 | M157: 4 | N157: =IFERROR(VLOOKUP($B157,Danhmuc!$D$4:$M$513,2,0),"") -> Thôn 16, Xã Lộc Ninh, Thành phố Đồng Hới, Tỉnh Quảng Bình | O157: =IFERROR(VLOOKUP($B157,Danhmuc!$D$4:$M$513,3,0),"") -> 0978555077 | P157: 0 | Q157: 4
A158: =IF($B158<>"",SUBTOTAL(103,B$8:B158),"") -> 151 | B158: Công ty Cổ phân xây dựng điện VNECO12 | C158: =IFERROR(SUMPRODUCT((TBGSHT!$D$9:$D$4167=$B158)*(TBGSHT!$C$9:$C$4167=C$6)),"") -> 0 | D158: =IFERROR(SUMPRODUCT((TBGSHT!$D$9:$D$4167=$B158)*(TBGSHT!$C$9:$C$4167=D$6)),"") -> 0 | E158: =IFERROR(SUMPRODUCT((TBGSHT!$D$9:$D$4167=$B158)*(TBGSHT!$C$9:$C$4167=E$6)),"") -> 0 | F158: =IFERROR(SUMPRODUCT((TBGSHT!$D$9:$D$4167=$B158)*(TBGSHT!$C$9:$C$4167=F$6)),"") -> 0 | G158: =IFERROR(SUMPRODUCT((TBGSHT!$D$9:$D$4167=$B158)*(TBGSHT!$C$9:$C$4167=G$6)),"") -> 0 | H158: =IFERROR(SUMPRODUCT((TBGSHT!$D$9:$D$4167=$B158)*(TBGSHT!$C$9:$C$4167=H$6)),"") -> 0 | I158: =IFERROR(SUMPRODUCT((TBGSHT!$D$9:$D$4167=$B158)*(TBGSHT!$C$9:$C$4167=I$6)),"") -> 0 | J158: =IFERROR(SUMPRODUCT((TBGSHT!$D$9:$D$4167=$B158)*(TBGSHT!$C$9:$C$4167=J$6)),"") -> 0 | K158: =IFERROR(SUMPRODUCT((TBGSHT!$D$9:$D$4167=$B158)*(TBGSHT!$C$9:$C$4167=K$6)),"") -> 0 | L158: =IFERROR(SUMPRODUCT((TBGSHT!$D$9:$D$4167=$B158)*(TBGSHT!$C$9:$C$4167=L$6)),"") -> 0 | M158: 0 | N158: =IFERROR(VLOOKUP($B158,Danhmuc!$D$4:$M$513,2,0),"") -> 155 Lý Thường Kiệt,P.Đồng Phú, TP, Đồng Hới, Tỉnh Quảng Bình | O158: =IFERROR(VLOOKUP($B158,Danhmuc!$D$4:$M$513,3,0),"") -> 0982882639 | P158: 0 | Q158: 0
A159: =IF($B159<>"",SUBTOTAL(103,B$8:B159),"") -> 152 | B159: Công ty TNHH TMTH Hoàng Luật | C159: =IFERROR(SUMPRODUCT((TBGSHT!$D$9:$D$4167=$B159)*(TBGSHT!$C$9:$C$4167=C$6)),"") -> 0 | D159: =IFERROR(SUMPRODUCT((TBGSHT!$D$9:$D$4167=$B159)*(TBGSHT!$C$9:$C$4167=D$6)),"") -> 0 | E159: =IFERROR(SUMPRODUCT((TBGSHT!$D$9:$D$4167=$B159)*(TBGSHT!$C$9:$C$4167=E$6)),"") -> 0 | F159: =IFERROR(SUMPRODUCT((TBGSHT!$D$9:$D$4167=$B159)*(TBGSHT!$C$9:$C$4167=F$6)),"") -> 0 | G159: =IFERROR(SUMPRODUCT((TBGSHT!$D$9:$D$4167=$B159)*(TBGSHT!$C$9:$C$4167=G$6)),"") -> 0 | H159: =IFERROR(SUMPRODUCT((TBGSHT!$D$9:$D$4167=$B159)*(TBGSHT!$C$9:$C$4167=H$6)),"") -> 0 | I159: =IFERROR(SUMPRODUCT((TBGSHT!$D$9:$D$4167=$B159)*(TBGSHT!$C$9:$C$4167=I$6)),"") -> 0 | J159: =IFERROR(SUMPRODUCT((TBGSHT!$D$9:$D$4167=$B159)*(TBGSHT!$C$9:$C$4167=J$6)),"") -> 0 | K159: =IFERROR(SUMPRODUCT((TBGSHT!$D$9:$D$4167=$B159)*(TBGSHT!$C$9:$C$4167=K$6)),"") -> 4 | L159: =IFERROR(SUMPRODUCT((TBGSHT!$D$9:$D$4167=$B159)*(TBGSHT!$C$9:$C$4167=L$6)),"") -> 0 | M159: 4 | N159: =IFERROR(VLOOKUP($B159,Danhmuc!$D$4:$M$513,2,0),"") -> Xóm chợ, P.Quảng Thuận, TX.Ba Đồn, Tỉnh Quảng Bình | O159: =IFERROR(VLOOKUP($B159,Danhmuc!$D$4:$M$513,3,0),"") -> 0912416777 | P159: 0 | Q159: 4
